Workbook

Sheet 利用規約
A1: 利用規約
A3: 本ツールの全部又は一部をコンピュータのメモリ、ハードディスク等の記憶装置へ保存したとき、又は本ソフトウェアを使用したときは、
A4: (一般社団法人)日本自動車部品工業会(以下、部工会とする)の定めた下記事項に同意したものとみなされます。
A6: ・ | B6: 部工会は本ツールのコピーについて、著作権を含む一切の知的財産権および所有権を保有します。
A7: ・ | B7: 本ツールの全部又は一部の販売あるいはその二次的著作物の販売することを禁止します。
A8: ・ | B8: 使用者が本ツールの使用において内部データの差替えやマクロの改造などを全体的または部分的に行うことは
B9: 制限しないものとします。
A10: ・ | B10: ただし、上記の行為に伴うツールの不具合や算出結果の妥当性などの部工会への問合せはご遠慮下さい。
A11: ・ | B11: また、本ツールの使用及び本ツールで算出したデータに関する責任は全て使用者が負うものとし、
B12: 部工会は一切責任を負いません。
A14: 以上、上記事項に同意されない場合は、本ツールの使用が出来ないことをご了承ください。

Sheet 算出の考え方
A1: 詳細は | B1: JAPIA LCI算出ガイドライン
B2: 〃 付則2 | G2: を参照下さい。

Sheet スタート
A1: ※必ず、ご使用前に利用規約をよくお読み下さい。
A2: ①前提とする走行モードを下記から選んで下さい。各モードにおける算出条件を変更する場合には走行条件の数値設定を変更して下さい。
A5: ②下表から製品を選んでクリックして下さい
A6: ③シートの案内(セルのコメントなど)に従って操作してください。 | O6: エンジン系部品 配分比率
A7: ④算出の考え方はこちらのシートを参照して下さい。 | O7: 従来ガソリンエンジン | S7: 従来ディーゼルエンジン | W7: ガソリンエンジンHEV/PHEV | AA7: ディーゼルエンジンHEV
A8: 製品範疇 | F8: 製品範疇 | K8: 製品範疇 | O8: 自然吸気 | Q8: 過給器付 | S8: 自然吸気 | U8: 過給器付 | W8: 自然吸気 | Y8: 過給器付 | AA8: 自然吸気 | AC8: 過給器付
A9: 大分類 | B9: 中分類 | C9: 小分類 | D9: 製品 | F9: 大分類 | G9: 中分類 | H9: 小分類 | I9: 製品 | K9: 大分類 | L9: 中分類 | M9: 小分類 | N9: 製品 | O9: 配分率 | P9: 燃料(L) | Q9: 配分率 | R9: 燃料(L) | S9: 配分率 | T9: 燃料(L) | U9: 配分率 | V9: 燃料(L) | W9: 配分率 | X9: 燃料(L) | Y9: 配分率 | Z9: 燃料(L) | AA9: 配分率 | AB9: 燃料(L) | AC9: 配分率 | AD9: 燃料(L)
A10: エネルギー不使用(エンジン系以外) ① | B10: - | C10: - | D10: インストルメントパネル | F10: エネルギー | G10: 電力 ①+② | H10: 使用 | I10: DC-DCコンバータ | K10: エンジン系 | L10: ①+②+③+④ | M10: - | N10: EGR(その他排気浄化装置部品) | O10: ='④原単位（エンジン系)'!B27 -> 0.03414351852 | P10: ='④原単位（エンジン系)'!C27 -> 37.92161559 | Q10: ='④原単位（エンジン系)'!D27 -> 0.03175457481 | R10: ='④原単位（エンジン系)'!E27 -> 35.26832709 | S10: ='④原単位（エンジン系)'!F27 -> 0.02927313322 | T10: ='④原単位（エンジン系)'!G27 -> 32.5123055 | U10: ='④原単位（エンジン系)'!H27 -> 0.02749941739 | V10: ='④原単位（エンジン系)'!I27 -> 30.54232195 | W10: ='④原単位（エンジン系)'!J27 -> 0.03414351852 | X10: ='④原単位（エンジン系)'!K27 -> 30.33729247 | Y10: ='④原単位（エンジン系)'!L27 -> 0.03175457481 | Z10: ='④原単位（エンジン系)'!M27 -> 28.21466167 | AA10: ='④原単位（エンジン系)'!N27 -> 0.02927313322 | AB10: ='④原単位（エンジン系)'!O27 -> 26.0098444 | AC10: ='④原単位（エンジン系)'!P27 -> 0.02749941739 | AD10: ='④原単位（エンジン系)'!Q27 -> 24.43385756
A11: エネルギー不使用(エンジン系以外) ① | B11: - | C11: - | D11: ウエザストリップ | F11: エネルギー | G11: 電力 ①+② | H11: 使用 | I11: パワーコントロールユニット(ハイブリッド車) | K11: エンジン系 | L11: ①+②+③+④ | M11: - | N11: インテークマニホールド | O11: ='④原単位（エンジン系)'!B4 -> 0.006076388889 | P11: ='④原単位（エンジン系)'!C4 -> 6.748762096 | Q11: ='④原単位（エンジン系)'!D4 -> 0.00565123789 | R11: ='④原単位（エンジン系)'!E4 -> 6.276566686 | S11: ='④原単位（エンジン系)'!F4 -> 0.005209625403 | T11: ='④原単位（エンジン系)'!G4 -> 5.786088267 | U11: ='④原単位（エンジン系)'!H4 -> 0.004893964111 | V11: ='④原単位（エンジン系)'!I4 -> 5.435497973 | W11: ='④原単位（エンジン系)'!J4 -> 0.006076388889 | X11: ='④原単位（エンジン系)'!K4 -> 5.399009677 | Y11: ='④原単位（エンジン系)'!L4 -> 0.00565123789 | Z11: ='④原単位（エンジン系)'!M4 -> 5.021253349 | AA11: ='④原単位（エンジン系)'!N4 -> 0.005209625403 | AB11: ='④原単位（エンジン系)'!O4 -> 4.628870614 | AC11: ='④原単位（エンジン系)'!P4 -> 0.004893964111 | AD11: ='④原単位（エンジン系)'!Q4 -> 4.348398379
A12: エネルギー不使用(エンジン系以外) ① | B12: - | C12: - | D12: エアバックモジュール及び同付属部品 | F12: エネルギー | G12: 電力 ①+② | H12: 使用 | I12: ウインドシールド・ウォッシャ | K12: エンジン系 | L12: ①+②+③+④ | M12: - | N12: エア・クリーナ | O12: ='④原単位（エンジン系)'!B5 -> 0.01446759259 | P12: ='④原単位（エンジン系)'!C5 -> 16.06848118 | Q12: ='④原単位（エンジン系)'!D5 -> 0.01345532831 | R12: ='④原単位（エンジン系)'!E5 -> 14.94420639 | S12: ='④原単位（エンジン系)'!F5 -> 0.01240387001 | T12: ='④原単位（エンジン系)'!G5 -> 13.77640064 | U12: ='④原単位（エンジン系)'!H5 -> 0.0116522955 | V12: ='④原単位（エンジン系)'!I5 -> 12.94166184 | W12: ='④原単位（エンジン系)'!J5 -> 0.01446759259 | X12: ='④原単位（エンジン系)'!K5 -> 12.85478494 | Y12: ='④原単位（エンジン系)'!L5 -> 0.01345532831 | Z12: ='④原単位（エンジン系)'!M5 -> 11.95536512 | AA12: ='④原単位（エンジン系)'!N5 -> 0.01240387001 | AB12: ='④原単位（エンジン系)'!O5 -> 11.02112051 | AC12: ='④原単位（エンジン系)'!P5 -> 0.0116522955 | AD12: ='④原単位（エンジン系)'!Q5 -> 10.35332947
A13: エネルギー不使用(エンジン系以外) ① | B13: - | C13: - | D13: 外装品 | F13: エネルギー | G13: 電力 ①+② | H13: 使用 | I13: オーディオ | K13: エンジン系 | L13: ①+②+③+④ | M13: - | N13: エアクリーナ・エレメント | O13: ='④原単位（エンジン系)'!B6 -> 0.0001446759259 | P13: ='④原単位（エンジン系)'!C6 -> 0.1606848118 | Q13: ='④原単位（エンジン系)'!D6 -> 0.0001345532831 | R13: ='④原単位（エンジン系)'!E6 -> 0.1494420639 | S13: ='④原単位（エンジン系)'!F6 -> 0.0001240387001 | T13: ='④原単位（エンジン系)'!G6 -> 0.1377640064 | U13: ='④原単位（エンジン系)'!H6 -> 0.000116522955 | V13: ='④原単位（エンジン系)'!I6 -> 0.1294166184 | W13: ='④原単位（エンジン系)'!J6 -> 0.0001446759259 | X13: ='④原単位（エンジン系)'!K6 -> 0.1285478494 | Y13: ='④原単位（エンジン系)'!L6 -> 0.0001345532831 | Z13: ='④原単位（エンジン系)'!M6 -> 0.1195536512 | AA13: ='④原単位（エンジン系)'!N6 -> 0.0001240387001 | AB13: ='④原単位（エンジン系)'!O6 -> 0.1102112051 | AC13: ='④原単位（エンジン系)'!P6 -> 0.000116522955 | AD13: ='④原単位（エンジン系)'!Q6 -> 0.1035332947
A14: エネルギー不使用(エンジン系以外) ① | B14: - | C14: - | D14: ガスケット | F14: エネルギー | G14: 電力 ①+② | H14: 使用 | I14: 各種モータ | K14: エンジン系 | L14: ①+②+③+④ | M14: - | N14: エギゾｰストマニホｰルド(鋳鉄製) | O14: ='④原単位（エンジン系)'!B7 -> 0.007233796296 | P14: ='④原単位（エンジン系)'!C7 -> 8.034240591 | Q14: ='④原単位（エンジン系)'!D7 -> 0.006727664155 | R14: ='④原単位（エンジン系)'!E7 -> 7.472103197 | S14: ='④原単位（エンジン系)'!F7 -> 0.006201935004 | T14: ='④原単位（エンジン系)'!G7 -> 6.888200318 | U14: ='④原単位（エンジン系)'!H7 -> 0.005826147751 | V14: ='④原単位（エンジン系)'!I7 -> 6.470830921 | W14: ='④原単位（エンジン系)'!J7 -> 0.007233796296 | X14: ='④原単位（エンジン系)'!K7 -> 6.427392472 | Y14: ='④原単位（エンジン系)'!L7 -> 0.006727664155 | Z14: ='④原単位（エンジン系)'!M7 -> 5.977682558 | AA14: ='④原単位（エンジン系)'!N7 -> 0.006201935004 | AB14: ='④原単位（エンジン系)'!O7 -> 5.510560254 | AC14: ='④原単位（エンジン系)'!P7 -> 0.005826147751 | AD14: ='④原単位（エンジン系)'!Q7 -> 5.176664737
A15: エネルギー不使用(エンジン系以外) ① | B15: - | C15: - | D15: クラッチ | F15: エネルギー | G15: 電力 ①+② | H15: 使用 | I15: パワーウィンドウ用モータ | K15: エンジン系 | L15: ①+②+③+④ | M15: - | N15: エギゾｰストマニホｰルド(ステンレス製) | O15: ='④原単位（エンジン系)'!B7 -> 0.007233796296 | P15: ='④原単位（エンジン系)'!C7 -> 8.034240591 | Q15: ='④原単位（エンジン系)'!D7 -> 0.006727664155 | R15: ='④原単位（エンジン系)'!E7 -> 7.472103197 | S15: ='④原単位（エンジン系)'!F7 -> 0.006201935004 | T15: ='④原単位（エンジン系)'!G7 -> 6.888200318 | U15: ='④原単位（エンジン系)'!H7 -> 0.005826147751 | V15: ='④原単位（エンジン系)'!I7 -> 6.470830921 | W15: ='④原単位（エンジン系)'!J7 -> 0.007233796296 | X15: ='④原単位（エンジン系)'!K7 -> 6.427392472 | Y15: ='④原単位（エンジン系)'!L7 -> 0.006727664155 | Z15: ='④原単位（エンジン系)'!M7 -> 5.977682558 | AA15: ='④原単位（エンジン系)'!N7 -> 0.006201935004 | AB15: ='④原単位（エンジン系)'!O7 -> 5.510560254 | AC15: ='④原単位（エンジン系)'!P7 -> 0.005826147751 | AD15: ='④原単位（エンジン系)'!Q7 -> 5.176664737
A16: エネルギー不使用(エンジン系以外) ① | B16: - | C16: - | D16: ホース類 | F16: エネルギー | G16: 電力 ①+② | H16: 使用 | I16: サーボユニット | K16: エンジン系 | L16: ①+②+③+④ | M16: - | N16: エグゾーストパイプ | O16: ='④原単位（エンジン系)'!B8 -> 0.0390625 | P16: ='④原単位（エンジン系)'!C8 -> 43.38489919 | Q16: ='④原単位（エンジン系)'!D8 -> 0.03632938644 | R16: ='④原単位（エンジン系)'!E8 -> 40.34935726 | S16: ='④原単位（エンジン系)'!F8 -> 0.03349044902 | T16: ='④原単位（エンジン系)'!G8 -> 37.19628172 | U16: ='④原単位（エンジン系)'!H8 -> 0.03146119786 | V16: ='④原単位（エンジン系)'!I8 -> 34.94248697 | W16: ='④原単位（エンジン系)'!J8 -> 0.0390625 | X16: ='④原単位（エンジン系)'!K8 -> 34.70791935 | Y16: ='④原単位（エンジン系)'!L8 -> 0.03632938644 | Z16: ='④原単位（エンジン系)'!M8 -> 32.27948581 | AA16: ='④原単位（エンジン系)'!N8 -> 0.03349044902 | AB16: ='④原単位（エンジン系)'!O8 -> 29.75702537 | AC16: ='④原単位（エンジン系)'!P8 -> 0.03146119786 | AD16: ='④原単位（エンジン系)'!Q8 -> 27.95398958
A17: エネルギー不使用(エンジン系以外) ① | B17: - | C17: - | D17: コンソールボックス | F17: エネルギー | G17: 電力 ①+② | H17: 使用 | I17: シート及びシートスプリング(電動) | K17: エンジン系 | L17: ①+②+③+④ | M17: - | N17: エンジン・ガスケット及びパッキング | O17: ='④原単位（エンジン系)'!B9 -> 0.006944444444 | P17: ='④原単位（エンジン系)'!C9 -> 7.712870967 | Q17: ='④原単位（エンジン系)'!D9 -> 0.006458557589 | R17: ='④原単位（エンジン系)'!E9 -> 7.173219069 | S17: ='④原単位（エンジン系)'!F9 -> 0.005953857604 | T17: ='④原単位（エンジン系)'!G9 -> 6.612672305 | U17: ='④原単位（エンジン系)'!H9 -> 0.005593101841 | V17: ='④原単位（エンジン系)'!I9 -> 6.211997684 | W17: ='④原単位（エンジン系)'!J9 -> 0.006944444444 | X17: ='④原単位（エンジン系)'!K9 -> 6.170296774 | Y17: ='④原単位（エンジン系)'!L9 -> 0.006458557589 | Z17: ='④原単位（エンジン系)'!M9 -> 5.738575255 | AA17: ='④原単位（エンジン系)'!N9 -> 0.005953857604 | AB17: ='④原単位（エンジン系)'!O9 -> 5.290137844 | AC17: ='④原単位（エンジン系)'!P9 -> 0.005593101841 | AD17: ='④原単位（エンジン系)'!Q9 -> 4.969598147
A18: エネルギー不使用(エンジン系以外) ① | B18: - | C18: - | D18: サスペンション | F18: エネルギー | G18: 電力 ①+② | H18: 使用 | I18: スタータモータ(ｱｲﾄﾞﾘﾝｸﾞｽﾄｯﾌﾟ無) | K18: エンジン系 | L18: ①+②+③+④ | M18: - | N18: エンジンバルブ | O18: ='④原単位（エンジン系)'!B10 -> 0.006944444444 | P18: ='④原単位（エンジン系)'!C10 -> 7.712870967 | Q18: ='④原単位（エンジン系)'!D10 -> 0.006458557589 | R18: ='④原単位（エンジン系)'!E10 -> 7.173219069 | S18: ='④原単位（エンジン系)'!F10 -> 0.005953857604 | T18: ='④原単位（エンジン系)'!G10 -> 6.612672305 | U18: ='④原単位（エンジン系)'!H10 -> 0.005593101841 | V18: ='④原単位（エンジン系)'!I10 -> 6.211997684 | W18: ='④原単位（エンジン系)'!J10 -> 0.006944444444 | X18: ='④原単位（エンジン系)'!K10 -> 6.170296774 | Y18: ='④原単位（エンジン系)'!L10 -> 0.006458557589 | Z18: ='④原単位（エンジン系)'!M10 -> 5.738575255 | AA18: ='④原単位（エンジン系)'!N10 -> 0.005953857604 | AB18: ='④原単位（エンジン系)'!O10 -> 5.290137844 | AC18: ='④原単位（エンジン系)'!P10 -> 0.005593101841 | AD18: ='④原単位（エンジン系)'!Q10 -> 4.969598147
A19: エネルギー不使用(エンジン系以外) ① | B19: - | C19: - | D19: シート及びシートスプリング(非電動) | F19: エネルギー | G19: 電力 ①+② | H19: 使用 | I19: スタータモータ(ｱｲﾄﾞﾘﾝｸﾞｽﾄｯﾌﾟ有 WLTP) | K19: エンジン系 | L19: ①+②+③+④ | M19: - | N19: エンジン制御装置 | O19: ='④原単位（エンジン系)'!B11 -> 0.04484953704 | P19: ='④原単位（エンジン系)'!C11 -> 49.81229166 | Q19: ='④原単位（エンジン系)'!D11 -> 0.04171151776 | R19: ='④原単位（エンジン系)'!E11 -> 46.32703982 | S19: ='④原単位（エンジン系)'!F11 -> 0.03845199702 | T19: ='④原単位（エンジン系)'!G11 -> 42.70684197 | U19: ='④原単位（エンジン系)'!H11 -> 0.03612211606 | V19: ='④原単位（エンジン系)'!I11 -> 40.11915171 | W19: ='④原単位（エンジン系)'!J11 -> 0.04484953704 | X19: ='④原単位（エンジン系)'!K11 -> 39.84983333 | Y19: ='④原単位（エンジン系)'!L11 -> 0.04171151776 | Z19: ='④原単位（エンジン系)'!M11 -> 37.06163186 | AA19: ='④原単位（エンジン系)'!N11 -> 0.03845199702 | AB19: ='④原単位（エンジン系)'!O11 -> 34.16547358 | AC19: ='④原単位（エンジン系)'!P11 -> 0.03612211606 | AD19: ='④原単位（エンジン系)'!Q11 -> 32.09532137
A20: エネルギー不使用(エンジン系以外) ① | B20: - | C20: - | D20: シートベルト_プリテン無 | F20: エネルギー | G20: 電力 ①+② | H20: 使用 | I20: スタータモータ(ｱｲﾄﾞﾘﾝｸﾞｽﾄｯﾌﾟ有 JC08) | K20: エンジン系 | L20: ①+②+③+④ | M20: - | N20: オイル・クーラ | O20: ='④原単位（エンジン系)'!B12 -> 0.007523148148 | P20: ='④原単位（エンジン系)'!C12 -> 8.355610214 | Q20: ='④原単位（エンジン系)'!D12 -> 0.006996770721 | R20: ='④原単位（エンジン系)'!E12 -> 7.770987325 | S20: ='④原単位（エンジン系)'!F12 -> 0.006450012404 | T20: ='④原単位（エンジン系)'!G12 -> 7.16372833 | U20: ='④原単位（エンジン系)'!H12 -> 0.006059193661 | V20: ='④原単位（エンジン系)'!I12 -> 6.729664158 | W20: ='④原単位（エンジン系)'!J12 -> 0.007523148148 | X20: ='④原単位（エンジン系)'!K12 -> 6.684488171 | Y20: ='④原単位（エンジン系)'!L12 -> 0.006996770721 | Z20: ='④原単位（エンジン系)'!M12 -> 6.21678986 | AA20: ='④原単位（エンジン系)'!N12 -> 0.006450012404 | AB20: ='④原単位（エンジン系)'!O12 -> 5.730982664 | AC20: ='④原単位（エンジン系)'!P12 -> 0.006059193661 | AD20: ='④原単位（エンジン系)'!Q12 -> 5.383731326
A21: エネルギー不使用(エンジン系以外) ① | B21: - | C21: - | D21: シートベルト_プリテン有 | F21: エネルギー | G21: 電力 ①+② | H21: 使用 | I21: ステアリング倍力装置（電気式） | K21: エンジン系 | L21: ①+②+③+④ | M21: - | N21: オイル・フィルタ | O21: ='④原単位（エンジン系)'!B13 -> 0.004340277778 | P21: ='④原単位（エンジン系)'!C13 -> 4.820544354 | Q21: ='④原単位（エンジン系)'!D13 -> 0.004036598493 | R21: ='④原単位（エンジン系)'!E13 -> 4.483261918 | S21: ='④原単位（エンジン系)'!F13 -> 0.003721161002 | T21: ='④原単位（エンジン系)'!G13 -> 4.132920191 | U21: ='④原単位（エンジン系)'!H13 -> 0.003495688651 | V21: ='④原単位（エンジン系)'!I13 -> 3.882498552 | W21: ='④原単位（エンジン系)'!J13 -> 0.004340277778 | X21: ='④原単位（エンジン系)'!K13 -> 3.856435483 | Y21: ='④原単位（エンジン系)'!L13 -> 0.004036598493 | Z21: ='④原単位（エンジン系)'!M13 -> 3.586609535 | AA21: ='④原単位（エンジン系)'!N13 -> 0.003721161002 | AB21: ='④原単位（エンジン系)'!O13 -> 3.306336153 | AC21: ='④原単位（エンジン系)'!P13 -> 0.003495688651 | AD21: ='④原単位（エンジン系)'!Q13 -> 3.105998842
A22: エネルギー不使用(エンジン系以外) ① | B22: - | C22: - | D22: ショック・アブソーバ | F22: エネルギー | G22: 電力 ①+② | H22: 使用 | I22: ヘッドライト(halogen) | K22: エンジン系 | L22: ①+②+③+④ | M22: - | N22: オイル・ポンプ | O22: ='④原単位（エンジン系)'!B14 -> 0.01446759259 | P22: ='④原単位（エンジン系)'!C14 -> 16.06848118 | Q22: ='④原単位（エンジン系)'!D14 -> 0.01345532831 | R22: ='④原単位（エンジン系)'!E14 -> 14.94420639 | S22: ='④原単位（エンジン系)'!F14 -> 0.01240387001 | T22: ='④原単位（エンジン系)'!G14 -> 13.77640064 | U22: ='④原単位（エンジン系)'!H14 -> 0.0116522955 | V22: ='④原単位（エンジン系)'!I14 -> 12.94166184 | W22: ='④原単位（エンジン系)'!J14 -> 0.01446759259 | X22: ='④原単位（エンジン系)'!K14 -> 12.85478494 | Y22: ='④原単位（エンジン系)'!L14 -> 0.01345532831 | Z22: ='④原単位（エンジン系)'!M14 -> 11.95536512 | AA22: ='④原単位（エンジン系)'!N14 -> 0.01240387001 | AB22: ='④原単位（エンジン系)'!O14 -> 11.02112051 | AC22: ='④原単位（エンジン系)'!P14 -> 0.0116522955 | AD22: ='④原単位（エンジン系)'!Q14 -> 10.35332947
A23: エネルギー不使用(エンジン系以外) ① | B23: - | C23: - | D23: ステアリングホイール | F23: エネルギー | G23: 電力 ①+② | H23: 使用 | I23: ヘッドライト(HID) | K23: エンジン系 | L23: ①+②+③+④ | M23: - | N23: 過給器（ターボチャージャ及びスーパーチャージャ） | O23: ='④原単位（エンジン系)'!B15 -> - | P23: ='④原単位（エンジン系)'!C15 -> - | Q23: ='④原単位（エンジン系)'!D15 -> 0.06996770721 | R23: ='④原単位（エンジン系)'!E15 -> 77.70987325 | S23: ='④原単位（エンジン系)'!F15 -> - | T23: ='④原単位（エンジン系)'!G15 -> - | U23: ='④原単位（エンジン系)'!H15 -> 0.06059193661 | V23: ='④原単位（エンジン系)'!I15 -> 67.29664158 | W23: ='④原単位（エンジン系)'!J15 -> - | X23: ='④原単位（エンジン系)'!K15 -> - | Y23: ='④原単位（エンジン系)'!L15 -> 0.06996770721 | Z23: ='④原単位（エンジン系)'!M15 -> 62.1678986 | AA23: ='④原単位（エンジン系)'!N15 -> - | AB23: ='④原単位（エンジン系)'!O15 -> - | AC23: ='④原単位（エンジン系)'!P15 -> 0.06059193661 | AD23: ='④原単位（エンジン系)'!Q15 -> 53.83731326
A24: エネルギー不使用(エンジン系以外) ① | B24: - | C24: - | D24: ストラット式ショック・アブソーバ | F24: エネルギー | G24: 電力 ①+② | H24: 使用 | I24: ヘッドライト(LED) | K24: エンジン系 | L24: ①+②+③+④ | M24: - | N24: ガソリン用燃料噴射ノズル（インジェクター）(JC08) | O24: ='④原単位（エンジン系)'!B16 -> 0.02748842593 | P24: ='④原単位（エンジン系)'!C16 -> 30.53011424 | Q24: ='④原単位（エンジン系)'!D16 -> 0.02556512379 | R24: ='④原単位（エンジン系)'!E16 -> 28.39399215 | S24: ='④原単位（エンジン系)'!F16 -> - | T24: ='④原単位（エンジン系)'!G16 -> - | U24: ='④原単位（エンジン系)'!H16 -> - | V24: ='④原単位（エンジン系)'!I16 -> - | W24: ='④原単位（エンジン系)'!J16 -> 0.02748842593 | X24: ='④原単位（エンジン系)'!K16 -> 24.4240914 | Y24: ='④原単位（エンジン系)'!L16 -> 0.02556512379 | Z24: ='④原単位（エンジン系)'!M16 -> 22.71519372 | AA24: ='④原単位（エンジン系)'!N16 -> - | AB24: ='④原単位（エンジン系)'!O16 -> - | AC24: ='④原単位（エンジン系)'!P16 -> - | AD24: ='④原単位（エンジン系)'!Q16 -> -
A25: エネルギー不使用(エンジン系以外) ① | B25: - | C25: - | D25: ダイアフラム | F25: エネルギー | G25: 電力 ①+② | H25: 使用 | I25: ミラー装置 | K25: エンジン系 | L25: ①+②+③+④ | M25: - | N25: ガソリン用燃料噴射ノズル（インジェクター）(WLTP) | O25: ='④原単位（エンジン系)'!B16 -> 0.02748842593 | P25: ='④原単位（エンジン系)'!C16 -> 30.53011424 | Q25: ='④原単位（エンジン系)'!D16 -> 0.02556512379 | R25: ='④原単位（エンジン系)'!E16 -> 28.39399215 | S25: ='④原単位（エンジン系)'!F16 -> - | T25: ='④原単位（エンジン系)'!G16 -> - | U25: ='④原単位（エンジン系)'!H16 -> - | V25: ='④原単位（エンジン系)'!I16 -> - | W25: ='④原単位（エンジン系)'!J16 -> 0.02748842593 | X25: ='④原単位（エンジン系)'!K16 -> 24.4240914 | Y25: ='④原単位（エンジン系)'!L16 -> 0.02556512379 | Z25: ='④原単位（エンジン系)'!M16 -> 22.71519372 | AA25: ='④原単位（エンジン系)'!N16 -> - | AB25: ='④原単位（エンジン系)'!O16 -> - | AC25: ='④原単位（エンジン系)'!P16 -> - | AD25: ='④原単位（エンジン系)'!Q16 -> -
A26: エネルギー不使用(エンジン系以外) ① | B26: - | C26: - | D26: ディスク・ブレーキ装置(JC08) | F26: エネルギー | G26: 電力 ①+② | H26: 使用 | I26: スピード・メータ類 | K26: エンジン系 | L26: ①+②+③+④ | M26: - | N26: キャニスタ | O26: ='④原単位（エンジン系)'!B17 -> 0.01446759259 | P26: ='④原単位（エンジン系)'!C17 -> 16.06848118 | Q26: ='④原単位（エンジン系)'!D17 -> 0.01345532831 | R26: ='④原単位（エンジン系)'!E17 -> 14.94420639 | S26: ='④原単位（エンジン系)'!F17 -> 0.01240387001 | T26: ='④原単位（エンジン系)'!G17 -> 13.77640064 | U26: ='④原単位（エンジン系)'!H17 -> 0.0116522955 | V26: ='④原単位（エンジン系)'!I17 -> 12.94166184 | W26: ='④原単位（エンジン系)'!J17 -> 0.01446759259 | X26: ='④原単位（エンジン系)'!K17 -> 12.85478494 | Y26: ='④原単位（エンジン系)'!L17 -> 0.01345532831 | Z26: ='④原単位（エンジン系)'!M17 -> 11.95536512 | AA26: ='④原単位（エンジン系)'!N17 -> 0.01240387001 | AB26: ='④原単位（エンジン系)'!O17 -> 11.02112051 | AC26: ='④原単位（エンジン系)'!P17 -> 0.0116522955 | AD26: ='④原単位（エンジン系)'!Q17 -> 10.35332947
A27: エネルギー不使用(エンジン系以外) ① | B27: - | C27: - | D27: ディスク・ブレーキ装置(WLTP) | F27: エネルギー | G27: 電力 ①+② | H27: 使用 | I27: リアコンビネーションランプ(JC08) | K27: エンジン系 | L27: ①+②+③+④ | M27: - | N27: クランクシャフト | O27: ='④原単位（エンジン系)'!B18 -> 0.07725694444 | P27: ='④原単位（エンジン系)'!C18 -> 85.80568951 | Q27: ='④原単位（エンジン系)'!D18 -> 0.07185145318 | R27: ='④原単位（エンジン系)'!E18 -> 79.80206215 | S27: ='④原単位（エンジン系)'!F18 -> 0.06623666584 | T27: ='④原単位（エンジン系)'!G18 -> 73.56597939 | U27: ='④原単位（エンジン系)'!H18 -> 0.06222325798 | V27: ='④原単位（エンジン系)'!I18 -> 69.10847423 | W27: ='④原単位（エンジン系)'!J18 -> 0.07725694444 | X27: ='④原単位（エンジン系)'!K18 -> 68.64455161 | Y27: ='④原単位（エンジン系)'!L18 -> 0.07185145318 | Z27: ='④原単位（エンジン系)'!M18 -> 63.84164972 | AA27: ='④原単位（エンジン系)'!N18 -> 0.06623666584 | AB27: ='④原単位（エンジン系)'!O18 -> 58.85278351 | AC27: ='④原単位（エンジン系)'!P18 -> 0.06222325798 | AD27: ='④原単位（エンジン系)'!Q18 -> 55.28677939
A28: エネルギー不使用(エンジン系以外) ① | B28: - | C28: - | D28: ディスクホイール(アルミ製) | F28: エネルギー | G28: 電力 ①+② | H28: 使用 | I28: リアコンビネーションランプ(WLTP) | K28: エンジン系 | L28: ①+②+③+④ | M28: - | N28: グロー・プラグ | O28: ='④原単位（エンジン系)'!B19 -> - | P28: ='④原単位（エンジン系)'!C19 -> - | Q28: ='④原単位（エンジン系)'!D19 -> - | R28: ='④原単位（エンジン系)'!E19 -> - | S28: ='④原単位（エンジン系)'!F19 -> 0.007194244604 | T28: ='④原単位（エンジン系)'!G19 -> 7.990312369 | U28: ='④原単位（エンジン系)'!H19 -> 0.006758331391 | V28: ='④原単位（エンジン系)'!I19 -> 7.506163868 | W28: ='④原単位（エンジン系)'!J19 -> 0 | X28: ='④原単位（エンジン系)'!K19 -> - | Y28: ='④原単位（エンジン系)'!L19 -> - | Z28: ='④原単位（エンジン系)'!M19 -> - | AA28: ='④原単位（エンジン系)'!N19 -> 0.007194244604 | AB28: ='④原単位（エンジン系)'!O19 -> 6.392249895 | AC28: ='④原単位（エンジン系)'!P19 -> 0.006758331391 | AD28: ='④原単位（エンジン系)'!Q19 -> 6.004931094
A29: エネルギー不使用(エンジン系以外) ① | B29: - | D29: ディスクホイール(スチール製) | F29: エネルギー | G29: 電力 ①+② | H29: 使用 | I29: ルームランプ | K29: エンジン系 | L29: ①+②+③+④ | M29: - | N29: コネクチングロッド | O29: ='④原単位（エンジン系)'!B20 -> 0.0384837963 | P29: ='④原単位（エンジン系)'!C20 -> 42.74215994 | Q29: ='④原単位（エンジン系)'!D20 -> 0.0357911733 | R29: ='④原単位（エンジン系)'!E20 -> 39.75158901 | S29: ='④原単位（エンジン系)'!F20 -> 0.03299429422 | T29: ='④原単位（エンジン系)'!G20 -> 36.64522569 | U29: ='④原単位（エンジン系)'!H20 -> 0.03099510604 | V29: ='④原単位（エンジン系)'!I20 -> 34.4248205 | W29: ='④原単位（エンジン系)'!J20 -> 0.0384837963 | X29: ='④原単位（エンジン系)'!K20 -> 34.19372795 | Y29: ='④原単位（エンジン系)'!L20 -> 0.0357911733 | Z29: ='④原単位（エンジン系)'!M20 -> 31.80127121 | AA29: ='④原単位（エンジン系)'!N20 -> 0.03299429422 | AB29: ='④原単位（エンジン系)'!O20 -> 29.31618055 | AC29: ='④原単位（エンジン系)'!P20 -> 0.03099510604 | AD29: ='④原単位（エンジン系)'!Q20 -> 27.5398564
A30: エネルギー不使用(エンジン系以外) ① | B30: - | C30: - | D30: ドアトリム | F30: エネルギー | G30: 電力 ①+② | H30: 使用 | I30: ETCユニット | K30: エンジン系 | L30: ①+②+③+④ | M30: - | N30: サーモスタット | O30: ='④原単位（エンジン系)'!B21 -> 0.002604166667 | P30: ='④原単位（エンジン系)'!C21 -> 2.892326613 | Q30: ='④原単位（エンジン系)'!D21 -> 0.002421959096 | R30: ='④原単位（エンジン系)'!E21 -> 2.689957151 | S30: ='④原単位（エンジン系)'!F21 -> 0.002232696601 | T30: ='④原単位（エンジン系)'!G21 -> 2.479752114 | U30: ='④原単位（エンジン系)'!H21 -> 0.00209741319 | V30: ='④原単位（エンジン系)'!I21 -> 2.329499131 | W30: ='④原単位（エンジン系)'!J21 -> 0.002604166667 | X30: ='④原単位（エンジン系)'!K21 -> 2.31386129 | Y30: ='④原単位（エンジン系)'!L21 -> 0.002421959096 | Z30: ='④原単位（エンジン系)'!M21 -> 2.151965721 | AA30: ='④原単位（エンジン系)'!N21 -> 0.002232696601 | AB30: ='④原単位（エンジン系)'!O21 -> 1.983801692 | AC30: ='④原単位（エンジン系)'!P21 -> 0.00209741319 | AD30: ='④原単位（エンジン系)'!Q21 -> 1.863599305
A31: エネルギー不使用(エンジン系以外) ① | B31: - | C31: - | D31: ドラム・ブレーキ装置 | F31: エネルギー | G31: 電力 ①+② | H31: 使用 | I31: ブレーキ制御システム(ESC)(JC08) | K31: エンジン系 | L31: ①+②+③+④ | M31: - | N31: 軸受メタル(エンジン用) | O31: ='④原単位（エンジン系)'!B22 -> 0.005787037037 | P31: ='④原単位（エンジン系)'!C22 -> 6.427392472 | Q31: ='④原単位（エンジン系)'!D22 -> 0.005382131324 | R31: ='④原単位（エンジン系)'!E22 -> 5.977682558 | S31: ='④原単位（エンジン系)'!F22 -> 0.004961548003 | T31: ='④原単位（エンジン系)'!G22 -> 5.510560254 | U31: ='④原単位（エンジン系)'!H22 -> 0.004660918201 | V31: ='④原単位（エンジン系)'!I22 -> 5.176664737 | W31: ='④原単位（エンジン系)'!J22 -> 0.005787037037 | X31: ='④原単位（エンジン系)'!K22 -> 5.141913978 | Y31: ='④原単位（エンジン系)'!L22 -> 0.005382131324 | Z31: ='④原単位（エンジン系)'!M22 -> 4.782146046 | AA31: ='④原単位（エンジン系)'!N22 -> 0.004961548003 | AB31: ='④原単位（エンジン系)'!O22 -> 4.408448203 | AC31: ='④原単位（エンジン系)'!P22 -> 0.004660918201 | AD31: ='④原単位（エンジン系)'!Q22 -> 4.141331789
A32: エネルギー不使用(エンジン系以外) ① | B32: - | C32: - | D32: 内装品 | F32: エネルギー | G32: 電力 ①+② | H32: 使用 | I32: ブレーキ制御システム(ESC)(WLTP) | K32: エンジン系 | L32: ①+②+③+④ | M32: - | N32: 触媒装置 | O32: ='④原単位（エンジン系)'!B23 -> 0.03993055556 | P32: ='④原単位（エンジン系)'!C23 -> 44.34900806 | Q32: ='④原単位（エンジン系)'!D23 -> 0.03713670614 | R32: ='④原単位（エンジン系)'!E23 -> 41.24600965 | S32: ='④原単位（エンジン系)'!F23 -> 0.03423468122 | T32: ='④原単位（エンジン系)'!G23 -> 38.02286575 | U32: ='④原単位（エンジン系)'!H23 -> 0.03216033559 | V32: ='④原単位（エンジン系)'!I23 -> 35.71898668 | W32: ='④原単位（エンジン系)'!J23 -> 0.03993055556 | X32: ='④原単位（エンジン系)'!K23 -> 35.47920645 | Y32: ='④原単位（エンジン系)'!L23 -> 0.03713670614 | Z32: ='④原単位（エンジン系)'!M23 -> 32.99680772 | AA32: ='④原単位（エンジン系)'!N23 -> 0.03423468122 | AB32: ='④原単位（エンジン系)'!O23 -> 30.4182926 | AC32: ='④原単位（エンジン系)'!P23 -> 0.03216033559 | AD32: ='④原単位（エンジン系)'!Q23 -> 28.57518935
A33: エネルギー不使用(エンジン系以外) ① | B33: - | C33: - | D33: コイルスプリング | F33: エネルギー | G33: 電力 ①+② | H33: 使用 | I33: その他(電力_使用) | K33: エンジン系 | L33: ①+②+③+④ | M33: - | N33: ディーゼルエンジン用排気浄化装置(吸蔵還元型NOx触媒) | O33: ='④原単位（エンジン系)'!B23 -> 0.03993055556 | P33: ='④原単位（エンジン系)'!C23 -> 44.34900806 | Q33: ='④原単位（エンジン系)'!D23 -> 0.03713670614 | R33: ='④原単位（エンジン系)'!E23 -> 41.24600965 | S33: ='④原単位（エンジン系)'!F23 -> 0.03423468122 | T33: ='④原単位（エンジン系)'!G23 -> 38.02286575 | U33: ='④原単位（エンジン系)'!H23 -> 0.03216033559 | V33: ='④原単位（エンジン系)'!I23 -> 35.71898668 | W33: ='④原単位（エンジン系)'!J23 -> 0.03993055556 | X33: ='④原単位（エンジン系)'!K23 -> 35.47920645 | Y33: ='④原単位（エンジン系)'!L23 -> 0.03713670614 | Z33: ='④原単位（エンジン系)'!M23 -> 32.99680772 | AA33: ='④原単位（エンジン系)'!N23 -> 0.03423468122 | AB33: ='④原単位（エンジン系)'!O23 -> 30.4182926 | AC33: ='④原単位（エンジン系)'!P23 -> 0.03216033559 | AD33: ='④原単位（エンジン系)'!Q23 -> 28.57518935
A34: エネルギー不使用(エンジン系以外) ① | B34: - | C34: - | D34: ピラートリム | F34: エネルギー | G34: 電力 ①+② | H34: 伝達 | I34: スイッチ | K34: エンジン系 | L34: ①+②+③+④ | M34: - | N34: ディーゼルエンジン用排気浄化装置(尿素SCR触媒) | O34: ='④原単位（エンジン系)'!B23 -> 0.03993055556 | P34: ='④原単位（エンジン系)'!C23 -> 44.34900806 | Q34: ='④原単位（エンジン系)'!D23 -> 0.03713670614 | R34: ='④原単位（エンジン系)'!E23 -> 41.24600965 | S34: ='④原単位（エンジン系)'!F23 -> 0.03423468122 | T34: ='④原単位（エンジン系)'!G23 -> 38.02286575 | U34: ='④原単位（エンジン系)'!H23 -> 0.03216033559 | V34: ='④原単位（エンジン系)'!I23 -> 35.71898668 | W34: ='④原単位（エンジン系)'!J23 -> 0.03993055556 | X34: ='④原単位（エンジン系)'!K23 -> 35.47920645 | Y34: ='④原単位（エンジン系)'!L23 -> 0.03713670614 | Z34: ='④原単位（エンジン系)'!M23 -> 32.99680772 | AA34: ='④原単位（エンジン系)'!N23 -> 0.03423468122 | AB34: ='④原単位（エンジン系)'!O23 -> 30.4182926 | AC34: ='④原単位（エンジン系)'!P23 -> 0.03216033559 | AD34: ='④原単位（エンジン系)'!Q23 -> 28.57518935
A35: エネルギー不使用(エンジン系以外) ① | B35: - | C35: - | D35: ブレーキ倍力装置(サーボユニット) | F35: エネルギー | G35: 電力 ①+② | H35: 伝達 | I35: ハザードスイッチ | K35: エンジン系 | L35: ①+②+③+④ | M35: - | N35: ディーゼルエンジン用排気浄化装置(酸化触媒、DPF) | O35: ='④原単位（エンジン系)'!B23 -> 0.03993055556 | P35: ='④原単位（エンジン系)'!C23 -> 44.34900806 | Q35: ='④原単位（エンジン系)'!D23 -> 0.03713670614 | R35: ='④原単位（エンジン系)'!E23 -> 41.24600965 | S35: ='④原単位（エンジン系)'!F23 -> 0.03423468122 | T35: ='④原単位（エンジン系)'!G23 -> 38.02286575 | U35: ='④原単位（エンジン系)'!H23 -> 0.03216033559 | V35: ='④原単位（エンジン系)'!I23 -> 35.71898668 | W35: ='④原単位（エンジン系)'!J23 -> 0.03993055556 | X35: ='④原単位（エンジン系)'!K23 -> 35.47920645 | Y35: ='④原単位（エンジン系)'!L23 -> 0.03713670614 | Z35: ='④原単位（エンジン系)'!M23 -> 32.99680772 | AA35: ='④原単位（エンジン系)'!N23 -> 0.03423468122 | AB35: ='④原単位（エンジン系)'!O23 -> 30.4182926 | AC35: ='④原単位（エンジン系)'!P23 -> 0.03216033559 | AD35: ='④原単位（エンジン系)'!Q23 -> 28.57518935
A36: エネルギー不使用(エンジン系以外) ① | B36: - | C36: - | D36: ブレーキ本体 | F36: エネルギー | G36: 電力 ①+② | H36: 伝達 | I36: コンビスイッチ | K36: エンジン系 | L36: ①+②+③+④ | M36: - | N36: シリンダ・ライナ | O36: ='④原単位（エンジン系)'!B24 -> 0.005497685185 | P36: ='④原単位（エンジン系)'!C24 -> 6.106022849 | Q36: ='④原単位（エンジン系)'!D24 -> 0.005113024758 | R36: ='④原単位（エンジン系)'!E24 -> 5.67879843 | S36: ='④原単位（エンジン系)'!F24 -> 0.004713470603 | T36: ='④原単位（エンジン系)'!G24 -> 5.235032241 | U36: ='④原単位（エンジン系)'!H24 -> 0.004427872291 | V36: ='④原単位（エンジン系)'!I24 -> 4.9178315 | W36: ='④原単位（エンジン系)'!J24 -> 0.005497685185 | X36: ='④原単位（エンジン系)'!K24 -> 4.884818279 | Y36: ='④原単位（エンジン系)'!L24 -> 0.005113024758 | Z36: ='④原単位（エンジン系)'!M24 -> 4.543038744 | AA36: ='④原単位（エンジン系)'!N24 -> 0.004713470603 | AB36: ='④原単位（エンジン系)'!O24 -> 4.188025793 | AC36: ='④原単位（エンジン系)'!P24 -> 0.004427872291 | AD36: ='④原単位（エンジン系)'!Q24 -> 3.9342652
A37: エネルギー不使用(エンジン系以外) ① | B37: - | C37: - | D37: フロアカーペット | F37: エネルギー | G37: 電力 ①+② | H37: 伝達 | I37: ワイヤー・ハーネス | K37: エンジン系 | L37: ①+②+③+④ | M37: - | N37: シリンダブロック | O37: ='④原単位（エンジン系)'!B25 -> 0.2553530093 | P37: ='④原単位（エンジン系)'!C25 -> 283.6086928 | Q37: ='④原単位（エンジン系)'!D25 -> 0.2374865447 | R37: ='④原単位（エンジン系)'!E25 -> 263.7652429 | S37: ='④原単位（エンジン系)'!F25 -> 0.2189283056 | T37: ='④原単位（エンジン系)'!G25 -> 243.1534712 | U37: ='④原単位（エンジン系)'!H25 -> 0.2056630156 | V37: ='④原単位（エンジン系)'!I25 -> 228.4203315 | W37: ='④原単位（エンジン系)'!J25 -> 0.2553530093 | X37: ='④原単位（エンジン系)'!K25 -> 226.8869543 | Y37: ='④原単位（エンジン系)'!L25 -> 0.2374865447 | Z37: ='④原単位（エンジン系)'!M25 -> 211.0121943 | AA37: ='④原単位（エンジン系)'!N25 -> 0.2189283056 | AB37: ='④原単位（エンジン系)'!O25 -> 194.522777 | AC37: ='④原単位（エンジン系)'!P25 -> 0.2056630156 | AD37: ='④原単位（エンジン系)'!Q25 -> 182.7362652
A38: エネルギー不使用(エンジン系以外) ① | B38: - | C38: - | D38: ベローズ | F38: エネルギー | G38: 電力 ①+② | H38: 伝達 | I38: その他(電力_伝達) | K38: エンジン系 | L38: ①+②+③+④ | M38: - | N38: スロットルボデー | O38: ='④原単位（エンジン系)'!B26 -> 0.02141203704 | P38: ='④原単位（エンジン系)'!C26 -> 23.78135215 | Q38: ='④原単位（エンジン系)'!D26 -> 0.0199138859 | R38: ='④原単位（エンジン系)'!E26 -> 22.11742546 | S38: ='④原単位（エンジン系)'!F26 -> 0.01835772761 | T38: ='④原単位（エンジン系)'!G26 -> 20.38907294 | U38: ='④原単位（エンジン系)'!H26 -> 0.01724539734 | V38: ='④原単位（エンジン系)'!I26 -> 19.15365953 | W38: ='④原単位（エンジン系)'!J26 -> 0.02141203704 | X38: ='④原単位（エンジン系)'!K26 -> 19.02508172 | Y38: ='④原単位（エンジン系)'!L26 -> 0.0199138859 | Z38: ='④原単位（エンジン系)'!M26 -> 17.69394037 | AA38: ='④原単位（エンジン系)'!N26 -> 0.01835772761 | AB38: ='④原単位（エンジン系)'!O26 -> 16.31125835 | AC38: ='④原単位（エンジン系)'!P26 -> 0.01724539734 | AD38: ='④原単位（エンジン系)'!Q26 -> 15.32292762
A39: エネルギー不使用(エンジン系以外) ① | B39: - | C39: - | D39: ホイールキャップ | F39: エネルギー | G39: 動力 ①+③ | H39: 使用 | I39: エアコンシステム(ECU含む) | K39: エンジン系 | L39: ①+②+③+④ | M39: - | N39: タイミング・チェーン及びベルト | O39: ='④原単位（エンジン系)'!B28 -> 0.00462962963 | P39: ='④原単位（エンジン系)'!C28 -> 5.141913978 | Q39: ='④原単位（エンジン系)'!D28 -> 0.004305705059 | R39: ='④原単位（エンジン系)'!E28 -> 4.782146046 | S39: ='④原単位（エンジン系)'!F28 -> 0.003969238402 | T39: ='④原単位（エンジン系)'!G28 -> 4.408448203 | U39: ='④原単位（エンジン系)'!H28 -> 0.003728734561 | V39: ='④原単位（エンジン系)'!I28 -> 4.141331789 | W39: ='④原単位（エンジン系)'!J28 -> 0.00462962963 | X39: ='④原単位（エンジン系)'!K28 -> 4.113531182 | Y39: ='④原単位（エンジン系)'!L28 -> 0.004305705059 | Z39: ='④原単位（エンジン系)'!M28 -> 3.825716837 | AA39: ='④原単位（エンジン系)'!N28 -> 0.003969238402 | AB39: ='④原単位（エンジン系)'!O28 -> 3.526758563 | AC39: ='④原単位（エンジン系)'!P28 -> 0.003728734561 | AD39: ='④原単位（エンジン系)'!Q28 -> 3.313065431
A40: エネルギー不使用(エンジン系以外) ① | B40: - | C40: - | D40: マスタシリンダ | F40: エネルギー | G40: 動力 ①+③ | H40: 伝達 | I40: オルタネータ | K40: エンジン系 | L40: ①+②+③+④ | M40: - | N40: タイミングギアシリンダヘッド・ボルト | O40: ='④原単位（エンジン系)'!B29 -> 0.1252893519 | P40: ='④原単位（エンジン系)'!C29 -> 139.153047 | Q40: ='④原単位（エンジン系)'!D29 -> 0.1165231432 | R40: ='④原単位（エンジン系)'!E29 -> 129.4168274 | S40: ='④原単位（エンジン系)'!F29 -> 0.1074175143 | T40: ='④原単位（エンジン系)'!G29 -> 119.3036295 | U40: ='④原単位（エンジン系)'!H29 -> 0.100908879 | V40: ='④原単位（エンジン系)'!I29 -> 112.0747915 | W40: ='④原単位（エンジン系)'!J29 -> 0.1252893519 | X40: ='④原単位（エンジン系)'!K29 -> 111.3224376 | Y40: ='④原単位（エンジン系)'!L29 -> 0.1165231432 | Z40: ='④原単位（エンジン系)'!M29 -> 103.5334619 | AA40: ='④原単位（エンジン系)'!N29 -> 0.1074175143 | AB40: ='④原単位（エンジン系)'!O29 -> 95.4429036 | AC40: ='④原単位（エンジン系)'!P29 -> 0.100908879 | AD40: ='④原単位（エンジン系)'!Q29 -> 89.65983324
A41: エネルギー不使用(エンジン系以外) ① | B41: - | C41: - | D41: リアスタビライザ | F41: エネルギー | G41: 動力 ①+③ | H41: 使用 | I41: ハブ軸受(JC08) | K41: エンジン系 | L41: ①+②+③+④ | M41: - | N41: ディーゼル用燃料噴射ノズル | O41: ='④原単位（エンジン系)'!B30 -> - | P41: ='④原単位（エンジン系)'!C30 -> - | Q41: ='④原単位（エンジン系)'!D30 -> - | R41: ='④原単位（エンジン系)'!E30 -> - | S41: ='④原単位（エンジン系)'!F30 -> 0.03572314562 | T41: ='④原単位（エンジン系)'!G30 -> 39.67603383 | U41: ='④原単位（エンジン系)'!H30 -> 0.03355861105 | V41: ='④原単位（エンジン系)'!I30 -> 37.2719861 | W41: ='④原単位（エンジン系)'!J30 -> - | X41: ='④原単位（エンジン系)'!K30 -> - | Y41: ='④原単位（エンジン系)'!L30 -> - | Z41: ='④原単位（エンジン系)'!M30 -> - | AA41: ='④原単位（エンジン系)'!N30 -> 0.03572314562 | AB41: ='④原単位（エンジン系)'!O30 -> 31.74082706 | AC41: ='④原単位（エンジン系)'!P30 -> 0.03355861105 | AD41: ='④原単位（エンジン系)'!Q30 -> 29.81758888
A42: エネルギー不使用(エンジン系以外) ① | B42: - | C42: - | D42: リップパッキン | F42: エネルギー | G42: 動力 ①+③ | H42: 使用 | I42: ハブ軸受(WLTP) | K42: エンジン系 | L42: ①+②+③+④ | M42: - | N42: ディーゼル用燃料噴射装置（ｺﾓﾝﾚｰﾙ_ｻﾌﾟﾗｲﾎﾟﾝﾌﾟ） | O42: ='④原単位（エンジン系)'!B31 -> - | P42: ='④原単位（エンジン系)'!C31 -> - | Q42: ='④原単位（エンジン系)'!D31 -> - | R42: ='④原単位（エンジン系)'!E31 -> - | S42: ='④原単位（エンジン系)'!F31 -> 0.1421483503 | T42: ='④原単位（エンジン系)'!G31 -> 157.8775513 | U42: ='④原単位（エンジン系)'!H31 -> 0.1335353065 | V42: ='④原単位（エンジン系)'!I31 -> 148.3114447 | W42: ='④原単位（エンジン系)'!J31 -> - | X42: ='④原単位（エンジン系)'!K31 -> - | Y42: ='④原単位（エンジン系)'!L31 -> - | Z42: ='④原単位（エンジン系)'!M31 -> - | AA42: ='④原単位（エンジン系)'!N31 -> 0.1421483503 | AB42: ='④原単位（エンジン系)'!O31 -> 126.302041 | AC42: ='④原単位（エンジン系)'!P31 -> 0.1335353065 | AD42: ='④原単位（エンジン系)'!Q31 -> 118.6491558
A43: エネルギー不使用(エンジン系以外) ① | B43: - | C43: - | D43: リップリング | F43: エネルギー | G43: 動力 ①+③ | H43: 使用 | I43: ステアリング倍力装置（油圧式） | K43: エンジン系 | L43: ①+②+③+④ | M43: - | N43: イグニッション・コイル | O43: ='④原単位（エンジン系)'!B32 -> 0.01851851852 | P43: ='④原単位（エンジン系)'!C32 -> 20.56765591 | Q43: ='④原単位（エンジン系)'!D32 -> 0.01722282024 | R43: ='④原単位（エンジン系)'!E32 -> 19.12858418 | S43: ='④原単位（エンジン系)'!F32 -> - | T43: ='④原単位（エンジン系)'!G32 -> - | U43: ='④原単位（エンジン系)'!H32 -> - | V43: ='④原単位（エンジン系)'!I32 -> - | W43: ='④原単位（エンジン系)'!J32 -> 0.01851851852 | X43: ='④原単位（エンジン系)'!K32 -> 16.45412473 | Y43: ='④原単位（エンジン系)'!L32 -> 0.01722282024 | Z43: ='④原単位（エンジン系)'!M32 -> 15.30286735 | AA43: ='④原単位（エンジン系)'!N32 -> - | AB43: ='④原単位（エンジン系)'!O32 -> - | AC43: ='④原単位（エンジン系)'!P32 -> - | AD43: ='④原単位（エンジン系)'!Q32 -> -
A44: エネルギー不使用(エンジン系以外) ① | B44: - | C44: - | D44: ルーフライニング | F44: エネルギー | G44: 動力 ①+③ | H44: 使用 | I44: その他(動力_使用) | K44: エンジン系 | L44: ①+②+③+④ | M44: - | N44: スパーク・プラグ(JC08) | O44: ='④原単位（エンジン系)'!B33 -> 0.003472222222 | P44: ='④原単位（エンジン系)'!C33 -> 3.856435483 | Q44: ='④原単位（エンジン系)'!D33 -> 0.003229278794 | R44: ='④原単位（エンジン系)'!E33 -> 3.586609535 | S44: ='④原単位（エンジン系)'!F33 -> - | T44: ='④原単位（エンジン系)'!G33 -> - | U44: ='④原単位（エンジン系)'!H33 -> - | V44: ='④原単位（エンジン系)'!I33 -> - | W44: ='④原単位（エンジン系)'!J33 -> 0.003472222222 | X44: ='④原単位（エンジン系)'!K33 -> 3.085148387 | Y44: ='④原単位（エンジン系)'!L33 -> 0.003229278794 | Z44: ='④原単位（エンジン系)'!M33 -> 2.869287628 | AA44: ='④原単位（エンジン系)'!N33 -> - | AB44: ='④原単位（エンジン系)'!O33 -> - | AC44: ='④原単位（エンジン系)'!P33 -> - | AD44: ='④原単位（エンジン系)'!Q33 -> -
A45: エネルギー不使用(エンジン系以外) ① | B45: - | C45: - | D45: 防振ゴム | F45: エネルギー | G45: 動力 ①+③ | H45: 伝達 | I45: オイルシール(JC08) | K45: エンジン系 | L45: ①+②+③+④ | M45: - | N45: スパーク・プラグ(WLTP) | O45: ='④原単位（エンジン系)'!B33 -> 0.003472222222 | P45: ='④原単位（エンジン系)'!C33 -> 3.856435483 | Q45: ='④原単位（エンジン系)'!D33 -> 0.003229278794 | R45: ='④原単位（エンジン系)'!E33 -> 3.586609535 | S45: ='④原単位（エンジン系)'!F33 -> - | T45: ='④原単位（エンジン系)'!G33 -> - | U45: ='④原単位（エンジン系)'!H33 -> - | V45: ='④原単位（エンジン系)'!I33 -> - | W45: ='④原単位（エンジン系)'!J33 -> 0.003472222222 | X45: ='④原単位（エンジン系)'!K33 -> 3.085148387 | Y45: ='④原単位（エンジン系)'!L33 -> 0.003229278794 | Z45: ='④原単位（エンジン系)'!M33 -> 2.869287628 | AA45: ='④原単位（エンジン系)'!N33 -> - | AB45: ='④原単位（エンジン系)'!O33 -> - | AC45: ='④原単位（エンジン系)'!P33 -> - | AD45: ='④原単位（エンジン系)'!Q33 -> -
A46: エネルギー不使用(エンジン系以外) ① | B46: - | C46: - | D46: スタビライザーブッシュ | F46: エネルギー | G46: 動力 ①+③ | H46: 伝達 | I46: オイルシール(WLTP) | K46: エンジン系 | L46: ①+②+③+④ | M46: - | N46: 燃料フィルタ | O46: ='④原単位（エンジン系)'!B34 -> 0.008391203704 | P46: ='④原単位（エンジン系)'!C34 -> 9.319719085 | Q46: ='④原単位（エンジン系)'!D34 -> 0.00780409042 | R46: ='④原単位（エンジン系)'!E34 -> 8.667639709 | S46: ='④原単位（エンジン系)'!F34 -> 0.007194244604 | T46: ='④原単位（エンジン系)'!G34 -> 7.990312369 | U46: ='④原単位（エンジン系)'!H34 -> 0.006758331391 | V46: ='④原単位（エンジン系)'!I34 -> 7.506163868 | W46: ='④原単位（エンジン系)'!J34 -> 0.008391203704 | X46: ='④原単位（エンジン系)'!K34 -> 7.455775268 | Y46: ='④原単位（エンジン系)'!L34 -> 0.00780409042 | Z46: ='④原単位（エンジン系)'!M34 -> 6.934111767 | AA46: ='④原単位（エンジン系)'!N34 -> 0.007194244604 | AB46: ='④原単位（エンジン系)'!O34 -> 6.392249895 | AC46: ='④原単位（エンジン系)'!P34 -> 0.006758331391 | AD46: ='④原単位（エンジン系)'!Q34 -> 6.004931094
A47: エネルギー不使用(エンジン系以外) ① | B47: - | C47: - | D47: トーショナルダンパー | F47: エネルギー | G47: 動力 ①+③ | H47: 伝達 | I47: 車輪 | K47: エンジン系 | L47: ①+②+③+④ | M47: - | N47: 燃料ポンプ(電動) | O47: ='④原単位（エンジン系)'!B35 -> 0.01157407407 | P47: ='④原単位（エンジン系)'!C35 -> 12.85478494 | Q47: ='④原単位（エンジン系)'!D35 -> 0.01076426265 | R47: ='④原単位（エンジン系)'!E35 -> 11.95536512 | S47: ='④原単位（エンジン系)'!F35 -> 0.009923096006 | T47: ='④原単位（エンジン系)'!G35 -> 11.02112051 | U47: ='④原単位（エンジン系)'!H35 -> 0.009321836402 | V47: ='④原単位（エンジン系)'!I35 -> 10.35332947 | W47: ='④原単位（エンジン系)'!J35 -> 0.01157407407 | X47: ='④原単位（エンジン系)'!K35 -> 10.28382796 | Y47: ='④原単位（エンジン系)'!L35 -> 0.01076426265 | Z47: ='④原単位（エンジン系)'!M35 -> 9.564292092 | AA47: ='④原単位（エンジン系)'!N35 -> 0.009923096006 | AB47: ='④原単位（エンジン系)'!O35 -> 8.816896407 | AC47: ='④原単位（エンジン系)'!P35 -> 0.009321836402 | AD47: ='④原単位（エンジン系)'!Q35 -> 8.282663579
A48: エネルギー不使用(エンジン系以外) ① | B48: - | C48: - | D48: その他(エネルギー不使用) | F48: エネルギー | G48: 動力 ①+③ | H48: 伝達 | I48: ドライブシャフト(JC08) | K48: エンジン系 | L48: ①+②+③+④ | M48: - | N48: バルブスプリング | O48: ='④原単位（エンジン系)'!B36 -> 0.006655092593 | P48: ='④原単位（エンジン系)'!C36 -> 7.391501343 | Q48: ='④原単位（エンジン系)'!D36 -> 0.006189451023 | R48: ='④原単位（エンジン系)'!E36 -> 6.874334941 | S48: ='④原単位（エンジン系)'!F36 -> 0.005705780203 | T48: ='④原単位（エンジン系)'!G36 -> 6.337144292 | U48: ='④原単位（エンジン系)'!H36 -> 0.005360055931 | V48: ='④原単位（エンジン系)'!I36 -> 5.953164447 | W48: ='④原単位（エンジン系)'!J36 -> 0.006655092593 | X48: ='④原単位（エンジン系)'!K36 -> 5.913201075 | Y48: ='④原単位（エンジン系)'!L36 -> 0.006189451023 | Z48: ='④原単位（エンジン系)'!M36 -> 5.499467953 | AA48: ='④原単位（エンジン系)'!N36 -> 0.005705780203 | AB48: ='④原単位（エンジン系)'!O36 -> 5.069715434 | AC48: ='④原単位（エンジン系)'!P36 -> 0.005360055931 | AD48: ='④原単位（エンジン系)'!Q36 -> 4.762531558
F49: エネルギー | G49: 動力 ①+③ | H49: 伝達 | I49: ドライブシャフト(WLTP) | K49: エンジン系 | L49: ①+②+③+④ | M49: - | N49: バルブ･ロッカー･アーム及びシャフト | O49: ='④原単位（エンジン系)'!B37 -> 0.005208333333 | P49: ='④原単位（エンジン系)'!C37 -> 5.784653225 | Q49: ='④原単位（エンジン系)'!D37 -> 0.004843918192 | R49: ='④原単位（エンジン系)'!E37 -> 5.379914302 | S49: ='④原単位（エンジン系)'!F37 -> 0.004465393203 | T49: ='④原単位（エンジン系)'!G37 -> 4.959504229 | U49: ='④原単位（エンジン系)'!H37 -> 0.004194826381 | V49: ='④原単位（エンジン系)'!I37 -> 4.658998263 | W49: ='④原単位（エンジン系)'!J37 -> 0.005208333333 | X49: ='④原単位（エンジン系)'!K37 -> 4.62772258 | Y49: ='④原単位（エンジン系)'!L37 -> 0.004843918192 | Z49: ='④原単位（エンジン系)'!M37 -> 4.303931442 | AA49: ='④原単位（エンジン系)'!N37 -> 0.004465393203 | AB49: ='④原単位（エンジン系)'!O37 -> 3.967603383 | AC49: ='④原単位（エンジン系)'!P37 -> 0.004194826381 | AD49: ='④原単位（エンジン系)'!Q37 -> 3.72719861
F50: エネルギー | G50: 動力 ①+③ | H50: 伝達 | I50: トランスミッション AT FF(JC08)(ECU含む) | K50: エンジン系 | L50: ①+②+③+④ | M50: - | N50: バルブ駆動部品及びカム･シャフト | O50: ='④原単位（エンジン系)'!B38 -> 0.01041666667 | P50: ='④原単位（エンジン系)'!C38 -> 11.56930645 | Q50: ='④原単位（エンジン系)'!D38 -> 0.009687836383 | R50: ='④原単位（エンジン系)'!E38 -> 10.7598286 | S50: ='④原単位（エンジン系)'!F38 -> 0.008930786405 | T50: ='④原単位（エンジン系)'!G38 -> 9.919008458 | U50: ='④原単位（エンジン系)'!H38 -> 0.008389652762 | V50: ='④原単位（エンジン系)'!I38 -> 9.317996526 | W50: ='④原単位（エンジン系)'!J38 -> 0.01041666667 | X50: ='④原単位（エンジン系)'!K38 -> 9.25544516 | Y50: ='④原単位（エンジン系)'!L38 -> 0.009687836383 | Z50: ='④原単位（エンジン系)'!M38 -> 8.607862883 | AA50: ='④原単位（エンジン系)'!N38 -> 0.008930786405 | AB50: ='④原単位（エンジン系)'!O38 -> 7.935206766 | AC50: ='④原単位（エンジン系)'!P38 -> 0.008389652762 | AD50: ='④原単位（エンジン系)'!Q38 -> 7.454397221
F51: エネルギー | G51: 動力 ①+③ | H51: 伝達 | I51: トランスミッション AT FF(WLTP)(ECU含む) | K51: エンジン系 | L51: ①+②+③+④ | M51: - | N51: ピストン | O51: ='④原単位（エンジン系)'!B39 -> 0.01099537037 | P51: ='④原単位（エンジン系)'!C39 -> 12.2120457 | Q51: ='④原単位（エンジン系)'!D39 -> 0.01022604952 | R51: ='④原単位（エンジン系)'!E39 -> 11.35759686 | S51: ='④原単位（エンジン系)'!F39 -> 0.009426941206 | T51: ='④原単位（エンジン系)'!G39 -> 10.47006448 | U51: ='④原単位（エンジン系)'!H39 -> 0.008855744582 | V51: ='④原単位（エンジン系)'!I39 -> 9.835662999 | W51: ='④原単位（エンジン系)'!J39 -> 0.01099537037 | X51: ='④原単位（エンジン系)'!K39 -> 9.769636558 | Y51: ='④原単位（エンジン系)'!L39 -> 0.01022604952 | Z51: ='④原単位（エンジン系)'!M39 -> 9.086077488 | AA51: ='④原単位（エンジン系)'!N39 -> 0.009426941206 | AB51: ='④原単位（エンジン系)'!O39 -> 8.376051586 | AC51: ='④原単位（エンジン系)'!P39 -> 0.008855744582 | AD51: ='④原単位（エンジン系)'!Q39 -> 7.8685304
F52: エネルギー | G52: 動力 ①+③ | H52: 伝達 | I52: トランスミッション AT FR(JC08)(ECU含む) | K52: エンジン系 | L52: ①+②+③+④ | M52: - | N52: ピストン・リング | O52: ='④原単位（エンジン系)'!B40 -> 0.005787037037 | P52: ='④原単位（エンジン系)'!C40 -> 6.427392472 | Q52: ='④原単位（エンジン系)'!D40 -> 0.005382131324 | R52: ='④原単位（エンジン系)'!E40 -> 5.977682558 | S52: ='④原単位（エンジン系)'!F40 -> 0.004961548003 | T52: ='④原単位（エンジン系)'!G40 -> 5.510560254 | U52: ='④原単位（エンジン系)'!H40 -> 0.004660918201 | V52: ='④原単位（エンジン系)'!I40 -> 5.176664737 | W52: ='④原単位（エンジン系)'!J40 -> 0.005787037037 | X52: ='④原単位（エンジン系)'!K40 -> 5.141913978 | Y52: ='④原単位（エンジン系)'!L40 -> 0.005382131324 | Z52: ='④原単位（エンジン系)'!M40 -> 4.782146046 | AA52: ='④原単位（エンジン系)'!N40 -> 0.004961548003 | AB52: ='④原単位（エンジン系)'!O40 -> 4.408448203 | AC52: ='④原単位（エンジン系)'!P40 -> 0.004660918201 | AD52: ='④原単位（エンジン系)'!Q40 -> 4.141331789
F53: エネルギー | G53: 動力 ①+③ | H53: 伝達 | I53: トランスミッション AT FR(WLTP)(ECU含む) | K53: エンジン系 | L53: ①+②+③+④ | M53: - | N53: ラジエータファン(JC08) | O53: ='④原単位（エンジン系)'!B41 -> 0.004050925926 | P53: ='④原単位（エンジン系)'!C41 -> 4.499174731 | Q53: ='④原単位（エンジン系)'!D41 -> 0.003767491927 | R53: ='④原単位（エンジン系)'!E41 -> 4.18437779 | S53: ='④原単位（エンジン系)'!F41 -> 0.003473083602 | T53: ='④原単位（エンジン系)'!G41 -> 3.857392178 | U53: ='④原単位（エンジン系)'!H41 -> 0.003262642741 | V53: ='④原単位（エンジン系)'!I41 -> 3.623665316 | W53: ='④原単位（エンジン系)'!J41 -> 0.004050925926 | X53: ='④原単位（エンジン系)'!K41 -> 3.599339785 | Y53: ='④原単位（エンジン系)'!L41 -> 0.003767491927 | Z53: ='④原単位（エンジン系)'!M41 -> 3.347502232 | AA53: ='④原単位（エンジン系)'!N41 -> 0.003473083602 | AB53: ='④原単位（エンジン系)'!O41 -> 3.085913742 | AC53: ='④原単位（エンジン系)'!P41 -> 0.003262642741 | AD53: ='④原単位（エンジン系)'!Q41 -> 2.898932252
F54: エネルギー | G54: 動力 ①+③ | H54: 伝達 | I54: トランスミッション CVT FF(JC08)(ECU含む) | K54: エンジン系 | L54: ①+②+③+④ | M54: - | N54: ラジエータファン(WLTP) | O54: ='④原単位（エンジン系)'!B41 -> 0.004050925926 | P54: ='④原単位（エンジン系)'!C41 -> 4.499174731 | Q54: ='④原単位（エンジン系)'!D41 -> 0.003767491927 | R54: ='④原単位（エンジン系)'!E41 -> 4.18437779 | S54: ='④原単位（エンジン系)'!F41 -> 0.003473083602 | T54: ='④原単位（エンジン系)'!G41 -> 3.857392178 | U54: ='④原単位（エンジン系)'!H41 -> 0.003262642741 | V54: ='④原単位（エンジン系)'!I41 -> 3.623665316 | W54: ='④原単位（エンジン系)'!J41 -> 0.004050925926 | X54: ='④原単位（エンジン系)'!K41 -> 3.599339785 | Y54: ='④原単位（エンジン系)'!L41 -> 0.003767491927 | Z54: ='④原単位（エンジン系)'!M41 -> 3.347502232 | AA54: ='④原単位（エンジン系)'!N41 -> 0.003473083602 | AB54: ='④原単位（エンジン系)'!O41 -> 3.085913742 | AC54: ='④原単位（エンジン系)'!P41 -> 0.003262642741 | AD54: ='④原単位（エンジン系)'!Q41 -> 2.898932252
F55: エネルギー | G55: 動力 ①+③ | H55: 伝達 | I55: トランスミッション CVT FF(WLTP)(ECU含む) | K55: エンジン系 | L55: ①+②+③+④ | M55: - | N55: フライホイール | O55: ='④原単位（エンジン系)'!B42 -> 0.01938657407 | P55: ='④原単位（エンジン系)'!C42 -> 21.53176478 | Q55: ='④原単位（エンジン系)'!D42 -> 0.01803013994 | R55: ='④原単位（エンジン系)'!E42 -> 20.02523657 | S55: ='④原単位（エンジン系)'!F42 -> 0.01662118581 | T55: ='④原単位（エンジン系)'!G42 -> 18.46037685 | U55: ='④原単位（エンジン系)'!H42 -> 0.01561407597 | V55: ='④原単位（エンジン系)'!I42 -> 17.34182687 | W55: ='④原単位（エンジン系)'!J42 -> 0.01938657407 | X55: ='④原単位（エンジン系)'!K42 -> 17.22541183 | Y55: ='④原単位（エンジン系)'!L42 -> 0.01803013994 | Z55: ='④原単位（エンジン系)'!M42 -> 16.02018925 | AA55: ='④原単位（エンジン系)'!N42 -> 0.01662118581 | AB55: ='④原単位（エンジン系)'!O42 -> 14.76830148 | AC55: ='④原単位（エンジン系)'!P42 -> 0.01561407597 | AD55: ='④原単位（エンジン系)'!Q42 -> 13.87346149
F56: エネルギー | G56: 動力 ①+③ | H56: 伝達 | I56: トランスミッション MT FF(JC08)(ECU含む) | K56: エンジン系 | L56: ①+②+③+④ | M56: - | N56: ホース類(エンジン用) | O56: ='④原単位（エンジン系)'!B43 -> 0.02633101852 | P56: ='④原単位（エンジン系)'!C43 -> 29.24463575 | Q56: ='④原単位（エンジン系)'!D43 -> 0.02448869752 | R56: ='④原単位（エンジン系)'!E43 -> 27.19845564 | S56: ='④原単位（エンジン系)'!F43 -> 0.02257504341 | T56: ='④原単位（エンジン系)'!G43 -> 25.07304916 | U56: ='④原単位（エンジン系)'!H43 -> 0.02120717781 | V56: ='④原単位（エンジン系)'!I43 -> 23.55382455 | W56: ='④原単位（エンジン系)'!J43 -> 0.02633101852 | X56: ='④原単位（エンジン系)'!K43 -> 23.3957086 | Y56: ='④原単位（エンジン系)'!L43 -> 0.02448869752 | Z56: ='④原単位（エンジン系)'!M43 -> 21.75876451 | AA56: ='④原単位（エンジン系)'!N43 -> 0.02257504341 | AB56: ='④原単位（エンジン系)'!O43 -> 20.05843933 | AC56: ='④原単位（エンジン系)'!P43 -> 0.02120717781 | AD56: ='④原単位（エンジン系)'!Q43 -> 18.84305964
F57: エネルギー | G57: 動力 ①+③ | H57: 伝達 | I57: トランスミッション MT FF(WLTP)(ECU含む) | K57: エンジン系 | L57: ①+②+③+④ | M57: - | N57: エキゾーストマフラ | O57: ='④原単位（エンジン系)'!B44 -> 0.02893518519 | P57: ='④原単位（エンジン系)'!C44 -> 32.13696236 | Q57: ='④原単位（エンジン系)'!D44 -> 0.02691065662 | R57: ='④原単位（エンジン系)'!E44 -> 29.88841279 | S57: ='④原単位（エンジン系)'!F44 -> 0.02480774001 | T57: ='④原単位（エンジン系)'!G44 -> 27.55280127 | U57: ='④原単位（エンジン系)'!H44 -> 0.023304591 | V57: ='④原単位（エンジン系)'!I44 -> 25.88332368 | W57: ='④原単位（エンジン系)'!J44 -> 0.02893518519 | X57: ='④原単位（エンジン系)'!K44 -> 25.70956989 | Y57: ='④原単位（エンジン系)'!L44 -> 0.02691065662 | Z57: ='④原単位（エンジン系)'!M44 -> 23.91073023 | AA57: ='④原単位（エンジン系)'!N44 -> 0.02480774001 | AB57: ='④原単位（エンジン系)'!O44 -> 22.04224102 | AC57: ='④原単位（エンジン系)'!P44 -> 0.023304591 | AD57: ='④原単位（エンジン系)'!Q44 -> 20.70665895
F58: エネルギー | G58: 動力 ①+③ | H58: 伝達 | I58: トランスミッション MT FR(JC08)(ECU含む) | K58: エンジン系 | L58: ①+②+③+④ | M58: - | N58: 水ポンプ | O58: ='④原単位（エンジン系)'!B45 -> 0.006365740741 | P58: ='④原単位（エンジン系)'!C45 -> 7.07013172 | Q58: ='④原単位（エンジン系)'!D45 -> 0.005920344456 | R58: ='④原単位（エンジン系)'!E45 -> 6.575450814 | S58: ='④原単位（エンジン系)'!F45 -> 0.005457702803 | T58: ='④原単位（エンジン系)'!G45 -> 6.06161628 | U58: ='④原単位（エンジン系)'!H45 -> 0.005127010021 | V58: ='④原単位（エンジン系)'!I45 -> 5.69433121 | W58: ='④原単位（エンジン系)'!J45 -> 0.006365740741 | X58: ='④原単位（エンジン系)'!K45 -> 5.656105376 | Y58: ='④原単位（エンジン系)'!L45 -> 0.005920344456 | Z58: ='④原単位（エンジン系)'!M45 -> 5.260360651 | AA58: ='④原単位（エンジン系)'!N45 -> 0.005457702803 | AB58: ='④原単位（エンジン系)'!O45 -> 4.849293024 | AC58: ='④原単位（エンジン系)'!P45 -> 0.005127010021 | AD58: ='④原単位（エンジン系)'!Q45 -> 4.555464968
F59: エネルギー | G59: 動力 ①+③ | H59: 伝達 | I59: トランスミッション MT FR(WLTP)(ECU含む) | K59: エンジン系 | L59: ①+②+③+④ | M59: - | N59: ラジエータ | O59: ='④原単位（エンジン系)'!B46 -> 0.02951388889 | P59: ='④原単位（エンジン系)'!C46 -> 32.77970161 | Q59: ='④原単位（エンジン系)'!D46 -> 0.02744886975 | R59: ='④原単位（エンジン系)'!E46 -> 30.48618104 | S59: ='④原単位（エンジン系)'!F46 -> 0.02530389482 | T59: ='④原単位（エンジン系)'!G46 -> 28.1038573 | U59: ='④原単位（エンジン系)'!H46 -> 0.02377068282 | V59: ='④原単位（エンジン系)'!I46 -> 26.40099016 | W59: ='④原単位（エンジン系)'!J46 -> 0.02951388889 | X59: ='④原単位（エンジン系)'!K46 -> 26.22376129 | Y59: ='④原単位（エンジン系)'!L46 -> 0.02744886975 | Z59: ='④原単位（エンジン系)'!M46 -> 24.38894484 | AA59: ='④原単位（エンジン系)'!N46 -> 0.02530389482 | AB59: ='④原単位（エンジン系)'!O46 -> 22.48308584 | AC59: ='④原単位（エンジン系)'!P46 -> 0.02377068282 | AD59: ='④原単位（エンジン系)'!Q46 -> 21.12079213
F60: エネルギー | G60: 動力 ①+③ | H60: 伝達 | I60: ブレーキディスク(ロータ) | K60: エンジン系 | L60: ①+②+③+④ | M60: - | N60: ロータリーエンジン専用部品など | O60: ='④原単位（エンジン系)'!B47 -> 0 | P60: ='④原単位（エンジン系)'!C47 -> 0 | Q60: ='④原単位（エンジン系)'!D47 -> 0 | R60: ='④原単位（エンジン系)'!E47 -> 0 | S60: ='④原単位（エンジン系)'!F47 -> 0 | T60: ='④原単位（エンジン系)'!G47 -> 0 | U60: ='④原単位（エンジン系)'!H47 -> 0 | V60: ='④原単位（エンジン系)'!I47 -> 0 | W60: ='④原単位（エンジン系)'!J47 -> 0 | X60: ='④原単位（エンジン系)'!K47 -> 0 | Y60: ='④原単位（エンジン系)'!L47 -> 0 | Z60: ='④原単位（エンジン系)'!M47 -> 0 | AA60: ='④原単位（エンジン系)'!N47 -> 0 | AB60: ='④原単位（エンジン系)'!O47 -> 0 | AC60: ='④原単位（エンジン系)'!P47 -> 0 | AD60: ='④原単位（エンジン系)'!Q47 -> 0
F61: エネルギー | G61: 動力 ①+③ | H61: 伝達 | I61: ブレーキドラム | K61: エンジン系 | L61: ①+②+③+④ | M61: - | N61: 燃料タンク及びインレットパイプ | O61: 0 | P61: 0 | Q61: 0 | R61: 0 | S61: 0 | T61: 0 | U61: 0 | V61: 0 | W61: 0 | X61: 0 | Y61: 0 | Z61: 0 | AA61: 0 | AB61: 0 | AC61: 0 | AD61: 0
F62: エネルギー | G62: 動力 ①+③ | H62: 伝達 | I62: テｰパｰロｰラｰベアリング(JC08) | K62: エンジン系 | L62: ①+②+③+④ | M62: - | N62: ディーゼルエンジン用始動補助装置 | O62: 0 | P62: 0 | Q62: 0 | R62: 0 | S62: 0 | T62: 0 | U62: 0 | V62: 0 | W62: 0 | X62: 0 | Y62: 0 | Z62: 0 | AA62: 0 | AB62: 0 | AC62: 0 | AD62: 0
F63: エネルギー | G63: 動力 ①+③ | H63: 伝達 | I63: テｰパｰロｰラｰベアリング(WLTP) | K63: エンジン系 | L63: ①+②+③+④ | M63: - | N63: インマニガスケット | O63: 0 | P63: 0 | Q63: 0 | R63: 0 | S63: 0 | T63: 0 | U63: 0 | V63: 0 | W63: 0 | X63: 0 | Y63: 0 | Z63: 0 | AA63: 0 | AB63: 0 | AC63: 0 | AD63: 0
F64: エネルギー | G64: 動力 ①+③ | H64: 伝達 | I64: その他(動力_伝達) | K64: エンジン系 | L64: ①+②+③+④ | M64: - | N64: シリンダーヘッドガスケット | O64: 0 | P64: 0 | Q64: 0 | R64: 0 | S64: 0 | T64: 0 | U64: 0 | V64: 0 | W64: 0 | X64: 0 | Y64: 0 | Z64: 0 | AA64: 0 | AB64: 0 | AC64: 0 | AD64: 0
K65: エンジン系 | L65: ①+②+③+④ | M65: - | N65: その他(エンジン系) | O65: 0 | P65: 0 | Q65: 0 | R65: 0 | S65: 0 | T65: 0 | U65: 0 | V65: 0 | W65: 0 | X65: 0 | Y65: 0 | Z65: 0 | AA65: 0 | AB65: 0 | AC65: 0 | AD65: 0
O66: 0 | P66: 0 | Q66: 0 | R66: 0 | S66: 0 | T66: 0 | U66: 0 | V66: 0 | W66: 0 | X66: 0 | Y66: 0 | Z66: 0 | AA66: 0 | AB66: 0 | AC66: 0 | AD66: 0

Sheet 製品シート_非エネルギー系 (hidden)
A1: =走行条件!C3 -> WLTC四輪乗用車 | E1: ※その他前提条件を変更する場合
A3: ◆LCI対象製品の基本情報
B4: JAPIA製品群
B5: システム境界 (評価対象の製品の範囲)
B6: 機能単位 (製品性能を表す特性値当りの単位)
B7: 評価個数
B8: 動作電圧(V) | C8: 12 | D8: =走行条件!$C$18 -> 12 | E8: =走行条件!$C$18 -> 12 | F8: =走行条件!$C$18 -> 12
B9: 製品/部品品番
B10: 製品/部品名 | C10: =C4 -> 0 | D10: =D4&1 -> 1 | E10: =E4&2 -> 2 | F10: =F4&3 -> 3
A12: ◆使用段階負荷量
A13: 算出用 入力データ | B13: 質量（kg）
B14: 慣性モーメント(kg･m2) 前提条件:ﾀｲﾔ外径(m)
B15: 製品前面投影面積(m2)
B16: 電流（A）
B17: 電力/動力(W) 前提条件:平均ｴﾝｼﾞﾝ回転数(s-1)
A18: =IF(走行条件!C19=TRUE,"ｱｲﾄﾞﾘﾝｸﾞｽﾄｯﾌﾟ有","ｱｲﾄﾞﾘﾝｸﾞｽﾄｯﾌﾟ無") -> ｱｲﾄﾞﾘﾝｸﾞｽﾄｯﾌﾟ無 | B18: 生涯動作時間（s） | C18: =走行条件!$C$14 -> 12020130 | D18: =走行条件!$C$14 -> 12020130 | E18: =走行条件!$C$14 -> 12020130 | F18: =走行条件!$C$14 -> 12020130
A19: ①質量由来消費量 ⇒条件変更する場合は、クリック | B19: ｶﾞｿﾘﾝｴﾝｼﾞﾝ車 (L) | C19: =C$13*'①原単位(質量由来)'!$J$2+C$14*'①原単位(質量由来)'!$J$15 -> 0 | D19: =D$13*'①原単位(質量由来)'!$J$2+D$14*'①原単位(質量由来)'!$J$15 -> 0 | E19: =E$13*'①原単位(質量由来)'!$J$2+E$14*'①原単位(質量由来)'!$J$15 -> 0 | F19: =F$13*'①原単位(質量由来)'!$J$2+F$14*'①原単位(質量由来)'!$J$15 -> 0
B20: ｶﾞｿﾘﾝHEV車 (L) | C20: =C$13*'①原単位(質量由来)'!$J$4+C$14*'①原単位(質量由来)'!$J$17 -> 0 | D20: =D$13*'①原単位(質量由来)'!$J$4+D$14*'①原単位(質量由来)'!$J$17 -> 0 | E20: =E$13*'①原単位(質量由来)'!$J$4+E$14*'①原単位(質量由来)'!$J$17 -> 0 | F20: =F$13*'①原単位(質量由来)'!$J$4+F$14*'①原単位(質量由来)'!$J$17 -> 0
B21: ﾃﾞｨｰｾﾞﾙｴﾝｼﾞﾝ車 (L) | C21: =C$13*'①原単位(質量由来)'!$J$7+C$14*'①原単位(質量由来)'!$J$20 -> 0 | D21: =D$13*'①原単位(質量由来)'!$J$7+D$14*'①原単位(質量由来)'!$J$20 -> 0 | E21: =E$13*'①原単位(質量由来)'!$J$7+E$14*'①原単位(質量由来)'!$J$20 -> 0 | F21: =F$13*'①原単位(質量由来)'!$J$7+F$14*'①原単位(質量由来)'!$J$20 -> 0
B22: ﾃﾞｨｰｾﾞﾙHEV車 (L) | C22: =C$13*'①原単位(質量由来)'!$J$9+C$14*'①原単位(質量由来)'!$J$22 -> 0 | D22: =D$13*'①原単位(質量由来)'!$J$9+D$14*'①原単位(質量由来)'!$J$22 -> 0 | E22: =E$13*'①原単位(質量由来)'!$J$9+E$14*'①原単位(質量由来)'!$J$22 -> 0 | F22: =F$13*'①原単位(質量由来)'!$J$9+F$14*'①原単位(質量由来)'!$J$22 -> 0
B23: EV (kWh) | C23: =C$13*'①原単位(質量由来)'!$J$10+C$14*'①原単位(質量由来)'!$J$23 -> 0 | D23: =D$13*'①原単位(質量由来)'!$J$10+D$14*'①原単位(質量由来)'!$J$23 -> 0 | E23: =E$13*'①原単位(質量由来)'!$J$10+E$14*'①原単位(質量由来)'!$J$23 -> 0 | F23: =F$13*'①原単位(質量由来)'!$J$10+F$14*'①原単位(質量由来)'!$J$23 -> 0
B24: 燃料電池車 (Nm3) | C24: =C$13*'①原単位(質量由来)'!$J$11+C$14*'①原単位(質量由来)'!$J$24 -> 0 | D24: =D$13*'①原単位(質量由来)'!$J$11+D$14*'①原単位(質量由来)'!$J$24 -> 0 | E24: =E$13*'①原単位(質量由来)'!$J$11+E$14*'①原単位(質量由来)'!$J$24 -> 0 | F24: =F$13*'①原単位(質量由来)'!$J$11+F$14*'①原単位(質量由来)'!$J$24 -> 0
A25: ②電力由来消費量 ⇒条件変更する場合は、クリック | B25: ｶﾞｿﾘﾝｴﾝｼﾞﾝ車 (L) | C25: =C$8/12*C$16*C$18*走行条件!$C$20*'②原単位(電力由来)'!$H$2 -> 0 | D25: =D$8/12*D$16*D$18*走行条件!$C$20*'②原単位(電力由来)'!$H$2 -> 0 | E25: =E$8/12*E$16*E$18*走行条件!$C$20*'②原単位(電力由来)'!$H$2 -> 0 | F25: =F$8/12*F$16*F$18*走行条件!$C$20*'②原単位(電力由来)'!$H$2 -> 0
B26: ｶﾞｿﾘﾝHEV車 (L) | C26: =C$8/12*C$16*C$18*走行条件!$C$20*'②原単位(電力由来)'!$H$2 -> 0 | D26: =D$8/12*D$16*D$18*走行条件!$C$20*'②原単位(電力由来)'!$H$2 -> 0 | E26: =E$8/12*E$16*E$18*走行条件!$C$20*'②原単位(電力由来)'!$H$2 -> 0 | F26: =F$8/12*F$16*F$18*走行条件!$C$20*'②原単位(電力由来)'!$H$2 -> 0
B27: ﾃﾞｨｰｾﾞﾙｴﾝｼﾞﾝ車 (L) | C27: =C$8/12*C$16*C$18*走行条件!$C$20*'②原単位(電力由来)'!$H$3 -> 0 | D27: =D$8/12*D$16*D$18*走行条件!$C$20*'②原単位(電力由来)'!$H$3 -> 0 | E27: =E$8/12*E$16*E$18*走行条件!$C$20*'②原単位(電力由来)'!$H$3 -> 0 | F27: =F$8/12*F$16*F$18*走行条件!$C$20*'②原単位(電力由来)'!$H$3 -> 0
B28: ﾃﾞｨｰｾﾞﾙHEV車 (L) | C28: =C$8/12*C$16*C$18*走行条件!$C$20*'②原単位(電力由来)'!$H$3 -> 0 | D28: =D$8/12*D$16*D$18*走行条件!$C$20*'②原単位(電力由来)'!$H$3 -> 0 | E28: =E$8/12*E$16*E$18*走行条件!$C$20*'②原単位(電力由来)'!$H$3 -> 0 | F28: =F$8/12*F$16*F$18*走行条件!$C$20*'②原単位(電力由来)'!$H$3 -> 0
B29: EV (kWh) | C29: =C$8/12*C$16*C$18*走行条件!$C$20*'②原単位(電力由来)'!$H$4 -> 0 | D29: =D$8/12*D$16*D$18*走行条件!$C$20*'②原単位(電力由来)'!$H$4 -> 0 | E29: =E$8/12*E$16*E$18*走行条件!$C$20*'②原単位(電力由来)'!$H$4 -> 0 | F29: =F$8/12*F$16*F$18*走行条件!$C$20*'②原単位(電力由来)'!$H$4 -> 0
B30: 燃料電池車 (Nm3) | C30: =C$8/12*C$16*C$18*走行条件!$C$20*'②原単位(電力由来)'!$H$5 -> 0 | D30: =D$8/12*D$16*D$18*走行条件!$C$20*'②原単位(電力由来)'!$H$5 -> 0 | E30: =E$8/12*E$16*E$18*走行条件!$C$20*'②原単位(電力由来)'!$H$5 -> 0 | F30: =F$8/12*F$16*F$18*走行条件!$C$20*'②原単位(電力由来)'!$H$5 -> 0
A31: ③動力由来消費量 ⇒条件変更する場合は、クリック | B31: ｶﾞｿﾘﾝｴﾝｼﾞﾝ車 (L) | C31: =C$17*C$18*走行条件!$C$20*'③原単位(動力由来)'!$G$2 -> 0 | D31: =D$17*D$18*走行条件!$C$20*'③原単位(動力由来)'!$G$2 -> 0 | E31: =E$17*E$18*走行条件!$C$20*'③原単位(動力由来)'!$G$2 -> 0 | F31: =F$17*F$18*走行条件!$C$20*'③原単位(動力由来)'!$G$2 -> 0
B32: ｶﾞｿﾘﾝHEV車 (L) | C32: =C$17*C$18*走行条件!$C$20*'③原単位(動力由来)'!$G$2 -> 0 | D32: =D$17*D$18*走行条件!$C$20*'③原単位(動力由来)'!$G$2 -> 0 | E32: =E$17*E$18*走行条件!$C$20*'③原単位(動力由来)'!$G$2 -> 0 | F32: =F$17*F$18*走行条件!$C$20*'③原単位(動力由来)'!$G$2 -> 0
B33: ﾃﾞｨｰｾﾞﾙｴﾝｼﾞﾝ車 (L) | C33: =C$17*C$18*走行条件!$C$20*'③原単位(動力由来)'!$G$3 -> 0 | D33: =D$17*D$18*走行条件!$C$20*'③原単位(動力由来)'!$G$3 -> 0 | E33: =E$17*E$18*走行条件!$C$20*'③原単位(動力由来)'!$G$3 -> 0 | F33: =F$17*F$18*走行条件!$C$20*'③原単位(動力由来)'!$G$3 -> 0
B34: ﾃﾞｨｰｾﾞﾙHEV車 (L) | C34: =C$17*C$18*走行条件!$C$20*'③原単位(動力由来)'!$G$3 -> 0 | D34: =D$17*D$18*走行条件!$C$20*'③原単位(動力由来)'!$G$3 -> 0 | E34: =E$17*E$18*走行条件!$C$20*'③原単位(動力由来)'!$G$3 -> 0 | F34: =F$17*F$18*走行条件!$C$20*'③原単位(動力由来)'!$G$3 -> 0
B35: EV (kWh) | C35: =C$17*C$18*走行条件!$C$20*'③原単位(動力由来)'!$G$4 -> 0 | D35: =D$17*D$18*走行条件!$C$20*'③原単位(動力由来)'!$G$4 -> 0 | E35: =E$17*E$18*走行条件!$C$20*'③原単位(動力由来)'!$G$4 -> 0 | F35: =F$17*F$18*走行条件!$C$20*'③原単位(動力由来)'!$G$4 -> 0
B36: 燃料電池車 (Nm3) | C36: =C$17*C$18*走行条件!$C$20*'③原単位(動力由来)'!$G$5 -> 0 | D36: =D$17*D$18*走行条件!$C$20*'③原単位(動力由来)'!$G$5 -> 0 | E36: =E$17*E$18*走行条件!$C$20*'③原単位(動力由来)'!$G$5 -> 0 | F36: =F$17*F$18*走行条件!$C$20*'③原単位(動力由来)'!$G$5 -> 0
A37: ④エンジン系消費量 ⇒条件変更する場合は、クリック | B37: ｶﾞｿﾘﾝｴﾝｼﾞﾝ車 (L) | C37: 0 | D37: 0 | E37: 0 | F37: 0
B38: ｶﾞｿﾘﾝHEV車 (L) | C38: 0 | D38: 0 | E38: 0 | F38: 0
B39: ﾃﾞｨｰｾﾞﾙｴﾝｼﾞﾝ車 (L) | C39: 0 | D39: 0 | E39: 0 | F39: 0
B40: ﾃﾞｨｰｾﾞﾙHEV車 (L) | C40: 0 | D40: 0 | E40: 0 | F40: 0
B41: EV (kWh) | C41: 0 | D41: 0 | E41: 0 | F41: 0
B42: 燃料電池車 (Nm3) | C42: 0 | D42: 0 | E42: 0 | F42: 0
A43: 算出結果 エネルギー 消費量 | B43: ｶﾞｿﾘﾝｴﾝｼﾞﾝ車 (L) | C43: =SUM(C19,C25,C31) -> 0 | D43: =SUM(D19,D25,D31) -> 0 | E43: =SUM(E19,E25,E31) -> 0 | F43: 0
B44: ｶﾞｿﾘﾝHEV車 (L) | C44: =SUM(C20,C26,C32) -> 0 | D44: 0 | E44: 0 | F44: 0
B45: ﾃﾞｨｰｾﾞﾙｴﾝｼﾞﾝ車 (L) | C45: =SUM(C21,C27,C33) -> 0 | D45: 0 | E45: 0 | F45: 0
B46: ﾃﾞｨｰｾﾞﾙHEV車 (L) | C46: =SUM(C22,C28,C34) -> 0 | D46: 0 | E46: 0 | F46: 0
B47: EV (kWh) | C47: =SUM(C23,C29,C35) -> 0 | D47: 0 | E47: 0 | F47: 0
B48: 燃料電池車 (Nm3) | C48: =SUM(C24,C30,C36) -> 0 | D48: 0 | E48: 0 | F48: 0
A51: ①質量由来CO2排出量(g-CO2) ⇒原単位を変更する場合は、クリック | B51: ｶﾞｿﾘﾝｴﾝｼﾞﾝ車 | C51: =(C$13*'①原単位(質量由来)'!$J$2+C$14*'①原単位(質量由来)'!$J$15)*(⑤ｴﾈﾙｷﾞｰ由来CO2排出原単位!$C$3+⑤ｴﾈﾙｷﾞｰ由来CO2排出原単位!$C$4) -> 0 | D51: =(D$13*'①原単位(質量由来)'!$J$2+D$14*'①原単位(質量由来)'!$J$15)*(⑤ｴﾈﾙｷﾞｰ由来CO2排出原単位!$C$3+⑤ｴﾈﾙｷﾞｰ由来CO2排出原単位!$C$4) -> 0 | E51: =(E$13*'①原単位(質量由来)'!$J$2+E$14*'①原単位(質量由来)'!$J$15)*(⑤ｴﾈﾙｷﾞｰ由来CO2排出原単位!$C$3+⑤ｴﾈﾙｷﾞｰ由来CO2排出原単位!$C$4) -> 0 | F51: =(F$13*'①原単位(質量由来)'!$J$2+F$14*'①原単位(質量由来)'!$J$15)*(⑤ｴﾈﾙｷﾞｰ由来CO2排出原単位!$C$3+⑤ｴﾈﾙｷﾞｰ由来CO2排出原単位!$C$4) -> 0
B52: ｶﾞｿﾘﾝHEV車 | C52: =(C$13*'①原単位(質量由来)'!$J$4+C$14*'①原単位(質量由来)'!$J$17)*(⑤ｴﾈﾙｷﾞｰ由来CO2排出原単位!$C$3+⑤ｴﾈﾙｷﾞｰ由来CO2排出原単位!$C$4) -> 0 | D52: =(D$13*'①原単位(質量由来)'!$J$4+D$14*'①原単位(質量由来)'!$J$17)*(⑤ｴﾈﾙｷﾞｰ由来CO2排出原単位!$C$3+⑤ｴﾈﾙｷﾞｰ由来CO2排出原単位!$C$4) -> 0 | E52: =(E$13*'①原単位(質量由来)'!$J$4+E$14*'①原単位(質量由来)'!$J$17)*(⑤ｴﾈﾙｷﾞｰ由来CO2排出原単位!$C$3+⑤ｴﾈﾙｷﾞｰ由来CO2排出原単位!$C$4) -> 0 | F52: =(F$13*'①原単位(質量由来)'!$J$4+F$14*'①原単位(質量由来)'!$J$17)*(⑤ｴﾈﾙｷﾞｰ由来CO2排出原単位!$C$3+⑤ｴﾈﾙｷﾞｰ由来CO2排出原単位!$C$4) -> 0
B53: ﾃﾞｨｰｾﾞﾙｴﾝｼﾞﾝ車 | C53: =(C$13*'①原単位(質量由来)'!$J$7+C$14*'①原単位(質量由来)'!$J$20)*(⑤ｴﾈﾙｷﾞｰ由来CO2排出原単位!$C$5+⑤ｴﾈﾙｷﾞｰ由来CO2排出原単位!$C$6) -> 0 | D53: =(D$13*'①原単位(質量由来)'!$J$7+D$14*'①原単位(質量由来)'!$J$20)*(⑤ｴﾈﾙｷﾞｰ由来CO2排出原単位!$C$5+⑤ｴﾈﾙｷﾞｰ由来CO2排出原単位!$C$6) -> 0 | E53: =(E$13*'①原単位(質量由来)'!$J$7+E$14*'①原単位(質量由来)'!$J$20)*(⑤ｴﾈﾙｷﾞｰ由来CO2排出原単位!$C$5+⑤ｴﾈﾙｷﾞｰ由来CO2排出原単位!$C$6) -> 0 | F53: =(F$13*'①原単位(質量由来)'!$J$7+F$14*'①原単位(質量由来)'!$J$20)*(⑤ｴﾈﾙｷﾞｰ由来CO2排出原単位!$C$5+⑤ｴﾈﾙｷﾞｰ由来CO2排出原単位!$C$6) -> 0
B54: ﾃﾞｨｰｾﾞﾙHEV車 | C54: =(C$13*'①原単位(質量由来)'!$J$9+C$14*'①原単位(質量由来)'!$J$22)*(⑤ｴﾈﾙｷﾞｰ由来CO2排出原単位!$C$5+⑤ｴﾈﾙｷﾞｰ由来CO2排出原単位!$C$6) -> 0 | D54: =(D$13*'①原単位(質量由来)'!$J$9+D$14*'①原単位(質量由来)'!$J$22)*(⑤ｴﾈﾙｷﾞｰ由来CO2排出原単位!$C$5+⑤ｴﾈﾙｷﾞｰ由来CO2排出原単位!$C$6) -> 0 | E54: =(E$13*'①原単位(質量由来)'!$J$9+E$14*'①原単位(質量由来)'!$J$22)*(⑤ｴﾈﾙｷﾞｰ由来CO2排出原単位!$C$5+⑤ｴﾈﾙｷﾞｰ由来CO2排出原単位!$C$6) -> 0 | F54: =(F$13*'①原単位(質量由来)'!$J$9+F$14*'①原単位(質量由来)'!$J$22)*(⑤ｴﾈﾙｷﾞｰ由来CO2排出原単位!$C$5+⑤ｴﾈﾙｷﾞｰ由来CO2排出原単位!$C$6) -> 0
B55: EV | C55: =(C$13*'①原単位(質量由来)'!$J$10+C$14*'①原単位(質量由来)'!$J$23)*⑤ｴﾈﾙｷﾞｰ由来CO2排出原単位!$C$7 -> 0 | D55: =(D$13*'①原単位(質量由来)'!$J$10+D$14*'①原単位(質量由来)'!$J$23)*⑤ｴﾈﾙｷﾞｰ由来CO2排出原単位!$C$7 -> 0 | E55: =(E$13*'①原単位(質量由来)'!$J$10+E$14*'①原単位(質量由来)'!$J$23)*⑤ｴﾈﾙｷﾞｰ由来CO2排出原単位!$C$7 -> 0 | F55: =(F$13*'①原単位(質量由来)'!$J$10+F$14*'①原単位(質量由来)'!$J$23)*⑤ｴﾈﾙｷﾞｰ由来CO2排出原単位!$C$7 -> 0
B56: 燃料電池車 | C56: =(C$13*'①原単位(質量由来)'!$J$11+C$14*'①原単位(質量由来)'!$J$24)*⑤ｴﾈﾙｷﾞｰ由来CO2排出原単位!$C$12 -> 0 | D56: =(D$13*'①原単位(質量由来)'!$J$11+D$14*'①原単位(質量由来)'!$J$24)*⑤ｴﾈﾙｷﾞｰ由来CO2排出原単位!$C$12 -> 0 | E56: =(E$13*'①原単位(質量由来)'!$J$11+E$14*'①原単位(質量由来)'!$J$24)*⑤ｴﾈﾙｷﾞｰ由来CO2排出原単位!$C$12 -> 0 | F56: =(F$13*'①原単位(質量由来)'!$J$11+F$14*'①原単位(質量由来)'!$J$24)*⑤ｴﾈﾙｷﾞｰ由来CO2排出原単位!$C$12 -> 0
A57: ②電力由来CO2排出量(g-CO2) ⇒原単位を変更する場合は、クリック | B57: ｶﾞｿﾘﾝｴﾝｼﾞﾝ車 | C57: =C$8/12*C$16*C$18*走行条件!$C$20*'②原単位(電力由来)'!$H$2*(⑤ｴﾈﾙｷﾞｰ由来CO2排出原単位!$C$3+⑤ｴﾈﾙｷﾞｰ由来CO2排出原単位!$C$4) -> 0 | D57: =D$8/12*D$16*D$18*走行条件!$C$20*'②原単位(電力由来)'!$H$2*(⑤ｴﾈﾙｷﾞｰ由来CO2排出原単位!$C$3+⑤ｴﾈﾙｷﾞｰ由来CO2排出原単位!$C$4) -> 0 | E57: =E$8/12*E$16*E$18*走行条件!$C$20*'②原単位(電力由来)'!$H$2*(⑤ｴﾈﾙｷﾞｰ由来CO2排出原単位!$C$3+⑤ｴﾈﾙｷﾞｰ由来CO2排出原単位!$C$4) -> 0 | F57: =F$8/12*F$16*F$18*走行条件!$C$20*'②原単位(電力由来)'!$H$2*(⑤ｴﾈﾙｷﾞｰ由来CO2排出原単位!$C$3+⑤ｴﾈﾙｷﾞｰ由来CO2排出原単位!$C$4) -> 0
B58: ｶﾞｿﾘﾝHEV車 | C58: =C$8/12*C$16*C$18*走行条件!$C$20*'②原単位(電力由来)'!$H$2*(⑤ｴﾈﾙｷﾞｰ由来CO2排出原単位!$C$3+⑤ｴﾈﾙｷﾞｰ由来CO2排出原単位!$C$4) -> 0 | D58: =D$8/12*D$16*D$18*走行条件!$C$20*'②原単位(電力由来)'!$H$2*(⑤ｴﾈﾙｷﾞｰ由来CO2排出原単位!$C$3+⑤ｴﾈﾙｷﾞｰ由来CO2排出原単位!$C$4) -> 0 | E58: =E$8/12*E$16*E$18*走行条件!$C$20*'②原単位(電力由来)'!$H$2*(⑤ｴﾈﾙｷﾞｰ由来CO2排出原単位!$C$3+⑤ｴﾈﾙｷﾞｰ由来CO2排出原単位!$C$4) -> 0 | F58: =F$8/12*F$16*F$18*走行条件!$C$20*'②原単位(電力由来)'!$H$2*(⑤ｴﾈﾙｷﾞｰ由来CO2排出原単位!$C$3+⑤ｴﾈﾙｷﾞｰ由来CO2排出原単位!$C$4) -> 0
B59: ﾃﾞｨｰｾﾞﾙｴﾝｼﾞﾝ車 | C59: =C$8/12*C$16*C$18*走行条件!$C$20*'②原単位(電力由来)'!$H$3*(⑤ｴﾈﾙｷﾞｰ由来CO2排出原単位!$C$5+⑤ｴﾈﾙｷﾞｰ由来CO2排出原単位!$C$6) -> 0 | D59: =D$8/12*D$16*D$18*走行条件!$C$20*'②原単位(電力由来)'!$H$3*(⑤ｴﾈﾙｷﾞｰ由来CO2排出原単位!$C$5+⑤ｴﾈﾙｷﾞｰ由来CO2排出原単位!$C$6) -> 0 | E59: =E$8/12*E$16*E$18*走行条件!$C$20*'②原単位(電力由来)'!$H$3*(⑤ｴﾈﾙｷﾞｰ由来CO2排出原単位!$C$5+⑤ｴﾈﾙｷﾞｰ由来CO2排出原単位!$C$6) -> 0 | F59: =F$8/12*F$16*F$18*走行条件!$C$20*'②原単位(電力由来)'!$H$3*(⑤ｴﾈﾙｷﾞｰ由来CO2排出原単位!$C$5+⑤ｴﾈﾙｷﾞｰ由来CO2排出原単位!$C$6) -> 0
B60: ﾃﾞｨｰｾﾞﾙHEV車 | C60: =C$8/12*C$16*C$18*走行条件!$C$20*'②原単位(電力由来)'!$H$3*(⑤ｴﾈﾙｷﾞｰ由来CO2排出原単位!$C$5+⑤ｴﾈﾙｷﾞｰ由来CO2排出原単位!$C$6) -> 0 | D60: =D$8/12*D$16*D$18*走行条件!$C$20*'②原単位(電力由来)'!$H$3*(⑤ｴﾈﾙｷﾞｰ由来CO2排出原単位!$C$5+⑤ｴﾈﾙｷﾞｰ由来CO2排出原単位!$C$6) -> 0 | E60: =E$8/12*E$16*E$18*走行条件!$C$20*'②原単位(電力由来)'!$H$3*(⑤ｴﾈﾙｷﾞｰ由来CO2排出原単位!$C$5+⑤ｴﾈﾙｷﾞｰ由来CO2排出原単位!$C$6) -> 0 | F60: =F$8/12*F$16*F$18*走行条件!$C$20*'②原単位(電力由来)'!$H$3*(⑤ｴﾈﾙｷﾞｰ由来CO2排出原単位!$C$5+⑤ｴﾈﾙｷﾞｰ由来CO2排出原単位!$C$6) -> 0
B61: EV | C61: =C$8/12*C$16*C$18*走行条件!$C$20*'②原単位(電力由来)'!$H$4*⑤ｴﾈﾙｷﾞｰ由来CO2排出原単位!$C$7 -> 0 | D61: =D$8/12*D$16*D$18*走行条件!$C$20*'②原単位(電力由来)'!$H$4*⑤ｴﾈﾙｷﾞｰ由来CO2排出原単位!$C$7 -> 0 | E61: =E$8/12*E$16*E$18*走行条件!$C$20*'②原単位(電力由来)'!$H$4*⑤ｴﾈﾙｷﾞｰ由来CO2排出原単位!$C$7 -> 0 | F61: =F$8/12*F$16*F$18*走行条件!$C$20*'②原単位(電力由来)'!$H$4*⑤ｴﾈﾙｷﾞｰ由来CO2排出原単位!$C$7 -> 0
B62: 燃料電池車 | C62: =C$8/12*C$16*C$18*走行条件!$C$20*'②原単位(電力由来)'!$H$5*⑤ｴﾈﾙｷﾞｰ由来CO2排出原単位!$C$12 -> 0 | D62: =D$8/12*D$16*D$18*走行条件!$C$20*'②原単位(電力由来)'!$H$5*⑤ｴﾈﾙｷﾞｰ由来CO2排出原単位!$C$12 -> 0 | E62: =E$8/12*E$16*E$18*走行条件!$C$20*'②原単位(電力由来)'!$H$5*⑤ｴﾈﾙｷﾞｰ由来CO2排出原単位!$C$12 -> 0 | F62: =F$8/12*F$16*F$18*走行条件!$C$20*'②原単位(電力由来)'!$H$5*⑤ｴﾈﾙｷﾞｰ由来CO2排出原単位!$C$12 -> 0
A63: ③動力由来CO2排出量(g-CO2) ⇒原単位を変更する場合は、クリック | B63: ｶﾞｿﾘﾝｴﾝｼﾞﾝ車 | C63: =(C$17*C$18*走行条件!$C$20*'③原単位(動力由来)'!$G$2+C$15*走行条件!$C$4*走行条件!$C$25*'③原単位(動力由来)'!$G$2)*(⑤ｴﾈﾙｷﾞｰ由来CO2排出原単位!$C$3+⑤ｴﾈﾙｷﾞｰ由来CO2排出原単位!$C$4) -> 0 | D63: =(D$17*D$18*走行条件!$C$20*'③原単位(動力由来)'!$G$2+D$15*走行条件!$C$4*走行条件!$C$25*'③原単位(動力由来)'!$G$2)*(⑤ｴﾈﾙｷﾞｰ由来CO2排出原単位!$C$3+⑤ｴﾈﾙｷﾞｰ由来CO2排出原単位!$C$4) -> 0 | E63: =(E$17*E$18*走行条件!$C$20*'③原単位(動力由来)'!$G$2+E$15*走行条件!$C$4*走行条件!$C$25*'③原単位(動力由来)'!$G$2)*(⑤ｴﾈﾙｷﾞｰ由来CO2排出原単位!$C$3+⑤ｴﾈﾙｷﾞｰ由来CO2排出原単位!$C$4) -> 0 | F63: =(F$17*F$18*走行条件!$C$20*'③原単位(動力由来)'!$G$2+F$15*走行条件!$C$4*走行条件!$C$25*'③原単位(動力由来)'!$G$2)*(⑤ｴﾈﾙｷﾞｰ由来CO2排出原単位!$C$3+⑤ｴﾈﾙｷﾞｰ由来CO2排出原単位!$C$4) -> 0
B64: ｶﾞｿﾘﾝHEV車 | C64: =(C$17*C$18*走行条件!$C$20*'③原単位(動力由来)'!$G$2+C$15*走行条件!$C$4*走行条件!$C$25*'③原単位(動力由来)'!$G$2)*(⑤ｴﾈﾙｷﾞｰ由来CO2排出原単位!$C$3+⑤ｴﾈﾙｷﾞｰ由来CO2排出原単位!$C$4) -> 0 | D64: =(D$17*D$18*走行条件!$C$20*'③原単位(動力由来)'!$G$2+D$15*走行条件!$C$4*走行条件!$C$25*'③原単位(動力由来)'!$G$2)*(⑤ｴﾈﾙｷﾞｰ由来CO2排出原単位!$C$3+⑤ｴﾈﾙｷﾞｰ由来CO2排出原単位!$C$4) -> 0 | E64: =(E$17*E$18*走行条件!$C$20*'③原単位(動力由来)'!$G$2+E$15*走行条件!$C$4*走行条件!$C$25*'③原単位(動力由来)'!$G$2)*(⑤ｴﾈﾙｷﾞｰ由来CO2排出原単位!$C$3+⑤ｴﾈﾙｷﾞｰ由来CO2排出原単位!$C$4) -> 0 | F64: =(F$17*F$18*走行条件!$C$20*'③原単位(動力由来)'!$G$2+F$15*走行条件!$C$4*走行条件!$C$25*'③原単位(動力由来)'!$G$2)*(⑤ｴﾈﾙｷﾞｰ由来CO2排出原単位!$C$3+⑤ｴﾈﾙｷﾞｰ由来CO2排出原単位!$C$4) -> 0
B65: ﾃﾞｨｰｾﾞﾙｴﾝｼﾞﾝ車 | C65: =(C$17*C$18*走行条件!$C$20*'③原単位(動力由来)'!$G$3+C$15*走行条件!$C$4*走行条件!$C$25*'③原単位(動力由来)'!$G$3)*(⑤ｴﾈﾙｷﾞｰ由来CO2排出原単位!$C$5+⑤ｴﾈﾙｷﾞｰ由来CO2排出原単位!$C$6) -> 0 | D65: =(D$17*D$18*走行条件!$C$20*'③原単位(動力由来)'!$G$3+D$15*走行条件!$C$4*走行条件!$C$25*'③原単位(動力由来)'!$G$3)*(⑤ｴﾈﾙｷﾞｰ由来CO2排出原単位!$C$5+⑤ｴﾈﾙｷﾞｰ由来CO2排出原単位!$C$6) -> 0 | E65: =(E$17*E$18*走行条件!$C$20*'③原単位(動力由来)'!$G$3+E$15*走行条件!$C$4*走行条件!$C$25*'③原単位(動力由来)'!$G$3)*(⑤ｴﾈﾙｷﾞｰ由来CO2排出原単位!$C$5+⑤ｴﾈﾙｷﾞｰ由来CO2排出原単位!$C$6) -> 0 | F65: =(F$17*F$18*走行条件!$C$20*'③原単位(動力由来)'!$G$3+F$15*走行条件!$C$4*走行条件!$C$25*'③原単位(動力由来)'!$G$3)*(⑤ｴﾈﾙｷﾞｰ由来CO2排出原単位!$C$5+⑤ｴﾈﾙｷﾞｰ由来CO2排出原単位!$C$6) -> 0
B66: ﾃﾞｨｰｾﾞﾙHEV車 | C66: =(C$17*C$18*走行条件!$C$20*'③原単位(動力由来)'!$G$3+C$15*走行条件!$C$4*走行条件!$C$25*'③原単位(動力由来)'!$G$3)*(⑤ｴﾈﾙｷﾞｰ由来CO2排出原単位!$C$5+⑤ｴﾈﾙｷﾞｰ由来CO2排出原単位!$C$6) -> 0 | D66: =(D$17*D$18*走行条件!$C$20*'③原単位(動力由来)'!$G$3+D$15*走行条件!$C$4*走行条件!$C$25*'③原単位(動力由来)'!$G$3)*(⑤ｴﾈﾙｷﾞｰ由来CO2排出原単位!$C$5+⑤ｴﾈﾙｷﾞｰ由来CO2排出原単位!$C$6) -> 0 | E66: =(E$17*E$18*走行条件!$C$20*'③原単位(動力由来)'!$G$3+E$15*走行条件!$C$4*走行条件!$C$25*'③原単位(動力由来)'!$G$3)*(⑤ｴﾈﾙｷﾞｰ由来CO2排出原単位!$C$5+⑤ｴﾈﾙｷﾞｰ由来CO2排出原単位!$C$6) -> 0 | F66: =(F$17*F$18*走行条件!$C$20*'③原単位(動力由来)'!$G$3+F$15*走行条件!$C$4*走行条件!$C$25*'③原単位(動力由来)'!$G$3)*(⑤ｴﾈﾙｷﾞｰ由来CO2排出原単位!$C$5+⑤ｴﾈﾙｷﾞｰ由来CO2排出原単位!$C$6) -> 0
B67: EV | C67: =(C$17*C$18*走行条件!$C$20*'③原単位(動力由来)'!$G$4+C$15*走行条件!$C$4*走行条件!$C$25*'③原単位(動力由来)'!$G$4)*⑤ｴﾈﾙｷﾞｰ由来CO2排出原単位!$C$7 -> 0 | D67: =(D$17*D$18*走行条件!$C$20*'③原単位(動力由来)'!$G$4+D$15*走行条件!$C$4*走行条件!$C$25*'③原単位(動力由来)'!$G$4)*⑤ｴﾈﾙｷﾞｰ由来CO2排出原単位!$C$7 -> 0 | E67: =(E$17*E$18*走行条件!$C$20*'③原単位(動力由来)'!$G$4+E$15*走行条件!$C$4*走行条件!$C$25*'③原単位(動力由来)'!$G$4)*⑤ｴﾈﾙｷﾞｰ由来CO2排出原単位!$C$7 -> 0 | F67: =(F$17*F$18*走行条件!$C$20*'③原単位(動力由来)'!$G$4+F$15*走行条件!$C$4*走行条件!$C$25*'③原単位(動力由来)'!$G$4)*⑤ｴﾈﾙｷﾞｰ由来CO2排出原単位!$C$7 -> 0
B68: 燃料電池車 | C68: =(C$17*C$18*走行条件!$C$20*'③原単位(動力由来)'!$G$5+C$15*走行条件!$C$4*走行条件!$C$25*'③原単位(動力由来)'!$G$5)*⑤ｴﾈﾙｷﾞｰ由来CO2排出原単位!$C$12 -> 0 | D68: =(D$17*D$18*走行条件!$C$20*'③原単位(動力由来)'!$G$5+D$15*走行条件!$C$4*走行条件!$C$25*'③原単位(動力由来)'!$G$5)*⑤ｴﾈﾙｷﾞｰ由来CO2排出原単位!$C$12 -> 0 | E68: =(E$17*E$18*走行条件!$C$20*'③原単位(動力由来)'!$G$5+E$15*走行条件!$C$4*走行条件!$C$25*'③原単位(動力由来)'!$G$5)*⑤ｴﾈﾙｷﾞｰ由来CO2排出原単位!$C$12 -> 0 | F68: =(F$17*F$18*走行条件!$C$20*'③原単位(動力由来)'!$G$5+F$15*走行条件!$C$4*走行条件!$C$25*'③原単位(動力由来)'!$G$5)*⑤ｴﾈﾙｷﾞｰ由来CO2排出原単位!$C$12 -> 0
A69: ④エンジン系CO2排出量(g-CO2) ⇒原単位を変更する場合は、クリック | B69: ｶﾞｿﾘﾝｴﾝｼﾞﾝ車 | C69: 0 | D69: 0 | E69: 0 | F69: 0
B70: ｶﾞｿﾘﾝHEV車 | C70: 0 | D70: 0 | E70: 0 | F70: 0
B71: ﾃﾞｨｰｾﾞﾙｴﾝｼﾞﾝ車 | C71: 0 | D71: 0 | E71: 0 | F71: 0
B72: ﾃﾞｨｰｾﾞﾙHEV車 | C72: 0 | D72: 0 | E72: 0 | F72: 0
B73: EV | C73: 0 | D73: 0 | E73: 0 | F73: 0
B74: 燃料電池車 | C74: 0 | D74: 0 | E74: 0 | F74: 0
A75: 算出結果 CO2 排出量 (g-CO2) | B75: ｶﾞｿﾘﾝｴﾝｼﾞﾝ車 | C75: =SUM(C51,C57,C63) -> 0 | D75: =SUM(D51,D57,D63) -> 0 | E75: =SUM(E51,E57,E63) -> 0 | F75: 0
B76: ｶﾞｿﾘﾝHEV車 | C76: =SUM(C52,C58,C64) -> 0 | D76: =SUM(D52,D58,D64) -> 0 | E76: 0 | F76: 0
B77: ﾃﾞｨｰｾﾞﾙｴﾝｼﾞﾝ車 | C77: =SUM(C53,C59,C65) -> 0 | D77: 0 | E77: 0 | F77: 0
B78: ﾃﾞｨｰｾﾞﾙHEV車 | C78: =SUM(C54,C60,C66) -> 0 | D78: 0 | E78: 0 | F78: 0
B79: EV | C79: =SUM(C55,C61,C67) -> 0 | D79: 0 | E79: 0 | F79: 0
B80: 燃料電池車 | C80: =SUM(C56,C62,C68) -> 0 | D80: 0 | E80: 0 | F80: 0
A84: ◆考え方詳細 （入力欄）
A86: 電流由来 | B86: 電流値の考え方
B90: 電流値算出式
B94: 使用時間の考え方
B98: 使用時間算出式
A102: 動力由来 | B102: 動力値の考え方
B106: 動力値算出式
B110: 使用時間の考え方
B114: 使用時間算出式
A119: 備考

Sheet 製品シート_エネルギー__非エンジン系 (hidden)
A1: =走行条件!C3 -> WLTC四輪乗用車 | E1: ※その他前提条件を変更する場合
A3: ◆LCI対象製品の基本情報
B4: JAPIA製品群 | C4: JAPIA標準製品
B5: システム境界 (評価対象の製品の範囲)
B6: 機能単位 (製品性能を表す特性値当りの単位)
B7: 評価個数
B8: 動作電圧(V) | C8: 12 | D8: =走行条件!$C$18 -> 12 | E8: =走行条件!$C$18 -> 12 | F8: =走行条件!$C$18 -> 12
B9: 製品/部品品番
B10: 製品/部品名 | C10: =C4 -> JAPIA標準製品 | D10: =D4&1 -> 1 | E10: =E4&2 -> 2 | F10: =F4&3 -> 3
A12: ◆使用段階負荷量
A13: 算出用 入力データ | B13: 質量（kg）
B14: 慣性モーメント(kg･m2) 前提条件:ﾀｲﾔ外径(m)
B15: 製品前面投影面積(m2)
B16: 電流（A）
B17: 電力/動力(W) 前提条件:平均ｴﾝｼﾞﾝ回転数(s-1)
A18: =IF(走行条件!C19=TRUE,"ｱｲﾄﾞﾘﾝｸﾞｽﾄｯﾌﾟ有","ｱｲﾄﾞﾘﾝｸﾞｽﾄｯﾌﾟ無") -> ｱｲﾄﾞﾘﾝｸﾞｽﾄｯﾌﾟ無 | B18: 生涯動作時間（s） | C18: =走行条件!$C$14 -> 12020130 | D18: =走行条件!$C$14 -> 12020130 | E18: =走行条件!$C$14 -> 12020130 | F18: =走行条件!$C$14 -> 12020130
A19: ①質量由来消費量 ⇒条件変更する場合は、クリック | B19: ｶﾞｿﾘﾝｴﾝｼﾞﾝ車 (L) | C19: =C$13*'①原単位(質量由来)'!$J$2+C$14*'①原単位(質量由来)'!$J$15 -> 0 | D19: =D$13*'①原単位(質量由来)'!$J$2+D$14*'①原単位(質量由来)'!$J$15 -> 0 | E19: =E$13*'①原単位(質量由来)'!$J$2+E$14*'①原単位(質量由来)'!$J$15 -> 0 | F19: =F$13*'①原単位(質量由来)'!$J$2+F$14*'①原単位(質量由来)'!$J$15 -> 0
B20: ｶﾞｿﾘﾝHEV車 (L) | C20: =C$13*'①原単位(質量由来)'!$J$4+C$14*'①原単位(質量由来)'!$J$17 -> 0 | D20: =D$13*'①原単位(質量由来)'!$J$4+D$14*'①原単位(質量由来)'!$J$17 -> 0 | E20: =E$13*'①原単位(質量由来)'!$J$4+E$14*'①原単位(質量由来)'!$J$17 -> 0 | F20: =F$13*'①原単位(質量由来)'!$J$4+F$14*'①原単位(質量由来)'!$J$17 -> 0
B21: ﾃﾞｨｰｾﾞﾙｴﾝｼﾞﾝ車 (L) | C21: =C$13*'①原単位(質量由来)'!$J$7+C$14*'①原単位(質量由来)'!$J$20 -> 0 | D21: =D$13*'①原単位(質量由来)'!$J$7+D$14*'①原単位(質量由来)'!$J$20 -> 0 | E21: =E$13*'①原単位(質量由来)'!$J$7+E$14*'①原単位(質量由来)'!$J$20 -> 0 | F21: =F$13*'①原単位(質量由来)'!$J$7+F$14*'①原単位(質量由来)'!$J$20 -> 0
B22: ﾃﾞｨｰｾﾞﾙHEV車 (L) | C22: =C$13*'①原単位(質量由来)'!$J$9+C$14*'①原単位(質量由来)'!$J$22 -> 0 | D22: =D$13*'①原単位(質量由来)'!$J$9+D$14*'①原単位(質量由来)'!$J$22 -> 0 | E22: =E$13*'①原単位(質量由来)'!$J$9+E$14*'①原単位(質量由来)'!$J$22 -> 0 | F22: =F$13*'①原単位(質量由来)'!$J$9+F$14*'①原単位(質量由来)'!$J$22 -> 0
B23: EV (kWh) | C23: =C$13*'①原単位(質量由来)'!$J$10+C$14*'①原単位(質量由来)'!$J$23 -> 0 | D23: =D$13*'①原単位(質量由来)'!$J$10+D$14*'①原単位(質量由来)'!$J$23 -> 0 | E23: =E$13*'①原単位(質量由来)'!$J$10+E$14*'①原単位(質量由来)'!$J$23 -> 0 | F23: =F$13*'①原単位(質量由来)'!$J$10+F$14*'①原単位(質量由来)'!$J$23 -> 0
B24: 燃料電池車 (Nm3) | C24: =C$13*'①原単位(質量由来)'!$J$11+C$14*'①原単位(質量由来)'!$J$24 -> 0 | D24: =D$13*'①原単位(質量由来)'!$J$11+D$14*'①原単位(質量由来)'!$J$24 -> 0 | E24: =E$13*'①原単位(質量由来)'!$J$11+E$14*'①原単位(質量由来)'!$J$24 -> 0 | F24: =F$13*'①原単位(質量由来)'!$J$11+F$14*'①原単位(質量由来)'!$J$24 -> 0
A25: ②電力由来消費量 ⇒条件変更する場合は、クリック | B25: ｶﾞｿﾘﾝｴﾝｼﾞﾝ車 (L) | C25: =C$8/12*C$16*C$18*走行条件!$C$20*'②原単位(電力由来)'!$H$2 -> 0 | D25: =D$8/12*D$16*D$18*走行条件!$C$20*'②原単位(電力由来)'!$H$2 -> 0 | E25: =E$8/12*E$16*E$18*走行条件!$C$20*'②原単位(電力由来)'!$H$2 -> 0 | F25: =F$8/12*F$16*F$18*走行条件!$C$20*'②原単位(電力由来)'!$H$2 -> 0
B26: ｶﾞｿﾘﾝHEV車 (L) | C26: =C$8/12*C$16*C$18*走行条件!$C$20*'②原単位(電力由来)'!$H$2 -> 0 | D26: =D$8/12*D$16*D$18*走行条件!$C$20*'②原単位(電力由来)'!$H$2 -> 0 | E26: =E$8/12*E$16*E$18*走行条件!$C$20*'②原単位(電力由来)'!$H$2 -> 0 | F26: =F$8/12*F$16*F$18*走行条件!$C$20*'②原単位(電力由来)'!$H$2 -> 0
B27: ﾃﾞｨｰｾﾞﾙｴﾝｼﾞﾝ車 (L) | C27: =C$8/12*C$16*C$18*走行条件!$C$20*'②原単位(電力由来)'!$H$3 -> 0 | D27: =D$8/12*D$16*D$18*走行条件!$C$20*'②原単位(電力由来)'!$H$3 -> 0 | E27: =E$8/12*E$16*E$18*走行条件!$C$20*'②原単位(電力由来)'!$H$3 -> 0 | F27: =F$8/12*F$16*F$18*走行条件!$C$20*'②原単位(電力由来)'!$H$3 -> 0
B28: ﾃﾞｨｰｾﾞﾙHEV車 (L) | C28: =C$8/12*C$16*C$18*走行条件!$C$20*'②原単位(電力由来)'!$H$3 -> 0 | D28: =D$8/12*D$16*D$18*走行条件!$C$20*'②原単位(電力由来)'!$H$3 -> 0 | E28: =E$8/12*E$16*E$18*走行条件!$C$20*'②原単位(電力由来)'!$H$3 -> 0 | F28: =F$8/12*F$16*F$18*走行条件!$C$20*'②原単位(電力由来)'!$H$3 -> 0
B29: EV (kWh) | C29: =C$8/12*C$16*C$18*走行条件!$C$20*'②原単位(電力由来)'!$H$4 -> 0 | D29: =D$8/12*D$16*D$18*走行条件!$C$20*'②原単位(電力由来)'!$H$4 -> 0 | E29: =E$8/12*E$16*E$18*走行条件!$C$20*'②原単位(電力由来)'!$H$4 -> 0 | F29: =F$8/12*F$16*F$18*走行条件!$C$20*'②原単位(電力由来)'!$H$4 -> 0
B30: 燃料電池車 (Nm3) | C30: =C$8/12*C$16*C$18*走行条件!$C$20*'②原単位(電力由来)'!$H$5 -> 0 | D30: =D$8/12*D$16*D$18*走行条件!$C$20*'②原単位(電力由来)'!$H$5 -> 0 | E30: =E$8/12*E$16*E$18*走行条件!$C$20*'②原単位(電力由来)'!$H$5 -> 0 | F30: =F$8/12*F$16*F$18*走行条件!$C$20*'②原単位(電力由来)'!$H$5 -> 0
A31: ③動力由来消費量 ⇒条件変更する場合は、クリック | B31: ｶﾞｿﾘﾝｴﾝｼﾞﾝ車 (L) | C31: =C$17*C$18*走行条件!$C$20*'③原単位(動力由来)'!$G$2 -> 0 | D31: =D$17*D$18*走行条件!$C$20*'③原単位(動力由来)'!$G$2 -> 0 | E31: =E$17*E$18*走行条件!$C$20*'③原単位(動力由来)'!$G$2 -> 0 | F31: =F$17*F$18*走行条件!$C$20*'③原単位(動力由来)'!$G$2 -> 0
B32: ｶﾞｿﾘﾝHEV車 (L) | C32: =C$17*C$18*走行条件!$C$20*'③原単位(動力由来)'!$G$2 -> 0 | D32: =D$17*D$18*走行条件!$C$20*'③原単位(動力由来)'!$G$2 -> 0 | E32: =E$17*E$18*走行条件!$C$20*'③原単位(動力由来)'!$G$2 -> 0 | F32: =F$17*F$18*走行条件!$C$20*'③原単位(動力由来)'!$G$2 -> 0
B33: ﾃﾞｨｰｾﾞﾙｴﾝｼﾞﾝ車 (L) | C33: =C$17*C$18*走行条件!$C$20*'③原単位(動力由来)'!$G$3 -> 0 | D33: =D$17*D$18*走行条件!$C$20*'③原単位(動力由来)'!$G$3 -> 0 | E33: =E$17*E$18*走行条件!$C$20*'③原単位(動力由来)'!$G$3 -> 0 | F33: =F$17*F$18*走行条件!$C$20*'③原単位(動力由来)'!$G$3 -> 0
B34: ﾃﾞｨｰｾﾞﾙHEV車 (L) | C34: =C$17*C$18*走行条件!$C$20*'③原単位(動力由来)'!$G$3 -> 0 | D34: =D$17*D$18*走行条件!$C$20*'③原単位(動力由来)'!$G$3 -> 0 | E34: =E$17*E$18*走行条件!$C$20*'③原単位(動力由来)'!$G$3 -> 0 | F34: =F$17*F$18*走行条件!$C$20*'③原単位(動力由来)'!$G$3 -> 0
B35: EV (kWh) | C35: =C$17*C$18*走行条件!$C$20*'③原単位(動力由来)'!$G$4 -> 0 | D35: =D$17*D$18*走行条件!$C$20*'③原単位(動力由来)'!$G$4 -> 0 | E35: =E$17*E$18*走行条件!$C$20*'③原単位(動力由来)'!$G$4 -> 0 | F35: =F$17*F$18*走行条件!$C$20*'③原単位(動力由来)'!$G$4 -> 0
B36: 燃料電池車 (Nm3) | C36: =C$17*C$18*走行条件!$C$20*'③原単位(動力由来)'!$G$5 -> 0 | D36: =D$17*D$18*走行条件!$C$20*'③原単位(動力由来)'!$G$5 -> 0 | E36: =E$17*E$18*走行条件!$C$20*'③原単位(動力由来)'!$G$5 -> 0 | F36: =F$17*F$18*走行条件!$C$20*'③原単位(動力由来)'!$G$5 -> 0
A37: ④エンジン系消費量 ⇒条件変更する場合は、クリック | B37: ｶﾞｿﾘﾝｴﾝｼﾞﾝ車 (L) | C37: 0 | D37: 0 | E37: 0 | F37: 0
B38: ｶﾞｿﾘﾝHEV車 (L) | C38: 0 | D38: 0 | E38: 0 | F38: 0
B39: ﾃﾞｨｰｾﾞﾙｴﾝｼﾞﾝ車 (L) | C39: 0 | D39: 0 | E39: 0 | F39: 0
B40: ﾃﾞｨｰｾﾞﾙHEV車 (L) | C40: 0 | D40: 0 | E40: 0 | F40: 0
B41: EV (kWh) | C41: 0 | D41: 0 | E41: 0 | F41: 0
B42: 燃料電池車 (Nm3) | C42: 0 | D42: 0 | E42: 0 | F42: 0
A43: 算出結果 エネルギー消費量 | B43: ｶﾞｿﾘﾝｴﾝｼﾞﾝ車 (L) | C43: =SUM(C19,C25,C31) -> 0 | D43: =SUM(D19,D25,D31) -> 0 | E43: 0 | F43: 0
B44: ｶﾞｿﾘﾝHEV車 (L) | C44: =SUM(C20,C26,C32) -> 0 | D44: 0 | E44: 0 | F44: 0
B45: ﾃﾞｨｰｾﾞﾙｴﾝｼﾞﾝ車 (L) | C45: =SUM(C21,C27,C33) -> 0 | D45: 0 | E45: 0 | F45: 0
B46: ﾃﾞｨｰｾﾞﾙHEV車 (L) | C46: =SUM(C22,C28,C34) -> 0 | D46: 0 | E46: 0 | F46: 0
B47: EV (kWh) | C47: =SUM(C23,C29,C35) -> 0 | D47: 0 | E47: 0 | F47: 0
B48: 燃料電池車 (Nm3) | C48: =SUM(C24,C30,C36) -> 0 | D48: 0 | E48: 0 | F48: 0
A51: ①質量由来CO2排出量(g-CO2) ⇒原単位を変更する場合は、クリック | B51: ｶﾞｿﾘﾝｴﾝｼﾞﾝ車 | C51: =(C$13*'①原単位(質量由来)'!$J$2+C$14*'①原単位(質量由来)'!$J$15)*(⑤ｴﾈﾙｷﾞｰ由来CO2排出原単位!$C$3+⑤ｴﾈﾙｷﾞｰ由来CO2排出原単位!$C$4) -> 0 | D51: =(D$13*'①原単位(質量由来)'!$J$2+D$14*'①原単位(質量由来)'!$J$15)*(⑤ｴﾈﾙｷﾞｰ由来CO2排出原単位!$C$3+⑤ｴﾈﾙｷﾞｰ由来CO2排出原単位!$C$4) -> 0 | E51: =(E$13*'①原単位(質量由来)'!$J$2+E$14*'①原単位(質量由来)'!$J$15)*(⑤ｴﾈﾙｷﾞｰ由来CO2排出原単位!$C$3+⑤ｴﾈﾙｷﾞｰ由来CO2排出原単位!$C$4) -> 0 | F51: =(F$13*'①原単位(質量由来)'!$J$2+F$14*'①原単位(質量由来)'!$J$15)*(⑤ｴﾈﾙｷﾞｰ由来CO2排出原単位!$C$3+⑤ｴﾈﾙｷﾞｰ由来CO2排出原単位!$C$4) -> 0
B52: ｶﾞｿﾘﾝHEV車 | C52: =(C$13*'①原単位(質量由来)'!$J$4+C$14*'①原単位(質量由来)'!$J$17)*(⑤ｴﾈﾙｷﾞｰ由来CO2排出原単位!$C$3+⑤ｴﾈﾙｷﾞｰ由来CO2排出原単位!$C$4) -> 0 | D52: =(D$13*'①原単位(質量由来)'!$J$4+D$14*'①原単位(質量由来)'!$J$17)*(⑤ｴﾈﾙｷﾞｰ由来CO2排出原単位!$C$3+⑤ｴﾈﾙｷﾞｰ由来CO2排出原単位!$C$4) -> 0 | E52: =(E$13*'①原単位(質量由来)'!$J$4+E$14*'①原単位(質量由来)'!$J$17)*(⑤ｴﾈﾙｷﾞｰ由来CO2排出原単位!$C$3+⑤ｴﾈﾙｷﾞｰ由来CO2排出原単位!$C$4) -> 0 | F52: =(F$13*'①原単位(質量由来)'!$J$4+F$14*'①原単位(質量由来)'!$J$17)*(⑤ｴﾈﾙｷﾞｰ由来CO2排出原単位!$C$3+⑤ｴﾈﾙｷﾞｰ由来CO2排出原単位!$C$4) -> 0
B53: ﾃﾞｨｰｾﾞﾙｴﾝｼﾞﾝ車 | C53: =(C$13*'①原単位(質量由来)'!$J$7+C$14*'①原単位(質量由来)'!$J$20)*(⑤ｴﾈﾙｷﾞｰ由来CO2排出原単位!$C$5+⑤ｴﾈﾙｷﾞｰ由来CO2排出原単位!$C$6) -> 0 | D53: =(D$13*'①原単位(質量由来)'!$J$7+D$14*'①原単位(質量由来)'!$J$20)*(⑤ｴﾈﾙｷﾞｰ由来CO2排出原単位!$C$5+⑤ｴﾈﾙｷﾞｰ由来CO2排出原単位!$C$6) -> 0 | E53: =(E$13*'①原単位(質量由来)'!$J$7+E$14*'①原単位(質量由来)'!$J$20)*(⑤ｴﾈﾙｷﾞｰ由来CO2排出原単位!$C$5+⑤ｴﾈﾙｷﾞｰ由来CO2排出原単位!$C$6) -> 0 | F53: =(F$13*'①原単位(質量由来)'!$J$7+F$14*'①原単位(質量由来)'!$J$20)*(⑤ｴﾈﾙｷﾞｰ由来CO2排出原単位!$C$5+⑤ｴﾈﾙｷﾞｰ由来CO2排出原単位!$C$6) -> 0
B54: ﾃﾞｨｰｾﾞﾙHEV車 | C54: =(C$13*'①原単位(質量由来)'!$J$9+C$14*'①原単位(質量由来)'!$J$22)*(⑤ｴﾈﾙｷﾞｰ由来CO2排出原単位!$C$5+⑤ｴﾈﾙｷﾞｰ由来CO2排出原単位!$C$6) -> 0 | D54: =(D$13*'①原単位(質量由来)'!$J$9+D$14*'①原単位(質量由来)'!$J$22)*(⑤ｴﾈﾙｷﾞｰ由来CO2排出原単位!$C$5+⑤ｴﾈﾙｷﾞｰ由来CO2排出原単位!$C$6) -> 0 | E54: =(E$13*'①原単位(質量由来)'!$J$9+E$14*'①原単位(質量由来)'!$J$22)*(⑤ｴﾈﾙｷﾞｰ由来CO2排出原単位!$C$5+⑤ｴﾈﾙｷﾞｰ由来CO2排出原単位!$C$6) -> 0 | F54: =(F$13*'①原単位(質量由来)'!$J$9+F$14*'①原単位(質量由来)'!$J$22)*(⑤ｴﾈﾙｷﾞｰ由来CO2排出原単位!$C$5+⑤ｴﾈﾙｷﾞｰ由来CO2排出原単位!$C$6) -> 0
B55: EV | C55: =(C$13*'①原単位(質量由来)'!$J$10+C$14*'①原単位(質量由来)'!$J$23)*⑤ｴﾈﾙｷﾞｰ由来CO2排出原単位!$C$7 -> 0 | D55: =(D$13*'①原単位(質量由来)'!$J$10+D$14*'①原単位(質量由来)'!$J$23)*⑤ｴﾈﾙｷﾞｰ由来CO2排出原単位!$C$7 -> 0 | E55: =(E$13*'①原単位(質量由来)'!$J$10+E$14*'①原単位(質量由来)'!$J$23)*⑤ｴﾈﾙｷﾞｰ由来CO2排出原単位!$C$7 -> 0 | F55: =(F$13*'①原単位(質量由来)'!$J$10+F$14*'①原単位(質量由来)'!$J$23)*⑤ｴﾈﾙｷﾞｰ由来CO2排出原単位!$C$7 -> 0
B56: 燃料電池車 | C56: =(C$13*'①原単位(質量由来)'!$J$11+C$14*'①原単位(質量由来)'!$J$24)*⑤ｴﾈﾙｷﾞｰ由来CO2排出原単位!$C$12 -> 0 | D56: =(D$13*'①原単位(質量由来)'!$J$11+D$14*'①原単位(質量由来)'!$J$24)*⑤ｴﾈﾙｷﾞｰ由来CO2排出原単位!$C$12 -> 0 | E56: =(E$13*'①原単位(質量由来)'!$J$11+E$14*'①原単位(質量由来)'!$J$24)*⑤ｴﾈﾙｷﾞｰ由来CO2排出原単位!$C$12 -> 0 | F56: =(F$13*'①原単位(質量由来)'!$J$11+F$14*'①原単位(質量由来)'!$J$24)*⑤ｴﾈﾙｷﾞｰ由来CO2排出原単位!$C$12 -> 0
A57: ②電力由来CO2排出量(g-CO2) ⇒原単位を変更する場合は、クリック | B57: ｶﾞｿﾘﾝｴﾝｼﾞﾝ車 | C57: =C$8/12*C$16*C$18*走行条件!$C$20*'②原単位(電力由来)'!$H$2*(⑤ｴﾈﾙｷﾞｰ由来CO2排出原単位!$C$3+⑤ｴﾈﾙｷﾞｰ由来CO2排出原単位!$C$4) -> 0 | D57: =D$8/12*D$16*D$18*走行条件!$C$20*'②原単位(電力由来)'!$H$2*(⑤ｴﾈﾙｷﾞｰ由来CO2排出原単位!$C$3+⑤ｴﾈﾙｷﾞｰ由来CO2排出原単位!$C$4) -> 0 | E57: =E$8/12*E$16*E$18*走行条件!$C$20*'②原単位(電力由来)'!$H$2*(⑤ｴﾈﾙｷﾞｰ由来CO2排出原単位!$C$3+⑤ｴﾈﾙｷﾞｰ由来CO2排出原単位!$C$4) -> 0 | F57: =F$8/12*F$16*F$18*走行条件!$C$20*'②原単位(電力由来)'!$H$2*(⑤ｴﾈﾙｷﾞｰ由来CO2排出原単位!$C$3+⑤ｴﾈﾙｷﾞｰ由来CO2排出原単位!$C$4) -> 0
B58: ｶﾞｿﾘﾝHEV車 | C58: =C$8/12*C$16*C$18*走行条件!$C$20*'②原単位(電力由来)'!$H$2*(⑤ｴﾈﾙｷﾞｰ由来CO2排出原単位!$C$3+⑤ｴﾈﾙｷﾞｰ由来CO2排出原単位!$C$4) -> 0 | D58: =D$8/12*D$16*D$18*走行条件!$C$20*'②原単位(電力由来)'!$H$2*(⑤ｴﾈﾙｷﾞｰ由来CO2排出原単位!$C$3+⑤ｴﾈﾙｷﾞｰ由来CO2排出原単位!$C$4) -> 0 | E58: =E$8/12*E$16*E$18*走行条件!$C$20*'②原単位(電力由来)'!$H$2*(⑤ｴﾈﾙｷﾞｰ由来CO2排出原単位!$C$3+⑤ｴﾈﾙｷﾞｰ由来CO2排出原単位!$C$4) -> 0 | F58: =F$8/12*F$16*F$18*走行条件!$C$20*'②原単位(電力由来)'!$H$2*(⑤ｴﾈﾙｷﾞｰ由来CO2排出原単位!$C$3+⑤ｴﾈﾙｷﾞｰ由来CO2排出原単位!$C$4) -> 0
B59: ﾃﾞｨｰｾﾞﾙｴﾝｼﾞﾝ車 | C59: =C$8/12*C$16*C$18*走行条件!$C$20*'②原単位(電力由来)'!$H$3*(⑤ｴﾈﾙｷﾞｰ由来CO2排出原単位!$C$5+⑤ｴﾈﾙｷﾞｰ由来CO2排出原単位!$C$6) -> 0 | D59: =D$8/12*D$16*D$18*走行条件!$C$20*'②原単位(電力由来)'!$H$3*(⑤ｴﾈﾙｷﾞｰ由来CO2排出原単位!$C$5+⑤ｴﾈﾙｷﾞｰ由来CO2排出原単位!$C$6) -> 0 | E59: =E$8/12*E$16*E$18*走行条件!$C$20*'②原単位(電力由来)'!$H$3*(⑤ｴﾈﾙｷﾞｰ由来CO2排出原単位!$C$5+⑤ｴﾈﾙｷﾞｰ由来CO2排出原単位!$C$6) -> 0 | F59: =F$8/12*F$16*F$18*走行条件!$C$20*'②原単位(電力由来)'!$H$3*(⑤ｴﾈﾙｷﾞｰ由来CO2排出原単位!$C$5+⑤ｴﾈﾙｷﾞｰ由来CO2排出原単位!$C$6) -> 0
B60: ﾃﾞｨｰｾﾞﾙHEV車 | C60: =C$8/12*C$16*C$18*走行条件!$C$20*'②原単位(電力由来)'!$H$3*(⑤ｴﾈﾙｷﾞｰ由来CO2排出原単位!$C$5+⑤ｴﾈﾙｷﾞｰ由来CO2排出原単位!$C$6) -> 0 | D60: =D$8/12*D$16*D$18*走行条件!$C$20*'②原単位(電力由来)'!$H$3*(⑤ｴﾈﾙｷﾞｰ由来CO2排出原単位!$C$5+⑤ｴﾈﾙｷﾞｰ由来CO2排出原単位!$C$6) -> 0 | E60: =E$8/12*E$16*E$18*走行条件!$C$20*'②原単位(電力由来)'!$H$3*(⑤ｴﾈﾙｷﾞｰ由来CO2排出原単位!$C$5+⑤ｴﾈﾙｷﾞｰ由来CO2排出原単位!$C$6) -> 0 | F60: =F$8/12*F$16*F$18*走行条件!$C$20*'②原単位(電力由来)'!$H$3*(⑤ｴﾈﾙｷﾞｰ由来CO2排出原単位!$C$5+⑤ｴﾈﾙｷﾞｰ由来CO2排出原単位!$C$6) -> 0
B61: EV | C61: =C$8/12*C$16*C$18*走行条件!$C$20*'②原単位(電力由来)'!$H$4*⑤ｴﾈﾙｷﾞｰ由来CO2排出原単位!$C$7 -> 0 | D61: =D$8/12*D$16*D$18*走行条件!$C$20*'②原単位(電力由来)'!$H$4*⑤ｴﾈﾙｷﾞｰ由来CO2排出原単位!$C$7 -> 0 | E61: =E$8/12*E$16*E$18*走行条件!$C$20*'②原単位(電力由来)'!$H$4*⑤ｴﾈﾙｷﾞｰ由来CO2排出原単位!$C$7 -> 0 | F61: =F$8/12*F$16*F$18*走行条件!$C$20*'②原単位(電力由来)'!$H$4*⑤ｴﾈﾙｷﾞｰ由来CO2排出原単位!$C$7 -> 0
B62: 燃料電池車 | C62: =C$8/12*C$16*C$18*走行条件!$C$20*'②原単位(電力由来)'!$H$5*⑤ｴﾈﾙｷﾞｰ由来CO2排出原単位!$C$12 -> 0 | D62: =D$8/12*D$16*D$18*走行条件!$C$20*'②原単位(電力由来)'!$H$5*⑤ｴﾈﾙｷﾞｰ由来CO2排出原単位!$C$12 -> 0 | E62: =E$8/12*E$16*E$18*走行条件!$C$20*'②原単位(電力由来)'!$H$5*⑤ｴﾈﾙｷﾞｰ由来CO2排出原単位!$C$12 -> 0 | F62: =F$8/12*F$16*F$18*走行条件!$C$20*'②原単位(電力由来)'!$H$5*⑤ｴﾈﾙｷﾞｰ由来CO2排出原単位!$C$12 -> 0
A63: ③動力由来CO2排出量(g-CO2) ⇒原単位を変更する場合は、クリック | B63: ｶﾞｿﾘﾝｴﾝｼﾞﾝ車 | C63: =(C$17*C$18*走行条件!$C$20*'③原単位(動力由来)'!$G$2+C$15*走行条件!$C$4*走行条件!$C$25*'③原単位(動力由来)'!$G$2)*(⑤ｴﾈﾙｷﾞｰ由来CO2排出原単位!$C$3+⑤ｴﾈﾙｷﾞｰ由来CO2排出原単位!$C$4) -> 0 | D63: =(D$17*D$18*走行条件!$C$20*'③原単位(動力由来)'!$G$2+D$15*走行条件!$C$4*走行条件!$C$25*'③原単位(動力由来)'!$G$2)*(⑤ｴﾈﾙｷﾞｰ由来CO2排出原単位!$C$3+⑤ｴﾈﾙｷﾞｰ由来CO2排出原単位!$C$4) -> 0 | E63: =(E$17*E$18*走行条件!$C$20*'③原単位(動力由来)'!$G$2+E$15*走行条件!$C$4*走行条件!$C$25*'③原単位(動力由来)'!$G$2)*(⑤ｴﾈﾙｷﾞｰ由来CO2排出原単位!$C$3+⑤ｴﾈﾙｷﾞｰ由来CO2排出原単位!$C$4) -> 0 | F63: =(F$17*F$18*走行条件!$C$20*'③原単位(動力由来)'!$G$2+F$15*走行条件!$C$4*走行条件!$C$25*'③原単位(動力由来)'!$G$2)*(⑤ｴﾈﾙｷﾞｰ由来CO2排出原単位!$C$3+⑤ｴﾈﾙｷﾞｰ由来CO2排出原単位!$C$4) -> 0
B64: ｶﾞｿﾘﾝHEV車 | C64: =(C$17*C$18*走行条件!$C$20*'③原単位(動力由来)'!$G$2+C$15*走行条件!$C$4*走行条件!$C$25*'③原単位(動力由来)'!$G$2)*(⑤ｴﾈﾙｷﾞｰ由来CO2排出原単位!$C$3+⑤ｴﾈﾙｷﾞｰ由来CO2排出原単位!$C$4) -> 0 | D64: =(D$17*D$18*走行条件!$C$20*'③原単位(動力由来)'!$G$2+D$15*走行条件!$C$4*走行条件!$C$25*'③原単位(動力由来)'!$G$2)*(⑤ｴﾈﾙｷﾞｰ由来CO2排出原単位!$C$3+⑤ｴﾈﾙｷﾞｰ由来CO2排出原単位!$C$4) -> 0 | E64: =(E$17*E$18*走行条件!$C$20*'③原単位(動力由来)'!$G$2+E$15*走行条件!$C$4*走行条件!$C$25*'③原単位(動力由来)'!$G$2)*(⑤ｴﾈﾙｷﾞｰ由来CO2排出原単位!$C$3+⑤ｴﾈﾙｷﾞｰ由来CO2排出原単位!$C$4) -> 0 | F64: =(F$17*F$18*走行条件!$C$20*'③原単位(動力由来)'!$G$2+F$15*走行条件!$C$4*走行条件!$C$25*'③原単位(動力由来)'!$G$2)*(⑤ｴﾈﾙｷﾞｰ由来CO2排出原単位!$C$3+⑤ｴﾈﾙｷﾞｰ由来CO2排出原単位!$C$4) -> 0
B65: ﾃﾞｨｰｾﾞﾙｴﾝｼﾞﾝ車 | C65: =(C$17*C$18*走行条件!$C$20*'③原単位(動力由来)'!$G$3+C$15*走行条件!$C$4*走行条件!$C$25*'③原単位(動力由来)'!$G$3)*(⑤ｴﾈﾙｷﾞｰ由来CO2排出原単位!$C$5+⑤ｴﾈﾙｷﾞｰ由来CO2排出原単位!$C$6) -> 0 | D65: =(D$17*D$18*走行条件!$C$20*'③原単位(動力由来)'!$G$3+D$15*走行条件!$C$4*走行条件!$C$25*'③原単位(動力由来)'!$G$3)*(⑤ｴﾈﾙｷﾞｰ由来CO2排出原単位!$C$5+⑤ｴﾈﾙｷﾞｰ由来CO2排出原単位!$C$6) -> 0 | E65: =(E$17*E$18*走行条件!$C$20*'③原単位(動力由来)'!$G$3+E$15*走行条件!$C$4*走行条件!$C$25*'③原単位(動力由来)'!$G$3)*(⑤ｴﾈﾙｷﾞｰ由来CO2排出原単位!$C$5+⑤ｴﾈﾙｷﾞｰ由来CO2排出原単位!$C$6) -> 0 | F65: =(F$17*F$18*走行条件!$C$20*'③原単位(動力由来)'!$G$3+F$15*走行条件!$C$4*走行条件!$C$25*'③原単位(動力由来)'!$G$3)*(⑤ｴﾈﾙｷﾞｰ由来CO2排出原単位!$C$5+⑤ｴﾈﾙｷﾞｰ由来CO2排出原単位!$C$6) -> 0
B66: ﾃﾞｨｰｾﾞﾙHEV車 | C66: =(C$17*C$18*走行条件!$C$20*'③原単位(動力由来)'!$G$3+C$15*走行条件!$C$4*走行条件!$C$25*'③原単位(動力由来)'!$G$3)*(⑤ｴﾈﾙｷﾞｰ由来CO2排出原単位!$C$5+⑤ｴﾈﾙｷﾞｰ由来CO2排出原単位!$C$6) -> 0 | D66: =(D$17*D$18*走行条件!$C$20*'③原単位(動力由来)'!$G$3+D$15*走行条件!$C$4*走行条件!$C$25*'③原単位(動力由来)'!$G$3)*(⑤ｴﾈﾙｷﾞｰ由来CO2排出原単位!$C$5+⑤ｴﾈﾙｷﾞｰ由来CO2排出原単位!$C$6) -> 0 | E66: =(E$17*E$18*走行条件!$C$20*'③原単位(動力由来)'!$G$3+E$15*走行条件!$C$4*走行条件!$C$25*'③原単位(動力由来)'!$G$3)*(⑤ｴﾈﾙｷﾞｰ由来CO2排出原単位!$C$5+⑤ｴﾈﾙｷﾞｰ由来CO2排出原単位!$C$6) -> 0 | F66: =(F$17*F$18*走行条件!$C$20*'③原単位(動力由来)'!$G$3+F$15*走行条件!$C$4*走行条件!$C$25*'③原単位(動力由来)'!$G$3)*(⑤ｴﾈﾙｷﾞｰ由来CO2排出原単位!$C$5+⑤ｴﾈﾙｷﾞｰ由来CO2排出原単位!$C$6) -> 0
B67: EV | C67: =(C$17*C$18*走行条件!$C$20*'③原単位(動力由来)'!$G$4+C$15*走行条件!$C$4*走行条件!$C$25*'③原単位(動力由来)'!$G$4)*⑤ｴﾈﾙｷﾞｰ由来CO2排出原単位!$C$7 -> 0 | D67: =(D$17*D$18*走行条件!$C$20*'③原単位(動力由来)'!$G$4+D$15*走行条件!$C$4*走行条件!$C$25*'③原単位(動力由来)'!$G$4)*⑤ｴﾈﾙｷﾞｰ由来CO2排出原単位!$C$7 -> 0 | E67: =(E$17*E$18*走行条件!$C$20*'③原単位(動力由来)'!$G$4+E$15*走行条件!$C$4*走行条件!$C$25*'③原単位(動力由来)'!$G$4)*⑤ｴﾈﾙｷﾞｰ由来CO2排出原単位!$C$7 -> 0 | F67: =(F$17*F$18*走行条件!$C$20*'③原単位(動力由来)'!$G$4+F$15*走行条件!$C$4*走行条件!$C$25*'③原単位(動力由来)'!$G$4)*⑤ｴﾈﾙｷﾞｰ由来CO2排出原単位!$C$7 -> 0
B68: 燃料電池車 | C68: =(C$17*C$18*走行条件!$C$20*'③原単位(動力由来)'!$G$5+C$15*走行条件!$C$4*走行条件!$C$25*'③原単位(動力由来)'!$G$5)*⑤ｴﾈﾙｷﾞｰ由来CO2排出原単位!$C$12 -> 0 | D68: =(D$17*D$18*走行条件!$C$20*'③原単位(動力由来)'!$G$5+D$15*走行条件!$C$4*走行条件!$C$25*'③原単位(動力由来)'!$G$5)*⑤ｴﾈﾙｷﾞｰ由来CO2排出原単位!$C$12 -> 0 | E68: =(E$17*E$18*走行条件!$C$20*'③原単位(動力由来)'!$G$5+E$15*走行条件!$C$4*走行条件!$C$25*'③原単位(動力由来)'!$G$5)*⑤ｴﾈﾙｷﾞｰ由来CO2排出原単位!$C$12 -> 0 | F68: =(F$17*F$18*走行条件!$C$20*'③原単位(動力由来)'!$G$5+F$15*走行条件!$C$4*走行条件!$C$25*'③原単位(動力由来)'!$G$5)*⑤ｴﾈﾙｷﾞｰ由来CO2排出原単位!$C$12 -> 0
A69: ④エンジン系CO2排出量(g-CO2) ⇒原単位を変更する場合は、クリック | B69: ｶﾞｿﾘﾝｴﾝｼﾞﾝ車 | C69: 0 | D69: 0 | E69: 0 | F69: 0
B70: ｶﾞｿﾘﾝHEV車 | C70: 0 | D70: 0 | E70: 0 | F70: 0
B71: ﾃﾞｨｰｾﾞﾙｴﾝｼﾞﾝ車 | C71: 0 | D71: 0 | E71: 0 | F71: 0
B72: ﾃﾞｨｰｾﾞﾙHEV車 | C72: 0 | D72: 0 | E72: 0 | F72: 0
B73: EV | C73: 0 | D73: 0 | E73: 0 | F73: 0
B74: 燃料電池車 | C74: 0 | D74: 0 | E74: 0 | F74: 0
A75: 算出結果 CO2 排出量 (g-CO2) | B75: ｶﾞｿﾘﾝｴﾝｼﾞﾝ車 | C75: =SUM(C51,C57,C63) -> 0 | D75: =SUM(D51,D57,D63) -> 0 | E75: =SUM(E51,E57,E63) -> 0 | F75: 0
B76: ｶﾞｿﾘﾝHEV車 | C76: =SUM(C52,C58,C64) -> 0 | D76: =SUM(D52,D58,D64) -> 0 | E76: 0 | F76: 0
B77: ﾃﾞｨｰｾﾞﾙｴﾝｼﾞﾝ車 | C77: =SUM(C53,C59,C65) -> 0 | D77: 0 | E77: 0 | F77: 0
B78: ﾃﾞｨｰｾﾞﾙHEV車 | C78: =SUM(C54,C60,C66) -> 0 | D78: 0 | E78: 0 | F78: 0
B79: EV | C79: =SUM(C55,C61,C67) -> 0 | D79: 0 | E79: 0 | F79: 0
B80: 燃料電池車 | C80: =SUM(C56,C62,C68) -> 0 | D80: 0 | E80: 0 | F80: 0
A84: ◆考え方詳細 （入力欄）
A86: 電流由来 | B86: 電流値の考え方
B90: 電流値算出式
B94: 使用時間の考え方
B98: 使用時間算出式
A102: 動力由来 | B102: 動力値の考え方
B106: 動力値算出式
B110: 使用時間の考え方
B114: 使用時間算出式
A119: 備考

Sheet 製品シート_エンジン系 (hidden)
A1: =走行条件!C3 -> WLTC四輪乗用車 | E1: ※その他前提条件を変更する場合
A3: ◆LCI対象製品の基本情報
B4: JAPIA製品群 | C4: JAPIA標準製品
B5: システム境界 (評価対象の製品の範囲)
B6: 機能単位 (製品性能を表す特性値当りの単位)
B7: 評価個数
B8: 動作電圧(V) | C8: 12 | D8: =走行条件!$C$18 -> 12 | E8: =走行条件!$C$18 -> 12 | F8: =走行条件!$C$18 -> 12
B9: 製品/部品品番
B10: 製品/部品名 | C10: =C4 -> JAPIA標準製品 | D10: =D4&1 -> 1 | E10: =E4&2 -> 2 | F10: =F4&3 -> 3
A12: ◆使用段階負荷量
A13: 算出用 入力データ | B13: 質量（kg）
B14: 慣性モーメント(kg･m2) 前提条件:ﾀｲﾔ外径(m)
B15: 製品前面投影面積(m2)
B16: 電流（A）
B17: 電力/動力(W) 前提条件:平均ｴﾝｼﾞﾝ回転数(s-1)
A18: =IF(走行条件!C19=TRUE,"ｱｲﾄﾞﾘﾝｸﾞｽﾄｯﾌﾟ有","ｱｲﾄﾞﾘﾝｸﾞｽﾄｯﾌﾟ無") -> ｱｲﾄﾞﾘﾝｸﾞｽﾄｯﾌﾟ無 | B18: 生涯動作時間（s） | C18: =走行条件!$C$14 -> 12020130 | D18: =走行条件!$C$14 -> 12020130 | E18: =走行条件!$C$14 -> 12020130 | F18: =走行条件!$C$14 -> 12020130
A19: ①質量由来消費量 ⇒条件変更する場合は、クリック | B19: ｶﾞｿﾘﾝｴﾝｼﾞﾝ車(自然吸気) (L) | C19: =IF(C$49="-","-",C$13*'①原単位(質量由来)'!$J$2+C$14*'①原単位(質量由来)'!$J$15) -> 0 | D19: =IF(D$49="-","-",D$13*'①原単位(質量由来)'!$J$2+D$14*'①原単位(質量由来)'!$J$15) -> 0 | E19: =IF(E$49="-","-",E$13*'①原単位(質量由来)'!$J$2+E$14*'①原単位(質量由来)'!$J$15) -> 0 | F19: =IF(F$49="-","-",F$13*'①原単位(質量由来)'!$J$2+F$14*'①原単位(質量由来)'!$J$15) -> 0
B20: ｶﾞｿﾘﾝｴﾝｼﾞﾝ車(過給器付) (L) | C20: =IF(C$50="-","-",C$13*'①原単位(質量由来)'!$J$2+C$14*'①原単位(質量由来)'!$J$15) -> 0 | D20: =IF(D$50="-","-",D$13*'①原単位(質量由来)'!$J$2+D$14*'①原単位(質量由来)'!$J$15) -> 0 | E20: =IF(E$50="-","-",E$13*'①原単位(質量由来)'!$J$2+E$14*'①原単位(質量由来)'!$J$15) -> 0 | F20: =IF(F$50="-","-",F$13*'①原単位(質量由来)'!$J$2+F$14*'①原単位(質量由来)'!$J$15) -> 0
B21: ｶﾞｿﾘﾝHEV車(自然吸気) (L) | C21: =IF(C$51="-","-",C$13*'①原単位(質量由来)'!$J$4+C$14*'①原単位(質量由来)'!$J$17) -> 0 | D21: =IF(D$51="-","-",D$13*'①原単位(質量由来)'!$J$4+D$14*'①原単位(質量由来)'!$J$17) -> 0 | E21: =IF(E$51="-","-",E$13*'①原単位(質量由来)'!$J$4+E$14*'①原単位(質量由来)'!$J$17) -> 0 | F21: =IF(F$51="-","-",F$13*'①原単位(質量由来)'!$J$4+F$14*'①原単位(質量由来)'!$J$17) -> 0
B22: ｶﾞｿﾘﾝHEV車(過給器付) (L) | C22: =IF(C$52="-","-",C$13*'①原単位(質量由来)'!$J$4+C$14*'①原単位(質量由来)'!$J$17) -> 0 | D22: =IF(D$52="-","-",D$13*'①原単位(質量由来)'!$J$4+D$14*'①原単位(質量由来)'!$J$17) -> 0 | E22: =IF(E$52="-","-",E$13*'①原単位(質量由来)'!$J$4+E$14*'①原単位(質量由来)'!$J$17) -> 0 | F22: =IF(F$52="-","-",F$13*'①原単位(質量由来)'!$J$4+F$14*'①原単位(質量由来)'!$J$17) -> 0
B23: ﾃﾞｨｰｾﾞﾙｴﾝｼﾞﾝ車(自然吸気) (L) | C23: =IF(C$53="-","-",C$13*'①原単位(質量由来)'!$J$7+C$14*'①原単位(質量由来)'!$J$20) -> 0 | D23: =IF(D$53="-","-",D$13*'①原単位(質量由来)'!$J$7+D$14*'①原単位(質量由来)'!$J$20) -> 0 | E23: =IF(E$53="-","-",E$13*'①原単位(質量由来)'!$J$7+E$14*'①原単位(質量由来)'!$J$20) -> 0 | F23: =IF(F$53="-","-",F$13*'①原単位(質量由来)'!$J$7+F$14*'①原単位(質量由来)'!$J$20) -> 0
B24: ﾃﾞｨｰｾﾞﾙｴﾝｼﾞﾝ車(過給器付) (L) | C24: =IF(C$54="-","-",C$13*'①原単位(質量由来)'!$J$7+C$14*'①原単位(質量由来)'!$J$20) -> 0 | D24: =IF(D$54="-","-",D$13*'①原単位(質量由来)'!$J$7+D$14*'①原単位(質量由来)'!$J$20) -> 0 | E24: =IF(E$54="-","-",E$13*'①原単位(質量由来)'!$J$7+E$14*'①原単位(質量由来)'!$J$20) -> 0 | F24: =IF(F$54="-","-",F$13*'①原単位(質量由来)'!$J$7+F$14*'①原単位(質量由来)'!$J$20) -> 0
B25: ﾃﾞｨｰｾﾞﾙHEV車(自然吸気) (L) | C25: =IF(C$55="-","-",C$13*'①原単位(質量由来)'!$J$9+C$14*'①原単位(質量由来)'!$J$22) -> 0 | D25: =IF(D$55="-","-",D$13*'①原単位(質量由来)'!$J$9+D$14*'①原単位(質量由来)'!$J$22) -> 0 | E25: =IF(E$55="-","-",E$13*'①原単位(質量由来)'!$J$9+E$14*'①原単位(質量由来)'!$J$22) -> 0 | F25: =IF(F$55="-","-",F$13*'①原単位(質量由来)'!$J$9+F$14*'①原単位(質量由来)'!$J$22) -> 0
B26: ﾃﾞｨｰｾﾞﾙHEV車(過給器付) (L) | C26: =IF(C$56="-","-",C$13*'①原単位(質量由来)'!$J$9+C$14*'①原単位(質量由来)'!$J$22) -> 0 | D26: =IF(D$56="-","-",D$13*'①原単位(質量由来)'!$J$9+D$14*'①原単位(質量由来)'!$J$22) -> 0 | E26: =IF(E$56="-","-",E$13*'①原単位(質量由来)'!$J$9+E$14*'①原単位(質量由来)'!$J$22) -> 0 | F26: =IF(F$56="-","-",F$13*'①原単位(質量由来)'!$J$9+F$14*'①原単位(質量由来)'!$J$22) -> 0
B27: EV (kWh) | C27: - | D27: - | E27: - | F27: -
B28: 燃料電池車 (Nm3) | C28: - | D28: - | E28: - | F28: -
A29: ②電力由来消費量 ⇒条件変更する場合は、クリック | B29: ｶﾞｿﾘﾝｴﾝｼﾞﾝ車(自然吸気) (L) | C29: =IF(C$49="-","-",C$8/12*C$16*C$18*走行条件!$C$20*'②原単位(電力由来)'!$H$2) -> 0 | D29: =IF(D$49="-","-",D$8/12*D$16*D$18*走行条件!$C$20*'②原単位(電力由来)'!$H$2) -> 0 | E29: =IF(E$49="-","-",E$8/12*E$16*E$18*走行条件!$C$20*'②原単位(電力由来)'!$H$2) -> 0 | F29: =IF(F$49="-","-",F$8/12*F$16*F$18*走行条件!$C$20*'②原単位(電力由来)'!$H$2) -> 0
B30: ｶﾞｿﾘﾝｴﾝｼﾞﾝ車(過給器付) (L) | C30: =IF(C$50="-","-",C$8/12*C$16*C$18*走行条件!$C$20*'②原単位(電力由来)'!$H$2) -> 0 | D30: =IF(D$50="-","-",D$8/12*D$16*D$18*走行条件!$C$20*'②原単位(電力由来)'!$H$2) -> 0 | E30: =IF(E$50="-","-",E$8/12*E$16*E$18*走行条件!$C$20*'②原単位(電力由来)'!$H$2) -> 0 | F30: =IF(F$50="-","-",F$8/12*F$16*F$18*走行条件!$C$20*'②原単位(電力由来)'!$H$2) -> 0
B31: ｶﾞｿﾘﾝHEV車(自然吸気) (L) | C31: =IF(C$51="-","-",C$8/12*C$16*C$18*走行条件!$C$20*'②原単位(電力由来)'!$H$2) -> 0 | D31: =IF(D$51="-","-",D$8/12*D$16*D$18*走行条件!$C$20*'②原単位(電力由来)'!$H$2) -> 0 | E31: =IF(E$51="-","-",E$8/12*E$16*E$18*走行条件!$C$20*'②原単位(電力由来)'!$H$2) -> 0 | F31: =IF(F$51="-","-",F$8/12*F$16*F$18*走行条件!$C$20*'②原単位(電力由来)'!$H$2) -> 0
B32: ｶﾞｿﾘﾝHEV車(過給器付) (L) | C32: =IF(C$52="-","-",C$8/12*C$16*C$18*走行条件!$C$20*'②原単位(電力由来)'!$H$2) -> 0 | D32: =IF(D$52="-","-",D$8/12*D$16*D$18*走行条件!$C$20*'②原単位(電力由来)'!$H$2) -> 0 | E32: =IF(E$52="-","-",E$8/12*E$16*E$18*走行条件!$C$20*'②原単位(電力由来)'!$H$2) -> 0 | F32: =IF(F$52="-","-",F$8/12*F$16*F$18*走行条件!$C$20*'②原単位(電力由来)'!$H$2) -> 0
B33: ﾃﾞｨｰｾﾞﾙｴﾝｼﾞﾝ車(自然吸気) (L) | C33: =IF(C$53="-","-",C$8/12*C$16*C$18*走行条件!$C$20*'②原単位(電力由来)'!$H$3) -> 0 | D33: =IF(D$53="-","-",D$8/12*D$16*D$18*走行条件!$C$20*'②原単位(電力由来)'!$H$3) -> 0 | E33: =IF(E$53="-","-",E$8/12*E$16*E$18*走行条件!$C$20*'②原単位(電力由来)'!$H$3) -> 0 | F33: =IF(F$53="-","-",F$8/12*F$16*F$18*走行条件!$C$20*'②原単位(電力由来)'!$H$3) -> 0
B34: ﾃﾞｨｰｾﾞﾙｴﾝｼﾞﾝ車(過給器付) (L) | C34: =IF(C$54="-","-",C$8/12*C$16*C$18*走行条件!$C$20*'②原単位(電力由来)'!$H$3) -> 0 | D34: =IF(D$54="-","-",D$8/12*D$16*D$18*走行条件!$C$20*'②原単位(電力由来)'!$H$3) -> 0 | E34: =IF(E$54="-","-",E$8/12*E$16*E$18*走行条件!$C$20*'②原単位(電力由来)'!$H$3) -> 0 | F34: =IF(F$54="-","-",F$8/12*F$16*F$18*走行条件!$C$20*'②原単位(電力由来)'!$H$3) -> 0
B35: ﾃﾞｨｰｾﾞﾙHEV車(自然吸気) (L) | C35: =IF(C$55="-","-",C$8/12*C$16*C$18*走行条件!$C$20*'②原単位(電力由来)'!$H$3) -> 0 | D35: =IF(D$55="-","-",D$8/12*D$16*D$18*走行条件!$C$20*'②原単位(電力由来)'!$H$3) -> 0 | E35: =IF(E$55="-","-",E$8/12*E$16*E$18*走行条件!$C$20*'②原単位(電力由来)'!$H$3) -> 0 | F35: =IF(F$55="-","-",F$8/12*F$16*F$18*走行条件!$C$20*'②原単位(電力由来)'!$H$3) -> 0
B36: ﾃﾞｨｰｾﾞﾙHEV車(過給器付) (L) | C36: =IF(C$56="-","-",C$8/12*C$16*C$18*走行条件!$C$20*'②原単位(電力由来)'!$H$3) -> 0 | D36: =IF(D$56="-","-",D$8/12*D$16*D$18*走行条件!$C$20*'②原単位(電力由来)'!$H$3) -> 0 | E36: =IF(E$56="-","-",E$8/12*E$16*E$18*走行条件!$C$20*'②原単位(電力由来)'!$H$3) -> 0 | F36: =IF(F$56="-","-",F$8/12*F$16*F$18*走行条件!$C$20*'②原単位(電力由来)'!$H$3) -> 0
B37: EV (kWh) | C37: - | D37: - | E37: - | F37: -
B38: 燃料電池車 (Nm3) | C38: - | D38: - | E38: - | F38: -
A39: ③動力由来消費量 ⇒条件変更する場合は、クリック | B39: ｶﾞｿﾘﾝｴﾝｼﾞﾝ車(自然吸気) (L) | C39: =IF(C$49="-","-",C$17*C$18*走行条件!$C$20*'③原単位(動力由来)'!$G$2) -> 0 | D39: =IF(D$49="-","-",D$17*D$18*走行条件!$C$20*'③原単位(動力由来)'!$G$2) -> 0 | E39: =IF(E$49="-","-",E$17*E$18*走行条件!$C$20*'③原単位(動力由来)'!$G$2) -> 0 | F39: =IF(F$49="-","-",F$17*F$18*走行条件!$C$20*'③原単位(動力由来)'!$G$2) -> 0
B40: ｶﾞｿﾘﾝｴﾝｼﾞﾝ車(過給器付) (L) | C40: =IF(C$50="-","-",C$17*C$18*走行条件!$C$20*'③原単位(動力由来)'!$G$2) -> 0 | D40: =IF(D$50="-","-",D$17*D$18*走行条件!$C$20*'③原単位(動力由来)'!$G$2) -> 0 | E40: =IF(E$50="-","-",E$17*E$18*走行条件!$C$20*'③原単位(動力由来)'!$G$2) -> 0 | F40: =IF(F$50="-","-",F$17*F$18*走行条件!$C$20*'③原単位(動力由来)'!$G$2) -> 0
B41: ｶﾞｿﾘﾝHEV車(自然吸気) (L) | C41: =IF(C$51="-","-",C$17*C$18*走行条件!$C$20*'③原単位(動力由来)'!$G$2) -> 0 | D41: =IF(D$51="-","-",D$17*D$18*走行条件!$C$20*'③原単位(動力由来)'!$G$2) -> 0 | E41: =IF(E$51="-","-",E$17*E$18*走行条件!$C$20*'③原単位(動力由来)'!$G$2) -> 0 | F41: =IF(F$51="-","-",F$17*F$18*走行条件!$C$20*'③原単位(動力由来)'!$G$2) -> 0
B42: ｶﾞｿﾘﾝHEV車(過給器付) (L) | C42: =IF(C$52="-","-",C$17*C$18*走行条件!$C$20*'③原単位(動力由来)'!$G$2) -> 0 | D42: =IF(D$52="-","-",D$17*D$18*走行条件!$C$20*'③原単位(動力由来)'!$G$2) -> 0 | E42: =IF(E$52="-","-",E$17*E$18*走行条件!$C$20*'③原単位(動力由来)'!$G$2) -> 0 | F42: =IF(F$52="-","-",F$17*F$18*走行条件!$C$20*'③原単位(動力由来)'!$G$2) -> 0
B43: ﾃﾞｨｰｾﾞﾙｴﾝｼﾞﾝ車(自然吸気) (L) | C43: =IF(C$53="-","-",C$17*C$18*走行条件!$C$20*'③原単位(動力由来)'!$G$3) -> 0 | D43: =IF(D$53="-","-",D$17*D$18*走行条件!$C$20*'③原単位(動力由来)'!$G$3) -> 0 | E43: =IF(E$53="-","-",E$17*E$18*走行条件!$C$20*'③原単位(動力由来)'!$G$3) -> 0 | F43: =IF(F$53="-","-",F$17*F$18*走行条件!$C$20*'③原単位(動力由来)'!$G$3) -> 0
B44: ﾃﾞｨｰｾﾞﾙｴﾝｼﾞﾝ車(過給器付) (L) | C44: =IF(C$54="-","-",C$17*C$18*走行条件!$C$20*'③原単位(動力由来)'!$G$3) -> 0 | D44: =IF(D$54="-","-",D$17*D$18*走行条件!$C$20*'③原単位(動力由来)'!$G$3) -> 0 | E44: =IF(E$54="-","-",E$17*E$18*走行条件!$C$20*'③原単位(動力由来)'!$G$3) -> 0 | F44: =IF(F$54="-","-",F$17*F$18*走行条件!$C$20*'③原単位(動力由来)'!$G$3) -> 0
B45: ﾃﾞｨｰｾﾞﾙHEV車(自然吸気) (L) | C45: =IF(C$55="-","-",C$17*C$18*走行条件!$C$20*'③原単位(動力由来)'!$G$3) -> 0 | D45: =IF(D$55="-","-",D$17*D$18*走行条件!$C$20*'③原単位(動力由来)'!$G$3) -> 0 | E45: =IF(E$55="-","-",E$17*E$18*走行条件!$C$20*'③原単位(動力由来)'!$G$3) -> 0 | F45: =IF(F$55="-","-",F$17*F$18*走行条件!$C$20*'③原単位(動力由来)'!$G$3) -> 0
B46: ﾃﾞｨｰｾﾞﾙHEV車(過給器付) (L) | C46: =IF(C$56="-","-",C$17*C$18*走行条件!$C$20*'③原単位(動力由来)'!$G$3) -> 0 | D46: =IF(D$56="-","-",D$17*D$18*走行条件!$C$20*'③原単位(動力由来)'!$G$3) -> 0 | E46: =IF(E$56="-","-",E$17*E$18*走行条件!$C$20*'③原単位(動力由来)'!$G$3) -> 0 | F46: =IF(F$56="-","-",F$17*F$18*走行条件!$C$20*'③原単位(動力由来)'!$G$3) -> 0
B47: EV (kWh) | C47: - | D47: - | E47: - | F47: -
B48: 燃料電池車 (Nm3) | C48: - | D48: - | E48: - | F48: -
A49: ④エンジン系消費量 ⇒条件変更する場合は、クリック | B49: ｶﾞｿﾘﾝｴﾝｼﾞﾝ車(自然吸気) (L)
B50: ｶﾞｿﾘﾝｴﾝｼﾞﾝ車(過給器付) (L)
B51: ｶﾞｿﾘﾝHEV車(自然吸気) (L)
B52: ｶﾞｿﾘﾝHEV車(過給器付) (L)
B53: ﾃﾞｨｰｾﾞﾙｴﾝｼﾞﾝ車(自然吸気) (L)
B54: ﾃﾞｨｰｾﾞﾙｴﾝｼﾞﾝ車(過給器付) (L)
B55: ﾃﾞｨｰｾﾞﾙHEV車(自然吸気) (L)
B56: ﾃﾞｨｰｾﾞﾙHEV車(過給器付) (L)
B57: EV (kWh) | C57: - | D57: - | E57: - | F57: -
B58: 燃料電池車 (Nm3) | C58: - | D58: - | E58: - | F58: -
A59: 算出結果 エネルギー消費量 | B59: ｶﾞｿﾘﾝｴﾝｼﾞﾝ車 (自然吸気) (L) | C59: =IF(C49="-","-",SUM(C19,C29,C39,C49)) -> 0 | D59: =IF(D49="-","-",SUM(D19,D29,D39,D49)) -> 0 | E59: =IF(E49="-","-",SUM(E19,E29,E39,E49)) -> 0 | F59: =IF(F49="-","-",SUM(F19,F29,F39,F49)) -> 0
B60: ｶﾞｿﾘﾝｴﾝｼﾞﾝ車 (過給器付) (L) | C60: =IF(C50="-","-",SUM(C20,C30,C40,C50)) -> 0 | D60: 0 | E60: =IF(E50="-","-",SUM(E20,E30,E40,E50)) -> 0 | F60: =IF(F50="-","-",SUM(F20,F30,F40,F50)) -> 0
B61: ｶﾞｿﾘﾝHEV車 (自然吸気) (L) | C61: 0 | D61: 0 | E61: =IF(E51="-","-",SUM(E21,E31,E41,E51)) -> 0 | F61: =IF(F51="-","-",SUM(F21,F31,F41,F51)) -> 0
B62: ｶﾞｿﾘﾝHEV車 (過給器付) (L) | C62: 0 | D62: 0 | E62: =IF(E52="-","-",SUM(E22,E32,E42,E52)) -> 0 | F62: =IF(F52="-","-",SUM(F22,F32,F42,F52)) -> 0
B63: ﾃﾞｨｰｾﾞﾙｴﾝｼﾞﾝ車 (自然吸気) (L) | C63: 0 | D63: 0 | E63: =IF(E53="-","-",SUM(E23,E33,E43,E53)) -> 0 | F63: =IF(F53="-","-",SUM(F23,F33,F43,F53)) -> 0
B64: ﾃﾞｨｰｾﾞﾙｴﾝｼﾞﾝ車 (過給器付) (L) | C64: 0 | D64: 0 | E64: =IF(E54="-","-",SUM(E24,E34,E44,E54)) -> 0 | F64: =IF(F54="-","-",SUM(F24,F34,F44,F54)) -> 0
B65: ﾃﾞｨｰｾﾞﾙHEV車 (自然吸気) (L) | C65: 0 | D65: 0 | E65: =IF(E55="-","-",SUM(E25,E35,E45,E55)) -> 0 | F65: 0
B66: ﾃﾞｨｰｾﾞﾙHEV車 (過給器付) (L) | C66: 0 | D66: 0 | E66: =IF(E56="-","-",SUM(E26,E36,E46,E56)) -> 0 | F66: =IF(F56="-","-",SUM(F26,F36,F46,F56)) -> 0
A69: ①質量由来CO2排出量(g-CO2) ⇒原単位を変更する場合は、クリック | B69: ｶﾞｿﾘﾝｴﾝｼﾞﾝ車(自然吸気) | C69: =IF(C$49="-","-",(C$13*'①原単位(質量由来)'!$J$2+C$14*'①原単位(質量由来)'!$J$15)*(⑤ｴﾈﾙｷﾞｰ由来CO2排出原単位!$C$3+⑤ｴﾈﾙｷﾞｰ由来CO2排出原単位!$C$4)) -> 0 | D69: =IF(D$49="-","-",(D$13*'①原単位(質量由来)'!$J$2+D$14*'①原単位(質量由来)'!$J$15)*(⑤ｴﾈﾙｷﾞｰ由来CO2排出原単位!$C$3+⑤ｴﾈﾙｷﾞｰ由来CO2排出原単位!$C$4)) -> 0 | E69: =IF(E$49="-","-",(E$13*'①原単位(質量由来)'!$J$2+E$14*'①原単位(質量由来)'!$J$15)*(⑤ｴﾈﾙｷﾞｰ由来CO2排出原単位!$C$3+⑤ｴﾈﾙｷﾞｰ由来CO2排出原単位!$C$4)) -> 0 | F69: =IF(F$49="-","-",(F$13*'①原単位(質量由来)'!$J$2+F$14*'①原単位(質量由来)'!$J$15)*(⑤ｴﾈﾙｷﾞｰ由来CO2排出原単位!$C$3+⑤ｴﾈﾙｷﾞｰ由来CO2排出原単位!$C$4)) -> 0
B70: ｶﾞｿﾘﾝｴﾝｼﾞﾝ車(過給器付) | C70: =IF(C$50="-","-",(C$13*'①原単位(質量由来)'!$J$2+C$14*'①原単位(質量由来)'!$J$15)*(⑤ｴﾈﾙｷﾞｰ由来CO2排出原単位!$C$3+⑤ｴﾈﾙｷﾞｰ由来CO2排出原単位!$C$4)) -> 0 | D70: =IF(D$50="-","-",(D$13*'①原単位(質量由来)'!$J$2+D$14*'①原単位(質量由来)'!$J$15)*(⑤ｴﾈﾙｷﾞｰ由来CO2排出原単位!$C$3+⑤ｴﾈﾙｷﾞｰ由来CO2排出原単位!$C$4)) -> 0 | E70: =IF(E$50="-","-",(E$13*'①原単位(質量由来)'!$J$2+E$14*'①原単位(質量由来)'!$J$15)*(⑤ｴﾈﾙｷﾞｰ由来CO2排出原単位!$C$3+⑤ｴﾈﾙｷﾞｰ由来CO2排出原単位!$C$4)) -> 0 | F70: =IF(F$50="-","-",(F$13*'①原単位(質量由来)'!$J$2+F$14*'①原単位(質量由来)'!$J$15)*(⑤ｴﾈﾙｷﾞｰ由来CO2排出原単位!$C$3+⑤ｴﾈﾙｷﾞｰ由来CO2排出原単位!$C$4)) -> 0
B71: ｶﾞｿﾘﾝHEV車(自然吸気) | C71: =IF(C$51="-","-",(C$13*'①原単位(質量由来)'!$J$4+C$14*'①原単位(質量由来)'!$J$17)*(⑤ｴﾈﾙｷﾞｰ由来CO2排出原単位!$C$3+⑤ｴﾈﾙｷﾞｰ由来CO2排出原単位!$C$4)) -> 0 | D71: =IF(D$51="-","-",(D$13*'①原単位(質量由来)'!$J$4+D$14*'①原単位(質量由来)'!$J$17)*(⑤ｴﾈﾙｷﾞｰ由来CO2排出原単位!$C$3+⑤ｴﾈﾙｷﾞｰ由来CO2排出原単位!$C$4)) -> 0 | E71: =IF(E$51="-","-",(E$13*'①原単位(質量由来)'!$J$4+E$14*'①原単位(質量由来)'!$J$17)*(⑤ｴﾈﾙｷﾞｰ由来CO2排出原単位!$C$3+⑤ｴﾈﾙｷﾞｰ由来CO2排出原単位!$C$4)) -> 0 | F71: =IF(F$51="-","-",(F$13*'①原単位(質量由来)'!$J$4+F$14*'①原単位(質量由来)'!$J$17)*(⑤ｴﾈﾙｷﾞｰ由来CO2排出原単位!$C$3+⑤ｴﾈﾙｷﾞｰ由来CO2排出原単位!$C$4)) -> 0
B72: ｶﾞｿﾘﾝHEV車(過給器付) | C72: =IF(C$52="-","-",(C$13*'①原単位(質量由来)'!$J$4+C$14*'①原単位(質量由来)'!$J$17)*(⑤ｴﾈﾙｷﾞｰ由来CO2排出原単位!$C$3+⑤ｴﾈﾙｷﾞｰ由来CO2排出原単位!$C$4)) -> 0 | D72: =IF(D$52="-","-",(D$13*'①原単位(質量由来)'!$J$4+D$14*'①原単位(質量由来)'!$J$17)*(⑤ｴﾈﾙｷﾞｰ由来CO2排出原単位!$C$3+⑤ｴﾈﾙｷﾞｰ由来CO2排出原単位!$C$4)) -> 0 | E72: =IF(E$52="-","-",(E$13*'①原単位(質量由来)'!$J$4+E$14*'①原単位(質量由来)'!$J$17)*(⑤ｴﾈﾙｷﾞｰ由来CO2排出原単位!$C$3+⑤ｴﾈﾙｷﾞｰ由来CO2排出原単位!$C$4)) -> 0 | F72: =IF(F$52="-","-",(F$13*'①原単位(質量由来)'!$J$4+F$14*'①原単位(質量由来)'!$J$17)*(⑤ｴﾈﾙｷﾞｰ由来CO2排出原単位!$C$3+⑤ｴﾈﾙｷﾞｰ由来CO2排出原単位!$C$4)) -> 0
B73: ﾃﾞｨｰｾﾞﾙｴﾝｼﾞﾝ車(自然吸気) | C73: =IF(C$53="-","-",(C$13*'①原単位(質量由来)'!$J$7+C$14*'①原単位(質量由来)'!$J$20)*(⑤ｴﾈﾙｷﾞｰ由来CO2排出原単位!$C$5+⑤ｴﾈﾙｷﾞｰ由来CO2排出原単位!$C$6)) -> 0 | D73: =IF(D$53="-","-",(D$13*'①原単位(質量由来)'!$J$7+D$14*'①原単位(質量由来)'!$J$20)*(⑤ｴﾈﾙｷﾞｰ由来CO2排出原単位!$C$5+⑤ｴﾈﾙｷﾞｰ由来CO2排出原単位!$C$6)) -> 0 | E73: =IF(E$53="-","-",(E$13*'①原単位(質量由来)'!$J$7+E$14*'①原単位(質量由来)'!$J$20)*(⑤ｴﾈﾙｷﾞｰ由来CO2排出原単位!$C$5+⑤ｴﾈﾙｷﾞｰ由来CO2排出原単位!$C$6)) -> 0 | F73: =IF(F$53="-","-",(F$13*'①原単位(質量由来)'!$J$7+F$14*'①原単位(質量由来)'!$J$20)*(⑤ｴﾈﾙｷﾞｰ由来CO2排出原単位!$C$5+⑤ｴﾈﾙｷﾞｰ由来CO2排出原単位!$C$6)) -> 0
B74: ﾃﾞｨｰｾﾞﾙｴﾝｼﾞﾝ車(過給器付) | C74: =IF(C$54="-","-",(C$13*'①原単位(質量由来)'!$J$7+C$14*'①原単位(質量由来)'!$J$20)*(⑤ｴﾈﾙｷﾞｰ由来CO2排出原単位!$C$5+⑤ｴﾈﾙｷﾞｰ由来CO2排出原単位!$C$6)) -> 0 | D74: =IF(D$54="-","-",(D$13*'①原単位(質量由来)'!$J$7+D$14*'①原単位(質量由来)'!$J$20)*(⑤ｴﾈﾙｷﾞｰ由来CO2排出原単位!$C$5+⑤ｴﾈﾙｷﾞｰ由来CO2排出原単位!$C$6)) -> 0 | E74: =IF(E$54="-","-",(E$13*'①原単位(質量由来)'!$J$7+E$14*'①原単位(質量由来)'!$J$20)*(⑤ｴﾈﾙｷﾞｰ由来CO2排出原単位!$C$5+⑤ｴﾈﾙｷﾞｰ由来CO2排出原単位!$C$6)) -> 0 | F74: =IF(F$54="-","-",(F$13*'①原単位(質量由来)'!$J$7+F$14*'①原単位(質量由来)'!$J$20)*(⑤ｴﾈﾙｷﾞｰ由来CO2排出原単位!$C$5+⑤ｴﾈﾙｷﾞｰ由来CO2排出原単位!$C$6)) -> 0
B75: ﾃﾞｨｰｾﾞﾙHEV車(自然吸気) | C75: =IF(C$55="-","-",(C$13*'①原単位(質量由来)'!$J$9+C$14*'①原単位(質量由来)'!$J$22)*(⑤ｴﾈﾙｷﾞｰ由来CO2排出原単位!$C$5+⑤ｴﾈﾙｷﾞｰ由来CO2排出原単位!$C$6)) -> 0 | D75: =IF(D$55="-","-",(D$13*'①原単位(質量由来)'!$J$9+D$14*'①原単位(質量由来)'!$J$22)*(⑤ｴﾈﾙｷﾞｰ由来CO2排出原単位!$C$5+⑤ｴﾈﾙｷﾞｰ由来CO2排出原単位!$C$6)) -> 0 | E75: =IF(E$55="-","-",(E$13*'①原単位(質量由来)'!$J$9+E$14*'①原単位(質量由来)'!$J$22)*(⑤ｴﾈﾙｷﾞｰ由来CO2排出原単位!$C$5+⑤ｴﾈﾙｷﾞｰ由来CO2排出原単位!$C$6)) -> 0 | F75: =IF(F$55="-","-",(F$13*'①原単位(質量由来)'!$J$9+F$14*'①原単位(質量由来)'!$J$22)*(⑤ｴﾈﾙｷﾞｰ由来CO2排出原単位!$C$5+⑤ｴﾈﾙｷﾞｰ由来CO2排出原単位!$C$6)) -> 0
B76: ﾃﾞｨｰｾﾞﾙHEV車(過給器付) | C76: =IF(C$56="-","-",(C$13*'①原単位(質量由来)'!$J$9+C$14*'①原単位(質量由来)'!$J$22)*(⑤ｴﾈﾙｷﾞｰ由来CO2排出原単位!$C$5+⑤ｴﾈﾙｷﾞｰ由来CO2排出原単位!$C$6)) -> 0 | D76: =IF(D$56="-","-",(D$13*'①原単位(質量由来)'!$J$9+D$14*'①原単位(質量由来)'!$J$22)*(⑤ｴﾈﾙｷﾞｰ由来CO2排出原単位!$C$5+⑤ｴﾈﾙｷﾞｰ由来CO2排出原単位!$C$6)) -> 0 | E76: =IF(E$56="-","-",(E$13*'①原単位(質量由来)'!$J$9+E$14*'①原単位(質量由来)'!$J$22)*(⑤ｴﾈﾙｷﾞｰ由来CO2排出原単位!$C$5+⑤ｴﾈﾙｷﾞｰ由来CO2排出原単位!$C$6)) -> 0 | F76: =IF(F$56="-","-",(F$13*'①原単位(質量由来)'!$J$9+F$14*'①原単位(質量由来)'!$J$22)*(⑤ｴﾈﾙｷﾞｰ由来CO2排出原単位!$C$5+⑤ｴﾈﾙｷﾞｰ由来CO2排出原単位!$C$6)) -> 0
B77: EV | C77: - | D77: - | E77: - | F77: -
B78: 燃料電池車 | C78: - | D78: - | E78: - | F78: -
A79: ②電力由来CO2排出量(g-CO2) ⇒原単位を変更する場合は、クリック | B79: ｶﾞｿﾘﾝｴﾝｼﾞﾝ車(自然吸気) | C79: =IF(C$49="-","-",C$8/12*C$16*C$18*走行条件!$C$20*'②原単位(電力由来)'!$H$2*(⑤ｴﾈﾙｷﾞｰ由来CO2排出原単位!$C$3+⑤ｴﾈﾙｷﾞｰ由来CO2排出原単位!$C$4)) -> 0 | D79: =IF(D$49="-","-",D$8/12*D$16*D$18*走行条件!$C$20*'②原単位(電力由来)'!$H$2*(⑤ｴﾈﾙｷﾞｰ由来CO2排出原単位!$C$3+⑤ｴﾈﾙｷﾞｰ由来CO2排出原単位!$C$4)) -> 0 | E79: =IF(E$49="-","-",E$8/12*E$16*E$18*走行条件!$C$20*'②原単位(電力由来)'!$H$2*(⑤ｴﾈﾙｷﾞｰ由来CO2排出原単位!$C$3+⑤ｴﾈﾙｷﾞｰ由来CO2排出原単位!$C$4)) -> 0 | F79: =IF(F$49="-","-",F$8/12*F$16*F$18*走行条件!$C$20*'②原単位(電力由来)'!$H$2*(⑤ｴﾈﾙｷﾞｰ由来CO2排出原単位!$C$3+⑤ｴﾈﾙｷﾞｰ由来CO2排出原単位!$C$4)) -> 0
B80: ｶﾞｿﾘﾝｴﾝｼﾞﾝ車(過給器付) | C80: =IF(C$50="-","-",C$8/12*C$16*C$18*走行条件!$C$20*'②原単位(電力由来)'!$H$2*(⑤ｴﾈﾙｷﾞｰ由来CO2排出原単位!$C$3+⑤ｴﾈﾙｷﾞｰ由来CO2排出原単位!$C$4)) -> 0 | D80: =IF(D$50="-","-",D$8/12*D$16*D$18*走行条件!$C$20*'②原単位(電力由来)'!$H$2*(⑤ｴﾈﾙｷﾞｰ由来CO2排出原単位!$C$3+⑤ｴﾈﾙｷﾞｰ由来CO2排出原単位!$C$4)) -> 0 | E80: =IF(E$50="-","-",E$8/12*E$16*E$18*走行条件!$C$20*'②原単位(電力由来)'!$H$2*(⑤ｴﾈﾙｷﾞｰ由来CO2排出原単位!$C$3+⑤ｴﾈﾙｷﾞｰ由来CO2排出原単位!$C$4)) -> 0 | F80: =IF(F$50="-","-",F$8/12*F$16*F$18*走行条件!$C$20*'②原単位(電力由来)'!$H$2*(⑤ｴﾈﾙｷﾞｰ由来CO2排出原単位!$C$3+⑤ｴﾈﾙｷﾞｰ由来CO2排出原単位!$C$4)) -> 0
B81: ｶﾞｿﾘﾝHEV車(自然吸気) | C81: =IF(C$51="-","-",C$8/12*C$16*C$18*走行条件!$C$20*'②原単位(電力由来)'!$H$2*(⑤ｴﾈﾙｷﾞｰ由来CO2排出原単位!$C$3+⑤ｴﾈﾙｷﾞｰ由来CO2排出原単位!$C$4)) -> 0 | D81: =IF(D$51="-","-",D$8/12*D$16*D$18*走行条件!$C$20*'②原単位(電力由来)'!$H$2*(⑤ｴﾈﾙｷﾞｰ由来CO2排出原単位!$C$3+⑤ｴﾈﾙｷﾞｰ由来CO2排出原単位!$C$4)) -> 0 | E81: =IF(E$51="-","-",E$8/12*E$16*E$18*走行条件!$C$20*'②原単位(電力由来)'!$H$2*(⑤ｴﾈﾙｷﾞｰ由来CO2排出原単位!$C$3+⑤ｴﾈﾙｷﾞｰ由来CO2排出原単位!$C$4)) -> 0 | F81: =IF(F$51="-","-",F$8/12*F$16*F$18*走行条件!$C$20*'②原単位(電力由来)'!$H$2*(⑤ｴﾈﾙｷﾞｰ由来CO2排出原単位!$C$3+⑤ｴﾈﾙｷﾞｰ由来CO2排出原単位!$C$4)) -> 0
B82: ｶﾞｿﾘﾝHEV車(過給器付) | C82: =IF(C$52="-","-",C$8/12*C$16*C$18*走行条件!$C$20*'②原単位(電力由来)'!$H$2*(⑤ｴﾈﾙｷﾞｰ由来CO2排出原単位!$C$3+⑤ｴﾈﾙｷﾞｰ由来CO2排出原単位!$C$4)) -> 0 | D82: =IF(D$52="-","-",D$8/12*D$16*D$18*走行条件!$C$20*'②原単位(電力由来)'!$H$2*(⑤ｴﾈﾙｷﾞｰ由来CO2排出原単位!$C$3+⑤ｴﾈﾙｷﾞｰ由来CO2排出原単位!$C$4)) -> 0 | E82: =IF(E$52="-","-",E$8/12*E$16*E$18*走行条件!$C$20*'②原単位(電力由来)'!$H$2*(⑤ｴﾈﾙｷﾞｰ由来CO2排出原単位!$C$3+⑤ｴﾈﾙｷﾞｰ由来CO2排出原単位!$C$4)) -> 0 | F82: =IF(F$52="-","-",F$8/12*F$16*F$18*走行条件!$C$20*'②原単位(電力由来)'!$H$2*(⑤ｴﾈﾙｷﾞｰ由来CO2排出原単位!$C$3+⑤ｴﾈﾙｷﾞｰ由来CO2排出原単位!$C$4)) -> 0
B83: ﾃﾞｨｰｾﾞﾙｴﾝｼﾞﾝ車(自然吸気) | C83: =IF(C$53="-","-",C$8/12*C$16*C$18*走行条件!$C$20*'②原単位(電力由来)'!$H$3*(⑤ｴﾈﾙｷﾞｰ由来CO2排出原単位!$C$5+⑤ｴﾈﾙｷﾞｰ由来CO2排出原単位!$C$6)) -> 0 | D83: =IF(D$53="-","-",D$8/12*D$16*D$18*走行条件!$C$20*'②原単位(電力由来)'!$H$3*(⑤ｴﾈﾙｷﾞｰ由来CO2排出原単位!$C$5+⑤ｴﾈﾙｷﾞｰ由来CO2排出原単位!$C$6)) -> 0 | E83: =IF(E$53="-","-",E$8/12*E$16*E$18*走行条件!$C$20*'②原単位(電力由来)'!$H$3*(⑤ｴﾈﾙｷﾞｰ由来CO2排出原単位!$C$5+⑤ｴﾈﾙｷﾞｰ由来CO2排出原単位!$C$6)) -> 0 | F83: =IF(F$53="-","-",F$8/12*F$16*F$18*走行条件!$C$20*'②原単位(電力由来)'!$H$3*(⑤ｴﾈﾙｷﾞｰ由来CO2排出原単位!$C$5+⑤ｴﾈﾙｷﾞｰ由来CO2排出原単位!$C$6)) -> 0
B84: ﾃﾞｨｰｾﾞﾙｴﾝｼﾞﾝ車(過給器付) | C84: =IF(C$54="-","-",C$8/12*C$16*C$18*走行条件!$C$20*'②原単位(電力由来)'!$H$3*(⑤ｴﾈﾙｷﾞｰ由来CO2排出原単位!$C$5+⑤ｴﾈﾙｷﾞｰ由来CO2排出原単位!$C$6)) -> 0 | D84: =IF(D$54="-","-",D$8/12*D$16*D$18*走行条件!$C$20*'②原単位(電力由来)'!$H$3*(⑤ｴﾈﾙｷﾞｰ由来CO2排出原単位!$C$5+⑤ｴﾈﾙｷﾞｰ由来CO2排出原単位!$C$6)) -> 0 | E84: =IF(E$54="-","-",E$8/12*E$16*E$18*走行条件!$C$20*'②原単位(電力由来)'!$H$3*(⑤ｴﾈﾙｷﾞｰ由来CO2排出原単位!$C$5+⑤ｴﾈﾙｷﾞｰ由来CO2排出原単位!$C$6)) -> 0 | F84: =IF(F$54="-","-",F$8/12*F$16*F$18*走行条件!$C$20*'②原単位(電力由来)'!$H$3*(⑤ｴﾈﾙｷﾞｰ由来CO2排出原単位!$C$5+⑤ｴﾈﾙｷﾞｰ由来CO2排出原単位!$C$6)) -> 0
B85: ﾃﾞｨｰｾﾞﾙHEV車(自然吸気) | C85: =IF(C$55="-","-",C$8/12*C$16*C$18*走行条件!$C$20*'②原単位(電力由来)'!$H$3*(⑤ｴﾈﾙｷﾞｰ由来CO2排出原単位!$C$5+⑤ｴﾈﾙｷﾞｰ由来CO2排出原単位!$C$6)) -> 0 | D85: =IF(D$55="-","-",D$8/12*D$16*D$18*走行条件!$C$20*'②原単位(電力由来)'!$H$3*(⑤ｴﾈﾙｷﾞｰ由来CO2排出原単位!$C$5+⑤ｴﾈﾙｷﾞｰ由来CO2排出原単位!$C$6)) -> 0 | E85: =IF(E$55="-","-",E$8/12*E$16*E$18*走行条件!$C$20*'②原単位(電力由来)'!$H$3*(⑤ｴﾈﾙｷﾞｰ由来CO2排出原単位!$C$5+⑤ｴﾈﾙｷﾞｰ由来CO2排出原単位!$C$6)) -> 0 | F85: =IF(F$55="-","-",F$8/12*F$16*F$18*走行条件!$C$20*'②原単位(電力由来)'!$H$3*(⑤ｴﾈﾙｷﾞｰ由来CO2排出原単位!$C$5+⑤ｴﾈﾙｷﾞｰ由来CO2排出原単位!$C$6)) -> 0
B86: ﾃﾞｨｰｾﾞﾙHEV車(過給器付) | C86: =IF(C$56="-","-",C$8/12*C$16*C$18*走行条件!$C$20*'②原単位(電力由来)'!$H$3*(⑤ｴﾈﾙｷﾞｰ由来CO2排出原単位!$C$5+⑤ｴﾈﾙｷﾞｰ由来CO2排出原単位!$C$6)) -> 0 | D86: =IF(D$56="-","-",D$8/12*D$16*D$18*走行条件!$C$20*'②原単位(電力由来)'!$H$3*(⑤ｴﾈﾙｷﾞｰ由来CO2排出原単位!$C$5+⑤ｴﾈﾙｷﾞｰ由来CO2排出原単位!$C$6)) -> 0 | E86: =IF(E$56="-","-",E$8/12*E$16*E$18*走行条件!$C$20*'②原単位(電力由来)'!$H$3*(⑤ｴﾈﾙｷﾞｰ由来CO2排出原単位!$C$5+⑤ｴﾈﾙｷﾞｰ由来CO2排出原単位!$C$6)) -> 0 | F86: =IF(F$56="-","-",F$8/12*F$16*F$18*走行条件!$C$20*'②原単位(電力由来)'!$H$3*(⑤ｴﾈﾙｷﾞｰ由来CO2排出原単位!$C$5+⑤ｴﾈﾙｷﾞｰ由来CO2排出原単位!$C$6)) -> 0
B87: EV | C87: - | D87: - | E87: - | F87: -
B88: 燃料電池車 | C88: - | D88: - | E88: - | F88: -
A89: ③動力由来CO2排出量(g-CO2) ⇒原単位を変更する場合は、クリック | B89: ｶﾞｿﾘﾝｴﾝｼﾞﾝ車(自然吸気) | C89: =IF(C$49="-","-",C$17*C$18*走行条件!$C$20*'③原単位(動力由来)'!$G$2*(⑤ｴﾈﾙｷﾞｰ由来CO2排出原単位!$C$3+⑤ｴﾈﾙｷﾞｰ由来CO2排出原単位!$C$4)) -> 0 | D89: =IF(D$49="-","-",D$17*D$18*走行条件!$C$20*'③原単位(動力由来)'!$G$2*(⑤ｴﾈﾙｷﾞｰ由来CO2排出原単位!$C$3+⑤ｴﾈﾙｷﾞｰ由来CO2排出原単位!$C$4)) -> 0 | E89: =IF(E$49="-","-",E$17*E$18*走行条件!$C$20*'③原単位(動力由来)'!$G$2*(⑤ｴﾈﾙｷﾞｰ由来CO2排出原単位!$C$3+⑤ｴﾈﾙｷﾞｰ由来CO2排出原単位!$C$4)) -> 0 | F89: =IF(F$49="-","-",F$17*F$18*走行条件!$C$20*'③原単位(動力由来)'!$G$2*(⑤ｴﾈﾙｷﾞｰ由来CO2排出原単位!$C$3+⑤ｴﾈﾙｷﾞｰ由来CO2排出原単位!$C$4)) -> 0
B90: ｶﾞｿﾘﾝｴﾝｼﾞﾝ車(過給器付) | C90: =IF(C$50="-","-",C$17*C$18*走行条件!$C$20*'③原単位(動力由来)'!$G$2*(⑤ｴﾈﾙｷﾞｰ由来CO2排出原単位!$C$3+⑤ｴﾈﾙｷﾞｰ由来CO2排出原単位!$C$4)) -> 0 | D90: =IF(D$50="-","-",D$17*D$18*走行条件!$C$20*'③原単位(動力由来)'!$G$2*(⑤ｴﾈﾙｷﾞｰ由来CO2排出原単位!$C$3+⑤ｴﾈﾙｷﾞｰ由来CO2排出原単位!$C$4)) -> 0 | E90: =IF(E$50="-","-",E$17*E$18*走行条件!$C$20*'③原単位(動力由来)'!$G$2*(⑤ｴﾈﾙｷﾞｰ由来CO2排出原単位!$C$3+⑤ｴﾈﾙｷﾞｰ由来CO2排出原単位!$C$4)) -> 0 | F90: =IF(F$50="-","-",F$17*F$18*走行条件!$C$20*'③原単位(動力由来)'!$G$2*(⑤ｴﾈﾙｷﾞｰ由来CO2排出原単位!$C$3+⑤ｴﾈﾙｷﾞｰ由来CO2排出原単位!$C$4)) -> 0
B91: ｶﾞｿﾘﾝHEV車(自然吸気) | C91: =IF(C$51="-","-",C$17*C$18*走行条件!$C$20*'③原単位(動力由来)'!$G$2*(⑤ｴﾈﾙｷﾞｰ由来CO2排出原単位!$C$3+⑤ｴﾈﾙｷﾞｰ由来CO2排出原単位!$C$4)) -> 0 | D91: =IF(D$51="-","-",D$17*D$18*走行条件!$C$20*'③原単位(動力由来)'!$G$2*(⑤ｴﾈﾙｷﾞｰ由来CO2排出原単位!$C$3+⑤ｴﾈﾙｷﾞｰ由来CO2排出原単位!$C$4)) -> 0 | E91: =IF(E$51="-","-",E$17*E$18*走行条件!$C$20*'③原単位(動力由来)'!$G$2*(⑤ｴﾈﾙｷﾞｰ由来CO2排出原単位!$C$3+⑤ｴﾈﾙｷﾞｰ由来CO2排出原単位!$C$4)) -> 0 | F91: =IF(F$51="-","-",F$17*F$18*走行条件!$C$20*'③原単位(動力由来)'!$G$2*(⑤ｴﾈﾙｷﾞｰ由来CO2排出原単位!$C$3+⑤ｴﾈﾙｷﾞｰ由来CO2排出原単位!$C$4)) -> 0
B92: ｶﾞｿﾘﾝHEV車(過給器付) | C92: =IF(C$52="-","-",C$17*C$18*走行条件!$C$20*'③原単位(動力由来)'!$G$2*(⑤ｴﾈﾙｷﾞｰ由来CO2排出原単位!$C$3+⑤ｴﾈﾙｷﾞｰ由来CO2排出原単位!$C$4)) -> 0 | D92: =IF(D$52="-","-",D$17*D$18*走行条件!$C$20*'③原単位(動力由来)'!$G$2*(⑤ｴﾈﾙｷﾞｰ由来CO2排出原単位!$C$3+⑤ｴﾈﾙｷﾞｰ由来CO2排出原単位!$C$4)) -> 0 | E92: =IF(E$52="-","-",E$17*E$18*走行条件!$C$20*'③原単位(動力由来)'!$G$2*(⑤ｴﾈﾙｷﾞｰ由来CO2排出原単位!$C$3+⑤ｴﾈﾙｷﾞｰ由来CO2排出原単位!$C$4)) -> 0 | F92: =IF(F$52="-","-",F$17*F$18*走行条件!$C$20*'③原単位(動力由来)'!$G$2*(⑤ｴﾈﾙｷﾞｰ由来CO2排出原単位!$C$3+⑤ｴﾈﾙｷﾞｰ由来CO2排出原単位!$C$4)) -> 0
B93: ﾃﾞｨｰｾﾞﾙｴﾝｼﾞﾝ車(自然吸気) | C93: =IF(C$53="-","-",C$17*C$18*走行条件!$C$20*'③原単位(動力由来)'!$G$3*(⑤ｴﾈﾙｷﾞｰ由来CO2排出原単位!$C$5+⑤ｴﾈﾙｷﾞｰ由来CO2排出原単位!$C$6)) -> 0 | D93: =IF(D$53="-","-",D$17*D$18*走行条件!$C$20*'③原単位(動力由来)'!$G$3*(⑤ｴﾈﾙｷﾞｰ由来CO2排出原単位!$C$5+⑤ｴﾈﾙｷﾞｰ由来CO2排出原単位!$C$6)) -> 0 | E93: =IF(E$53="-","-",E$17*E$18*走行条件!$C$20*'③原単位(動力由来)'!$G$3*(⑤ｴﾈﾙｷﾞｰ由来CO2排出原単位!$C$5+⑤ｴﾈﾙｷﾞｰ由来CO2排出原単位!$C$6)) -> 0 | F93: =IF(F$53="-","-",F$17*F$18*走行条件!$C$20*'③原単位(動力由来)'!$G$3*(⑤ｴﾈﾙｷﾞｰ由来CO2排出原単位!$C$5+⑤ｴﾈﾙｷﾞｰ由来CO2排出原単位!$C$6)) -> 0
B94: ﾃﾞｨｰｾﾞﾙｴﾝｼﾞﾝ車(過給器付) | C94: =IF(C$54="-","-",C$17*C$18*走行条件!$C$20*'③原単位(動力由来)'!$G$3*(⑤ｴﾈﾙｷﾞｰ由来CO2排出原単位!$C$5+⑤ｴﾈﾙｷﾞｰ由来CO2排出原単位!$C$6)) -> 0 | D94: =IF(D$54="-","-",D$17*D$18*走行条件!$C$20*'③原単位(動力由来)'!$G$3*(⑤ｴﾈﾙｷﾞｰ由来CO2排出原単位!$C$5+⑤ｴﾈﾙｷﾞｰ由来CO2排出原単位!$C$6)) -> 0 | E94: =IF(E$54="-","-",E$17*E$18*走行条件!$C$20*'③原単位(動力由来)'!$G$3*(⑤ｴﾈﾙｷﾞｰ由来CO2排出原単位!$C$5+⑤ｴﾈﾙｷﾞｰ由来CO2排出原単位!$C$6)) -> 0 | F94: =IF(F$54="-","-",F$17*F$18*走行条件!$C$20*'③原単位(動力由来)'!$G$3*(⑤ｴﾈﾙｷﾞｰ由来CO2排出原単位!$C$5+⑤ｴﾈﾙｷﾞｰ由来CO2排出原単位!$C$6)) -> 0
B95: ﾃﾞｨｰｾﾞﾙHEV車(自然吸気) | C95: =IF(C$55="-","-",C$17*C$18*走行条件!$C$20*'③原単位(動力由来)'!$G$3*(⑤ｴﾈﾙｷﾞｰ由来CO2排出原単位!$C$5+⑤ｴﾈﾙｷﾞｰ由来CO2排出原単位!$C$6)) -> 0 | D95: =IF(D$55="-","-",D$17*D$18*走行条件!$C$20*'③原単位(動力由来)'!$G$3*(⑤ｴﾈﾙｷﾞｰ由来CO2排出原単位!$C$5+⑤ｴﾈﾙｷﾞｰ由来CO2排出原単位!$C$6)) -> 0 | E95: =IF(E$55="-","-",E$17*E$18*走行条件!$C$20*'③原単位(動力由来)'!$G$3*(⑤ｴﾈﾙｷﾞｰ由来CO2排出原単位!$C$5+⑤ｴﾈﾙｷﾞｰ由来CO2排出原単位!$C$6)) -> 0 | F95: =IF(F$55="-","-",F$17*F$18*走行条件!$C$20*'③原単位(動力由来)'!$G$3*(⑤ｴﾈﾙｷﾞｰ由来CO2排出原単位!$C$5+⑤ｴﾈﾙｷﾞｰ由来CO2排出原単位!$C$6)) -> 0
B96: ﾃﾞｨｰｾﾞﾙHEV車(過給器付) | C96: =IF(C$56="-","-",C$17*C$18*走行条件!$C$20*'③原単位(動力由来)'!$G$3*(⑤ｴﾈﾙｷﾞｰ由来CO2排出原単位!$C$5+⑤ｴﾈﾙｷﾞｰ由来CO2排出原単位!$C$6)) -> 0 | D96: =IF(D$56="-","-",D$17*D$18*走行条件!$C$20*'③原単位(動力由来)'!$G$3*(⑤ｴﾈﾙｷﾞｰ由来CO2排出原単位!$C$5+⑤ｴﾈﾙｷﾞｰ由来CO2排出原単位!$C$6)) -> 0 | E96: =IF(E$56="-","-",E$17*E$18*走行条件!$C$20*'③原単位(動力由来)'!$G$3*(⑤ｴﾈﾙｷﾞｰ由来CO2排出原単位!$C$5+⑤ｴﾈﾙｷﾞｰ由来CO2排出原単位!$C$6)) -> 0 | F96: =IF(F$56="-","-",F$17*F$18*走行条件!$C$20*'③原単位(動力由来)'!$G$3*(⑤ｴﾈﾙｷﾞｰ由来CO2排出原単位!$C$5+⑤ｴﾈﾙｷﾞｰ由来CO2排出原単位!$C$6)) -> 0
B97: EV | C97: - | D97: - | E97: - | F97: -
B98: 燃料電池車 | C98: - | D98: - | E98: - | F98: -
A99: ④エンジン系CO2排出量(g-CO2) ⇒原単位を変更する場合は、クリック | B99: ｶﾞｿﾘﾝｴﾝｼﾞﾝ車(自然吸気) | C99: =IF(C$49="-","-",C$49*(⑤ｴﾈﾙｷﾞｰ由来CO2排出原単位!$C$3+⑤ｴﾈﾙｷﾞｰ由来CO2排出原単位!$C$4)) -> 0 | D99: =IF(D$49="-","-",D$49*(⑤ｴﾈﾙｷﾞｰ由来CO2排出原単位!$C$3+⑤ｴﾈﾙｷﾞｰ由来CO2排出原単位!$C$4)) -> 0 | E99: =IF(E$49="-","-",E$49*(⑤ｴﾈﾙｷﾞｰ由来CO2排出原単位!$C$3+⑤ｴﾈﾙｷﾞｰ由来CO2排出原単位!$C$4)) -> 0 | F99: =IF(F$49="-","-",F$49*(⑤ｴﾈﾙｷﾞｰ由来CO2排出原単位!$C$3+⑤ｴﾈﾙｷﾞｰ由来CO2排出原単位!$C$4)) -> 0
B100: ｶﾞｿﾘﾝｴﾝｼﾞﾝ車(過給器付) | C100: =IF(C$50="-","-",C$50*(⑤ｴﾈﾙｷﾞｰ由来CO2排出原単位!$C$3+⑤ｴﾈﾙｷﾞｰ由来CO2排出原単位!$C$4)) -> 0 | D100: =IF(D$50="-","-",D$50*(⑤ｴﾈﾙｷﾞｰ由来CO2排出原単位!$C$3+⑤ｴﾈﾙｷﾞｰ由来CO2排出原単位!$C$4)) -> 0 | E100: =IF(E$50="-","-",E$50*(⑤ｴﾈﾙｷﾞｰ由来CO2排出原単位!$C$3+⑤ｴﾈﾙｷﾞｰ由来CO2排出原単位!$C$4)) -> 0 | F100: =IF(F$50="-","-",F$50*(⑤ｴﾈﾙｷﾞｰ由来CO2排出原単位!$C$3+⑤ｴﾈﾙｷﾞｰ由来CO2排出原単位!$C$4)) -> 0
B101: ｶﾞｿﾘﾝHEV車(自然吸気) | C101: =IF(C$51="-","-",C$51*(⑤ｴﾈﾙｷﾞｰ由来CO2排出原単位!$C$3+⑤ｴﾈﾙｷﾞｰ由来CO2排出原単位!$C$4)) -> 0 | D101: =IF(D$51="-","-",D$51*(⑤ｴﾈﾙｷﾞｰ由来CO2排出原単位!$C$3+⑤ｴﾈﾙｷﾞｰ由来CO2排出原単位!$C$4)) -> 0 | E101: =IF(E$51="-","-",E$51*(⑤ｴﾈﾙｷﾞｰ由来CO2排出原単位!$C$3+⑤ｴﾈﾙｷﾞｰ由来CO2排出原単位!$C$4)) -> 0 | F101: =IF(F$51="-","-",F$51*(⑤ｴﾈﾙｷﾞｰ由来CO2排出原単位!$C$3+⑤ｴﾈﾙｷﾞｰ由来CO2排出原単位!$C$4)) -> 0
B102: ｶﾞｿﾘﾝHEV車(過給器付) | C102: =IF(C$52="-","-",C$52*(⑤ｴﾈﾙｷﾞｰ由来CO2排出原単位!$C$3+⑤ｴﾈﾙｷﾞｰ由来CO2排出原単位!$C$4)) -> 0 | D102: =IF(D$52="-","-",D$52*(⑤ｴﾈﾙｷﾞｰ由来CO2排出原単位!$C$3+⑤ｴﾈﾙｷﾞｰ由来CO2排出原単位!$C$4)) -> 0 | E102: =IF(E$52="-","-",E$52*(⑤ｴﾈﾙｷﾞｰ由来CO2排出原単位!$C$3+⑤ｴﾈﾙｷﾞｰ由来CO2排出原単位!$C$4)) -> 0 | F102: =IF(F$52="-","-",F$52*(⑤ｴﾈﾙｷﾞｰ由来CO2排出原単位!$C$3+⑤ｴﾈﾙｷﾞｰ由来CO2排出原単位!$C$4)) -> 0
B103: ﾃﾞｨｰｾﾞﾙｴﾝｼﾞﾝ車(自然吸気) | C103: =IF(C$53="-","-",C$53*(⑤ｴﾈﾙｷﾞｰ由来CO2排出原単位!$C$5+⑤ｴﾈﾙｷﾞｰ由来CO2排出原単位!$C$6)) -> 0 | D103: =IF(D$53="-","-",D$53*(⑤ｴﾈﾙｷﾞｰ由来CO2排出原単位!$C$5+⑤ｴﾈﾙｷﾞｰ由来CO2排出原単位!$C$6)) -> 0 | E103: =IF(E$53="-","-",E$53*(⑤ｴﾈﾙｷﾞｰ由来CO2排出原単位!$C$5+⑤ｴﾈﾙｷﾞｰ由来CO2排出原単位!$C$6)) -> 0 | F103: =IF(F$53="-","-",F$53*(⑤ｴﾈﾙｷﾞｰ由来CO2排出原単位!$C$5+⑤ｴﾈﾙｷﾞｰ由来CO2排出原単位!$C$6)) -> 0
B104: ﾃﾞｨｰｾﾞﾙｴﾝｼﾞﾝ車(過給器付) | C104: =IF(C$54="-","-",C$54*(⑤ｴﾈﾙｷﾞｰ由来CO2排出原単位!$C$5+⑤ｴﾈﾙｷﾞｰ由来CO2排出原単位!$C$6)) -> 0 | D104: =IF(D$54="-","-",D$54*(⑤ｴﾈﾙｷﾞｰ由来CO2排出原単位!$C$5+⑤ｴﾈﾙｷﾞｰ由来CO2排出原単位!$C$6)) -> 0 | E104: =IF(E$54="-","-",E$54*(⑤ｴﾈﾙｷﾞｰ由来CO2排出原単位!$C$5+⑤ｴﾈﾙｷﾞｰ由来CO2排出原単位!$C$6)) -> 0 | F104: =IF(F$54="-","-",F$54*(⑤ｴﾈﾙｷﾞｰ由来CO2排出原単位!$C$5+⑤ｴﾈﾙｷﾞｰ由来CO2排出原単位!$C$6)) -> 0
B105: ﾃﾞｨｰｾﾞﾙHEV車(自然吸気) | C105: =IF(C$55="-","-",C$55*(⑤ｴﾈﾙｷﾞｰ由来CO2排出原単位!$C$5+⑤ｴﾈﾙｷﾞｰ由来CO2排出原単位!$C$6)) -> 0 | D105: =IF(D$55="-","-",D$55*(⑤ｴﾈﾙｷﾞｰ由来CO2排出原単位!$C$5+⑤ｴﾈﾙｷﾞｰ由来CO2排出原単位!$C$6)) -> 0 | E105: =IF(E$55="-","-",E$55*(⑤ｴﾈﾙｷﾞｰ由来CO2排出原単位!$C$5+⑤ｴﾈﾙｷﾞｰ由来CO2排出原単位!$C$6)) -> 0 | F105: =IF(F$55="-","-",F$55*(⑤ｴﾈﾙｷﾞｰ由来CO2排出原単位!$C$5+⑤ｴﾈﾙｷﾞｰ由来CO2排出原単位!$C$6)) -> 0
B106: ﾃﾞｨｰｾﾞﾙHEV車(過給器付) | C106: =IF(C$56="-","-",C$56*(⑤ｴﾈﾙｷﾞｰ由来CO2排出原単位!$C$5+⑤ｴﾈﾙｷﾞｰ由来CO2排出原単位!$C$6)) -> 0 | D106: =IF(D$56="-","-",D$56*(⑤ｴﾈﾙｷﾞｰ由来CO2排出原単位!$C$5+⑤ｴﾈﾙｷﾞｰ由来CO2排出原単位!$C$6)) -> 0 | E106: =IF(E$56="-","-",E$56*(⑤ｴﾈﾙｷﾞｰ由来CO2排出原単位!$C$5+⑤ｴﾈﾙｷﾞｰ由来CO2排出原単位!$C$6)) -> 0 | F106: =IF(F$56="-","-",F$56*(⑤ｴﾈﾙｷﾞｰ由来CO2排出原単位!$C$5+⑤ｴﾈﾙｷﾞｰ由来CO2排出原単位!$C$6)) -> 0
B107: EV | C107: - | D107: - | E107: - | F107: -
B108: 燃料電池車 | C108: - | D108: - | E108: - | F108: -
A109: 算出結果 CO2 排出量 (g-CO2) | B109: ｶﾞｿﾘﾝｴﾝｼﾞﾝ車 (自然吸気) | C109: =IF(C99="-","-",SUM(C69,C79,C89,C99)) -> 0 | D109: =IF(D99="-","-",SUM(D69,D79,D89,D99)) -> 0 | E109: =IF(E99="-","-",SUM(E69,E79,E89,E99)) -> 0 | F109: 0
B110: ｶﾞｿﾘﾝｴﾝｼﾞﾝ車 (過給器付) | C110: =IF(C100="-","-",SUM(C70,C80,C90,C100)) -> 0 | D110: =IF(D100="-","-",SUM(D70,D80,D90,D100)) -> 0 | E110: 0 | F110: 0
B111: ｶﾞｿﾘﾝHEV車 (自然吸気) | C111: =IF(C101="-","-",SUM(C71,C81,C91,C101)) -> 0 | D111: 0 | E111: 0 | F111: 0
B112: ｶﾞｿﾘﾝHEV車 (過給器付) | C112: =IF(C102="-","-",SUM(C72,C82,C92,C102)) -> 0 | D112: 0 | E112: 0 | F112: 0
B113: ﾃﾞｨｰｾﾞﾙｴﾝｼﾞﾝ車 (自然吸気) | C113: =IF(C103="-","-",SUM(C73,C83,C93,C103)) -> 0 | D113: 0 | E113: 0 | F113: 0
B114: ﾃﾞｨｰｾﾞﾙｴﾝｼﾞﾝ車 (過給器付) | C114: =IF(C104="-","-",SUM(C74,C84,C94,C104)) -> 0 | D114: 0 | E114: 0 | F114: 0
B115: ﾃﾞｨｰｾﾞﾙHEV車 (自然吸気) | C115: =IF(C105="-","-",SUM(C75,C85,C95,C105)) -> 0 | D115: 0 | E115: 0 | F115: 0
B116: ﾃﾞｨｰｾﾞﾙHEV車 (過給器付) | C116: =IF(C106="-","-",SUM(C76,C86,C96,C106)) -> 0 | D116: 0 | E116: 0 | F116: 0
A120: ◆考え方詳細 （入力欄）
A122: 電流由来 | B122: 電流値の考え方
B126: 電流値算出式
B130: 使用時間の考え方
B134: 使用時間算出式
A138: 動力由来 | B138: 動力値の考え方
B142: 動力値算出式
B146: 使用時間の考え方
B150: 使用時間算出式
A155: 備考

Sheet グラフレポート (hidden)
A3: ◆LCI対象製品の基本情報 | J3: 製品名 | K3: 配分内訳 | L3: エンジン種類 | M3: ｴﾈﾙｷﾞｰ消費量 | P3: 合計 / ｴﾈﾙｷﾞｰ消費量 | Q3: 列ラベル | W3: 合計 / ｴﾈﾙｷﾞｰ消費量 | X3: 列ラベル
B4: JAPIA製品群 | J4: =$D$10 -> 0 | K4: ①質量由来 | L4: ｶﾞｿﾘﾝｴﾝｼﾞﾝ車(自然吸気) | P4: 行ラベル | Q4: ①質量由来 | R4: ②電力由来 | S4: ③動力由来 | T4: ④エンジン系 | U4: 総計 | W4: 行ラベル | X4: ①質量由来 | Y4: ②電力由来 | Z4: ③動力由来 | AA4: ④エンジン系 | AB4: 総計
B5: システム境界 (評価対象の製品の範囲) | J5: =$D$10 -> 0 | K5: ①質量由来 | L5: ｶﾞｿﾘﾝｴﾝｼﾞﾝ車(過給器付) | P5: サーボユニット JAPIA標準製品 | W5: サーボユニット JAPIA標準製品
B6: 機能単位 (製品性能を表す特性値当りの単位) | J6: 0 | K6: ①質量由来 | L6: ｶﾞｿﾘﾝHEV車(自然吸気) | P6: ｶﾞｿﾘﾝｴﾝｼﾞﾝ車(自然吸気) | W6: EV
B7: 評価個数 | J7: 0 | K7: ①質量由来 | L7: ｶﾞｿﾘﾝHEV車(過給器付) | P7: ｶﾞｿﾘﾝｴﾝｼﾞﾝ車(過給器付) | W7: サーボユニット1
B8: 動作電圧(V) | C8: 12 | D8: 12 | E8: 12 | F8: 12 | J8: 0 | K8: ①質量由来 | L8: ﾃﾞｨｰｾﾞﾙｴﾝｼﾞﾝ車(自然吸気) | P8: ｶﾞｿﾘﾝHEV車(自然吸気) | W8: EV
B9: 製品/部品品番 | J9: 0 | K9: ①質量由来 | L9: ﾃﾞｨｰｾﾞﾙｴﾝｼﾞﾝ車(過給器付) | P9: ｶﾞｿﾘﾝHEV車(過給器付) | W9: サーボユニット2
B10: 製品/部品名 | J10: 0 | K10: ①質量由来 | L10: ﾃﾞｨｰｾﾞﾙHEV車(自然吸気) | P10: ﾃﾞｨｰｾﾞﾙｴﾝｼﾞﾝ車(自然吸気) | W10: EV
J11: 0 | K11: ①質量由来 | L11: ﾃﾞｨｰｾﾞﾙHEV車(過給器付) | P11: ﾃﾞｨｰｾﾞﾙｴﾝｼﾞﾝ車(過給器付) | W11: サーボユニット3
A12: ◆使用段階負荷量 | J12: 0 | K12: ①質量由来 | L12: EV | P12: ﾃﾞｨｰｾﾞﾙHEV車(自然吸気) | W12: EV
A13: 算出用 入力データ | B13: 質量（kg） | J13: 0 | K13: ①質量由来 | L13: 燃料電池車 | P13: ﾃﾞｨｰｾﾞﾙHEV車(過給器付) | W13: 総計
B14: 慣性モーメント(kg･m2) | J14: 0 | K14: ②電力由来 | L14: ｶﾞｿﾘﾝｴﾝｼﾞﾝ車(自然吸気) | P14: サーボユニット1
B15: 製品前面投影面積(m2) | J15: 0 | K15: ②電力由来 | L15: ｶﾞｿﾘﾝｴﾝｼﾞﾝ車(過給器付) | P15: ｶﾞｿﾘﾝｴﾝｼﾞﾝ車(自然吸気)
B16: 電流（A） | J16: 0 | K16: ②電力由来 | L16: ｶﾞｿﾘﾝHEV車(自然吸気) | P16: ｶﾞｿﾘﾝｴﾝｼﾞﾝ車(過給器付)
B17: 電力/動力（W） 平均ｴﾝｼﾞﾝ回転数(s-1) | J17: 0 | K17: ②電力由来 | L17: ｶﾞｿﾘﾝHEV車(過給器付) | P17: ｶﾞｿﾘﾝHEV車(自然吸気)
B18: 生涯動作時間（s） | J18: 0 | K18: ②電力由来 | L18: ﾃﾞｨｰｾﾞﾙｴﾝｼﾞﾝ車(自然吸気) | P18: ｶﾞｿﾘﾝHEV車(過給器付) | W18: 合計 / ｴﾈﾙｷﾞｰ消費量 | X18: 列ラベル
A19: 計算結果 エネルギー消費量 | B19: ｶﾞｿﾘﾝｴﾝｼﾞﾝ車 (自然吸気) (L) | J19: 0 | K19: ②電力由来 | L19: ﾃﾞｨｰｾﾞﾙｴﾝｼﾞﾝ車(過給器付) | P19: ﾃﾞｨｰｾﾞﾙｴﾝｼﾞﾝ車(自然吸気) | W19: 行ラベル | X19: ①質量由来 | Y19: ②電力由来 | Z19: ③動力由来 | AA19: ④エンジン系 | AB19: 総計
B20: ｶﾞｿﾘﾝｴﾝｼﾞﾝ車 (過給器付) (L) | J20: 0 | K20: ②電力由来 | L20: ﾃﾞｨｰｾﾞﾙHEV車(自然吸気) | P20: ﾃﾞｨｰｾﾞﾙｴﾝｼﾞﾝ車(過給器付) | W20: サーボユニット JAPIA標準製品
B21: ｶﾞｿﾘﾝHEV車 (自然吸気) (L) | J21: 0 | K21: ②電力由来 | L21: ﾃﾞｨｰｾﾞﾙHEV車(過給器付) | P21: ﾃﾞｨｰｾﾞﾙHEV車(自然吸気) | W21: 燃料電池車
B22: ｶﾞｿﾘﾝHEV車 (過給器付) (L) | J22: 0 | K22: ②電力由来 | L22: EV | P22: ﾃﾞｨｰｾﾞﾙHEV車(過給器付) | W22: サーボユニット1
B23: ﾃﾞｨｰｾﾞﾙｴﾝｼﾞﾝ車 (自然吸気) (L) | J23: 0 | K23: ②電力由来 | L23: 燃料電池車 | P23: サーボユニット2 | W23: 燃料電池車
B24: ﾃﾞｨｰｾﾞﾙｴﾝｼﾞﾝ車 (過給器付) (L) | J24: 0 | K24: ③動力由来 | L24: ｶﾞｿﾘﾝｴﾝｼﾞﾝ車(自然吸気) | P24: ｶﾞｿﾘﾝｴﾝｼﾞﾝ車(自然吸気) | W24: サーボユニット2
B25: ﾃﾞｨｰｾﾞﾙHEV車 (自然吸気) (L) | J25: 0 | K25: ③動力由来 | L25: ｶﾞｿﾘﾝｴﾝｼﾞﾝ車(過給器付) | P25: ｶﾞｿﾘﾝｴﾝｼﾞﾝ車(過給器付) | W25: 燃料電池車
B26: ﾃﾞｨｰｾﾞﾙHEV車 (過給器付) (L) | J26: 0 | K26: ③動力由来 | L26: ｶﾞｿﾘﾝHEV車(自然吸気) | P26: ｶﾞｿﾘﾝHEV車(自然吸気) | W26: サーボユニット3
B27: EV (kWh) | J27: 0 | K27: ③動力由来 | L27: ｶﾞｿﾘﾝHEV車(過給器付) | P27: ｶﾞｿﾘﾝHEV車(過給器付) | W27: 燃料電池車
B28: 燃料電池車 (Nm3) | J28: 0 | K28: ③動力由来 | L28: ﾃﾞｨｰｾﾞﾙｴﾝｼﾞﾝ車(自然吸気) | P28: ﾃﾞｨｰｾﾞﾙｴﾝｼﾞﾝ車(自然吸気) | W28: 総計
J29: 0 | K29: ③動力由来 | L29: ﾃﾞｨｰｾﾞﾙｴﾝｼﾞﾝ車(過給器付) | P29: ﾃﾞｨｰｾﾞﾙｴﾝｼﾞﾝ車(過給器付)
J30: 0 | K30: ③動力由来 | L30: ﾃﾞｨｰｾﾞﾙHEV車(自然吸気) | P30: ﾃﾞｨｰｾﾞﾙHEV車(自然吸気)
J31: 0 | K31: ③動力由来 | L31: ﾃﾞｨｰｾﾞﾙHEV車(過給器付) | P31: ﾃﾞｨｰｾﾞﾙHEV車(過給器付)
J32: 0 | K32: ③動力由来 | L32: EV | P32: サーボユニット3
J33: 0 | K33: ③動力由来 | L33: 燃料電池車 | P33: ｶﾞｿﾘﾝｴﾝｼﾞﾝ車(自然吸気)
J34: 0 | K34: ④エンジン系 | L34: ｶﾞｿﾘﾝｴﾝｼﾞﾝ車(自然吸気) | P34: ｶﾞｿﾘﾝｴﾝｼﾞﾝ車(過給器付)
J35: 0 | K35: ④エンジン系 | L35: ｶﾞｿﾘﾝｴﾝｼﾞﾝ車(過給器付) | P35: ｶﾞｿﾘﾝHEV車(自然吸気)
J36: 0 | K36: ④エンジン系 | L36: ｶﾞｿﾘﾝHEV車(自然吸気) | P36: ｶﾞｿﾘﾝHEV車(過給器付)
J37: 0 | K37: ④エンジン系 | L37: ｶﾞｿﾘﾝHEV車(過給器付) | P37: ﾃﾞｨｰｾﾞﾙｴﾝｼﾞﾝ車(自然吸気)
J38: 0 | K38: ④エンジン系 | L38: ﾃﾞｨｰｾﾞﾙｴﾝｼﾞﾝ車(自然吸気) | P38: ﾃﾞｨｰｾﾞﾙｴﾝｼﾞﾝ車(過給器付)
J39: 0 | K39: ④エンジン系 | L39: ﾃﾞｨｰｾﾞﾙｴﾝｼﾞﾝ車(過給器付) | P39: ﾃﾞｨｰｾﾞﾙHEV車(自然吸気)
J40: 0 | K40: ④エンジン系 | L40: ﾃﾞｨｰｾﾞﾙHEV車(自然吸気) | P40: ﾃﾞｨｰｾﾞﾙHEV車(過給器付)
J41: 0 | K41: ④エンジン系 | L41: ﾃﾞｨｰｾﾞﾙHEV車(過給器付) | P41: 総計
J42: 0 | K42: ④エンジン系 | L42: EV
J43: 0 | K43: ④エンジン系 | L43: 燃料電池車
J44: =$E$10 -> 0 | K44: ①質量由来 | L44: ｶﾞｿﾘﾝｴﾝｼﾞﾝ車(自然吸気)
J45: =$E$10 -> 0 | K45: ①質量由来 | L45: ｶﾞｿﾘﾝｴﾝｼﾞﾝ車(過給器付)
J46: 0 | K46: ①質量由来 | L46: ｶﾞｿﾘﾝHEV車(自然吸気)
J47: 0 | K47: ①質量由来 | L47: ｶﾞｿﾘﾝHEV車(過給器付)
J48: 0 | K48: ①質量由来 | L48: ﾃﾞｨｰｾﾞﾙｴﾝｼﾞﾝ車(自然吸気)
J49: 0 | K49: ①質量由来 | L49: ﾃﾞｨｰｾﾞﾙｴﾝｼﾞﾝ車(過給器付)
J50: 0 | K50: ①質量由来 | L50: ﾃﾞｨｰｾﾞﾙHEV車(自然吸気)
J51: 0 | K51: ①質量由来 | L51: ﾃﾞｨｰｾﾞﾙHEV車(過給器付)
J52: 0 | K52: ①質量由来 | L52: EV
J53: 0 | K53: ①質量由来 | L53: 燃料電池車
J54: 0 | K54: ②電力由来 | L54: ｶﾞｿﾘﾝｴﾝｼﾞﾝ車(自然吸気)
J55: 0 | K55: ②電力由来 | L55: ｶﾞｿﾘﾝｴﾝｼﾞﾝ車(過給器付)
J56: 0 | K56: ②電力由来 | L56: ｶﾞｿﾘﾝHEV車(自然吸気)
J57: 0 | K57: ②電力由来 | L57: ｶﾞｿﾘﾝHEV車(過給器付)
J58: 0 | K58: ②電力由来 | L58: ﾃﾞｨｰｾﾞﾙｴﾝｼﾞﾝ車(自然吸気)
J59: 0 | K59: ②電力由来 | L59: ﾃﾞｨｰｾﾞﾙｴﾝｼﾞﾝ車(過給器付)
J60: 0 | K60: ②電力由来 | L60: ﾃﾞｨｰｾﾞﾙHEV車(自然吸気)
J61: 0 | K61: ②電力由来 | L61: ﾃﾞｨｰｾﾞﾙHEV車(過給器付)
J62: 0 | K62: ②電力由来 | L62: EV
J63: 0 | K63: ②電力由来 | L63: 燃料電池車
J64: 0 | K64: ③動力由来 | L64: ｶﾞｿﾘﾝｴﾝｼﾞﾝ車(自然吸気)
J65: 0 | K65: ③動力由来 | L65: ｶﾞｿﾘﾝｴﾝｼﾞﾝ車(過給器付)
J66: 0 | K66: ③動力由来 | L66: ｶﾞｿﾘﾝHEV車(自然吸気)
J67: 0 | K67: ③動力由来 | L67: ｶﾞｿﾘﾝHEV車(過給器付)
J68: 0 | K68: ③動力由来 | L68: ﾃﾞｨｰｾﾞﾙｴﾝｼﾞﾝ車(自然吸気)
J69: 0 | K69: ③動力由来 | L69: ﾃﾞｨｰｾﾞﾙｴﾝｼﾞﾝ車(過給器付)
J70: 0 | K70: ③動力由来 | L70: ﾃﾞｨｰｾﾞﾙHEV車(自然吸気)
J71: 0 | K71: ③動力由来 | L71: ﾃﾞｨｰｾﾞﾙHEV車(過給器付)
J72: 0 | K72: ③動力由来 | L72: EV
J73: 0 | K73: ③動力由来 | L73: 燃料電池車
J74: 0 | K74: ④エンジン系 | L74: ｶﾞｿﾘﾝｴﾝｼﾞﾝ車(自然吸気)
J75: 0 | K75: ④エンジン系 | L75: ｶﾞｿﾘﾝｴﾝｼﾞﾝ車(過給器付)
J76: 0 | K76: ④エンジン系 | L76: ｶﾞｿﾘﾝHEV車(自然吸気)
J77: 0 | K77: ④エンジン系 | L77: ｶﾞｿﾘﾝHEV車(過給器付)
J78: 0 | K78: ④エンジン系 | L78: ﾃﾞｨｰｾﾞﾙｴﾝｼﾞﾝ車(自然吸気)
J79: 0 | K79: ④エンジン系 | L79: ﾃﾞｨｰｾﾞﾙｴﾝｼﾞﾝ車(過給器付)
J80: 0 | K80: ④エンジン系 | L80: ﾃﾞｨｰｾﾞﾙHEV車(自然吸気)
J81: 0 | K81: ④エンジン系 | L81: ﾃﾞｨｰｾﾞﾙHEV車(過給器付)
J82: 0 | K82: ④エンジン系 | L82: EV
J83: 0 | K83: ④エンジン系 | L83: 燃料電池車
J84: =$F$10 -> 0 | K84: ①質量由来 | L84: ｶﾞｿﾘﾝｴﾝｼﾞﾝ車(自然吸気)
J85: =$F$10 -> 0 | K85: ①質量由来 | L85: ｶﾞｿﾘﾝｴﾝｼﾞﾝ車(過給器付)
J86: 0 | K86: ①質量由来 | L86: ｶﾞｿﾘﾝHEV車(自然吸気)
J87: 0 | K87: ①質量由来 | L87: ｶﾞｿﾘﾝHEV車(過給器付)
J88: 0 | K88: ①質量由来 | L88: ﾃﾞｨｰｾﾞﾙｴﾝｼﾞﾝ車(自然吸気)
J89: 0 | K89: ①質量由来 | L89: ﾃﾞｨｰｾﾞﾙｴﾝｼﾞﾝ車(過給器付)
J90: 0 | K90: ①質量由来 | L90: ﾃﾞｨｰｾﾞﾙHEV車(自然吸気)
J91: 0 | K91: ①質量由来 | L91: ﾃﾞｨｰｾﾞﾙHEV車(過給器付)
J92: 0 | K92: ①質量由来 | L92: EV
J93: 0 | K93: ①質量由来 | L93: 燃料電池車
J94: 0 | K94: ②電力由来 | L94: ｶﾞｿﾘﾝｴﾝｼﾞﾝ車(自然吸気)
J95: 0 | K95: ②電力由来 | L95: ｶﾞｿﾘﾝｴﾝｼﾞﾝ車(過給器付)
J96: 0 | K96: ②電力由来 | L96: ｶﾞｿﾘﾝHEV車(自然吸気)
J97: 0 | K97: ②電力由来 | L97: ｶﾞｿﾘﾝHEV車(過給器付)
J98: 0 | K98: ②電力由来 | L98: ﾃﾞｨｰｾﾞﾙｴﾝｼﾞﾝ車(自然吸気)
J99: 0 | K99: ②電力由来 | L99: ﾃﾞｨｰｾﾞﾙｴﾝｼﾞﾝ車(過給器付)
J100: 0 | K100: ②電力由来 | L100: ﾃﾞｨｰｾﾞﾙHEV車(自然吸気)
J101: 0 | K101: ②電力由来 | L101: ﾃﾞｨｰｾﾞﾙHEV車(過給器付)
J102: 0 | K102: ②電力由来 | L102: EV
J103: 0 | K103: ②電力由来 | L103: 燃料電池車
J104: 0 | K104: ③動力由来 | L104: ｶﾞｿﾘﾝｴﾝｼﾞﾝ車(自然吸気)
J105: 0 | K105: ③動力由来 | L105: ｶﾞｿﾘﾝｴﾝｼﾞﾝ車(過給器付)
J106: 0 | K106: ③動力由来 | L106: ｶﾞｿﾘﾝHEV車(自然吸気)
J107: 0 | K107: ③動力由来 | L107: ｶﾞｿﾘﾝHEV車(過給器付)
J108: 0 | K108: ③動力由来 | L108: ﾃﾞｨｰｾﾞﾙｴﾝｼﾞﾝ車(自然吸気)
J109: 0 | K109: ③動力由来 | L109: ﾃﾞｨｰｾﾞﾙｴﾝｼﾞﾝ車(過給器付)
J110: 0 | K110: ③動力由来 | L110: ﾃﾞｨｰｾﾞﾙHEV車(自然吸気)
J111: 0 | K111: ③動力由来 | L111: ﾃﾞｨｰｾﾞﾙHEV車(過給器付)
J112: 0 | K112: ③動力由来 | L112: EV
J113: 0 | K113: ③動力由来 | L113: 燃料電池車
J114: 0 | K114: ④エンジン系 | L114: ｶﾞｿﾘﾝｴﾝｼﾞﾝ車(自然吸気)
J115: 0 | K115: ④エンジン系 | L115: ｶﾞｿﾘﾝｴﾝｼﾞﾝ車(過給器付)
J116: 0 | K116: ④エンジン系 | L116: ｶﾞｿﾘﾝHEV車(自然吸気)
J117: 0 | K117: ④エンジン系 | L117: ｶﾞｿﾘﾝHEV車(過給器付)
J118: 0 | K118: ④エンジン系 | L118: ﾃﾞｨｰｾﾞﾙｴﾝｼﾞﾝ車(自然吸気)
J119: 0 | K119: ④エンジン系 | L119: ﾃﾞｨｰｾﾞﾙｴﾝｼﾞﾝ車(過給器付)
J120: 0 | K120: ④エンジン系 | L120: ﾃﾞｨｰｾﾞﾙHEV車(自然吸気)
J121: 0 | K121: ④エンジン系 | L121: ﾃﾞｨｰｾﾞﾙHEV車(過給器付)
J122: 0 | K122: ④エンジン系 | L122: EV
J123: 0 | K123: ④エンジン系 | L123: 燃料電池車
J124: =$C$10 -> 0 | K124: ①質量由来 | L124: ｶﾞｿﾘﾝｴﾝｼﾞﾝ車(自然吸気)
J125: =$C$10 -> 0 | K125: ①質量由来 | L125: ｶﾞｿﾘﾝｴﾝｼﾞﾝ車(過給器付)
J126: 0 | K126: ①質量由来 | L126: ｶﾞｿﾘﾝHEV車(自然吸気)
J127: 0 | K127: ①質量由来 | L127: ｶﾞｿﾘﾝHEV車(過給器付)
J128: 0 | K128: ①質量由来 | L128: ﾃﾞｨｰｾﾞﾙｴﾝｼﾞﾝ車(自然吸気)
J129: 0 | K129: ①質量由来 | L129: ﾃﾞｨｰｾﾞﾙｴﾝｼﾞﾝ車(過給器付)
J130: 0 | K130: ①質量由来 | L130: ﾃﾞｨｰｾﾞﾙHEV車(自然吸気)
J131: 0 | K131: ①質量由来 | L131: ﾃﾞｨｰｾﾞﾙHEV車(過給器付)
J132: 0 | K132: ①質量由来 | L132: EV
J133: 0 | K133: ①質量由来 | L133: 燃料電池車
J134: 0 | K134: ②電力由来 | L134: ｶﾞｿﾘﾝｴﾝｼﾞﾝ車(自然吸気)
J135: 0 | K135: ②電力由来 | L135: ｶﾞｿﾘﾝｴﾝｼﾞﾝ車(過給器付)
J136: 0 | K136: ②電力由来 | L136: ｶﾞｿﾘﾝHEV車(自然吸気)
J137: 0 | K137: ②電力由来 | L137: ｶﾞｿﾘﾝHEV車(過給器付)
J138: 0 | K138: ②電力由来 | L138: ﾃﾞｨｰｾﾞﾙｴﾝｼﾞﾝ車(自然吸気)
J139: 0 | K139: ②電力由来 | L139: ﾃﾞｨｰｾﾞﾙｴﾝｼﾞﾝ車(過給器付)
J140: 0 | K140: ②電力由来 | L140: ﾃﾞｨｰｾﾞﾙHEV車(自然吸気)
J141: 0 | K141: ②電力由来 | L141: ﾃﾞｨｰｾﾞﾙHEV車(過給器付)
J142: 0 | K142: ②電力由来 | L142: EV
J143: 0 | K143: ②電力由来 | L143: 燃料電池車
J144: 0 | K144: ③動力由来 | L144: ｶﾞｿﾘﾝｴﾝｼﾞﾝ車(自然吸気)
J145: 0 | K145: ③動力由来 | L145: ｶﾞｿﾘﾝｴﾝｼﾞﾝ車(過給器付)
J146: 0 | K146: ③動力由来 | L146: ｶﾞｿﾘﾝHEV車(自然吸気)
J147: 0 | K147: ③動力由来 | L147: ｶﾞｿﾘﾝHEV車(過給器付)
J148: 0 | K148: ③動力由来 | L148: ﾃﾞｨｰｾﾞﾙｴﾝｼﾞﾝ車(自然吸気)
J149: 0 | K149: ③動力由来 | L149: ﾃﾞｨｰｾﾞﾙｴﾝｼﾞﾝ車(過給器付)
J150: 0 | K150: ③動力由来 | L150: ﾃﾞｨｰｾﾞﾙHEV車(自然吸気)
J151: 0 | K151: ③動力由来 | L151: ﾃﾞｨｰｾﾞﾙHEV車(過給器付)
J152: 0 | K152: ③動力由来 | L152: EV
J153: 0 | K153: ③動力由来 | L153: 燃料電池車
J154: 0 | K154: ④エンジン系 | L154: ｶﾞｿﾘﾝｴﾝｼﾞﾝ車(自然吸気)
J155: 0 | K155: ④エンジン系 | L155: ｶﾞｿﾘﾝｴﾝｼﾞﾝ車(過給器付)
J156: 0 | K156: ④エンジン系 | L156: ｶﾞｿﾘﾝHEV車(自然吸気)
J157: 0 | K157: ④エンジン系 | L157: ｶﾞｿﾘﾝHEV車(過給器付)
J158: 0 | K158: ④エンジン系 | L158: ﾃﾞｨｰｾﾞﾙｴﾝｼﾞﾝ車(自然吸気)
J159: 0 | K159: ④エンジン系 | L159: ﾃﾞｨｰｾﾞﾙｴﾝｼﾞﾝ車(過給器付)
J160: 0 | K160: ④エンジン系 | L160: ﾃﾞｨｰｾﾞﾙHEV車(自然吸気)
J161: 0 | K161: ④エンジン系 | L161: ﾃﾞｨｰｾﾞﾙHEV車(過給器付)
J162: 0 | K162: ④エンジン系 | L162: EV
J163: 0 | K163: ④エンジン系 | L163: 燃料電池車

Sheet グラフレポートCO2 (hidden)
A3: ◆LCI対象製品の基本情報 | J3: 製品名 | K3: 配分内訳 | L3: エンジン種類 | M3: CO2排出量 | P3: 合計 / CO2排出量 | Q3: 列ラベル | W3: 合計 / CO2排出量 | X3: 列ラベル
B4: JAPIA製品群 | J4: =$D$10 -> 0 | K4: ①質量由来 | L4: ｶﾞｿﾘﾝｴﾝｼﾞﾝ車(自然吸気) | P4: 行ラベル | Q4: ①質量由来 | R4: ②電力由来 | S4: ③動力由来 | T4: ④エンジン系 | U4: 総計 | W4: 行ラベル | X4: ①質量由来 | Y4: ②電力由来 | Z4: ③動力由来 | AA4: ④エンジン系 | AB4: 総計
B5: システム境界 (評価対象の製品の範囲) | J5: =$D$10 -> 0 | K5: ①質量由来 | L5: ｶﾞｿﾘﾝｴﾝｼﾞﾝ車(過給器付) | P5: 1 | W5: 1
B6: 機能単位 (製品性能を表す特性値当りの単位) | J6: 0 | K6: ①質量由来 | L6: ｶﾞｿﾘﾝHEV車(自然吸気) | P6: ｶﾞｿﾘﾝｴﾝｼﾞﾝ車(自然吸気) | W6: EV
B7: 評価個数 | J7: 0 | K7: ①質量由来 | L7: ｶﾞｿﾘﾝHEV車(過給器付) | P7: ｶﾞｿﾘﾝｴﾝｼﾞﾝ車(過給器付) | W7: 2
B8: 動作電圧(V) | C8: 12 | D8: 12 | E8: 12 | F8: 12 | J8: 0 | K8: ①質量由来 | L8: ﾃﾞｨｰｾﾞﾙｴﾝｼﾞﾝ車(自然吸気) | P8: ｶﾞｿﾘﾝHEV車(自然吸気) | W8: EV
B9: 製品/部品品番 | J9: 0 | K9: ①質量由来 | L9: ﾃﾞｨｰｾﾞﾙｴﾝｼﾞﾝ車(過給器付) | P9: ｶﾞｿﾘﾝHEV車(過給器付) | W9: 3
B10: 製品/部品名 | J10: 0 | K10: ①質量由来 | L10: ﾃﾞｨｰｾﾞﾙHEV車(自然吸気) | P10: ﾃﾞｨｰｾﾞﾙｴﾝｼﾞﾝ車(自然吸気) | W10: EV
J11: 0 | K11: ①質量由来 | L11: ﾃﾞｨｰｾﾞﾙHEV車(過給器付) | P11: ﾃﾞｨｰｾﾞﾙｴﾝｼﾞﾝ車(過給器付) | W11: 4
A12: ◆使用段階負荷量 | J12: 0 | K12: ①質量由来 | L12: EV | P12: ﾃﾞｨｰｾﾞﾙHEV車(自然吸気) | W12: EV
A13: 算出用 入力データ | B13: 質量（kg） | J13: 0 | K13: ①質量由来 | L13: 燃料電池車 | P13: ﾃﾞｨｰｾﾞﾙHEV車(過給器付) | W13: 総計
B14: 慣性モーメント(kg･m2) | J14: 0 | K14: ②電力由来 | L14: ｶﾞｿﾘﾝｴﾝｼﾞﾝ車(自然吸気) | P14: 2
B15: 製品前面投影面積(m2) | J15: 0 | K15: ②電力由来 | L15: ｶﾞｿﾘﾝｴﾝｼﾞﾝ車(過給器付) | P15: ｶﾞｿﾘﾝｴﾝｼﾞﾝ車(自然吸気)
B16: 電流（A） | J16: 0 | K16: ②電力由来 | L16: ｶﾞｿﾘﾝHEV車(自然吸気) | P16: ｶﾞｿﾘﾝｴﾝｼﾞﾝ車(過給器付)
B17: 電力/動力（W） 平均ｴﾝｼﾞﾝ回転数(s-1) | J17: 0 | K17: ②電力由来 | L17: ｶﾞｿﾘﾝHEV車(過給器付) | P17: ｶﾞｿﾘﾝHEV車(自然吸気)
B18: 生涯動作時間（s） | J18: 0 | K18: ②電力由来 | L18: ﾃﾞｨｰｾﾞﾙｴﾝｼﾞﾝ車(自然吸気) | P18: ｶﾞｿﾘﾝHEV車(過給器付) | W18: 合計 / CO2排出量 | X18: 列ラベル
A19: 算出結果 CO2 排出量 (g-CO2) | B19: ｶﾞｿﾘﾝｴﾝｼﾞﾝ車 (自然吸気) | J19: 0 | K19: ②電力由来 | L19: ﾃﾞｨｰｾﾞﾙｴﾝｼﾞﾝ車(過給器付) | P19: ﾃﾞｨｰｾﾞﾙｴﾝｼﾞﾝ車(自然吸気) | W19: 行ラベル | X19: ①質量由来 | Y19: ②電力由来 | Z19: ③動力由来 | AA19: ④エンジン系 | AB19: 総計
B20: ｶﾞｿﾘﾝｴﾝｼﾞﾝ車 (過給器付) | J20: 0 | K20: ②電力由来 | L20: ﾃﾞｨｰｾﾞﾙHEV車(自然吸気) | P20: ﾃﾞｨｰｾﾞﾙｴﾝｼﾞﾝ車(過給器付) | W20: 1
B21: ｶﾞｿﾘﾝHEV車 (自然吸気) | J21: 0 | K21: ②電力由来 | L21: ﾃﾞｨｰｾﾞﾙHEV車(過給器付) | P21: ﾃﾞｨｰｾﾞﾙHEV車(自然吸気) | W21: 燃料電池車
B22: ｶﾞｿﾘﾝHEV車 (過給器付) | J22: 0 | K22: ②電力由来 | L22: EV | P22: ﾃﾞｨｰｾﾞﾙHEV車(過給器付) | W22: 2
B23: ﾃﾞｨｰｾﾞﾙｴﾝｼﾞﾝ車 (自然吸気) | J23: 0 | K23: ②電力由来 | L23: 燃料電池車 | P23: 3 | W23: 燃料電池車
B24: ﾃﾞｨｰｾﾞﾙｴﾝｼﾞﾝ車 (過給器付) | J24: 0 | K24: ③動力由来 | L24: ｶﾞｿﾘﾝｴﾝｼﾞﾝ車(自然吸気) | P24: ｶﾞｿﾘﾝｴﾝｼﾞﾝ車(自然吸気) | W24: 3
B25: ﾃﾞｨｰｾﾞﾙHEV車 (自然吸気) | J25: 0 | K25: ③動力由来 | L25: ｶﾞｿﾘﾝｴﾝｼﾞﾝ車(過給器付) | P25: ｶﾞｿﾘﾝｴﾝｼﾞﾝ車(過給器付) | W25: 燃料電池車
B26: ﾃﾞｨｰｾﾞﾙHEV車 (過給器付) | J26: 0 | K26: ③動力由来 | L26: ｶﾞｿﾘﾝHEV車(自然吸気) | P26: ｶﾞｿﾘﾝHEV車(自然吸気) | W26: 4
B27: EV | J27: 0 | K27: ③動力由来 | L27: ｶﾞｿﾘﾝHEV車(過給器付) | P27: ｶﾞｿﾘﾝHEV車(過給器付) | W27: 燃料電池車
B28: 燃料電池車 | J28: 0 | K28: ③動力由来 | L28: ﾃﾞｨｰｾﾞﾙｴﾝｼﾞﾝ車(自然吸気) | P28: ﾃﾞｨｰｾﾞﾙｴﾝｼﾞﾝ車(自然吸気) | W28: 総計
J29: 0 | K29: ③動力由来 | L29: ﾃﾞｨｰｾﾞﾙｴﾝｼﾞﾝ車(過給器付) | P29: ﾃﾞｨｰｾﾞﾙｴﾝｼﾞﾝ車(過給器付)
J30: 0 | K30: ③動力由来 | L30: ﾃﾞｨｰｾﾞﾙHEV車(自然吸気) | P30: ﾃﾞｨｰｾﾞﾙHEV車(自然吸気)
J31: 0 | K31: ③動力由来 | L31: ﾃﾞｨｰｾﾞﾙHEV車(過給器付) | P31: ﾃﾞｨｰｾﾞﾙHEV車(過給器付)
J32: 0 | K32: ③動力由来 | L32: EV | P32: 4
J33: 0 | K33: ③動力由来 | L33: 燃料電池車 | P33: ｶﾞｿﾘﾝｴﾝｼﾞﾝ車(自然吸気)
J34: 0 | K34: ④エンジン系 | L34: ｶﾞｿﾘﾝｴﾝｼﾞﾝ車(自然吸気) | P34: ｶﾞｿﾘﾝｴﾝｼﾞﾝ車(過給器付)
J35: 0 | K35: ④エンジン系 | L35: ｶﾞｿﾘﾝｴﾝｼﾞﾝ車(過給器付) | P35: ｶﾞｿﾘﾝHEV車(自然吸気)
J36: 0 | K36: ④エンジン系 | L36: ｶﾞｿﾘﾝHEV車(自然吸気) | P36: ｶﾞｿﾘﾝHEV車(過給器付)
J37: 0 | K37: ④エンジン系 | L37: ｶﾞｿﾘﾝHEV車(過給器付) | P37: ﾃﾞｨｰｾﾞﾙｴﾝｼﾞﾝ車(自然吸気)
J38: 0 | K38: ④エンジン系 | L38: ﾃﾞｨｰｾﾞﾙｴﾝｼﾞﾝ車(自然吸気) | P38: ﾃﾞｨｰｾﾞﾙｴﾝｼﾞﾝ車(過給器付)
J39: 0 | K39: ④エンジン系 | L39: ﾃﾞｨｰｾﾞﾙｴﾝｼﾞﾝ車(過給器付) | P39: ﾃﾞｨｰｾﾞﾙHEV車(自然吸気)
J40: 0 | K40: ④エンジン系 | L40: ﾃﾞｨｰｾﾞﾙHEV車(自然吸気) | P40: ﾃﾞｨｰｾﾞﾙHEV車(過給器付)
J41: 0 | K41: ④エンジン系 | L41: ﾃﾞｨｰｾﾞﾙHEV車(過給器付) | P41: 総計
J42: 0 | K42: ④エンジン系 | L42: EV
J43: 0 | K43: ④エンジン系 | L43: 燃料電池車
J44: =$E$10 -> 0 | K44: ①質量由来 | L44: ｶﾞｿﾘﾝｴﾝｼﾞﾝ車(自然吸気)
J45: =$E$10 -> 0 | K45: ①質量由来 | L45: ｶﾞｿﾘﾝｴﾝｼﾞﾝ車(過給器付)
J46: 0 | K46: ①質量由来 | L46: ｶﾞｿﾘﾝHEV車(自然吸気)
J47: 0 | K47: ①質量由来 | L47: ｶﾞｿﾘﾝHEV車(過給器付)
J48: 0 | K48: ①質量由来 | L48: ﾃﾞｨｰｾﾞﾙｴﾝｼﾞﾝ車(自然吸気)
J49: 0 | K49: ①質量由来 | L49: ﾃﾞｨｰｾﾞﾙｴﾝｼﾞﾝ車(過給器付)
J50: 0 | K50: ①質量由来 | L50: ﾃﾞｨｰｾﾞﾙHEV車(自然吸気)
J51: 0 | K51: ①質量由来 | L51: ﾃﾞｨｰｾﾞﾙHEV車(過給器付)
J52: 0 | K52: ①質量由来 | L52: EV
J53: 0 | K53: ①質量由来 | L53: 燃料電池車
J54: 0 | K54: ②電力由来 | L54: ｶﾞｿﾘﾝｴﾝｼﾞﾝ車(自然吸気)
J55: 0 | K55: ②電力由来 | L55: ｶﾞｿﾘﾝｴﾝｼﾞﾝ車(過給器付)
J56: 0 | K56: ②電力由来 | L56: ｶﾞｿﾘﾝHEV車(自然吸気)
J57: 0 | K57: ②電力由来 | L57: ｶﾞｿﾘﾝHEV車(過給器付)
J58: 0 | K58: ②電力由来 | L58: ﾃﾞｨｰｾﾞﾙｴﾝｼﾞﾝ車(自然吸気)
J59: 0 | K59: ②電力由来 | L59: ﾃﾞｨｰｾﾞﾙｴﾝｼﾞﾝ車(過給器付)
J60: 0 | K60: ②電力由来 | L60: ﾃﾞｨｰｾﾞﾙHEV車(自然吸気)
J61: 0 | K61: ②電力由来 | L61: ﾃﾞｨｰｾﾞﾙHEV車(過給器付)
J62: 0 | K62: ②電力由来 | L62: EV
J63: 0 | K63: ②電力由来 | L63: 燃料電池車
J64: 0 | K64: ③動力由来 | L64: ｶﾞｿﾘﾝｴﾝｼﾞﾝ車(自然吸気)
J65: 0 | K65: ③動力由来 | L65: ｶﾞｿﾘﾝｴﾝｼﾞﾝ車(過給器付)
J66: 0 | K66: ③動力由来 | L66: ｶﾞｿﾘﾝHEV車(自然吸気)
J67: 0 | K67: ③動力由来 | L67: ｶﾞｿﾘﾝHEV車(過給器付)
J68: 0 | K68: ③動力由来 | L68: ﾃﾞｨｰｾﾞﾙｴﾝｼﾞﾝ車(自然吸気)
J69: 0 | K69: ③動力由来 | L69: ﾃﾞｨｰｾﾞﾙｴﾝｼﾞﾝ車(過給器付)
J70: 0 | K70: ③動力由来 | L70: ﾃﾞｨｰｾﾞﾙHEV車(自然吸気)
J71: 0 | K71: ③動力由来 | L71: ﾃﾞｨｰｾﾞﾙHEV車(過給器付)
J72: 0 | K72: ③動力由来 | L72: EV
J73: 0 | K73: ③動力由来 | L73: 燃料電池車
J74: 0 | K74: ④エンジン系 | L74: ｶﾞｿﾘﾝｴﾝｼﾞﾝ車(自然吸気)
J75: 0 | K75: ④エンジン系 | L75: ｶﾞｿﾘﾝｴﾝｼﾞﾝ車(過給器付)
J76: 0 | K76: ④エンジン系 | L76: ｶﾞｿﾘﾝHEV車(自然吸気)
J77: 0 | K77: ④エンジン系 | L77: ｶﾞｿﾘﾝHEV車(過給器付)
J78: 0 | K78: ④エンジン系 | L78: ﾃﾞｨｰｾﾞﾙｴﾝｼﾞﾝ車(自然吸気)
J79: 0 | K79: ④エンジン系 | L79: ﾃﾞｨｰｾﾞﾙｴﾝｼﾞﾝ車(過給器付)
J80: 0 | K80: ④エンジン系 | L80: ﾃﾞｨｰｾﾞﾙHEV車(自然吸気)
J81: 0 | K81: ④エンジン系 | L81: ﾃﾞｨｰｾﾞﾙHEV車(過給器付)
J82: 0 | K82: ④エンジン系 | L82: EV
J83: 0 | K83: ④エンジン系 | L83: 燃料電池車
J84: =$F$10 -> 0 | K84: ①質量由来 | L84: ｶﾞｿﾘﾝｴﾝｼﾞﾝ車(自然吸気)
J85: =$F$10 -> 0 | K85: ①質量由来 | L85: ｶﾞｿﾘﾝｴﾝｼﾞﾝ車(過給器付)
J86: 0 | K86: ①質量由来 | L86: ｶﾞｿﾘﾝHEV車(自然吸気)
J87: 0 | K87: ①質量由来 | L87: ｶﾞｿﾘﾝHEV車(過給器付)
J88: 0 | K88: ①質量由来 | L88: ﾃﾞｨｰｾﾞﾙｴﾝｼﾞﾝ車(自然吸気)
J89: 0 | K89: ①質量由来 | L89: ﾃﾞｨｰｾﾞﾙｴﾝｼﾞﾝ車(過給器付)
J90: 0 | K90: ①質量由来 | L90: ﾃﾞｨｰｾﾞﾙHEV車(自然吸気)
J91: 0 | K91: ①質量由来 | L91: ﾃﾞｨｰｾﾞﾙHEV車(過給器付)
J92: 0 | K92: ①質量由来 | L92: EV
J93: 0 | K93: ①質量由来 | L93: 燃料電池車
J94: 0 | K94: ②電力由来 | L94: ｶﾞｿﾘﾝｴﾝｼﾞﾝ車(自然吸気)
J95: 0 | K95: ②電力由来 | L95: ｶﾞｿﾘﾝｴﾝｼﾞﾝ車(過給器付)
J96: 0 | K96: ②電力由来 | L96: ｶﾞｿﾘﾝHEV車(自然吸気)
J97: 0 | K97: ②電力由来 | L97: ｶﾞｿﾘﾝHEV車(過給器付)
J98: 0 | K98: ②電力由来 | L98: ﾃﾞｨｰｾﾞﾙｴﾝｼﾞﾝ車(自然吸気)
J99: 0 | K99: ②電力由来 | L99: ﾃﾞｨｰｾﾞﾙｴﾝｼﾞﾝ車(過給器付)
J100: 0 | K100: ②電力由来 | L100: ﾃﾞｨｰｾﾞﾙHEV車(自然吸気)
J101: 0 | K101: ②電力由来 | L101: ﾃﾞｨｰｾﾞﾙHEV車(過給器付)
J102: 0 | K102: ②電力由来 | L102: EV
J103: 0 | K103: ②電力由来 | L103: 燃料電池車
J104: 0 | K104: ③動力由来 | L104: ｶﾞｿﾘﾝｴﾝｼﾞﾝ車(自然吸気)
J105: 0 | K105: ③動力由来 | L105: ｶﾞｿﾘﾝｴﾝｼﾞﾝ車(過給器付)
J106: 0 | K106: ③動力由来 | L106: ｶﾞｿﾘﾝHEV車(自然吸気)
J107: 0 | K107: ③動力由来 | L107: ｶﾞｿﾘﾝHEV車(過給器付)
J108: 0 | K108: ③動力由来 | L108: ﾃﾞｨｰｾﾞﾙｴﾝｼﾞﾝ車(自然吸気)
J109: 0 | K109: ③動力由来 | L109: ﾃﾞｨｰｾﾞﾙｴﾝｼﾞﾝ車(過給器付)
J110: 0 | K110: ③動力由来 | L110: ﾃﾞｨｰｾﾞﾙHEV車(自然吸気)
J111: 0 | K111: ③動力由来 | L111: ﾃﾞｨｰｾﾞﾙHEV車(過給器付)
J112: 0 | K112: ③動力由来 | L112: EV
J113: 0 | K113: ③動力由来 | L113: 燃料電池車
J114: 0 | K114: ④エンジン系 | L114: ｶﾞｿﾘﾝｴﾝｼﾞﾝ車(自然吸気)
J115: 0 | K115: ④エンジン系 | L115: ｶﾞｿﾘﾝｴﾝｼﾞﾝ車(過給器付)
J116: 0 | K116: ④エンジン系 | L116: ｶﾞｿﾘﾝHEV車(自然吸気)
J117: 0 | K117: ④エンジン系 | L117: ｶﾞｿﾘﾝHEV車(過給器付)
J118: 0 | K118: ④エンジン系 | L118: ﾃﾞｨｰｾﾞﾙｴﾝｼﾞﾝ車(自然吸気)
J119: 0 | K119: ④エンジン系 | L119: ﾃﾞｨｰｾﾞﾙｴﾝｼﾞﾝ車(過給器付)
J120: 0 | K120: ④エンジン系 | L120: ﾃﾞｨｰｾﾞﾙHEV車(自然吸気)
J121: 0 | K121: ④エンジン系 | L121: ﾃﾞｨｰｾﾞﾙHEV車(過給器付)
J122: 0 | K122: ④エンジン系 | L122: EV
J123: 0 | K123: ④エンジン系 | L123: 燃料電池車
J124: =$C$10 -> 0 | K124: ①質量由来 | L124: ｶﾞｿﾘﾝｴﾝｼﾞﾝ車(自然吸気)
J125: =$C$10 -> 0 | K125: ①質量由来 | L125: ｶﾞｿﾘﾝｴﾝｼﾞﾝ車(過給器付)
J126: 0 | K126: ①質量由来 | L126: ｶﾞｿﾘﾝHEV車(自然吸気)
J127: 0 | K127: ①質量由来 | L127: ｶﾞｿﾘﾝHEV車(過給器付)
J128: 0 | K128: ①質量由来 | L128: ﾃﾞｨｰｾﾞﾙｴﾝｼﾞﾝ車(自然吸気)
J129: 0 | K129: ①質量由来 | L129: ﾃﾞｨｰｾﾞﾙｴﾝｼﾞﾝ車(過給器付)
J130: 0 | K130: ①質量由来 | L130: ﾃﾞｨｰｾﾞﾙHEV車(自然吸気)
J131: 0 | K131: ①質量由来 | L131: ﾃﾞｨｰｾﾞﾙHEV車(過給器付)
J132: 0 | K132: ①質量由来 | L132: EV
J133: 0 | K133: ①質量由来 | L133: 燃料電池車
J134: 0 | K134: ②電力由来 | L134: ｶﾞｿﾘﾝｴﾝｼﾞﾝ車(自然吸気)
J135: 0 | K135: ②電力由来 | L135: ｶﾞｿﾘﾝｴﾝｼﾞﾝ車(過給器付)
J136: 0 | K136: ②電力由来 | L136: ｶﾞｿﾘﾝHEV車(自然吸気)
J137: 0 | K137: ②電力由来 | L137: ｶﾞｿﾘﾝHEV車(過給器付)
J138: 0 | K138: ②電力由来 | L138: ﾃﾞｨｰｾﾞﾙｴﾝｼﾞﾝ車(自然吸気)
J139: 0 | K139: ②電力由来 | L139: ﾃﾞｨｰｾﾞﾙｴﾝｼﾞﾝ車(過給器付)
J140: 0 | K140: ②電力由来 | L140: ﾃﾞｨｰｾﾞﾙHEV車(自然吸気)
J141: 0 | K141: ②電力由来 | L141: ﾃﾞｨｰｾﾞﾙHEV車(過給器付)
J142: 0 | K142: ②電力由来 | L142: EV
J143: 0 | K143: ②電力由来 | L143: 燃料電池車
J144: 0 | K144: ③動力由来 | L144: ｶﾞｿﾘﾝｴﾝｼﾞﾝ車(自然吸気)
J145: 0 | K145: ③動力由来 | L145: ｶﾞｿﾘﾝｴﾝｼﾞﾝ車(過給器付)
J146: 0 | K146: ③動力由来 | L146: ｶﾞｿﾘﾝHEV車(自然吸気)
J147: 0 | K147: ③動力由来 | L147: ｶﾞｿﾘﾝHEV車(過給器付)
J148: 0 | K148: ③動力由来 | L148: ﾃﾞｨｰｾﾞﾙｴﾝｼﾞﾝ車(自然吸気)
J149: 0 | K149: ③動力由来 | L149: ﾃﾞｨｰｾﾞﾙｴﾝｼﾞﾝ車(過給器付)
J150: 0 | K150: ③動力由来 | L150: ﾃﾞｨｰｾﾞﾙHEV車(自然吸気)
J151: 0 | K151: ③動力由来 | L151: ﾃﾞｨｰｾﾞﾙHEV車(過給器付)
J152: 0 | K152: ③動力由来 | L152: EV
J153: 0 | K153: ③動力由来 | L153: 燃料電池車
J154: 0 | K154: ④エンジン系 | L154: ｶﾞｿﾘﾝｴﾝｼﾞﾝ車(自然吸気)
J155: 0 | K155: ④エンジン系 | L155: ｶﾞｿﾘﾝｴﾝｼﾞﾝ車(過給器付)
J156: 0 | K156: ④エンジン系 | L156: ｶﾞｿﾘﾝHEV車(自然吸気)
J157: 0 | K157: ④エンジン系 | L157: ｶﾞｿﾘﾝHEV車(過給器付)
J158: 0 | K158: ④エンジン系 | L158: ﾃﾞｨｰｾﾞﾙｴﾝｼﾞﾝ車(自然吸気)
J159: 0 | K159: ④エンジン系 | L159: ﾃﾞｨｰｾﾞﾙｴﾝｼﾞﾝ車(過給器付)
J160: 0 | K160: ④エンジン系 | L160: ﾃﾞｨｰｾﾞﾙHEV車(自然吸気)
J161: 0 | K161: ④エンジン系 | L161: ﾃﾞｨｰｾﾞﾙHEV車(過給器付)
J162: 0 | K162: ④エンジン系 | L162: EV
J163: 0 | K163: ④エンジン系 | L163: 燃料電池車

Sheet グラフレポートE_G (hidden)
A3: ◆LCI対象製品の基本情報 | J3: 製品名 | K3: 配分内訳 | L3: エンジン種類 | M3: ｴﾈﾙｷﾞｰ消費量 | P3: 合計 / ｴﾈﾙｷﾞｰ消費量 | Q3: 列ラベル
B4: JAPIA製品群 | J4: =$D$10 -> 0 | K4: ①質量由来 | L4: ｶﾞｿﾘﾝｴﾝｼﾞﾝ車(自然吸気) | P4: 行ラベル | Q4: ①質量由来 | R4: ②電力由来 | S4: ③動力由来 | T4: ④エンジン系 | U4: 総計
B5: システム境界 (評価対象の製品の範囲) | J5: =$D$10 -> 0 | K5: ①質量由来 | L5: ｶﾞｿﾘﾝｴﾝｼﾞﾝ車(過給器付) | P5: 2
B6: 機能単位 (製品性能を表す特性値当りの単位) | J6: 0 | K6: ①質量由来 | L6: ｶﾞｿﾘﾝHEV車(自然吸気) | P6: ｶﾞｿﾘﾝｴﾝｼﾞﾝ車(自然吸気)
B7: 評価個数 | J7: 0 | K7: ①質量由来 | L7: ｶﾞｿﾘﾝHEV車(過給器付) | P7: ｶﾞｿﾘﾝｴﾝｼﾞﾝ車(過給器付)
B8: 動作電圧(V) | C8: 12 | D8: 12 | E8: 12 | F8: 12 | J8: 0 | K8: ①質量由来 | L8: ﾃﾞｨｰｾﾞﾙｴﾝｼﾞﾝ車(自然吸気) | P8: ｶﾞｿﾘﾝHEV車(自然吸気)
B9: 製品/部品品番 | J9: 0 | K9: ①質量由来 | L9: ﾃﾞｨｰｾﾞﾙｴﾝｼﾞﾝ車(過給器付) | P9: ｶﾞｿﾘﾝHEV車(過給器付)
B10: 製品/部品名 | J10: 0 | K10: ①質量由来 | L10: ﾃﾞｨｰｾﾞﾙHEV車(自然吸気) | P10: ﾃﾞｨｰｾﾞﾙｴﾝｼﾞﾝ車(自然吸気)
J11: 0 | K11: ①質量由来 | L11: ﾃﾞｨｰｾﾞﾙHEV車(過給器付) | P11: ﾃﾞｨｰｾﾞﾙｴﾝｼﾞﾝ車(過給器付)
A12: ◆使用段階負荷量 | J12: 0 | K12: ①質量由来 | L12: EV | P12: ﾃﾞｨｰｾﾞﾙHEV車(自然吸気)
A13: 算出用 入力データ | B13: 質量（kg） | J13: 0 | K13: ①質量由来 | L13: 燃料電池車 | P13: ﾃﾞｨｰｾﾞﾙHEV車(過給器付)
B14: 慣性モーメント(kg･m2) ﾀｲﾔ外径(m) | J14: 0 | K14: ②電力由来 | L14: ｶﾞｿﾘﾝｴﾝｼﾞﾝ車(自然吸気) | P14: オイル・ポンプ1
B15: 製品前面投影面積(m2) | J15: 0 | K15: ②電力由来 | L15: ｶﾞｿﾘﾝｴﾝｼﾞﾝ車(過給器付) | P15: ｶﾞｿﾘﾝｴﾝｼﾞﾝ車(自然吸気)
B16: 電流（A） | J16: 0 | K16: ②電力由来 | L16: ｶﾞｿﾘﾝHEV車(自然吸気) | P16: ｶﾞｿﾘﾝｴﾝｼﾞﾝ車(過給器付)
B17: 電力/動力（W） 平均ｴﾝｼﾞﾝ回転数(s-1) | J17: 0 | K17: ②電力由来 | L17: ｶﾞｿﾘﾝHEV車(過給器付) | P17: ｶﾞｿﾘﾝHEV車(自然吸気)
B18: 生涯動作時間（s） | J18: 0 | K18: ②電力由来 | L18: ﾃﾞｨｰｾﾞﾙｴﾝｼﾞﾝ車(自然吸気) | P18: ｶﾞｿﾘﾝHEV車(過給器付)
A19: 計算結果 エネルギー消費量 | B19: ｶﾞｿﾘﾝｴﾝｼﾞﾝ車 (自然吸気) (L) | J19: 0 | K19: ②電力由来 | L19: ﾃﾞｨｰｾﾞﾙｴﾝｼﾞﾝ車(過給器付) | P19: ﾃﾞｨｰｾﾞﾙｴﾝｼﾞﾝ車(自然吸気)
B20: ｶﾞｿﾘﾝｴﾝｼﾞﾝ車 (過給器付) (L) | J20: 0 | K20: ②電力由来 | L20: ﾃﾞｨｰｾﾞﾙHEV車(自然吸気) | P20: ﾃﾞｨｰｾﾞﾙｴﾝｼﾞﾝ車(過給器付)
B21: ｶﾞｿﾘﾝHEV車 (自然吸気) (L) | J21: 0 | K21: ②電力由来 | L21: ﾃﾞｨｰｾﾞﾙHEV車(過給器付) | P21: ﾃﾞｨｰｾﾞﾙHEV車(自然吸気)
B22: ｶﾞｿﾘﾝHEV車 (過給器付) (L) | J22: 0 | K22: ②電力由来 | L22: EV | P22: ﾃﾞｨｰｾﾞﾙHEV車(過給器付)
B23: ﾃﾞｨｰｾﾞﾙｴﾝｼﾞﾝ車 (自然吸気) (L) | J23: 0 | K23: ②電力由来 | L23: 燃料電池車 | P23: オイル・ポンプ2
B24: ﾃﾞｨｰｾﾞﾙｴﾝｼﾞﾝ車 (過給器付) (L) | J24: 0 | K24: ③動力由来 | L24: ｶﾞｿﾘﾝｴﾝｼﾞﾝ車(自然吸気) | P24: ｶﾞｿﾘﾝｴﾝｼﾞﾝ車(自然吸気)
B25: ﾃﾞｨｰｾﾞﾙHEV車 (自然吸気) (L) | J25: 0 | K25: ③動力由来 | L25: ｶﾞｿﾘﾝｴﾝｼﾞﾝ車(過給器付) | P25: ｶﾞｿﾘﾝｴﾝｼﾞﾝ車(過給器付)
B26: ﾃﾞｨｰｾﾞﾙHEV車 (過給器付) (L) | J26: 0 | K26: ③動力由来 | L26: ｶﾞｿﾘﾝHEV車(自然吸気) | P26: ｶﾞｿﾘﾝHEV車(自然吸気)
B27: EV (kWh) | J27: 0 | K27: ③動力由来 | L27: ｶﾞｿﾘﾝHEV車(過給器付) | P27: ｶﾞｿﾘﾝHEV車(過給器付)
B28: 燃料電池車 (Nm3) | J28: 0 | K28: ③動力由来 | L28: ﾃﾞｨｰｾﾞﾙｴﾝｼﾞﾝ車(自然吸気) | P28: ﾃﾞｨｰｾﾞﾙｴﾝｼﾞﾝ車(自然吸気)
J29: 0 | K29: ③動力由来 | L29: ﾃﾞｨｰｾﾞﾙｴﾝｼﾞﾝ車(過給器付) | P29: ﾃﾞｨｰｾﾞﾙｴﾝｼﾞﾝ車(過給器付)
J30: 0 | K30: ③動力由来 | L30: ﾃﾞｨｰｾﾞﾙHEV車(自然吸気) | P30: ﾃﾞｨｰｾﾞﾙHEV車(自然吸気)
J31: 0 | K31: ③動力由来 | L31: ﾃﾞｨｰｾﾞﾙHEV車(過給器付) | P31: ﾃﾞｨｰｾﾞﾙHEV車(過給器付)
J32: 0 | K32: ③動力由来 | L32: EV | P32: オイル・ポンプ3
J33: 0 | K33: ③動力由来 | L33: 燃料電池車 | P33: ｶﾞｿﾘﾝｴﾝｼﾞﾝ車(自然吸気)
J34: 0 | K34: ④エンジン系 | L34: ｶﾞｿﾘﾝｴﾝｼﾞﾝ車(自然吸気) | P34: ｶﾞｿﾘﾝｴﾝｼﾞﾝ車(過給器付)
J35: 0 | K35: ④エンジン系 | L35: ｶﾞｿﾘﾝｴﾝｼﾞﾝ車(過給器付) | P35: ｶﾞｿﾘﾝHEV車(自然吸気)
J36: 0 | K36: ④エンジン系 | L36: ｶﾞｿﾘﾝHEV車(自然吸気) | P36: ｶﾞｿﾘﾝHEV車(過給器付)
J37: 0 | K37: ④エンジン系 | L37: ｶﾞｿﾘﾝHEV車(過給器付) | P37: ﾃﾞｨｰｾﾞﾙｴﾝｼﾞﾝ車(自然吸気)
J38: 0 | K38: ④エンジン系 | L38: ﾃﾞｨｰｾﾞﾙｴﾝｼﾞﾝ車(自然吸気) | P38: ﾃﾞｨｰｾﾞﾙｴﾝｼﾞﾝ車(過給器付)
J39: 0 | K39: ④エンジン系 | L39: ﾃﾞｨｰｾﾞﾙｴﾝｼﾞﾝ車(過給器付) | P39: ﾃﾞｨｰｾﾞﾙHEV車(自然吸気)
J40: 0 | K40: ④エンジン系 | L40: ﾃﾞｨｰｾﾞﾙHEV車(自然吸気) | P40: ﾃﾞｨｰｾﾞﾙHEV車(過給器付)
J41: 0 | K41: ④エンジン系 | L41: ﾃﾞｨｰｾﾞﾙHEV車(過給器付) | P41: 総計
J42: 0 | K42: ④エンジン系 | L42: EV
J43: 0 | K43: ④エンジン系 | L43: 燃料電池車
J44: =$E$10 -> 0 | K44: ①質量由来 | L44: ｶﾞｿﾘﾝｴﾝｼﾞﾝ車(自然吸気)
J45: =$E$10 -> 0 | K45: ①質量由来 | L45: ｶﾞｿﾘﾝｴﾝｼﾞﾝ車(過給器付)
J46: 0 | K46: ①質量由来 | L46: ｶﾞｿﾘﾝHEV車(自然吸気)
J47: 0 | K47: ①質量由来 | L47: ｶﾞｿﾘﾝHEV車(過給器付)
J48: 0 | K48: ①質量由来 | L48: ﾃﾞｨｰｾﾞﾙｴﾝｼﾞﾝ車(自然吸気)
J49: 0 | K49: ①質量由来 | L49: ﾃﾞｨｰｾﾞﾙｴﾝｼﾞﾝ車(過給器付)
J50: 0 | K50: ①質量由来 | L50: ﾃﾞｨｰｾﾞﾙHEV車(自然吸気)
J51: 0 | K51: ①質量由来 | L51: ﾃﾞｨｰｾﾞﾙHEV車(過給器付)
J52: 0 | K52: ①質量由来 | L52: EV
J53: 0 | K53: ①質量由来 | L53: 燃料電池車
J54: 0 | K54: ②電力由来 | L54: ｶﾞｿﾘﾝｴﾝｼﾞﾝ車(自然吸気)
J55: 0 | K55: ②電力由来 | L55: ｶﾞｿﾘﾝｴﾝｼﾞﾝ車(過給器付)
J56: 0 | K56: ②電力由来 | L56: ｶﾞｿﾘﾝHEV車(自然吸気)
J57: 0 | K57: ②電力由来 | L57: ｶﾞｿﾘﾝHEV車(過給器付)
J58: 0 | K58: ②電力由来 | L58: ﾃﾞｨｰｾﾞﾙｴﾝｼﾞﾝ車(自然吸気)
J59: 0 | K59: ②電力由来 | L59: ﾃﾞｨｰｾﾞﾙｴﾝｼﾞﾝ車(過給器付)
J60: 0 | K60: ②電力由来 | L60: ﾃﾞｨｰｾﾞﾙHEV車(自然吸気)
J61: 0 | K61: ②電力由来 | L61: ﾃﾞｨｰｾﾞﾙHEV車(過給器付)
J62: 0 | K62: ②電力由来 | L62: EV
J63: 0 | K63: ②電力由来 | L63: 燃料電池車
J64: 0 | K64: ③動力由来 | L64: ｶﾞｿﾘﾝｴﾝｼﾞﾝ車(自然吸気)
J65: 0 | K65: ③動力由来 | L65: ｶﾞｿﾘﾝｴﾝｼﾞﾝ車(過給器付)
J66: 0 | K66: ③動力由来 | L66: ｶﾞｿﾘﾝHEV車(自然吸気)
J67: 0 | K67: ③動力由来 | L67: ｶﾞｿﾘﾝHEV車(過給器付)
J68: 0 | K68: ③動力由来 | L68: ﾃﾞｨｰｾﾞﾙｴﾝｼﾞﾝ車(自然吸気)
J69: 0 | K69: ③動力由来 | L69: ﾃﾞｨｰｾﾞﾙｴﾝｼﾞﾝ車(過給器付)
J70: 0 | K70: ③動力由来 | L70: ﾃﾞｨｰｾﾞﾙHEV車(自然吸気)
J71: 0 | K71: ③動力由来 | L71: ﾃﾞｨｰｾﾞﾙHEV車(過給器付)
J72: 0 | K72: ③動力由来 | L72: EV
J73: 0 | K73: ③動力由来 | L73: 燃料電池車
J74: 0 | K74: ④エンジン系 | L74: ｶﾞｿﾘﾝｴﾝｼﾞﾝ車(自然吸気)
J75: 0 | K75: ④エンジン系 | L75: ｶﾞｿﾘﾝｴﾝｼﾞﾝ車(過給器付)
J76: 0 | K76: ④エンジン系 | L76: ｶﾞｿﾘﾝHEV車(自然吸気)
J77: 0 | K77: ④エンジン系 | L77: ｶﾞｿﾘﾝHEV車(過給器付)
J78: 0 | K78: ④エンジン系 | L78: ﾃﾞｨｰｾﾞﾙｴﾝｼﾞﾝ車(自然吸気)
J79: 0 | K79: ④エンジン系 | L79: ﾃﾞｨｰｾﾞﾙｴﾝｼﾞﾝ車(過給器付)
J80: 0 | K80: ④エンジン系 | L80: ﾃﾞｨｰｾﾞﾙHEV車(自然吸気)
J81: 0 | K81: ④エンジン系 | L81: ﾃﾞｨｰｾﾞﾙHEV車(過給器付)
J82: 0 | K82: ④エンジン系 | L82: EV
J83: 0 | K83: ④エンジン系 | L83: 燃料電池車
J84: =$F$10 -> 0 | K84: ①質量由来 | L84: ｶﾞｿﾘﾝｴﾝｼﾞﾝ車(自然吸気)
J85: =$F$10 -> 0 | K85: ①質量由来 | L85: ｶﾞｿﾘﾝｴﾝｼﾞﾝ車(過給器付)
J86: 0 | K86: ①質量由来 | L86: ｶﾞｿﾘﾝHEV車(自然吸気)
J87: 0 | K87: ①質量由来 | L87: ｶﾞｿﾘﾝHEV車(過給器付)
J88: 0 | K88: ①質量由来 | L88: ﾃﾞｨｰｾﾞﾙｴﾝｼﾞﾝ車(自然吸気)
J89: 0 | K89: ①質量由来 | L89: ﾃﾞｨｰｾﾞﾙｴﾝｼﾞﾝ車(過給器付)
J90: 0 | K90: ①質量由来 | L90: ﾃﾞｨｰｾﾞﾙHEV車(自然吸気)
J91: 0 | K91: ①質量由来 | L91: ﾃﾞｨｰｾﾞﾙHEV車(過給器付)
J92: 0 | K92: ①質量由来 | L92: EV
J93: 0 | K93: ①質量由来 | L93: 燃料電池車
J94: 0 | K94: ②電力由来 | L94: ｶﾞｿﾘﾝｴﾝｼﾞﾝ車(自然吸気)
J95: 0 | K95: ②電力由来 | L95: ｶﾞｿﾘﾝｴﾝｼﾞﾝ車(過給器付)
J96: 0 | K96: ②電力由来 | L96: ｶﾞｿﾘﾝHEV車(自然吸気)
J97: 0 | K97: ②電力由来 | L97: ｶﾞｿﾘﾝHEV車(過給器付)
J98: 0 | K98: ②電力由来 | L98: ﾃﾞｨｰｾﾞﾙｴﾝｼﾞﾝ車(自然吸気)
J99: 0 | K99: ②電力由来 | L99: ﾃﾞｨｰｾﾞﾙｴﾝｼﾞﾝ車(過給器付)
J100: 0 | K100: ②電力由来 | L100: ﾃﾞｨｰｾﾞﾙHEV車(自然吸気)
J101: 0 | K101: ②電力由来 | L101: ﾃﾞｨｰｾﾞﾙHEV車(過給器付)
J102: 0 | K102: ②電力由来 | L102: EV
J103: 0 | K103: ②電力由来 | L103: 燃料電池車
J104: 0 | K104: ③動力由来 | L104: ｶﾞｿﾘﾝｴﾝｼﾞﾝ車(自然吸気)
J105: 0 | K105: ③動力由来 | L105: ｶﾞｿﾘﾝｴﾝｼﾞﾝ車(過給器付)
J106: 0 | K106: ③動力由来 | L106: ｶﾞｿﾘﾝHEV車(自然吸気)
J107: 0 | K107: ③動力由来 | L107: ｶﾞｿﾘﾝHEV車(過給器付)
J108: 0 | K108: ③動力由来 | L108: ﾃﾞｨｰｾﾞﾙｴﾝｼﾞﾝ車(自然吸気)
J109: 0 | K109: ③動力由来 | L109: ﾃﾞｨｰｾﾞﾙｴﾝｼﾞﾝ車(過給器付)
J110: 0 | K110: ③動力由来 | L110: ﾃﾞｨｰｾﾞﾙHEV車(自然吸気)
J111: 0 | K111: ③動力由来 | L111: ﾃﾞｨｰｾﾞﾙHEV車(過給器付)
J112: 0 | K112: ③動力由来 | L112: EV
J113: 0 | K113: ③動力由来 | L113: 燃料電池車
J114: 0 | K114: ④エンジン系 | L114: ｶﾞｿﾘﾝｴﾝｼﾞﾝ車(自然吸気)
J115: 0 | K115: ④エンジン系 | L115: ｶﾞｿﾘﾝｴﾝｼﾞﾝ車(過給器付)
J116: 0 | K116: ④エンジン系 | L116: ｶﾞｿﾘﾝHEV車(自然吸気)
J117: 0 | K117: ④エンジン系 | L117: ｶﾞｿﾘﾝHEV車(過給器付)
J118: 0 | K118: ④エンジン系 | L118: ﾃﾞｨｰｾﾞﾙｴﾝｼﾞﾝ車(自然吸気)
J119: 0 | K119: ④エンジン系 | L119: ﾃﾞｨｰｾﾞﾙｴﾝｼﾞﾝ車(過給器付)
J120: 0 | K120: ④エンジン系 | L120: ﾃﾞｨｰｾﾞﾙHEV車(自然吸気)
J121: 0 | K121: ④エンジン系 | L121: ﾃﾞｨｰｾﾞﾙHEV車(過給器付)
J122: 0 | K122: ④エンジン系 | L122: EV
J123: 0 | K123: ④エンジン系 | L123: 燃料電池車
J124: =$C$10 -> 0 | K124: ①質量由来 | L124: ｶﾞｿﾘﾝｴﾝｼﾞﾝ車(自然吸気)
J125: =$C$10 -> 0 | K125: ①質量由来 | L125: ｶﾞｿﾘﾝｴﾝｼﾞﾝ車(過給器付)
J126: 0 | K126: ①質量由来 | L126: ｶﾞｿﾘﾝHEV車(自然吸気)
J127: 0 | K127: ①質量由来 | L127: ｶﾞｿﾘﾝHEV車(過給器付)
J128: 0 | K128: ①質量由来 | L128: ﾃﾞｨｰｾﾞﾙｴﾝｼﾞﾝ車(自然吸気)
J129: 0 | K129: ①質量由来 | L129: ﾃﾞｨｰｾﾞﾙｴﾝｼﾞﾝ車(過給器付)
J130: 0 | K130: ①質量由来 | L130: ﾃﾞｨｰｾﾞﾙHEV車(自然吸気)
J131: 0 | K131: ①質量由来 | L131: ﾃﾞｨｰｾﾞﾙHEV車(過給器付)
J132: 0 | K132: ①質量由来 | L132: EV
J133: 0 | K133: ①質量由来 | L133: 燃料電池車
J134: 0 | K134: ②電力由来 | L134: ｶﾞｿﾘﾝｴﾝｼﾞﾝ車(自然吸気)
J135: 0 | K135: ②電力由来 | L135: ｶﾞｿﾘﾝｴﾝｼﾞﾝ車(過給器付)
J136: 0 | K136: ②電力由来 | L136: ｶﾞｿﾘﾝHEV車(自然吸気)
J137: 0 | K137: ②電力由来 | L137: ｶﾞｿﾘﾝHEV車(過給器付)
J138: 0 | K138: ②電力由来 | L138: ﾃﾞｨｰｾﾞﾙｴﾝｼﾞﾝ車(自然吸気)
J139: 0 | K139: ②電力由来 | L139: ﾃﾞｨｰｾﾞﾙｴﾝｼﾞﾝ車(過給器付)
J140: 0 | K140: ②電力由来 | L140: ﾃﾞｨｰｾﾞﾙHEV車(自然吸気)
J141: 0 | K141: ②電力由来 | L141: ﾃﾞｨｰｾﾞﾙHEV車(過給器付)
J142: 0 | K142: ②電力由来 | L142: EV
J143: 0 | K143: ②電力由来 | L143: 燃料電池車
J144: 0 | K144: ③動力由来 | L144: ｶﾞｿﾘﾝｴﾝｼﾞﾝ車(自然吸気)
J145: 0 | K145: ③動力由来 | L145: ｶﾞｿﾘﾝｴﾝｼﾞﾝ車(過給器付)
J146: 0 | K146: ③動力由来 | L146: ｶﾞｿﾘﾝHEV車(自然吸気)
J147: 0 | K147: ③動力由来 | L147: ｶﾞｿﾘﾝHEV車(過給器付)
J148: 0 | K148: ③動力由来 | L148: ﾃﾞｨｰｾﾞﾙｴﾝｼﾞﾝ車(自然吸気)
J149: 0 | K149: ③動力由来 | L149: ﾃﾞｨｰｾﾞﾙｴﾝｼﾞﾝ車(過給器付)
J150: 0 | K150: ③動力由来 | L150: ﾃﾞｨｰｾﾞﾙHEV車(自然吸気)
J151: 0 | K151: ③動力由来 | L151: ﾃﾞｨｰｾﾞﾙHEV車(過給器付)
J152: 0 | K152: ③動力由来 | L152: EV
J153: 0 | K153: ③動力由来 | L153: 燃料電池車
J154: 0 | K154: ④エンジン系 | L154: ｶﾞｿﾘﾝｴﾝｼﾞﾝ車(自然吸気)
J155: 0 | K155: ④エンジン系 | L155: ｶﾞｿﾘﾝｴﾝｼﾞﾝ車(過給器付)
J156: 0 | K156: ④エンジン系 | L156: ｶﾞｿﾘﾝHEV車(自然吸気)
J157: 0 | K157: ④エンジン系 | L157: ｶﾞｿﾘﾝHEV車(過給器付)
J158: 0 | K158: ④エンジン系 | L158: ﾃﾞｨｰｾﾞﾙｴﾝｼﾞﾝ車(自然吸気)
J159: 0 | K159: ④エンジン系 | L159: ﾃﾞｨｰｾﾞﾙｴﾝｼﾞﾝ車(過給器付)
J160: 0 | K160: ④エンジン系 | L160: ﾃﾞｨｰｾﾞﾙHEV車(自然吸気)
J161: 0 | K161: ④エンジン系 | L161: ﾃﾞｨｰｾﾞﾙHEV車(過給器付)
J162: 0 | K162: ④エンジン系 | L162: EV
J163: 0 | K163: ④エンジン系 | L163: 燃料電池車

Sheet グラフレポートE_G_CO2 (hidden)
A3: ◆LCI対象製品の基本情報 | J3: 製品名 | K3: 配分内訳 | L3: エンジン種類 | M3: CO2排出量 | P3: 合計 / CO2排出量 | Q3: 列ラベル
B4: JAPIA製品群 | J4: =$D$10 -> 0 | K4: ①質量由来 | L4: ｶﾞｿﾘﾝｴﾝｼﾞﾝ車(自然吸気) | P4: 行ラベル | Q4: ①質量由来 | R4: ②電力由来 | S4: ③動力由来 | T4: ④エンジン系 | U4: 総計
B5: システム境界 (評価対象の製品の範囲) | J5: =$D$10 -> 0 | K5: ①質量由来 | L5: ｶﾞｿﾘﾝｴﾝｼﾞﾝ車(過給器付) | P5: 2
B6: 機能単位 (製品性能を表す特性値当りの単位) | J6: 0 | K6: ①質量由来 | L6: ｶﾞｿﾘﾝHEV車(自然吸気) | P6: ｶﾞｿﾘﾝｴﾝｼﾞﾝ車(自然吸気)
B7: 評価個数 | J7: 0 | K7: ①質量由来 | L7: ｶﾞｿﾘﾝHEV車(過給器付) | P7: ｶﾞｿﾘﾝｴﾝｼﾞﾝ車(過給器付)
B8: 動作電圧(V) | C8: 12 | D8: 12 | E8: 12 | F8: 12 | J8: 0 | K8: ①質量由来 | L8: ﾃﾞｨｰｾﾞﾙｴﾝｼﾞﾝ車(自然吸気) | P8: ｶﾞｿﾘﾝHEV車(自然吸気)
B9: 製品/部品品番 | J9: 0 | K9: ①質量由来 | L9: ﾃﾞｨｰｾﾞﾙｴﾝｼﾞﾝ車(過給器付) | P9: ｶﾞｿﾘﾝHEV車(過給器付)
B10: 製品/部品名 | J10: 0 | K10: ①質量由来 | L10: ﾃﾞｨｰｾﾞﾙHEV車(自然吸気) | P10: ﾃﾞｨｰｾﾞﾙｴﾝｼﾞﾝ車(自然吸気)
J11: 0 | K11: ①質量由来 | L11: ﾃﾞｨｰｾﾞﾙHEV車(過給器付) | P11: ﾃﾞｨｰｾﾞﾙｴﾝｼﾞﾝ車(過給器付)
A12: ◆使用段階負荷量 | J12: 0 | K12: ①質量由来 | L12: EV | P12: ﾃﾞｨｰｾﾞﾙHEV車(自然吸気)
A13: 算出用 入力データ | B13: 質量（kg） | J13: 0 | K13: ①質量由来 | L13: 燃料電池車 | P13: ﾃﾞｨｰｾﾞﾙHEV車(過給器付)
B14: 慣性モーメント(kg･m2) ﾀｲﾔ外径(m) | J14: 0 | K14: ②電力由来 | L14: ｶﾞｿﾘﾝｴﾝｼﾞﾝ車(自然吸気) | P14: オイル・ポンプ1
B15: 製品前面投影面積(m2) | J15: 0 | K15: ②電力由来 | L15: ｶﾞｿﾘﾝｴﾝｼﾞﾝ車(過給器付) | P15: ｶﾞｿﾘﾝｴﾝｼﾞﾝ車(自然吸気)
B16: 電流（A） | J16: 0 | K16: ②電力由来 | L16: ｶﾞｿﾘﾝHEV車(自然吸気) | P16: ｶﾞｿﾘﾝｴﾝｼﾞﾝ車(過給器付)
B17: 電力/動力（W） 平均ｴﾝｼﾞﾝ回転数(s-1) | J17: 0 | K17: ②電力由来 | L17: ｶﾞｿﾘﾝHEV車(過給器付) | P17: ｶﾞｿﾘﾝHEV車(自然吸気)
B18: 生涯動作時間（s） | J18: 0 | K18: ②電力由来 | L18: ﾃﾞｨｰｾﾞﾙｴﾝｼﾞﾝ車(自然吸気) | P18: ｶﾞｿﾘﾝHEV車(過給器付)
A19: 算出結果 CO2 排出量 (g-CO2) | B19: ｶﾞｿﾘﾝｴﾝｼﾞﾝ車 (自然吸気) | J19: 0 | K19: ②電力由来 | L19: ﾃﾞｨｰｾﾞﾙｴﾝｼﾞﾝ車(過給器付) | P19: ﾃﾞｨｰｾﾞﾙｴﾝｼﾞﾝ車(自然吸気)
B20: ｶﾞｿﾘﾝｴﾝｼﾞﾝ車 (過給器付) | J20: 0 | K20: ②電力由来 | L20: ﾃﾞｨｰｾﾞﾙHEV車(自然吸気) | P20: ﾃﾞｨｰｾﾞﾙｴﾝｼﾞﾝ車(過給器付)
B21: ｶﾞｿﾘﾝHEV車 (自然吸気) | J21: 0 | K21: ②電力由来 | L21: ﾃﾞｨｰｾﾞﾙHEV車(過給器付) | P21: ﾃﾞｨｰｾﾞﾙHEV車(自然吸気)
B22: ｶﾞｿﾘﾝHEV車 (過給器付) | J22: 0 | K22: ②電力由来 | L22: EV | P22: ﾃﾞｨｰｾﾞﾙHEV車(過給器付)
B23: ﾃﾞｨｰｾﾞﾙｴﾝｼﾞﾝ車 (自然吸気) | J23: 0 | K23: ②電力由来 | L23: 燃料電池車 | P23: オイル・ポンプ2
B24: ﾃﾞｨｰｾﾞﾙｴﾝｼﾞﾝ車 (過給器付) | J24: 0 | K24: ③動力由来 | L24: ｶﾞｿﾘﾝｴﾝｼﾞﾝ車(自然吸気) | P24: ｶﾞｿﾘﾝｴﾝｼﾞﾝ車(自然吸気)
B25: ﾃﾞｨｰｾﾞﾙHEV車 (自然吸気) | J25: 0 | K25: ③動力由来 | L25: ｶﾞｿﾘﾝｴﾝｼﾞﾝ車(過給器付) | P25: ｶﾞｿﾘﾝｴﾝｼﾞﾝ車(過給器付)
B26: ﾃﾞｨｰｾﾞﾙHEV車 (過給器付) | J26: 0 | K26: ③動力由来 | L26: ｶﾞｿﾘﾝHEV車(自然吸気) | P26: ｶﾞｿﾘﾝHEV車(自然吸気)
B27: EV | J27: 0 | K27: ③動力由来 | L27: ｶﾞｿﾘﾝHEV車(過給器付) | P27: ｶﾞｿﾘﾝHEV車(過給器付)
B28: 燃料電池車 | J28: 0 | K28: ③動力由来 | L28: ﾃﾞｨｰｾﾞﾙｴﾝｼﾞﾝ車(自然吸気) | P28: ﾃﾞｨｰｾﾞﾙｴﾝｼﾞﾝ車(自然吸気)
J29: 0 | K29: ③動力由来 | L29: ﾃﾞｨｰｾﾞﾙｴﾝｼﾞﾝ車(過給器付) | P29: ﾃﾞｨｰｾﾞﾙｴﾝｼﾞﾝ車(過給器付)
J30: 0 | K30: ③動力由来 | L30: ﾃﾞｨｰｾﾞﾙHEV車(自然吸気) | P30: ﾃﾞｨｰｾﾞﾙHEV車(自然吸気)
J31: 0 | K31: ③動力由来 | L31: ﾃﾞｨｰｾﾞﾙHEV車(過給器付) | P31: ﾃﾞｨｰｾﾞﾙHEV車(過給器付)
J32: 0 | K32: ③動力由来 | L32: EV | P32: オイル・ポンプ3
J33: 0 | K33: ③動力由来 | L33: 燃料電池車 | P33: ｶﾞｿﾘﾝｴﾝｼﾞﾝ車(自然吸気)
J34: 0 | K34: ④エンジン系 | L34: ｶﾞｿﾘﾝｴﾝｼﾞﾝ車(自然吸気) | P34: ｶﾞｿﾘﾝｴﾝｼﾞﾝ車(過給器付)
J35: 0 | K35: ④エンジン系 | L35: ｶﾞｿﾘﾝｴﾝｼﾞﾝ車(過給器付) | P35: ｶﾞｿﾘﾝHEV車(自然吸気)
J36: 0 | K36: ④エンジン系 | L36: ｶﾞｿﾘﾝHEV車(自然吸気) | P36: ｶﾞｿﾘﾝHEV車(過給器付)
J37: 0 | K37: ④エンジン系 | L37: ｶﾞｿﾘﾝHEV車(過給器付) | P37: ﾃﾞｨｰｾﾞﾙｴﾝｼﾞﾝ車(自然吸気)
J38: 0 | K38: ④エンジン系 | L38: ﾃﾞｨｰｾﾞﾙｴﾝｼﾞﾝ車(自然吸気) | P38: ﾃﾞｨｰｾﾞﾙｴﾝｼﾞﾝ車(過給器付)
J39: 0 | K39: ④エンジン系 | L39: ﾃﾞｨｰｾﾞﾙｴﾝｼﾞﾝ車(過給器付) | P39: ﾃﾞｨｰｾﾞﾙHEV車(自然吸気)
J40: 0 | K40: ④エンジン系 | L40: ﾃﾞｨｰｾﾞﾙHEV車(自然吸気) | P40: ﾃﾞｨｰｾﾞﾙHEV車(過給器付)
J41: 0 | K41: ④エンジン系 | L41: ﾃﾞｨｰｾﾞﾙHEV車(過給器付) | P41: 総計
J42: 0 | K42: ④エンジン系 | L42: EV
J43: 0 | K43: ④エンジン系 | L43: 燃料電池車
J44: =$E$10 -> 0 | K44: ①質量由来 | L44: ｶﾞｿﾘﾝｴﾝｼﾞﾝ車(自然吸気)
J45: =$E$10 -> 0 | K45: ①質量由来 | L45: ｶﾞｿﾘﾝｴﾝｼﾞﾝ車(過給器付)
J46: 0 | K46: ①質量由来 | L46: ｶﾞｿﾘﾝHEV車(自然吸気)
J47: 0 | K47: ①質量由来 | L47: ｶﾞｿﾘﾝHEV車(過給器付)
J48: 0 | K48: ①質量由来 | L48: ﾃﾞｨｰｾﾞﾙｴﾝｼﾞﾝ車(自然吸気)
J49: 0 | K49: ①質量由来 | L49: ﾃﾞｨｰｾﾞﾙｴﾝｼﾞﾝ車(過給器付)
J50: 0 | K50: ①質量由来 | L50: ﾃﾞｨｰｾﾞﾙHEV車(自然吸気)
J51: 0 | K51: ①質量由来 | L51: ﾃﾞｨｰｾﾞﾙHEV車(過給器付)
J52: 0 | K52: ①質量由来 | L52: EV
J53: 0 | K53: ①質量由来 | L53: 燃料電池車
J54: 0 | K54: ②電力由来 | L54: ｶﾞｿﾘﾝｴﾝｼﾞﾝ車(自然吸気)
J55: 0 | K55: ②電力由来 | L55: ｶﾞｿﾘﾝｴﾝｼﾞﾝ車(過給器付)
J56: 0 | K56: ②電力由来 | L56: ｶﾞｿﾘﾝHEV車(自然吸気)
J57: 0 | K57: ②電力由来 | L57: ｶﾞｿﾘﾝHEV車(過給器付)
J58: 0 | K58: ②電力由来 | L58: ﾃﾞｨｰｾﾞﾙｴﾝｼﾞﾝ車(自然吸気)
J59: 0 | K59: ②電力由来 | L59: ﾃﾞｨｰｾﾞﾙｴﾝｼﾞﾝ車(過給器付)
J60: 0 | K60: ②電力由来 | L60: ﾃﾞｨｰｾﾞﾙHEV車(自然吸気)
J61: 0 | K61: ②電力由来 | L61: ﾃﾞｨｰｾﾞﾙHEV車(過給器付)
J62: 0 | K62: ②電力由来 | L62: EV
J63: 0 | K63: ②電力由来 | L63: 燃料電池車
J64: 0 | K64: ③動力由来 | L64: ｶﾞｿﾘﾝｴﾝｼﾞﾝ車(自然吸気)
J65: 0 | K65: ③動力由来 | L65: ｶﾞｿﾘﾝｴﾝｼﾞﾝ車(過給器付)
J66: 0 | K66: ③動力由来 | L66: ｶﾞｿﾘﾝHEV車(自然吸気)
J67: 0 | K67: ③動力由来 | L67: ｶﾞｿﾘﾝHEV車(過給器付)
J68: 0 | K68: ③動力由来 | L68: ﾃﾞｨｰｾﾞﾙｴﾝｼﾞﾝ車(自然吸気)
J69: 0 | K69: ③動力由来 | L69: ﾃﾞｨｰｾﾞﾙｴﾝｼﾞﾝ車(過給器付)
J70: 0 | K70: ③動力由来 | L70: ﾃﾞｨｰｾﾞﾙHEV車(自然吸気)
J71: 0 | K71: ③動力由来 | L71: ﾃﾞｨｰｾﾞﾙHEV車(過給器付)
J72: 0 | K72: ③動力由来 | L72: EV
J73: 0 | K73: ③動力由来 | L73: 燃料電池車
J74: 0 | K74: ④エンジン系 | L74: ｶﾞｿﾘﾝｴﾝｼﾞﾝ車(自然吸気)
J75: 0 | K75: ④エンジン系 | L75: ｶﾞｿﾘﾝｴﾝｼﾞﾝ車(過給器付)
J76: 0 | K76: ④エンジン系 | L76: ｶﾞｿﾘﾝHEV車(自然吸気)
J77: 0 | K77: ④エンジン系 | L77: ｶﾞｿﾘﾝHEV車(過給器付)
J78: 0 | K78: ④エンジン系 | L78: ﾃﾞｨｰｾﾞﾙｴﾝｼﾞﾝ車(自然吸気)
J79: 0 | K79: ④エンジン系 | L79: ﾃﾞｨｰｾﾞﾙｴﾝｼﾞﾝ車(過給器付)
J80: 0 | K80: ④エンジン系 | L80: ﾃﾞｨｰｾﾞﾙHEV車(自然吸気)
J81: 0 | K81: ④エンジン系 | L81: ﾃﾞｨｰｾﾞﾙHEV車(過給器付)
J82: 0 | K82: ④エンジン系 | L82: EV
J83: 0 | K83: ④エンジン系 | L83: 燃料電池車
J84: =$F$10 -> 0 | K84: ①質量由来 | L84: ｶﾞｿﾘﾝｴﾝｼﾞﾝ車(自然吸気)
J85: =$F$10 -> 0 | K85: ①質量由来 | L85: ｶﾞｿﾘﾝｴﾝｼﾞﾝ車(過給器付)
J86: 0 | K86: ①質量由来 | L86: ｶﾞｿﾘﾝHEV車(自然吸気)
J87: 0 | K87: ①質量由来 | L87: ｶﾞｿﾘﾝHEV車(過給器付)
J88: 0 | K88: ①質量由来 | L88: ﾃﾞｨｰｾﾞﾙｴﾝｼﾞﾝ車(自然吸気)
J89: 0 | K89: ①質量由来 | L89: ﾃﾞｨｰｾﾞﾙｴﾝｼﾞﾝ車(過給器付)
J90: 0 | K90: ①質量由来 | L90: ﾃﾞｨｰｾﾞﾙHEV車(自然吸気)
J91: 0 | K91: ①質量由来 | L91: ﾃﾞｨｰｾﾞﾙHEV車(過給器付)
J92: 0 | K92: ①質量由来 | L92: EV
J93: 0 | K93: ①質量由来 | L93: 燃料電池車
J94: 0 | K94: ②電力由来 | L94: ｶﾞｿﾘﾝｴﾝｼﾞﾝ車(自然吸気)
J95: 0 | K95: ②電力由来 | L95: ｶﾞｿﾘﾝｴﾝｼﾞﾝ車(過給器付)
J96: 0 | K96: ②電力由来 | L96: ｶﾞｿﾘﾝHEV車(自然吸気)
J97: 0 | K97: ②電力由来 | L97: ｶﾞｿﾘﾝHEV車(過給器付)
J98: 0 | K98: ②電力由来 | L98: ﾃﾞｨｰｾﾞﾙｴﾝｼﾞﾝ車(自然吸気)
J99: 0 | K99: ②電力由来 | L99: ﾃﾞｨｰｾﾞﾙｴﾝｼﾞﾝ車(過給器付)
J100: 0 | K100: ②電力由来 | L100: ﾃﾞｨｰｾﾞﾙHEV車(自然吸気)
J101: 0 | K101: ②電力由来 | L101: ﾃﾞｨｰｾﾞﾙHEV車(過給器付)
J102: 0 | K102: ②電力由来 | L102: EV
J103: 0 | K103: ②電力由来 | L103: 燃料電池車
J104: 0 | K104: ③動力由来 | L104: ｶﾞｿﾘﾝｴﾝｼﾞﾝ車(自然吸気)
J105: 0 | K105: ③動力由来 | L105: ｶﾞｿﾘﾝｴﾝｼﾞﾝ車(過給器付)
J106: 0 | K106: ③動力由来 | L106: ｶﾞｿﾘﾝHEV車(自然吸気)
J107: 0 | K107: ③動力由来 | L107: ｶﾞｿﾘﾝHEV車(過給器付)
J108: 0 | K108: ③動力由来 | L108: ﾃﾞｨｰｾﾞﾙｴﾝｼﾞﾝ車(自然吸気)
J109: 0 | K109: ③動力由来 | L109: ﾃﾞｨｰｾﾞﾙｴﾝｼﾞﾝ車(過給器付)
J110: 0 | K110: ③動力由来 | L110: ﾃﾞｨｰｾﾞﾙHEV車(自然吸気)
J111: 0 | K111: ③動力由来 | L111: ﾃﾞｨｰｾﾞﾙHEV車(過給器付)
J112: 0 | K112: ③動力由来 | L112: EV
J113: 0 | K113: ③動力由来 | L113: 燃料電池車
J114: 0 | K114: ④エンジン系 | L114: ｶﾞｿﾘﾝｴﾝｼﾞﾝ車(自然吸気)
J115: 0 | K115: ④エンジン系 | L115: ｶﾞｿﾘﾝｴﾝｼﾞﾝ車(過給器付)
J116: 0 | K116: ④エンジン系 | L116: ｶﾞｿﾘﾝHEV車(自然吸気)
J117: 0 | K117: ④エンジン系 | L117: ｶﾞｿﾘﾝHEV車(過給器付)
J118: 0 | K118: ④エンジン系 | L118: ﾃﾞｨｰｾﾞﾙｴﾝｼﾞﾝ車(自然吸気)
J119: 0 | K119: ④エンジン系 | L119: ﾃﾞｨｰｾﾞﾙｴﾝｼﾞﾝ車(過給器付)
J120: 0 | K120: ④エンジン系 | L120: ﾃﾞｨｰｾﾞﾙHEV車(自然吸気)
J121: 0 | K121: ④エンジン系 | L121: ﾃﾞｨｰｾﾞﾙHEV車(過給器付)
J122: 0 | K122: ④エンジン系 | L122: EV
J123: 0 | K123: ④エンジン系 | L123: 燃料電池車
J124: =$C$10 -> 0 | K124: ①質量由来 | L124: ｶﾞｿﾘﾝｴﾝｼﾞﾝ車(自然吸気)
J125: =$C$10 -> 0 | K125: ①質量由来 | L125: ｶﾞｿﾘﾝｴﾝｼﾞﾝ車(過給器付)
J126: 0 | K126: ①質量由来 | L126: ｶﾞｿﾘﾝHEV車(自然吸気)
J127: 0 | K127: ①質量由来 | L127: ｶﾞｿﾘﾝHEV車(過給器付)
J128: 0 | K128: ①質量由来 | L128: ﾃﾞｨｰｾﾞﾙｴﾝｼﾞﾝ車(自然吸気)
J129: 0 | K129: ①質量由来 | L129: ﾃﾞｨｰｾﾞﾙｴﾝｼﾞﾝ車(過給器付)
J130: 0 | K130: ①質量由来 | L130: ﾃﾞｨｰｾﾞﾙHEV車(自然吸気)
J131: 0 | K131: ①質量由来 | L131: ﾃﾞｨｰｾﾞﾙHEV車(過給器付)
J132: 0 | K132: ①質量由来 | L132: EV
J133: 0 | K133: ①質量由来 | L133: 燃料電池車
J134: 0 | K134: ②電力由来 | L134: ｶﾞｿﾘﾝｴﾝｼﾞﾝ車(自然吸気)
J135: 0 | K135: ②電力由来 | L135: ｶﾞｿﾘﾝｴﾝｼﾞﾝ車(過給器付)
J136: 0 | K136: ②電力由来 | L136: ｶﾞｿﾘﾝHEV車(自然吸気)
J137: 0 | K137: ②電力由来 | L137: ｶﾞｿﾘﾝHEV車(過給器付)
J138: 0 | K138: ②電力由来 | L138: ﾃﾞｨｰｾﾞﾙｴﾝｼﾞﾝ車(自然吸気)
J139: 0 | K139: ②電力由来 | L139: ﾃﾞｨｰｾﾞﾙｴﾝｼﾞﾝ車(過給器付)
J140: 0 | K140: ②電力由来 | L140: ﾃﾞｨｰｾﾞﾙHEV車(自然吸気)
J141: 0 | K141: ②電力由来 | L141: ﾃﾞｨｰｾﾞﾙHEV車(過給器付)
J142: 0 | K142: ②電力由来 | L142: EV
J143: 0 | K143: ②電力由来 | L143: 燃料電池車
J144: 0 | K144: ③動力由来 | L144: ｶﾞｿﾘﾝｴﾝｼﾞﾝ車(自然吸気)
J145: 0 | K145: ③動力由来 | L145: ｶﾞｿﾘﾝｴﾝｼﾞﾝ車(過給器付)
J146: 0 | K146: ③動力由来 | L146: ｶﾞｿﾘﾝHEV車(自然吸気)
J147: 0 | K147: ③動力由来 | L147: ｶﾞｿﾘﾝHEV車(過給器付)
J148: 0 | K148: ③動力由来 | L148: ﾃﾞｨｰｾﾞﾙｴﾝｼﾞﾝ車(自然吸気)
J149: 0 | K149: ③動力由来 | L149: ﾃﾞｨｰｾﾞﾙｴﾝｼﾞﾝ車(過給器付)
J150: 0 | K150: ③動力由来 | L150: ﾃﾞｨｰｾﾞﾙHEV車(自然吸気)
J151: 0 | K151: ③動力由来 | L151: ﾃﾞｨｰｾﾞﾙHEV車(過給器付)
J152: 0 | K152: ③動力由来 | L152: EV
J153: 0 | K153: ③動力由来 | L153: 燃料電池車
J154: 0 | K154: ④エンジン系 | L154: ｶﾞｿﾘﾝｴﾝｼﾞﾝ車(自然吸気)
J155: 0 | K155: ④エンジン系 | L155: ｶﾞｿﾘﾝｴﾝｼﾞﾝ車(過給器付)
J156: 0 | K156: ④エンジン系 | L156: ｶﾞｿﾘﾝHEV車(自然吸気)
J157: 0 | K157: ④エンジン系 | L157: ｶﾞｿﾘﾝHEV車(過給器付)
J158: 0 | K158: ④エンジン系 | L158: ﾃﾞｨｰｾﾞﾙｴﾝｼﾞﾝ車(自然吸気)
J159: 0 | K159: ④エンジン系 | L159: ﾃﾞｨｰｾﾞﾙｴﾝｼﾞﾝ車(過給器付)
J160: 0 | K160: ④エンジン系 | L160: ﾃﾞｨｰｾﾞﾙHEV車(自然吸気)
J161: 0 | K161: ④エンジン系 | L161: ﾃﾞｨｰｾﾞﾙHEV車(過給器付)
J162: 0 | K162: ④エンジン系 | L162: EV
J163: 0 | K163: ④エンジン系 | L163: 燃料電池車

Sheet 入力方法
A1: =走行条件!C3 -> WLTC四輪乗用車 | E1: ※その他前提条件を変更する場合
A3: ◆LCI対象製品の基本情報
B4: JAPIA製品群 | D4: メータ | E4: メータ | F4: メータ
B5: システム境界 (評価対象の製品の範囲) | D5: 以下を含む ・速度計、回転計 ・燃料計、燃料残量警告灯 ・方向指示表示 ・積算走行、区間走行距離計 ※ワイヤハーネス類は含まない
B6: 機能単位 (製品性能を表す特性値当りの単位) | D6: 自動車1台の動作状況(速度、方向指示表示、エンジン回転数など)を表示する。
B7: 評価個数 | D7: 1
B8: 動作電圧(V) | C8: 12 | D8: =走行条件!$C$18 -> 12 | E8: =走行条件!$C$18 -> 12 | F8: =走行条件!$C$18 -> 12
B9: 製品/部品品番 | D9: 00000-00000
B10: 製品/部品名 | C10: JAPIA標準製品 | D10: =D4&1 -> メータ1 | E10: =E4&2 -> メータ2 | F10: =F4&3 -> メータ3
A12: ◆使用段階負荷量
A13: 算出用 入力データ | B13: 質量（kg） | C13: 0 | D13: 1.5
B14: 慣性モーメント(kg･m2) ﾀｲﾔ外径(m) | D14: 0
B15: 製品前面投影面積(m2) | D15: 0
B16: 電流（A） | C16: 0 | D16: 1
B17: 電力/動力（W） 平均ｴﾝｼﾞﾝ回転数(s-1) | C17: 0 | D17: 0
A18: =IF(走行条件!C19=TRUE,"ｱｲﾄﾞﾘﾝｸﾞｽﾄｯﾌﾟ有","ｱｲﾄﾞﾘﾝｸﾞｽﾄｯﾌﾟ無") -> ｱｲﾄﾞﾘﾝｸﾞｽﾄｯﾌﾟ無 | B18: 生涯動作時間（s） | C18: 18000000 | D18: =走行条件!$C$14 -> 12020130 | E18: =走行条件!$C$14 -> 12020130 | F18: =走行条件!$C$14 -> 12020130
A19: ①質量由来消費量 ⇒条件変更する場合は、クリック | B19: ｶﾞｿﾘﾝｴﾝｼﾞﾝ車 (L) | C19: 0 | D19: =D$13*'①原単位(質量由来)'!$J$2+D$14*'①原単位(質量由来)'!$J$15 -> 2.512911211 | E19: 0 | F19: 0
B20: ｶﾞｿﾘﾝHEV車 (L) | C20: 0 | D20: =D$13*'①原単位(質量由来)'!$J$4+D$14*'①原単位(質量由来)'!$J$17 -> 1.155939157 | E20: 0 | F20: 0
B21: ﾃﾞｨｰｾﾞﾙｴﾝｼﾞﾝ車 (L) | C21: 0 | D21: =D$13*'①原単位(質量由来)'!$J$7+D$14*'①原単位(質量由来)'!$J$20 -> 1.707069265 | E21: 0 | F21: 0
B22: ﾃﾞｨｰｾﾞﾙHEV車 (L) | C22: 0 | D22: =D$13*'①原単位(質量由来)'!$J$9+D$14*'①原単位(質量由来)'!$J$22 -> 0.7852518618 | E22: 0 | F22: 0
B23: EV (kWh) | C23: 0 | D23: =D$13*'①原単位(質量由来)'!$J$10+D$14*'①原単位(質量由来)'!$J$23 -> 3.967807027 | E23: 0 | F23: 0
B24: 燃料電池車 (Nm3) | C24: 0 | D24: =D$13*'①原単位(質量由来)'!$J$11+D$14*'①原単位(質量由来)'!$J$24 -> 1.59022266 | E24: 0 | F24: 0
A25: ②電力由来消費量 ⇒条件変更する場合は、クリック | B25: ｶﾞｿﾘﾝｴﾝｼﾞﾝ車 (L) | C25: 0 | D25: =D$8/12*D$16*D$18*'②原単位(電力由来)'!$H$2 -> 11.6727274 | E25: 0 | F25: 0
B26: ｶﾞｿﾘﾝHEV車 (L) | C26: 0 | D26: =D$8/12*D$16*D$18*'②原単位(電力由来)'!$H$2 -> 11.6727274 | E26: 0 | F26: 0
B27: ﾃﾞｨｰｾﾞﾙｴﾝｼﾞﾝ車 (L) | C27: 0 | D27: =D$8/12*D$16*D$18*'②原単位(電力由来)'!$H$3 -> 7.929509843 | E27: 0 | F27: 0
B28: ﾃﾞｨｰｾﾞﾙHEV車 (L) | C28: 0 | D28: =D$8/12*D$16*D$18*'②原単位(電力由来)'!$H$3 -> 7.929509843 | E28: 0 | F28: 0
B29: EV (kWh) | C29: 0 | D29: =D$8/12*D$16*D$18*'②原単位(電力由来)'!$H$4 -> 40.0671 | E29: 0 | F29: 0
B30: 燃料電池車 (Nm3) | C30: 0 | D30: =D$8/12*D$16*D$18*'②原単位(電力由来)'!$H$5 -> 16.05814242 | E30: 0 | F30: 0
A31: ③動力由来消費量 ⇒条件変更する場合は、クリック | B31: ｶﾞｿﾘﾝｴﾝｼﾞﾝ車 (L) | C31: 0 | D31: =D$17*D$18*'③原単位(動力由来)'!$G$2 -> 0 | E31: 0 | F31: 0
B32: ｶﾞｿﾘﾝHEV車 (L) | C32: 0 | D32: =D$17*D$18*'③原単位(動力由来)'!$G$2 -> 0 | E32: 0 | F32: 0
B33: ﾃﾞｨｰｾﾞﾙｴﾝｼﾞﾝ車 (L) | C33: 0 | D33: =D$17*D$18*'③原単位(動力由来)'!$G$3 -> 0 | E33: 0 | F33: 0
B34: ﾃﾞｨｰｾﾞﾙHEV車 (L) | C34: 0 | D34: =D$17*D$18*'③原単位(動力由来)'!$G$3 -> 0 | E34: 0 | F34: 0
B35: EV (kWh) | C35: 0 | D35: =D$17*D$18*'③原単位(動力由来)'!$G$4 -> 0 | E35: 0 | F35: 0
B36: 燃料電池車 (Nm3) | C36: 0 | D36: =D$17*D$18*'③原単位(動力由来)'!$G$5 -> 0 | E36: 0 | F36: 0
A37: ④エンジン系消費量 ⇒条件変更する場合は、クリック | B37: ｶﾞｿﾘﾝｴﾝｼﾞﾝ車 (L) | C37: 0 | D37: 0 | E37: 0 | F37: 0
B38: ｶﾞｿﾘﾝHEV車 (L) | C38: 0 | D38: 0 | E38: 0 | F38: 0
B39: ﾃﾞｨｰｾﾞﾙｴﾝｼﾞﾝ車 (L) | C39: 0 | D39: 0 | E39: 0 | F39: 0
B40: ﾃﾞｨｰｾﾞﾙHEV車 (L) | C40: 0 | D40: 0 | E40: 0 | F40: 0
B41: EV (kWh) | C41: 0 | D41: 0 | E41: 0 | F41: 0
B42: 燃料電池車 (Nm3) | C42: 0 | D42: 0 | E42: 0 | F42: 0
A43: 算出結果 エネルギー消費量 | B43: ｶﾞｿﾘﾝｴﾝｼﾞﾝ車 (L) | C43: =SUM(C19,C25,C31) -> 0 | D43: 14.18563861 | E43: 0 | F43: 0
B44: ｶﾞｿﾘﾝHEV車 (L) | C44: 0 | D44: 12.82866656 | E44: 0 | F44: 0
B45: ﾃﾞｨｰｾﾞﾙｴﾝｼﾞﾝ車 (L) | C45: 0 | D45: 9.636579108 | E45: 0 | F45: 0
B46: ﾃﾞｨｰｾﾞﾙHEV車 (L) | C46: 0 | D46: 8.714761705 | E46: 0 | F46: 0
B47: EV (kWh) | C47: 0 | D47: 44.03490703 | E47: 0 | F47: 0
B48: 燃料電池車 (Nm3) | C48: 0 | D48: 17.64836508 | E48: 0 | F48: 0
A51: ①質量由来CO2排出量(g-CO2) ⇒原単位を変更する場合は、クリック | B51: ｶﾞｿﾘﾝｴﾝｼﾞﾝ車 | C51: 0 | D51: =(D$13*'①原単位(質量由来)'!$J$2+D$14*'①原単位(質量由来)'!$J$15)*(⑤ｴﾈﾙｷﾞｰ由来CO2排出原単位!$C$3+⑤ｴﾈﾙｷﾞｰ由来CO2排出原単位!$C$4) -> 6536.082059 | E51: 0 | F51: 0
B52: ｶﾞｿﾘﾝHEV車 | C52: 0 | D52: =(D$13*'①原単位(質量由来)'!$J$4+D$14*'①原単位(質量由来)'!$J$17)*(⑤ｴﾈﾙｷﾞｰ由来CO2排出原単位!$C$3+⑤ｴﾈﾙｷﾞｰ由来CO2排出原単位!$C$4) -> 3006.597747 | E52: 0 | F52: 0
B53: ﾃﾞｨｰｾﾞﾙｴﾝｼﾞﾝ車 | C53: 0 | D53: =(D$13*'①原単位(質量由来)'!$J$7+D$14*'①原単位(質量由来)'!$J$20)*(⑤ｴﾈﾙｷﾞｰ由来CO2排出原単位!$C$5+⑤ｴﾈﾙｷﾞｰ由来CO2排出原単位!$C$6) -> 4614.208223 | E53: 0 | F53: 0
B54: ﾃﾞｨｰｾﾞﾙHEV車 | C54: 0 | D54: =(D$13*'①原単位(質量由来)'!$J$9+D$14*'①原単位(質量由来)'!$J$22)*(⑤ｴﾈﾙｷﾞｰ由来CO2排出原単位!$C$5+⑤ｴﾈﾙｷﾞｰ由来CO2排出原単位!$C$6) -> 2122.535782 | E54: 0 | F54: 0
B55: EV | C55: 0 | D55: =(D$13*'①原単位(質量由来)'!$J$10+D$14*'①原単位(質量由来)'!$J$23)*⑤ｴﾈﾙｷﾞｰ由来CO2排出原単位!$C$7 -> 2126.744566 | E55: 0 | F55: 0
B56: 燃料電池車 | C56: 0 | D56: =(D$13*'①原単位(質量由来)'!$J$11+D$14*'①原単位(質量由来)'!$J$24)*⑤ｴﾈﾙｷﾞｰ由来CO2排出原単位!$C$12 -> 1796.951606 | E56: 0 | F56: 0
A57: ②電力由来CO2排出量(g-CO2) ⇒原単位を変更する場合は、クリック | B57: ｶﾞｿﾘﾝｴﾝｼﾞﾝ車 | C57: 0 | D57: =D$8/12*D$16*D$18*'②原単位(電力由来)'!$H$2*(⑤ｴﾈﾙｷﾞｰ由来CO2排出原単位!$C$3+⑤ｴﾈﾙｷﾞｰ由来CO2排出原単位!$C$4) -> 30360.76396 | E57: 0 | F57: 0
B58: ｶﾞｿﾘﾝHEV車 | C58: 0 | D58: =D$8/12*D$16*D$18*'②原単位(電力由来)'!$H$2*(⑤ｴﾈﾙｷﾞｰ由来CO2排出原単位!$C$3+⑤ｴﾈﾙｷﾞｰ由来CO2排出原単位!$C$4) -> 30360.76396 | E58: 0 | F58: 0
B59: ﾃﾞｨｰｾﾞﾙｴﾝｼﾞﾝ車 | C59: 0 | D59: =D$8/12*D$16*D$18*'②原単位(電力由来)'!$H$3*(⑤ｴﾈﾙｷﾞｰ由来CO2排出原単位!$C$5+⑤ｴﾈﾙｷﾞｰ由来CO2排出原単位!$C$6) -> 21433.46511 | E59: 0 | F59: 0
B60: ﾃﾞｨｰｾﾞﾙHEV車 | C60: 0 | D60: =D$8/12*D$16*D$18*'②原単位(電力由来)'!$H$3*(⑤ｴﾈﾙｷﾞｰ由来CO2排出原単位!$C$5+⑤ｴﾈﾙｷﾞｰ由来CO2排出原単位!$C$6) -> 21433.46511 | E60: 0 | F60: 0
B61: EV | C61: 0 | D61: =D$8/12*D$16*D$18*'②原単位(電力由来)'!$H$4*⑤ｴﾈﾙｷﾞｰ由来CO2排出原単位!$C$7 -> 21475.9656 | E61: 0 | F61: 0
B62: 燃料電池車 | C62: 0 | D62: =D$8/12*D$16*D$18*'②原単位(電力由来)'!$H$5*⑤ｴﾈﾙｷﾞｰ由来CO2排出原単位!$C$12 -> 18145.70094 | E62: 0 | F62: 0
A63: ③動力由来CO2排出量(g-CO2) ⇒原単位を変更する場合は、クリック | B63: ｶﾞｿﾘﾝｴﾝｼﾞﾝ車 | C63: 0 | D63: =D$17*D$18*'③原単位(動力由来)'!$G$2*(⑤ｴﾈﾙｷﾞｰ由来CO2排出原単位!$C$3+⑤ｴﾈﾙｷﾞｰ由来CO2排出原単位!$C$4) -> 0 | E63: 0 | F63: 0
B64: ｶﾞｿﾘﾝHEV車 | C64: 0 | D64: =D$17*D$18*'③原単位(動力由来)'!$G$2*(⑤ｴﾈﾙｷﾞｰ由来CO2排出原単位!$C$3+⑤ｴﾈﾙｷﾞｰ由来CO2排出原単位!$C$4) -> 0 | E64: 0 | F64: 0
B65: ﾃﾞｨｰｾﾞﾙｴﾝｼﾞﾝ車 | C65: 0 | D65: =D$17*D$18*'③原単位(動力由来)'!$G$3*(⑤ｴﾈﾙｷﾞｰ由来CO2排出原単位!$C$5+⑤ｴﾈﾙｷﾞｰ由来CO2排出原単位!$C$6) -> 0 | E65: 0 | F65: 0
B66: ﾃﾞｨｰｾﾞﾙHEV車 | C66: 0 | D66: =D$17*D$18*'③原単位(動力由来)'!$G$3*(⑤ｴﾈﾙｷﾞｰ由来CO2排出原単位!$C$5+⑤ｴﾈﾙｷﾞｰ由来CO2排出原単位!$C$6) -> 0 | E66: 0 | F66: 0
B67: EV | C67: 0 | D67: =D$17*D$18*'③原単位(動力由来)'!$G$4*⑤ｴﾈﾙｷﾞｰ由来CO2排出原単位!$C$7 -> 0 | E67: 0 | F67: 0
B68: 燃料電池車 | C68: 0 | D68: =D$17*D$18*'③原単位(動力由来)'!$G$5*⑤ｴﾈﾙｷﾞｰ由来CO2排出原単位!$C$12 -> 0 | E68: 0 | F68: 0
A69: ④エンジン系CO2排出量(g-CO2) ⇒原単位を変更する場合は、クリック | B69: ｶﾞｿﾘﾝｴﾝｼﾞﾝ車 | C69: 0 | D69: 0 | E69: 0 | F69: 0
B70: ｶﾞｿﾘﾝHEV車 | C70: 0 | D70: 0 | E70: 0 | F70: 0
B71: ﾃﾞｨｰｾﾞﾙｴﾝｼﾞﾝ車 | C71: 0 | D71: 0 | E71: 0 | F71: 0
B72: ﾃﾞｨｰｾﾞﾙHEV車 | C72: 0 | D72: 0 | E72: 0 | F72: 0
B73: EV | C73: 0 | D73: 0 | E73: 0 | F73: 0
B74: 燃料電池車 | C74: 0 | D74: 0 | E74: 0 | F74: 0
A75: 算出結果 CO2 排出量 (g-CO2) | B75: ｶﾞｿﾘﾝｴﾝｼﾞﾝ車 | C75: =SUM(C27,C33,C39) -> 0 | D75: =SUM(D51,D57,D63) -> 36896.84602 | E75: 0 | F75: 0
B76: ｶﾞｿﾘﾝHEV車 | C76: 0 | D76: 33367.36171 | E76: 0 | F76: 0
B77: ﾃﾞｨｰｾﾞﾙｴﾝｼﾞﾝ車 | C77: 0 | D77: 26047.67333 | E77: 0 | F77: 0
B78: ﾃﾞｨｰｾﾞﾙHEV車 | C78: 0 | D78: 23556.00089 | E78: 0 | F78: 0
B79: EV | C79: 0 | D79: 23602.71017 | E79: 0 | F79: 0
B80: 燃料電池車 | C80: 0 | D80: 19942.65254 | E80: 0 | F80: 0
A84: ◆考え方詳細 （入力欄）
A86: 電流由来 | B86: 電流値の考え方
B87: 電流値算出式
B88: 使用時間の考え方
B89: 使用時間算出式
A90: 動力由来 | B90: 動力値の考え方
B91: 動力値算出式
B92: 使用時間の考え方
B93: 使用時間算出式
A95: 備考

Sheet 走行条件
A1: 項目 | C1: 値
A2: 番号 | C2: 2
A3: 走行パターン | C3: =HYPERLINK("#"&$C$17&"!A1",LOOKUP(走行条件!C2,LOOK_UP!A2:A11,LOOK_UP!B2:B11)) -> WLTC四輪乗用車
A4: 生涯走行パターン繰返し回数[回] | C4: =LOOKUP(走行条件!C2,LOOK_UP!A2:A11,LOOK_UP!E2:E11) -> 8138.205823
A5: 燃費 | B5: ガソリンエンジン及びディーゼルエンジン [km/L] | C5: =LOOKUP(走行条件!C2,LOOK_UP!A2:A11,LOOK_UP!F2:F11) -> 17.6
A6: 生涯走行距離[km] | C6: =LOOKUP(走行条件!C2,LOOK_UP!A2:A11,LOOK_UP!G2:G11) -> 122171.8761
A7: 内燃機関の エネルギー効率 | B7: ガソリンエンジン 有効仕事の比率 (熱効率): | C7: =LOOKUP(走行条件!C2,LOOK_UP!A2:A11,LOOK_UP!H2:H11) -> 0.3
B8: ガソリンエンジン 理論熱効率 | C8: =LOOKUP(走行条件!C2,LOOK_UP!A2:A11,LOOK_UP!I2:I11) -> 0.46
B9: ディーゼルエンジン 有効仕事の比率 (熱効率) | C9: =LOOKUP(走行条件!C2,LOOK_UP!A2:A11,LOOK_UP!J2:J11) -> 0.4
B10: ディーゼルエンジン 理論熱効率 | C10: =LOOKUP(走行条件!C2,LOOK_UP!A2:A11,LOOK_UP!K2:K11) -> 0.56
B11: コンベンショナルエンジンとハイブリッドエンジンとの燃費比率 | C11: =LOOKUP(走行条件!C2,LOOK_UP!A2:A11,LOOK_UP!L2:L11) -> 0.8
A12: 走行モードにおける1kg当りの直線加速仕事量[J] | C12: =LOOKUP(走行条件!C2,LOOK_UP!A2:A11,LOOK_UP!C2:C11) -> 2543.755015
A13: 走行モードにおける1kg･m2当りの回転加速仕事量[J] | C13: =LOOKUP(走行条件!C2,LOOK_UP!A2:A11,LOOK_UP!D2:D11) -> 28263.94462
A14: 生涯動作時間［s］ | C14: =LOOKUP(走行条件!C2,LOOK_UP!A2:A11,LOOK_UP!M2:M11) -> 12020130
A15: タイヤ外径[m] | C15: =HYPERLINK("#"&$C$17&"!AD10",LOOKUP(走行条件!C2,LOOK_UP!A2:A11,LOOK_UP!O2:O11)) -> 0.6 | D15: ←タイヤ外径を変更する場合はココをクリック
A16: 平均エンジン回転数［s-1］ | C16: =LOOKUP(走行条件!C2,LOOK_UP!A2:A11,LOOK_UP!N2:N11) -> 25.95483023
A17: パターン名 | C17: =LOOKUP(走行条件!C2,LOOK_UP!A2:A11,LOOK_UP!P2:P11) -> WLTC
A18: 電圧 | C18: =LOOKUP(走行条件!C2,LOOK_UP!A2:A11,LOOK_UP!Q2:Q11) -> 12
A19: ｱｲﾄﾞﾘﾝｸﾞｽﾄｯﾌﾟ有無 | C19: FALSE
A20: アイドリングストップ時の稼働時間比率 | C20: =IF(C19=TRUE,LOOKUP(走行条件!C2,LOOK_UP!A2:A11,LOOK_UP!R2:R11),1) -> 1
A21: 車両前面投影面積(m2) | C21: =LOOKUP(走行条件!C2,LOOK_UP!A2:A11,LOOK_UP!S2:S11) -> 2
A22: 空気密度(kg/m3) | C22: 1.2
A23: Cd値(抗力係数) | C23: =LOOKUP(走行条件!C2,LOOK_UP!A2:A11,LOOK_UP!T2:T11) -> 0.3
A24: 車両質量［kg］ | C24: =LOOKUP(走行条件!C2,LOOK_UP!A2:A11,LOOK_UP!V2:V11) -> 1476
A25: 前面投影単位面積あたりの空気抵抗仕事［J］ | C25: =LOOKUP(走行条件!C2,LOOK_UP!A2:A11,LOOK_UP!U2:U11) -> 689649.3145

Sheet ①原単位(質量由来)
A1: =走行条件!C3 -> WLTC四輪乗用車 | B1: 1kg当りの加速仕事量[J]① | D1: 左記エネルギーを発生させる際の熱力学的な理論損失熱エネルギー[J]② =①÷[有効仕事比率]×(1-[理論熱効率]) | F1: 単位燃料当りの発生エネルギー[MJ/**]③ | H1: 1kg当りの燃料(電力)消費量④ =(①+②)÷③ | J1: 1kg当りの生涯燃料(電力)消費量[**/kg]⑤ =④×［ﾓｰﾄﾞ繰り返し回数］ | L1: 備考
A2: ガソリンエンジン車 | B2: =走行条件!C12 -> 2543.755015 | C2: [J] | D2: =$B$2/走行条件!$C$7*(1-走行条件!$C$8) -> 4578.759028 | E2: [J] | F2: 34.6 | G2: [MJ/L] (ガソリン) | H2: =($B$2+$D$2)/($F$2*10^6) -> 0.000205853007 | I2: [L/kg] | J2: =$H$2*走行条件!C4 -> 1.67527414 | K2: [L/kg] | L2:  部工会 製品環境指標ガイドライン
L3:  回生機能がある場合も含む
A4: ガソリンエンジンHEV(電気式ハイブリッド車) | B4: =$B$2-$B$2*0.6*0.9 -> 1170.127307 | C4: [J] | D4: =$B$4/走行条件!$C$7*(1-走行条件!$C$8) -> 2106.229153 | E4: [J] | F4: 34.6 | G4: [MJ/L] (ガソリン) | H4: =($B$4+$D$4)/($F$4*10^6) -> 9.469238323e-05 | I4: [L/kg] | J4: =$H$4*走行条件!C4 -> 0.7706261046 | K4: [L/kg] | L4: 減速時に運動エネルギーの60%を電気エネルギーに回生し、それを運動エネルギーへの変換する際は90%の変換効率とする。
A5: ガソリンエンジンPHEV(電気式プラグインハイブリッド車) | B5: =$B$2-$B$2*0.6*0.9 -> 1170.127307 | C5: [J] (ハイブリッド走行時) | D5: =B5/走行条件!$C$7*(1-走行条件!$C$8) -> 2106.229153 | E5: [J] | F5: 34.6 | G5: [MJ/L] (ガソリン) | H5: =($B$5+$D$5)/($F$5*10^6) -> 9.469238323e-05 | I5: [L/kg] | J5: - | L5: PHEVに外部から入力されるエネルギー資源はガソリン及び商用電力であるため、各々について分離して原単位を設定する。しかし走行方法は使用者や車種によって大きく変化するため生涯燃料(電力)消費量は設定しない。
B6: =$B$2-$B$2*0.6*0.9 -> 1170.127307 | C6: [J] (EV走行時) | D6: 0 | E6: [J] | F6: 3.6 | G6: [MJ/kWh] (電力) | H6: =($B$6+$D$6)/($F$6*10^6) -> 0.0003250353631 | I6: [kWh/kg] | J6: -
A7: ディーゼルエンジン車 | B7: =走行条件!C12 -> 2543.755015 | C7: [J] | D7: =IF(走行条件!$C$9=0,"",B7/走行条件!$C$9*(1-走行条件!$C$10)) -> 2798.130517 | E7: [J] | F7: 38.2 | G7: [MJ/L] (軽油) | H7: =IF(走行条件!$C$9=0,"",($B$7+$D$7)/($F$7*10^6)) -> 0.0001398399354 | I7: [L/kg] | J7: =IF(走行条件!$C$9=0,"0",$H$7*走行条件!C4) -> 1.138046177 | K7: [L/kg] | L7:  部工会 製品環境指標ガイドライン
L8:  回生機能がある場合も含む
A9: ディーゼルエンジンHEV(電気式ハイブリッド車) | B9: =$B$7-$B$7*0.6*0.9 -> 1170.127307 | C9: [J] | D9: =IF(走行条件!$C$9=0,"",B9/走行条件!$C$9*(1-走行条件!$C$10)) -> 1287.140038 | E9: [J] | F9: 38.2 | G9: [MJ/L] (軽油) | H9: =IF(走行条件!$C$9=0,"",($B$9+$D$9)/($F$9*10^6)) -> 6.432637029e-05 | I9: [L/kg] | J9: =IF(走行条件!$C$9=0,"0",$H$9*走行条件!C4) -> 0.5235012412 | K9: [L/kg] | L9: 減速時に運動エネルギーの60%を電気エネルギーに回生し、それを運動エネルギーへの変換する際は、90%の変換効率とする。
A10: 電気自動車 | B10: =$B$2-$B$2*0.6*0.9 -> 1170.127307 | C10: [J] | D10: 0 | E10: [J] | F10: 3.6 | G10: [MJ/kWh] (電力) | H10: =($B$10+$D$10)/($F$10*10^6) -> 0.0003250353631 | I10: [kWh/kg] | J10: =$H$10*走行条件!C4 -> 2.645204684 | K10: [kWh/kg] | L10: 回生機能あり
A11: 燃料電池車 | B11: =$B$2-$B$2*0.6*0.9 -> 1170.127307 | C11: [J] | D11: =B11/0.4*(1-0.83) -> 497.3041055 | E11: [J] (理論熱効率:83%､PEFC発電効率:40%) | F11: 12.8 | G11: [MJ/Nm3] (水素) | H11: =($B$11+$D$11)/($F$11*10^6) -> 0.0001302680791 | I11: [Nm3/kg] | J11: =$H$11*走行条件!C4 -> 1.06014844 | K11: [Nm3/kg] | L11: 回生機能あり
L12:  太田, 原理から考える燃料電池, GS Yuasa Technical Report 第2巻 第1号(2005)
A14: 慣性モーメント由来 | B14: 1kgm2当りの加速仕事量[J]① | D14: 左記エネルギーを発生させる際の熱力学的な理論損失熱エネルギー[J]② =①÷[有効仕事比率]×(1-[理論熱効率]) | F14: 単位燃料当りの発生エネルギー[MJ/**]③ | H14: 1kgm2当りの燃料(電力)消費量④ =(①+②)÷③ | J14: 1kgm2当りの生涯燃料(電力)消費量[**/kg]⑤ =④×［ﾓｰﾄﾞ繰り返し回数］ | L14: 備考
A15: ガソリンエンジン車 | B15: =走行条件!C13 -> 28263.94462 | C15: [J] | D15: =$B$15/走行条件!$C$7*(1-走行条件!$C$8) -> 50875.10031 | E15: [J] | F15: 34.6 | G15: [MJ/L] (ガソリン) | H15: =($B$15+$D$15)/($F$15*10^6) -> 0.002287255634 | I15: [L/kgm2] | J15: =$H$15*走行条件!C4 -> 18.61415712 | K15: [L/kgm2]
A17: ガソリンエンジンHEV(電気式ハイブリッド車) | B17: =$B$15-$B$15*0.6*0.9 -> 13001.41452 | C17: [J] | D17: =$B$17/走行条件!$C$7*(1-走行条件!$C$8) -> 23402.54614 | E17: [J] | F17: 34.6 | G17: [MJ/L] (ガソリン) | H17: =($B$17+$D$17)/($F$17*10^6) -> 0.001052137591 | I17: [L/kgm2] | J17: =$H$17*走行条件!C4 -> 8.562512273 | K17: [L/kgm2]
A18: ガソリンエンジンPHEV(電気式プラグインハイブリッド車) | B18: =$B$15-$B$15*0.6*0.9 -> 13001.41452 | C18: [J] (ハイブリッド走行時) | D18: =B18/走行条件!$C$7*(1-走行条件!$C$8) -> 23402.54614 | E18: [J] | F18: 34.6 | G18: [MJ/L] (ガソリン) | H18: =($B$18+$D$18)/($F$18*10^6) -> 0.001052137591 | I18: [L/kgm2] | J18: -
B19: =$B$15-$B$15*0.6*0.9 -> 13001.41452 | C19: [J] (EV走行時) | D19: 0 | E19: [J] | F19: 3.6 | G19: [MJ/kWh] (電力) | H19: =($B$19+$D$19)/($F$19*10^6) -> 0.003611504034 | I19: [kWh/kgm2] | J19: -
A20: ディーゼルエンジン車 | B20: =走行条件!C13 -> 28263.94462 | C20: [J] | D20: =IF(走行条件!$C$9=0,"",B20/走行条件!$C$9*(1-走行条件!$C$10)) -> 31090.33908 | E20: [J] | F20: 38.2 | G20: [MJ/L] (軽油) | H20: =IF(走行条件!$C$9=0,"",($B$20+$D$20)/($F$20*10^6)) -> 0.00155377706 | I20: [L/kgm2] | J20: =IF(走行条件!$C$9=0,"0",$H$20*走行条件!C4) -> 12.64495752 | K20: [L/kgm2]
A22: ディーゼルエンジンHEV(電気式ハイブリッド車) | B22: =$B$20-$B$20*0.6*0.9 -> 13001.41452 | C22: [J] | D22: =IF(走行条件!$C$9=0,"",B22/走行条件!$C$9*(1-走行条件!$C$10)) -> 14301.55598 | E22: [J] | F22: 38.2 | G22: [MJ/L] (軽油) | H22: =IF(走行条件!$C$9=0,"",($B$22+$D$22)/($F$22*10^6)) -> 0.0007147374476 | I22: [L/kgm2] | J22: =IF(走行条件!$C$9=0,"0",$H$22*走行条件!C4) -> 5.816680458 | K22: [L/kgm2]
A23: 電気自動車 | B23: =$B$20-$B$20*0.6*0.9 -> 13001.41452 | C23: [J] | D23: 0 | E23: [J] | F23: 3.6 | G23: [MJ/kWh] (電力) | H23: =($B$23+$D$23)/($F$23*10^6) -> 0.003611504034 | I23: [kWh/kgm2] | J23: =$H$23*走行条件!C4 -> 29.39116316 | K23: [kWh/kgm2]
A24: 燃料電池車 | B24: =$B$20-$B$20*0.6*0.9 -> 13001.41452 | C24: [J] | D24: =B24/0.4*(1-0.83) -> 5525.601172 | E24: [J] (理論熱効率:83%､PEFC発電効率:40%) | F24: 12.8 | G24: [MJ/Nm3] (水素) | H24: =($B$24+$D$24)/($F$24*10^6) -> 0.001447423101 | I24: [Nm3/kgm2] | J24: =$H$24*走行条件!C4 -> 11.77942711 | K24: [Nm3/kgm2]

Sheet ②原単位(電力由来)
A1: =走行条件!C3 -> WLTC四輪乗用車 | B1: 1秒間1A当りの仕事量[J]① | C1: 左記ｴﾈﾙｷﾞｰを発生させる際の熱力学的な理論損失熱エネルギー[J]② =①÷[有効仕事比率]×(1-[理論熱効率]) | F1: 単位燃料量当りの発生エネルギー[MJ/**]③ | H1: 1秒間1A当りの燃料(電力)消費量Ibu [**/A/s]④ =(①+②)÷③ | J1: 出典・参考文献
A2: 12[V] | B2: 12 | C2: ガソリン | D2: =$B$2/走行条件!$C$7*(1-走行条件!$C$8) -> 21.6 | E2: [J] | F2: 34.6 | G2: [MJ/L] | H2: =($B$2+D2)/(F2*10^6) -> 9.710982659e-07 | I2: [L/A/s] | J2: -
C3: 軽油 | D3: =IF(走行条件!$C$9=0,"",$B$2/走行条件!$C$9*(1-走行条件!$C$10)) -> 13.2 | E3: [J] | F3: 38.2 | G3: [MJ/L] | H3: =IF(走行条件!$C$9=0,"0",($B$2+D3)/(F3*10^6)) -> 6.596858639e-07 | I3: [L/A/s]
C4: 電力 | D4: 0 | E4: [J] | F4: 3.6 | G4: [MJ/kWh] | H4: =($B$2+D4)/(F4*10^6) -> 3.333333333e-06 | I4: [kWh/A/s]
C5: 水素 | D5: =$B$2/0.4*(1-0.83) -> 5.1 | E5: [J] (理論熱効率:83%､PEFC発電効率:40%) | F5: 12.8 | G5: [MJ/Nm3] | H5: =($B$2+D5)/(F5*10^6) -> 1.3359375e-06 | I5: [Nm3/A/s]
A6: 24[V] | B6: 24 | C6: ガソリン | D6: =$B$6/走行条件!$C$7*(1-走行条件!$C$8) -> 43.2 | E6: [J] | F6: 34.6 | G6: [MJ/L] | H6: =($B$6+D6)/(F6*10^6) -> 1.942196532e-06 | I6: [L/A/s] | J6: -
C7: 軽油 | D7: =IF(走行条件!$C$9=0,"",$B$6/走行条件!$C$9*(1-走行条件!$C$10)) -> 26.4 | E7: [J] | F7: 38.2 | G7: [MJ/L] | H7: =IF(走行条件!$C$9=0,"0",($B$6+D7)/(F7*10^6)) -> 1.319371728e-06 | I7: [L/A/s]
C8: 電力 | D8: 0 | E8: [J] | F8: 3.6 | G8: [MJ/kWh] | H8: =($B$6+D8)/(F8*10^6) -> 6.666666667e-06 | I8: [kWh/A/s]
C9: 水素 | D9: =$B$6/0.4*(1-0.83) -> 10.2 | E9: [J] (理論熱効率:83%､PEFC発電効率:40%) | F9: 12.8 | G9: [MJ/Nm3] | H9: =($B$6+D9)/(F9*10^6) -> 2.671875e-06 | I9: [Nm3/A/s]
A10: 650[V] | B10: 650 | C10: ガソリン | D10: =$B$10/走行条件!$C$7*(1-走行条件!$C$8) -> 1170 | E10: [J] | F10: 34.6 | G10: [MJ/L] | H10: =($B$10+D10)/(F10*10^6) -> 5.260115607e-05 | I10: [L/A/s] | J10: -
C11: 軽油 | D11: =IF(走行条件!$C$9=0,"",$B$10/走行条件!$C$9*(1-走行条件!$C$10)) -> 715 | E11: [J] | F11: 38.2 | G11: [MJ/L] | H11: =IF(走行条件!$C$9=0,"0",($B$10+D11)/(F11*10^6)) -> 3.573298429e-05 | I11: [L/A/s]
C12: 電力 | D12: 0 | E12: [J] | F12: 3.6 | G12: [MJ/kWh] | H12: =($B$10+D12)/(F12*10^6) -> 0.0001805555556 | I12: [kWh/A/s]
C13: 水素 | D13: =$B$10/0.4*(1-0.83) -> 276.25 | E13: [J] (理論熱効率:83%､PEFC発電効率:40%) | F13: 12.8 | G13: [MJ/Nm3] | H13: =($B$10+D13)/(F13*10^6) -> 7.236328125e-05 | I13: [Nm3/A/s]

Sheet ③原単位(動力由来)
A1: =走行条件!C3 -> WLTC四輪乗用車 | B1: 左記エネルギーを発生させる際の熱力学的な理論損失熱エネルギー[J]② =①÷[有効仕事比率]×(1-[理論熱効率]) | E1: 単位燃料量当りの発生エネルギー[MJ/**]③ | G1: 1秒間1W当りの燃料(電力)消費量Lbu[**/W/s]④ =(①+②)÷③ | I1: 出典・参考文献
A2: 1[J]= 1[W]*1[s]① | B2: ガソリン | C2: =1/走行条件!$C$7*(1-走行条件!$C$8) -> 1.8 | D2: [J] | E2: 34.6 | F2: [MJ/L] | G2: =(1+C2)/(E2*10^6) -> 8.092485549e-08 | H2: [L/W/s] | I2: -
B3: 軽油 | C3: =IF(走行条件!$C$9=0,"",1/走行条件!$C$9*(1-走行条件!$C$10)) -> 1.1 | D3: [J] | E3: 38.2 | F3: [MJ/L] | G3: =IF(走行条件!$C$9=0,"0",(1+C3)/(E3*10^6)) -> 5.497382199e-08 | H3: [L/W/s]
B4: 電力 | C4: 0 | D4: [J] | E4: 3.6 | F4: [MJ/kWh] | G4: =(1+C4)/(E4*10^6) -> 2.777777778e-07 | H4: [kWh/W/s]
B5: 水素 (理論熱効率:83%､PEFC発電効率:40%) | C5: =1/0.4*(1-0.83) -> 0.425 | D5: [J] (理論熱効率:83%､PEFC発電効率:40%) | E5: 12.8 | F5: [MJ/Nm3] | G5: =(1+C5)/(E5*10^6) -> 1.11328125e-07 | H5: [Nm3/W/s]

Sheet ④原単位（エンジン系)
A1: =走行条件!C3 -> WLTC四輪乗用車 | B1: 従来ガソリンエンジン | F1: 従来ディーゼルエンジン | J1: ガソリンエンジンHEV/PHEV | N1: ディーゼルエンジンHEV | R1: EV
B2: 自然吸気 | D2: 過給器付 | F2: 自然吸気 | H2: 過給器付 | J2: 自然吸気 | L2: 過給器付 | N2: 自然吸気 | P2: 過給器付 | R2: -
B3: 配分率 | C3: 燃料(L) | D3: 配分率 | E3: 燃料(L) | F3: 配分率 | G3: 燃料(L) | H3: 配分率 | I3: 燃料(L) | J3: 配分率 | K3: 燃料(L) | L3: 配分率 | M3: 燃料(L) | N3: 配分率 | O3: 燃料(L) | P3: 配分率 | Q3: 燃料(L)
A4: インテークマニホールド | B4: 0.006076388889 | C4: =$C$48*B4 -> 6.748762096 | D4: 0.00565123789 | E4: =$E$48*D4 -> 6.276566686 | F4: 0.005209625403 | G4: =$G$48*F4 -> 5.786088267 | H4: 0.004893964111 | I4: =$I$48*H4 -> 5.435497973 | J4: 0.006076388889 | K4: =$K$48*J4 -> 5.399009677 | L4: 0.00565123789 | M4: =$M$48*L4 -> 5.021253349 | N4: 0.005209625403 | O4: =$O$48*N4 -> 4.628870614 | P4: 0.004893964111 | Q4: =$Q$48*P4 -> 4.348398379 | R4: -
A5: エアクリーナ | B5: 0.01446759259 | C5: =$C$48*B5 -> 16.06848118 | D5: 0.01345532831 | E5: 14.94420639 | F5: 0.01240387001 | G5: 13.77640064 | H5: 0.0116522955 | I5: 12.94166184 | J5: 0.01446759259 | K5: =$K$48*J5 -> 12.85478494 | L5: 0.01345532831 | M5: =$M$48*L5 -> 11.95536512 | N5: 0.01240387001 | O5: =$O$48*N5 -> 11.02112051 | P5: 0.0116522955 | Q5: =$Q$48*P5 -> 10.35332947 | R5: -
A6: エアクリーナエレメント | B6: 0.0001446759259 | C6: 0.1606848118 | D6: 0.0001345532831 | E6: 0.1494420639 | F6: 0.0001240387001 | G6: 0.1377640064 | H6: 0.000116522955 | I6: 0.1294166184 | J6: 0.0001446759259 | K6: =$K$48*J6 -> 0.1285478494 | L6: 0.0001345532831 | M6: =$M$48*L6 -> 0.1195536512 | N6: 0.0001240387001 | O6: =$O$48*N6 -> 0.1102112051 | P6: 0.000116522955 | Q6: =$Q$48*P6 -> 0.1035332947 | R6: -
A7: エキゾーストマニホールド | B7: 0.007233796296 | C7: 8.034240591 | D7: 0.006727664155 | E7: 7.472103197 | F7: 0.006201935004 | G7: 6.888200318 | H7: 0.005826147751 | I7: 6.470830921 | J7: 0.007233796296 | K7: 6.427392472 | L7: 0.006727664155 | M7: 5.977682558 | N7: 0.006201935004 | O7: 5.510560254 | P7: 0.005826147751 | Q7: 5.176664737 | R7: -
A8: エグゾーストパイプ | B8: 0.0390625 | C8: 43.38489919 | D8: 0.03632938644 | E8: 40.34935726 | F8: 0.03349044902 | G8: 37.19628172 | H8: 0.03146119786 | I8: 34.94248697 | J8: 0.0390625 | K8: 34.70791935 | L8: 0.03632938644 | M8: 32.27948581 | N8: 0.03349044902 | O8: 29.75702537 | P8: 0.03146119786 | Q8: 27.95398958 | R8: -
A9: エンジン・ガスケット及びパッキング | B9: 0.006944444444 | C9: 7.712870967 | D9: 0.006458557589 | E9: 7.173219069 | F9: 0.005953857604 | G9: 6.612672305 | H9: 0.005593101841 | I9: 6.211997684 | J9: 0.006944444444 | K9: 6.170296774 | L9: 0.006458557589 | M9: 5.738575255 | N9: 0.005953857604 | O9: 5.290137844 | P9: 0.005593101841 | Q9: 4.969598147 | R9: -
A10: エンジンバルブ | B10: 0.006944444444 | C10: 7.712870967 | D10: 0.006458557589 | E10: 7.173219069 | F10: 0.005953857604 | G10: 6.612672305 | H10: 0.005593101841 | I10: 6.211997684 | J10: 0.006944444444 | K10: 6.170296774 | L10: 0.006458557589 | M10: 5.738575255 | N10: 0.005953857604 | O10: 5.290137844 | P10: 0.005593101841 | Q10: 4.969598147 | R10: -
A11: エンジン制御装置 | B11: 0.04484953704 | C11: 49.81229166 | D11: 0.04171151776 | E11: 46.32703982 | F11: 0.03845199702 | G11: 42.70684197 | H11: 0.03612211606 | I11: 40.11915171 | J11: 0.04484953704 | K11: 39.84983333 | L11: 0.04171151776 | M11: 37.06163186 | N11: 0.03845199702 | O11: 34.16547358 | P11: 0.03612211606 | Q11: 32.09532137 | R11: -
A12: オイルクーラ | B12: 0.007523148148 | C12: 8.355610214 | D12: 0.006996770721 | E12: 7.770987325 | F12: 0.006450012404 | G12: 7.16372833 | H12: 0.006059193661 | I12: 6.729664158 | J12: 0.007523148148 | K12: 6.684488171 | L12: 0.006996770721 | M12: 6.21678986 | N12: 0.006450012404 | O12: 5.730982664 | P12: 0.006059193661 | Q12: 5.383731326 | R12: -
A13: オイルフィルタ | B13: 0.004340277778 | C13: 4.820544354 | D13: 0.004036598493 | E13: 4.483261918 | F13: 0.003721161002 | G13: 4.132920191 | H13: 0.003495688651 | I13: 3.882498552 | J13: 0.004340277778 | K13: 3.856435483 | L13: 0.004036598493 | M13: 3.586609535 | N13: 0.003721161002 | O13: 3.306336153 | P13: 0.003495688651 | Q13: 3.105998842 | R13: -
A14: オイルポンプ | B14: 0.01446759259 | C14: 16.06848118 | D14: 0.01345532831 | E14: 14.94420639 | F14: 0.01240387001 | G14: 13.77640064 | H14: 0.0116522955 | I14: 12.94166184 | J14: 0.01446759259 | K14: =$K$48*J14 -> 12.85478494 | L14: 0.01345532831 | M14: 11.95536512 | N14: 0.01240387001 | O14: 11.02112051 | P14: 0.0116522955 | Q14: 10.35332947 | R14: -
A15: 過給器 （ターボチャージャ及びスーパーチャージャ） | B15: - | C15: - | D15: 0.06996770721 | E15: 77.70987325 | F15: - | G15: - | H15: 0.06059193661 | I15: 67.29664158 | J15: - | K15: - | L15: 0.06996770721 | M15: 62.1678986 | N15: - | O15: - | P15: 0.06059193661 | Q15: 53.83731326 | R15: -
A16: ガソリン用燃料噴射ノズル（インジェクター） | B16: 0.02748842593 | C16: =$C$48*B16 -> 30.53011424 | D16: 0.02556512379 | E16: 28.39399215 | F16: - | G16: - | H16: - | I16: - | J16: 0.02748842593 | K16: =$K$48*J16 -> 24.4240914 | L16: 0.02556512379 | M16: 22.71519372 | N16: - | O16: - | P16: - | Q16: - | R16: -
A17: キャニスタ | B17: 0.01446759259 | C17: =$C$48*B17 -> 16.06848118 | D17: 0.01345532831 | E17: 14.94420639 | F17: 0.01240387001 | G17: =$G$48*F17 -> 13.77640064 | H17: 0.0116522955 | I17: =$I$48*H17 -> 12.94166184 | J17: 0.01446759259 | K17: =$K$48*J17 -> 12.85478494 | L17: 0.01345532831 | M17: 11.95536512 | N17: 0.01240387001 | O17: =$O$48*N17 -> 11.02112051 | P17: 0.0116522955 | Q17: 10.35332947 | R17: -
A18: クランクシャフト | B18: 0.07725694444 | C18: =$C$48*B18 -> 85.80568951 | D18: 0.07185145318 | E18: 79.80206215 | F18: 0.06623666584 | G18: 73.56597939 | H18: 0.06222325798 | I18: 69.10847423 | J18: 0.07725694444 | K18: =$K$48*J18 -> 68.64455161 | L18: 0.07185145318 | M18: 63.84164972 | N18: 0.06623666584 | O18: 58.85278351 | P18: 0.06222325798 | Q18: 55.28677939 | R18: -
A19: グロープラグ | B19: - | C19: - | D19: - | E19: - | F19: 0.007194244604 | G19: 7.990312369 | H19: 0.006758331391 | I19: 7.506163868 | K19: - | L19: - | M19: - | N19: 0.007194244604 | O19: 6.392249895 | P19: 0.006758331391 | Q19: 6.004931094
A20: コネクティングロッド | B20: 0.0384837963 | C20: =$C$48*B20 -> 42.74215994 | D20: 0.0357911733 | E20: =$E$48*D20 -> 39.75158901 | F20: 0.03299429422 | G20: 36.64522569 | H20: 0.03099510604 | I20: 34.4248205 | J20: 0.0384837963 | K20: =$K$48*J20 -> 34.19372795 | L20: 0.0357911733 | M20: 31.80127121 | N20: 0.03299429422 | O20: 29.31618055 | P20: 0.03099510604 | Q20: 27.5398564 | R20: -
A21: サーモスタット | B21: 0.002604166667 | C21: 2.892326613 | D21: 0.002421959096 | E21: 2.689957151 | F21: 0.002232696601 | G21: 2.479752114 | H21: 0.00209741319 | I21: 2.329499131 | J21: 0.002604166667 | K21: =$K$48*J21 -> 2.31386129 | L21: 0.002421959096 | M21: 2.151965721 | N21: 0.002232696601 | O21: 1.983801692 | P21: 0.00209741319 | Q21: 1.863599305 | R21: -
A22: 軸受メタル(エンジン用) | B22: 0.005787037037 | C22: 6.427392472 | D22: 0.005382131324 | E22: 5.977682558 | F22: 0.004961548003 | G22: 5.510560254 | H22: 0.004660918201 | I22: 5.176664737 | J22: 0.005787037037 | K22: 5.141913978 | L22: 0.005382131324 | M22: 4.782146046 | N22: 0.004961548003 | O22: 4.408448203 | P22: 0.004660918201 | Q22: 4.141331789 | R22: -
A23: 触媒装置 | B23: 0.03993055556 | C23: 44.34900806 | D23: 0.03713670614 | E23: 41.24600965 | F23: 0.03423468122 | G23: 38.02286575 | H23: 0.03216033559 | I23: 35.71898668 | J23: 0.03993055556 | K23: 35.47920645 | L23: 0.03713670614 | M23: 32.99680772 | N23: 0.03423468122 | O23: 30.4182926 | P23: 0.03216033559 | Q23: 28.57518935 | R23: -
A24: シリンダライナ | B24: 0.005497685185 | C24: 6.106022849 | D24: 0.005113024758 | E24: 5.67879843 | F24: 0.004713470603 | G24: 5.235032241 | H24: 0.004427872291 | I24: 4.9178315 | J24: 0.005497685185 | K24: 4.884818279 | L24: 0.005113024758 | M24: 4.543038744 | N24: 0.004713470603 | O24: 4.188025793 | P24: 0.004427872291 | Q24: 3.9342652 | R24: -
A25: シリンダブロック | B25: 0.2553530093 | C25: 283.6086928 | D25: 0.2374865447 | E25: 263.7652429 | F25: 0.2189283056 | G25: 243.1534712 | H25: 0.2056630156 | I25: 228.4203315 | J25: 0.2553530093 | K25: 226.8869543 | L25: 0.2374865447 | M25: 211.0121943 | N25: 0.2189283056 | O25: 194.522777 | P25: 0.2056630156 | Q25: 182.7362652 | R25: -
A26: スロットルボデー | B26: 0.02141203704 | C26: 23.78135215 | D26: 0.0199138859 | E26: 22.11742546 | F26: 0.01835772761 | G26: 20.38907294 | H26: 0.01724539734 | I26: 19.15365953 | J26: 0.02141203704 | K26: 19.02508172 | L26: 0.0199138859 | M26: 17.69394037 | N26: 0.01835772761 | O26: 16.31125835 | P26: 0.01724539734 | Q26: 15.32292762
A27: その他排気浄化装置部品(EGR) | B27: 0.03414351852 | C27: 37.92161559 | D27: 0.03175457481 | E27: 35.26832709 | F27: 0.02927313322 | G27: 32.5123055 | H27: 0.02749941739 | I27: 30.54232195 | J27: 0.03414351852 | K27: 30.33729247 | L27: 0.03175457481 | M27: 28.21466167 | N27: 0.02927313322 | O27: 26.0098444 | P27: 0.02749941739 | Q27: 24.43385756 | R27: -
A28: タイミング・チェーン及びベルト | B28: 0.00462962963 | C28: 5.141913978 | D28: 0.004305705059 | E28: 4.782146046 | F28: 0.003969238402 | G28: 4.408448203 | H28: 0.003728734561 | I28: 4.141331789 | J28: 0.00462962963 | K28: 4.113531182 | L28: 0.004305705059 | M28: 3.825716837 | N28: 0.003969238402 | O28: 3.526758563 | P28: 0.003728734561 | Q28: 3.313065431 | R28: -
A29: タイミングギアシリンダヘッド・ボルト | B29: 0.1252893519 | C29: 139.153047 | D29: 0.1165231432 | E29: 129.4168274 | F29: 0.1074175143 | G29: 119.3036295 | H29: 0.100908879 | I29: 112.0747915 | J29: 0.1252893519 | K29: 111.3224376 | L29: 0.1165231432 | M29: 103.5334619 | N29: 0.1074175143 | O29: 95.4429036 | P29: 0.100908879 | Q29: 89.65983324 | R29: -
A30: ディーゼル用燃料噴射ノズル | B30: - | C30: - | D30: - | E30: - | F30: 0.03572314562 | G30: 39.67603383 | H30: 0.03355861105 | I30: 37.2719861 | J30: - | K30: - | L30: - | M30: - | N30: 0.03572314562 | O30: 31.74082706 | P30: 0.03355861105 | Q30: 29.81758888 | R30: -
A31: ディーゼル用燃料噴射装置 （ｺﾓﾝﾚｰﾙ+ｻﾌﾟﾗｲﾎﾟﾝﾌﾟ:電子式） | B31: - | C31: - | D31: - | E31: - | F31: 0.1421483503 | G31: 157.8775513 | H31: 0.1335353065 | I31: 148.3114447 | J31: - | K31: - | L31: - | M31: - | N31: 0.1421483503 | O31: 126.302041 | P31: 0.1335353065 | Q31: 118.6491558 | R31: -
A32: 点火コイル | B32: 0.01851851852 | C32: =$C$48*B32 -> 20.56765591 | D32: 0.01722282024 | E32: =$E$48*D32 -> 19.12858418 | F32: - | G32: - | H32: - | I32: - | J32: 0.01851851852 | K32: =$K$48*J32 -> 16.45412473 | L32: 0.01722282024 | M32: =$M$48*L32 -> 15.30286735 | N32: - | O32: - | P32: - | Q32: - | R32: -
A33: 点火プラグ | B33: 0.003472222222 | C33: =$C$48*B33 -> 3.856435483 | D33: 0.003229278794 | E33: =$E$48*D33 -> 3.586609535 | F33: - | G33: - | H33: - | I33: - | J33: 0.003472222222 | K33: =$K$48*J33 -> 3.085148387 | L33: 0.003229278794 | M33: 2.869287628 | N33: - | O33: - | P33: - | Q33: - | R33: -
A34: 燃料フィルタ | B34: 0.008391203704 | C34: =$C$48*B34 -> 9.319719085 | D34: 0.00780409042 | E34: =$E$48*D34 -> 8.667639709 | F34: 0.007194244604 | G34: 7.990312369 | H34: 0.006758331391 | I34: 7.506163868 | J34: 0.008391203704 | K34: 7.455775268 | L34: 0.00780409042 | M34: 6.934111767 | N34: 0.007194244604 | O34: =$O$48*N34 -> 6.392249895 | P34: 0.006758331391 | Q34: =$Q$48*P34 -> 6.004931094 | R34: -
A35: 燃料ポンプ(電動) | B35: 0.01157407407 | C35: 12.85478494 | D35: 0.01076426265 | E35: 11.95536512 | F35: 0.009923096006 | G35: 11.02112051 | H35: 0.009321836402 | I35: 10.35332947 | J35: 0.01157407407 | K35: 10.28382796 | L35: 0.01076426265 | M35: 9.564292092 | N35: 0.009923096006 | O35: 8.816896407 | P35: 0.009321836402 | Q35: 8.282663579 | R35: -
A36: バルブスプリング | B36: 0.006655092593 | C36: 7.391501343 | D36: 0.006189451023 | E36: 6.874334941 | F36: 0.005705780203 | G36: 6.337144292 | H36: 0.005360055931 | I36: 5.953164447 | J36: 0.006655092593 | K36: 5.913201075 | L36: 0.006189451023 | M36: 5.499467953 | N36: 0.005705780203 | O36: 5.069715434 | P36: 0.005360055931 | Q36: 4.762531558 | R36: -
A37: バルブ･ロッカー･アーム及びシャフト | B37: 0.005208333333 | C37: 5.784653225 | D37: 0.004843918192 | E37: 5.379914302 | F37: 0.004465393203 | G37: 4.959504229 | H37: 0.004194826381 | I37: 4.658998263 | J37: 0.005208333333 | K37: 4.62772258 | L37: 0.004843918192 | M37: 4.303931442 | N37: 0.004465393203 | O37: 3.967603383 | P37: 0.004194826381 | Q37: 3.72719861 | R37: -
A38: バルブ駆動部品及びカム･シャフト | B38: 0.01041666667 | C38: 11.56930645 | D38: 0.009687836383 | E38: 10.7598286 | F38: 0.008930786405 | G38: 9.919008458 | H38: 0.008389652762 | I38: 9.317996526 | J38: 0.01041666667 | K38: 9.25544516 | L38: 0.009687836383 | M38: 8.607862883 | N38: 0.008930786405 | O38: 7.935206766 | P38: 0.008389652762 | Q38: 7.454397221
A39: ピストン | B39: 0.01099537037 | C39: 12.2120457 | D39: 0.01022604952 | E39: 11.35759686 | F39: 0.009426941206 | G39: 10.47006448 | H39: 0.008855744582 | I39: 9.835662999 | J39: 0.01099537037 | K39: 9.769636558 | L39: 0.01022604952 | M39: 9.086077488 | N39: 0.009426941206 | O39: 8.376051586 | P39: 0.008855744582 | Q39: 7.8685304 | R39: -
A40: ピストンリング | B40: 0.005787037037 | C40: 6.427392472 | D40: 0.005382131324 | E40: 5.977682558 | F40: 0.004961548003 | G40: 5.510560254 | H40: 0.004660918201 | I40: 5.176664737 | J40: 0.005787037037 | K40: 5.141913978 | L40: 0.005382131324 | M40: 4.782146046 | N40: 0.004961548003 | O40: 4.408448203 | P40: 0.004660918201 | Q40: 4.141331789 | R40: -
A41: ファン及びファンクラッチ | B41: 0.004050925926 | C41: 4.499174731 | D41: 0.003767491927 | E41: 4.18437779 | F41: 0.003473083602 | G41: 3.857392178 | H41: 0.003262642741 | I41: 3.623665316 | J41: 0.004050925926 | K41: 3.599339785 | L41: 0.003767491927 | M41: 3.347502232 | N41: 0.003473083602 | O41: 3.085913742 | P41: 0.003262642741 | Q41: 2.898932252
A42: フライホイール | B42: 0.01938657407 | C42: 21.53176478 | D42: 0.01803013994 | E42: 20.02523657 | F42: 0.01662118581 | G42: 18.46037685 | H42: 0.01561407597 | I42: 17.34182687 | J42: 0.01938657407 | K42: 17.22541183 | L42: 0.01803013994 | M42: 16.02018925 | N42: 0.01662118581 | O42: 14.76830148 | P42: 0.01561407597 | Q42: 13.87346149 | R42: -
A43: ホース類(エンジン用) | B43: 0.02633101852 | C43: 29.24463575 | D43: 0.02448869752 | E43: 27.19845564 | F43: 0.02257504341 | G43: 25.07304916 | H43: 0.02120717781 | I43: 23.55382455 | J43: 0.02633101852 | K43: 23.3957086 | L43: 0.02448869752 | M43: 21.75876451 | N43: 0.02257504341 | O43: 20.05843933 | P43: 0.02120717781 | Q43: 18.84305964 | R43: -
A44: マフラ | B44: 0.02893518519 | C44: 32.13696236 | D44: 0.02691065662 | E44: 29.88841279 | F44: 0.02480774001 | G44: 27.55280127 | H44: 0.023304591 | I44: 25.88332368 | J44: 0.02893518519 | K44: 25.70956989 | L44: 0.02691065662 | M44: 23.91073023 | N44: 0.02480774001 | O44: 22.04224102 | P44: 0.023304591 | Q44: 20.70665895 | R44: -
A45: ウォーターポンプ | B45: 0.006365740741 | C45: 7.07013172 | D45: 0.005920344456 | E45: 6.575450814 | F45: 0.005457702803 | G45: 6.06161628 | H45: 0.005127010021 | I45: 5.69433121 | J45: 0.006365740741 | K45: 5.656105376 | L45: 0.005920344456 | M45: 5.260360651 | N45: 0.005457702803 | O45: 4.849293024 | P45: 0.005127010021 | Q45: 4.555464968 | R45: -
A46: ラジエータ | B46: 0.02951388889 | C46: =$C$48*B46 -> 32.77970161 | D46: 0.02744886975 | E46: 30.48618104 | F46: 0.02530389482 | G46: 28.1038573 | H46: 0.02377068282 | I46: 26.40099016 | J46: 0.02951388889 | K46: 26.22376129 | L46: 0.02744886975 | M46: 24.38894484 | N46: 0.02530389482 | O46: 22.48308584 | P46: 0.02377068282 | Q46: 21.12079213 | R46: -
A47: ロータリーエンジン専用部品など | B47: 0 | C47: =$C$48*B47 -> 0 | D47: 0 | E47: 0 | F47: 0 | G47: 0 | H47: 0 | I47: 0 | J47: 0 | K47: 0 | L47: 0 | M47: 0 | N47: 0 | O47: 0 | P47: 0 | Q47: 0 | R47: -
A48: 合計 | B48: =SUM(B4:B47) -> 1 | C48: =走行条件!C6/走行条件!C5*(走行条件!C8-走行条件!C7) -> 1110.653419 | D48: =SUM(D4:D47) -> 1 | E48: =C48 -> 1110.653419 | F48: =SUM(F4:F47) -> 1 | G48: =走行条件!C6/走行条件!C5*(走行条件!C10-走行条件!C9) -> 1110.653419 | H48: =SUM(H4:H47) -> 1 | I48: =G48 -> 1110.653419 | J48: =SUM(J4:J47) -> 1 | K48: =走行条件!C6/走行条件!C5*(走行条件!C8-走行条件!C7)*走行条件!C11 -> 888.5227354 | L48: =SUM(L4:L47) -> 1 | M48: =K48 -> 888.5227354 | N48: =SUM(N4:N47) -> 1 | O48: =走行条件!C6/走行条件!C5*(走行条件!C10-走行条件!C9)*走行条件!C11 -> 888.5227354 | P48: =SUM(P4:P47) -> 1 | Q48: =O48 -> 888.5227354 | R48: 0
A49: 検算 | C49: =C48-SUM(C4:C47) -> 0 | E49: =E48-SUM(E4:E47) -> 0 | G49: =G48-SUM(G4:G47) -> 0 | I49: =I48-SUM(I4:I47) -> 0 | K49: =K48-SUM(K4:K47) -> 0 | M49: =M48-SUM(M4:M47) -> 0 | O49: =O48-SUM(O4:O47) -> 0 | Q49: =Q48-SUM(Q4:Q47) -> 0
C50: ↑ | E50: ↑ | G50: ↑ | I50: ↑ | K50: ↑ | M50: ↑ | O50: ↑ | Q50: ↑
J53: 燃費の変更はこちらから。

Sheet ⑤ｴﾈﾙｷﾞｰ由来CO2排出原単位
C1: CO2 | D1: CH4 | E1: N2O | F1: NOx | G1: SOx | H1: PM | I1: HC | J1: HCl | K1: BOD | L1: COD | M1: 出典･参考文献
C2: (g) | D2: (g) | E2: (g) | F2: (g) | G2: (g) | H2: (g) | I2: (g) | J2: (g) | K2: (g) | L2: (g)
A3: ｶﾞｿﾘﾝ | B3: 製造時 | C3: 280 | D3: - | E3: - | F3: 0.389 | G3: 0.322 | H3: 0 | I3: 0 | J3: - | K3: 0 | L3: 0 | M3: JAPIA LCI算出ﾂｰﾙ(非公開)
A4: 1(L) | B4: 燃焼時 | C4: 2321 | D4: - | E4: - | F4: ＃ | G4: ＃ | H4: ＃ | I4: ＃ | J4: - | K4: - | L4: - | M4: ↑
A5: 軽油 | B5: 製造時 | C5: 93 | D5: - | E5: - | F5: 0.244 | G5: 0.141 | H5: 0 | I5: 0 | J5: - | K5: 0 | L5: 0 | M5: ↑
A6: 1(L) | B6: 燃焼時 | C6: 2610 | D6: - | E6: - | F6: ＃ | G6: ＃ | H6: ＃ | I6: ＃ | J6: - | K6: - | L6: - | M6: ↑
A7: 電力1(kWh) | B7: 製造時 | C7: 536 | D7: - | E7: - | F7: 0.198 | G7: 0.057 | H7: 0 | I7: - | J7: - | K7: 0 | L7: 0 | M7: JPIA LCI 算出ｶﾞｲﾄﾞﾗｲﾝ附則1(非公開)
A8: 水素1(Nm3) | B8: 製造時 | C8: 950 | D8: - | E8: - | F8: 調査中 | G8: 調査中 | H8: 調査中 | I8: 調査中 | J8: - | K8: 調査中 | L8: 調査中 | M8: 平成２６年４月１４日 資源エネルギー庁 燃料電池推進室
C9: (都市ｶﾞｽ)
C10: 1080
C11: (LPG)
C12: 1130
C13: (ﾅﾌｻ)

Sheet 一覧表
A1: 項目 | C1: JC08四輪乗用車 | D1: WLTC四輪乗用車 | E1: JE05重量車(トラック) | F1: WHVC重量車(トラック) | G1: JE05重量車(バス) | H1: WHVC重量車(バス) | I1: WMTC_Class1_原付第一種(50cc以下) | J1: WMTC_Class1_原付第ニ種(50cc超125cc以下) | K1: WMTC_Class2_軽二輪(125cc超250cc以下) | L1: WMTC_Class3_小型二輪(250cc超) | M1: 備考
A2: 年間 使用 時間 | B2: 1日当たりの使用時間[h] | C2: 2 | D2: 1.33557 | E2: 8 | F2: 8 | G2: 16 | H2: 16 | I2: － | J2: － | K2: － | L2: －
B3: 1週間当たりの使用日数[日] | C3: 5 | D3: 5 | E3: 5 | F3: 5 | G3: - | H3: - | I3: － | J3: － | K3: － | L3: －
B4: 年間使用週数[週] | C4: 50 | D4: 50 | E4: 50 | F4: 50 | G4: - | H4: - | I4: － | J4: － | K4: － | L4: －
B5: 考え方 | C5: ･年50週、週5日間、1日当り2時間使用(日中1時間、日没後1時間 地方都市圏においての通勤での使用を想定) | D5: ･年50週、週5日間、1日当り1.34時間使用(日中0.67時間、日没後0.67時間 地方都市圏においての通勤での高速道路走行を含む使用を想定) | E5: ・厚労省労働基準局 トラック運転者の労働時間等の改善基準のポイントを参考に年50週、週5日間、1日当り8時間使用 http://www.mhlw.go.jp/new-info/kobetu/roudou/gyousei/kantoku/dl/040330-10.pdf ・使用年数は国税庁 主な減価償却資産の耐用年数を参考とした https://www.keisan.nta.go.jp/survey/publish/34255/faq/34311/faq_34357.php | G5: ・路線バスを想定し、一日16時間(6-22時)、365日運行すると想定 | I5: ･大部分は四輪車と用途が異なるため、四輪車のような想定される通勤時間等では規定しない。
A6: 使用年数[年] | C6: 10 | D6: 10 | E6: =5*3 -> 15 | F6: =5*3 -> 15 | G6: =5*4 -> 20 | H6: =5*4 -> 20 | I6: － | J6: － | K6: － | L6: －
B7: 考え方 | C7: ･一般的な自動車の延長保証期間の5年間の2倍の期間を代表値とする | E7: ･国税庁 主な減価償却資産の耐⽤年数の3倍の期間を代表値とする https://www.keisan.nta.go.jp/survey/publish/34255/faq/34311/faq_34357.php [参考] http://www.jta.or.jp/coho/hayawakari/14.sonota.html | G7: ･国税庁 主な減価償却資産の耐⽤年数の4倍の期間を代表値とする https://www.keisan.nta.go.jp/survey/publish/34255/faq/34311/faq_34357.php [参考] https://www.env.go.jp/council/06earth/y0613-16/ref06-10.pdf | I7: － | J7: － | K7: － | L7: －
A8: 生涯使用時間[h] | C8: =C2*C3*C4*C6 -> 5000 | D8: =D2*D3*D4*D6 -> 3338.925 | E8: =E2*E3*E4*E6 -> 30000 | F8: =F2*F3*F4*F6 -> 30000 | G8: =G2*G6*365 -> 116800 | H8: =H2*H6*365 -> 116800 | I8: =I11/I13*I12/3600 -> 477.7000912 | J8: =J11/J13*J12/3600 -> 868.5456204 | K8: 505.8904621 | L8: =L11/L13*L12/3600 -> 345.8366076 | M8: ･二輪車の生涯使用時間は、生涯走狗距離とモード走行の距離及び時間より算出
B9: 走行パターン出典 | C9: ･通勤の使用をモデル化したものとして採用した ･道路運送車両の保安基準の細目を定める告示 別添42による http://www.mlit.go.jp/jidosha/kijyun/saimokubetten/saibet_042_00.pdf | D9: ・Global technical regulation on Worldwide harmonized Light vehicles Test Procedure ※適用車両:Class3b 試験ｻｲｸﾙ:低速+中速+高速 https://www.unece.org/fileadmin/DAM/trans/main/wp29/wp29r-1998agr-rules/ECE-TRANS-180a15e.pdf | E9: ・道路運送車両の保安基準の細目を定める告示【2017.04.04】別添41（重量車排出ガスの測定方法） JE05モード法 http://www.mlit.go.jp/common/001184849.pdf | F9: ・速度モードはWHVC: United Nations ECE/TRANS/WP.29/GRPE/69/Add.2 I. Adopted technical report on the development of the draft Amendment 3 to global technical regulation (gtr) No. 4に基づく | G9: トラックと同じ | H9: トラックと同じ | I9: ･一般的な使用をモデル化したものとして採用した ･排気量により走行モードを変える ･Global technical regulation No. 2 MEASUREMENT PROCEDURE FOR TWO-WHEELED MOTORCYCLES EQUIPPED WITH A POSITIVE OR COMPRESSION IGNITION ENGINE WITH REGARD TO THE EMISSION OF GASEOUS POLLUTANTS, CO2 EMISSIONS AND FUEL CONSUMPTION https://www.unece.org/trans/main/wp29/wp29wgs/wp29gen/wp29glob_registry.html
F10: ・エンジン回転数はWHTC: United Nations ECE/TRANS/WP.29/GRPE/2014/11 Proposal for draft Amendment 3 to global technical regulation (gtr) No. 4: Test procedure for compression-ignition (C.I.) engines and positive-ignition (P.I.) engines fuelled with natural gas (NG) or liquefied petroleum gas (LPG) with regard to the emission of pollutantsに基づく https://www.unece.org/fileadmin/DAM/trans/doc/2014/wp29grpe/ECE-TRANS-WP29-GRPE-2014-11e.pdf
A11: 生涯走行距離 | B11: [km] | C11: =C8*3600/C12*C13 -> 122174.4186 | D11: =D8*3600/D12*D13 -> 122171.8761 | E11: =E8*3600/E12*E13 -> 820309.7321 | F11: =F8*3600/F12*F13 -> 1204324 | G11: 3193739.224 | H11: =H8*3600/H12*H13 -> 4688834.773 | I11: 11000 | J11: 20000 | K11: 20000 | L11: 20000 | M11: ･生涯使用時間中、走行モードを繰返す
B12: モード走行時間[s] | C12: ='JC08'!A1219 -> 1204 | D12: =WLTC!A1492 -> 1477 | E12: ='JE05'!A1844 -> 1829 | F12: =WHVC!A1815 -> 1800 | G12: ='JE05'!A1844 -> 1829 | H12: =WHVC!A1815 -> 1800 | I12: =WMTC_Class1_原付第一種!A615 -> 600 | J12: ='WMTC_Class1_原付第ニ種 '!A615 -> 600 | K12: =WMTC_Class2_軽二輪!A1215 -> 1200 | L12: =WMTC_Class3_小型二輪!A1815 -> 1800
B13: モード走行距離[km] | C13: ='JC08'!F1220/1000 -> 8.172111111 | D13: =WLTC!F1493/1000 -> 15.01213889 | E13: ='JE05'!F1845/1000 -> 13.89209722 | F13: =WHVC!F1816/1000 -> 20.07206667 | G13: ='JE05'!F1845/1000 -> 13.89209722 | H13: =WHVC!F1816/1000 -> 20.07206667 | I13: =WMTC_Class1_原付第一種!F616/1000 -> 3.837833333 | J13: ='WMTC_Class1_原付第ニ種 '!F616/1000 -> 3.837833333 | K13: =WMTC_Class2_軽二輪!F1216/1000 -> 13.17808333 | L13: =WMTC_Class3_小型二輪!F1816/1000 -> 28.91538889
A14: 生涯走行パターン繰返し回数[回] | C14: =C8*3600/C12 -> 14950.16611 | D14: 8138.205823 | E14: 59048.66047 | F14: 60000 | G14: 229896.1181 | H14: 233600 | I14: 2866.200547 | J14: =J8*3600/J12 -> 5211.273722 | K14: 1517.671386 | L14: 691.6732151 | M14: ･生涯使用時間÷モード時間
A15: 燃費 | B15: ガソリンエンジン及びディーゼルエンジン[km/L] | C15: 17.6 | E15: 7.46 | G15: 5.8 | I15: 48 | J15: 45.3 | K15: 38.4 | L15: 23.4
B16: [L/100km] | C16: =100/C15 -> 5.681818182 | E16: =100/E15 -> 13.40482574 | G16: =100/G15 -> 17.24137931 | I16: =100/I15 -> 2.083333333 | J16: =100/J15 -> 2.207505519 | K16: 2.604166667 | L16: 4.273504274
B17: 出典 | C17: ･乗用自動車のエネルギー消費性能の向上に関するエネルギー消費機器等製造事業者等の判断の基準等（平成二十五年三月一日経済産業省・国土交通省告示第二号）における、 目標年度2020年度とした『ガソリン乗用自動車、ディーゼル乗用自動車及びＬＰガス乗用自動車（乗車定員10人以下）並びに小型バス（乗車定員11人以上かつ車両総重量3.5t以下の乗用自動車）』の基準値の中央値を代表値とする http://www.mlit.go.jp/common/001023498.pdf http://www.mlit.go.jp/common/000991480.pdf | E17: ･総合資源エネルギー調査会省エネルギー・新エネルギー分科会省エネルギー小委員会自動車判断基準ワーキンググループ・交通政策審議会陸上交通分科会自動車部会自動車燃費基準小委員会合同会議 とりまとめ（重量車燃費基準等 平成２９年１２月１２日）における、 ①貨物自動車<トラック等>の目標基準値の中央値を代表値とする http://www.meti.go.jp/report/whitepaper/data/pdf/20171212001_1.pdf | G17: ･総合資源エネルギー調査会省エネルギー・新エネルギー分科会省エネルギー小委員会自動車判断基準ワーキンググループ・交通政策審議会陸上交通分科会自動車部会自動車燃費基準小委員会合同会議 とりまとめ（重量車燃費基準等 平成２９年１２月１２日）における、 ②乗用自動車<路線バス>の目標基準値の中央値を代表値とする http://www.meti.go.jp/report/whitepaper/data/pdf/20171212001_1.pdf | I17: ･平成２４年６月２７日 中央環境審議会大気環境部会自動車排出ガス専門委員会（第５１回） http://www.env.go.jp/council/former2013/07air/y071-51a.html ･検討資料 資料51-3 「今後の自動車排出ガス低減対策のあり方について(第十一次報告)(案)」 2/4 http://www.env.go.jp/council/former2013/07air/y071-51/mat03-2.pdf
A18: 車両 質量 | B18: [kg] | C18: 1476 | E18: 9000 | G18: 11000 | I18: 83 | J18: 115 | K18: 150 | L18: 206
B19: 出典 | C19: ･燃費基準値の燃費代表値における車両重量区分『1421～1530(kg)』の中央値を代表値とする | E19: ･燃費基準値の燃費代表値における①貨物自動車の車両重量区分『８＜GVW車両総重量≦10(t)』の中央値を代表値とする | G19: ･燃費基準値の燃費代表値における②乗用自動車の車両重量区分『10＜GVW車両総重量≦12(t)』の中央値を代表値とする | I19: Worldwide harmonized Motorcycle emissions Certification/Test procedure (WMTC) informal group のWMTC-gear selection sheetsにおいて初期設定されている車両重量(kerb weight)より、これらを代表値とする
A20: 内燃 機関の エネルギー 効率 | B20: ガソリンエンジン 有効仕事の比率(熱効率):30[%] | C20: 0.3 | I20: 0.25 | M20: ・それぞれの有効仕事の代表値は独自調査に基づく ･二輪車にはディーゼルエンジンを適用しない
B21: ガソリンエンジン 理論熱効率：46[%] | C21: 0.46
B22: 考え方 | C22: ･熱勘定における有効仕事の比率の代表値を30%と仮定する ･ｵｯﾄｰｻｲｸﾙの理論熱効率算出式:η=1-ε1-κ ただしε:圧縮比、κ:比熱比 ここでε=10、κ=1.27としη=0.46と仮定する | I22: ･熱勘定における有効仕事の比率の代表値を25%と仮定する ･ｵｯﾄｰｻｲｸﾙの理論熱効率算出式:η=1-ε1-κ ただしε:圧縮比、κ:比熱比 ここでε=10、κ=1.27としη=0.46と仮定する
B23: ディーゼルエンジン 有効仕事の比率(熱効率):40[%] | C23: 0.4 | I23: －
B24: ディーゼルエンジン 理論熱効率：56[%] | C24: 0.56 | I24: －
B25: 考え方 | C25: ･熱勘定における有効仕事の比率の代表値を40%と仮定する ･ﾃﾞｨｰｾﾞﾙｻｲｸﾙの理論熱効率算出式:η=1-ε1-κ･(σκ-1)/κ(σ-1) ただしε:圧縮比、κ:比熱比、σ:等圧膨張比(締切比) ここでε=16、κ=1.32、σ=1.5とし、η=0.56と仮定する | I25: －
A26: 走行モードにおける1kg当りの 線形加速仕事量[J] | C26: ='JC08'!M1221 -> 1442.196373 | D26: =WLTC!M1494 -> 2543.755015 | E26: ='JE05'!M1846 -> 1683.520687 | F26: =WHVC!M1817 -> 2093.58973 | G26: ='JE05'!M1846 -> 1683.520687 | H26: =WHVC!M1817 -> 2093.58973 | I26: =WMTC_Class1_原付第一種!M617 -> 672.9641204 | J26: ='WMTC_Class1_原付第ニ種 '!M617 -> 672.9641204 | K26: =WMTC_Class2_軽二輪!M1217 -> 2541.192515 | L26: =WMTC_Class3_小型二輪!M1817 -> 4299.23071
A27: 各走行モードにおける角速度及びエンジン回転数算出条件 | B27: 変速段数 | C27: ='JC08'!AH2 -> 6 | D27: =WLTC!AH2 -> 6 | E27: ='JE05'!AG2 -> 5 | F27: 最高回転数で規定 | G27: ='JE05'!AG2 -> 5 | H27: 最高回転数で規定 | I27: =WMTC_Class1_原付第一種!AF2 -> 4 | J27: ='WMTC_Class1_原付第ニ種 '!AH2 -> 6 | K27: =WMTC_Class2_軽二輪!AG2 -> 5 | L27: =WMTC_Class3_小型二輪!AH2 -> 6 | M27: ･代表値として仮定
B28: 変速比 | C28: 各モードでそれぞれ設定
B29: 最終減速比 | C29: ='JC08'!AC4 -> 4.1 | D29: =WLTC!AC4 -> 4.1 | E29: ='JE05'!AC4 -> 4.875 | F29: 最高回転数で規定 | G29: ='JE05'!AC4 -> 4.875 | H29: 最高回転数で規定 | I29: NV比で規定
B30: 停止時のエンジン回転数[rpm] | C30: ='JC08'!AD7 -> 800 | D30: =WLTC!AD7 -> 800 | E30: ='JE05'!AD7 -> 700 | F30: =WHVC!AD7 -> 700 | G30: ='JE05'!AD7 -> 700 | H30: =WHVC!AD7 -> 700 | I30: =WMTC_Class1_原付第一種!AD7 -> 1700 | J30: ='WMTC_Class1_原付第ニ種 '!AD7 -> 2000 | K30: =WMTC_Class2_軽二輪!AD7 -> 1200 | L30: =WMTC_Class3_小型二輪!AD7 -> 1300
B31: タイヤ径[m] | C31: ='JC08'!AD10 -> 0.6 | D31: =WLTC!AD10 -> 0.6 | E31: ='JE05'!AD10 -> 0.778 | F31: =WHVC!AD10 -> 0.778 | G31: ='JE05'!AD10 -> 0.778 | H31: =WHVC!AD10 -> 0.778 | I31: =WMTC_Class1_原付第一種!AD10 -> 0.6 | J31: ='WMTC_Class1_原付第ニ種 '!AD10 -> 0.6 | K31: =WMTC_Class2_軽二輪!AD10 -> 0.6 | L31: =WMTC_Class3_小型二輪!AD10 -> 0.6
B32: 平均エンジン回転数[rpm] | C32: ='JC08'!AA1221 -> 1506.628314 | D32: =WLTC!AA1494 -> 1557.289814 | E32: ='JE05'!AA1846 -> 1521.945529 | F32: =WHVC!AA1817 -> 2294.478222 | G32: ='JE05'!AA1846 -> 1521.945529 | H32: =WHVC!AA1817 -> 2294.478222 | I32: =WMTC_Class1_原付第一種!AA617 -> 3491.6458 | J32: ='WMTC_Class1_原付第ニ種 '!AA617 -> 3315.077117 | K32: =WMTC_Class2_軽二輪!AA1217 -> 10030.79895 | L32: =WMTC_Class3_小型二輪!AA1817 -> 15664.27932
B33: 出典 | C33: ･道路運送車両の保安基準の細目を定める告示 別添42による | D33: ･WLTPのギアシフトを算出するツールWLTP_gearshift_calculation_31012017.mdbに設定されている初期値に基づく [参考] https://pypi.python.org/pypi/wltp/0.0.8-alpha.2 | E33: ・道路運送車両の保安基準の細目を定める告示【2017.04.04】別添41（重量車排出ガスの測定方法） JE05モード法 http://www.mlit.go.jp/common/001184849.pdf ・ﾀｲﾔ外径は交通研 ２．重量車における燃料消費率試験法のさらなる高度化に向けて に基づく https://www.ntsel.go.jp/forum/2013files/1206_1120.pdf | F33: WHTC: United Nations ECE/TRANS/WP.29/GRPE/2014/11 に基づく https://www.unece.org/fileadmin/DAM/trans/doc/2014/wp29grpe/ECE-TRANS-WP29-GRPE-2014-11e.pdf | G33: トラックと同じ | H33: トラックと同じ | I33: ･Worldwide harmonized Motorcycle emissions Certification/Test procedure (WMTC) informal groupが作成したWMTC-Gearshift-Sheetsに記載されている初期値に基づく http://www.unece.org/trans/main/wp29/wp29wgs/wp29grpe/wmtc.html
A34: 走行モードにおける1kg･m2当りの回転加速仕事量[J] | C34: ='JC08'!Z1221 -> 16024.40415 | D34: =WLTC!Z1494 -> 28263.94462 | E34: ='JE05'!Z1846 -> 11125.49274 | F34: =WHVC!Z1817 -> 13835.42093 | G34: ='JE05'!Z1846 -> 11125.49274 | H34: =WHVC!Z1817 -> 13835.42093 | I34: =WMTC_Class1_原付第一種!Z617 -> 7477.379115 | J34: ='WMTC_Class1_原付第ニ種 '!Z617 -> 7477.379115 | K34: =WMTC_Class2_軽二輪!Z1217 -> 28235.47239 | L34: =WMTC_Class3_小型二輪!Z1817 -> 47769.23011
A35: 空気抵抗 | B35: 車両前面投影面積[m2] | C35: 2 | D35: 2 | E35: =3*2 -> 6 | F35: =3*2 -> 6 | G35: =3*2.5 -> 7.5 | H35: =3*2.5 -> 7.5 | I35: 1 | J35: 1 | K35: 1 | L35: 1
B36: Cd値(抗力係数) | C36: 0.3 | D36: 0.3 | E36: 0.5 | F36: 0.5 | G36: 0.5 | H36: 0.5 | I36: 0.6 | J36: 0.6 | K36: 0.6 | L36: 0.6
B37: 転がり抵抗係数 | C37: 0.01

Sheet WLTC
AB1: トランスミッション前提条件
AB2: 変速位置 | AC2: 1 | AD2: 2 | AE2: 3 | AF2: 4 | AG2: 5 | AH2: 6
AB3: 変速比 | AC3: 3.6 | AD3: 2.16 | AE3: 1.52 | AF3: 1.2 | AG3: 1 | AH3: 0.76
AB4: 最終減速比 | AC4: 4.1
AB6: エンジンのアイドリング前提条件
AB7: 停止時0km/h(rpm) | AD7: 800
AB9: タイヤ前提条件
AB10: 外径(m) | AD10: 0.6
A11: モード名： WLTP, Class3(WLTC) (車両クラス3(最高速度,≦120km/h)) | F11: モード表から算出される各種ﾊﾟﾗﾒｰﾀ
AB12: アイドリング回転数の1速時の車両速度(m/s) ※計算でこれより小さい速度になった時はアイドリング回転数とする | AD12: =AD7/(AC3*AC4)*PI()*AD10/60 -> 1.702760246
A13: 経過 時間 | C13: 標準変速位置
B14: 速度 | C14: gear | D14: gear_min | E14: gear_max | F14: 速度 | G14: 速度変化 | H14: (速度)2 | I14: 加速:1 | J14: 加速開始 | K14: 加速終了 | L14: (加速開始時の | M14: (加速終了時の | N14: 減速区間 | O14: 減速区間 | P14: 減速終点時 | Q14: 減速終点時 | R14: 空気抵抗仕事係数 | S14: 空気抵抗力+転がり抵抗 | T14: 車両に加わっている力 | U14: 空気抵抗+転がり抵抗で | V14: 車両が加減速時に必要な | W14: 角速度 | X14: (角速度)2 | Y14: (加速開始時の | Z14: (加速終了時の | AA14: エンジン回転数
A15: [秒] | B15: [km/h] | F15: [m/s] | G15: (m/s) | H15: [m/s]2 | I15: 減速:0 | J15: 時点 | K15: 時点 | L15: 速度v)2 | M15: 速度v')2 | O15: v2 | P15: v'2-v2 | Q15: v'2-v2 | R15: (速度Ｖ)2×距離L | S15: Ffriction+Fair［N］ | T15: mα[N] | U15: 減速が相殺できない場合:1 | V15: 空気抵抗分の仕事量 | W15: ω(rad/s) | X15: [rad/s]2 | Y15: 角速度ω)2 | Z15: 角速度ω')2 | AA15: [round/s]
A16: 1 | B16: 0 | C16: 0 | D16: 0 | E16: 0 | F16: =B16*1000/3600 -> 0 | G16: =F17-F16 -> 0 | H16: =F16*F16 -> 0 | I16: =IF(F16<=F17,1,0) -> 1 | J16: 1 | L16: =IF(J16="","-",J16*H16) -> 0 | M16: =IF(K16="","-",K16*H16) -> - | N16: 0 | O16: =N16*H16 -> 0 | P16: 0 | Q16: =IF(J16=1,P16,0) -> 0 | R16: =H16*F16 -> 0 | S16: =1/2*H16*$U$1494*$U$1495*$U$1496+IF(F16=0,0,一覧表!$C$37*一覧表!$C$18*9.8) -> 0 | T16: 0 | U16: =IF(S16<=-T16,0,1) -> 0 | V16: =IF(U16=1,R16*$U$1494,0) -> 0 | W16: =F16/($AD$10/2) -> 0 | X16: =W16*W16 -> 0 | Y16: =IF(J16="","-",X16*J16) -> 0 | Z16: =IF(K16="","-",X16*K16) -> - | AA16: =IF(OR(F16<$AD$12,C16=0),$AD$7/60,IF(C16=1,$AC$3,IF(C16=2,$AD$3,IF(C16=3,$AE$3,IF(C16=4,$AF$3,IF(C16=5,$AG$3,$AH$3)))))*$AC$4*F16/(PI()*$AD$10)) -> 13.33333333
A17: 2 | B17: 0 | C17: 0 | D17: 0 | E17: 0 | F17: =B17*1000/3600 -> 0 | G17: =F18-F17 -> 0 | H17: =F17*F17 -> 0 | I17: =IF(F17<=F18,1,0) -> 1 | J17: =IF(I16<I17,1,"") ->  | K17: =IF(I16>I17,1,"") ->  | L17: =IF(J17="","-",J17*H17) -> - | M17: - | N17: =IF(J17=1,1,IF(F17>F18,1,0)) -> 0 | O17: =N17*H17 -> 0 | P17: =IF(O17>=O16,O17,N17*P16)-I17*O17 -> 0 | Q17: 0 | R17: 0 | S17: =1/2*H17*$U$1494*$U$1495*$U$1496+IF(F17=0,0,一覧表!$C$37*一覧表!$C$18*9.8) -> 0 | T17: =(F17-F16)*一覧表!$C$18 -> 0 | U17: 0 | V17: 0 | W17: 0 | X17: =W17*W17 -> 0 | Y17: - | Z17: - | AA17: =IF(OR(F17<$AD$12,C17=0),$AD$7/60,IF(C17=1,$AC$3,IF(C17=2,$AD$3,IF(C17=3,$AE$3,IF(C17=4,$AF$3,IF(C17=5,$AG$3,$AH$3)))))*$AC$4*F17/(PI()*$AD$10)) -> 13.33333333
A18: 3 | B18: 0 | C18: 0 | D18: 0 | E18: 0 | F18: 0 | G18: =F19-F18 -> 0 | H18: 0 | I18: =IF(F18<=F19,1,0) -> 1 | J18: =IF(I17<I18,1,"") ->  | K18: =IF(I17>I18,1,"") ->  | L18: - | M18: - | N18: 0 | O18: =N18*H18 -> 0 | P18: =IF(O18>=O17,O18,N18*P17)-I18*O18 -> 0 | Q18: =IF(J18=1,P18,0) -> 0 | R18: =H18*F18 -> 0 | S18: =1/2*H18*$U$1494*$U$1495*$U$1496+IF(F18=0,0,一覧表!$C$37*一覧表!$C$18*9.8) -> 0 | T18: =(F18-F17)*一覧表!$C$18 -> 0 | U18: 0 | V18: 0 | W18: 0 | X18: 0 | Y18: - | Z18: - | AA18: 13.33333333
A19: 4 | B19: 0 | C19: 0 | D19: 0 | E19: 0 | F19: 0 | G19: 0 | H19: 0 | I19: 1 | L19: - | M19: - | N19: 0 | O19: 0 | P19: 0 | Q19: 0 | R19: 0 | S19: =1/2*H19*$U$1494*$U$1495*$U$1496+IF(F19=0,0,一覧表!$C$37*一覧表!$C$18*9.8) -> 0 | T19: =(F19-F18)*一覧表!$C$18 -> 0 | U19: 0 | V19: 0 | W19: 0 | X19: 0 | Y19: - | Z19: - | AA19: 13.33333333
A20: 5 | B20: 0 | C20: 0 | D20: 0 | E20: 0 | F20: 0 | G20: 0 | H20: 0 | I20: 1 | L20: - | M20: - | N20: 0 | O20: 0 | P20: 0 | Q20: 0 | R20: 0 | S20: =1/2*H20*$U$1494*$U$1495*$U$1496+IF(F20=0,0,一覧表!$C$37*一覧表!$C$18*9.8) -> 0 | T20: =(F20-F19)*一覧表!$C$18 -> 0 | U20: 0 | V20: 0 | W20: 0 | X20: 0 | Y20: - | Z20: - | AA20: 13.33333333
A21: 6 | B21: 0 | C21: 0 | D21: 0 | E21: 0 | F21: 0 | G21: 0 | H21: 0 | I21: 1 | L21: - | M21: - | N21: 0 | O21: 0 | P21: 0 | Q21: 0 | R21: 0 | S21: =1/2*H21*$U$1494*$U$1495*$U$1496+IF(F21=0,0,一覧表!$C$37*一覧表!$C$18*9.8) -> 0 | T21: =(F21-F20)*一覧表!$C$18 -> 0 | U21: 0 | V21: 0 | W21: 0 | X21: 0 | Y21: - | Z21: - | AA21: 13.33333333
A22: 7 | B22: 0 | C22: 0 | D22: 0 | E22: 0 | F22: 0 | G22: =F23-F22 -> 0 | H22: 0 | I22: 1 | L22: - | M22: - | N22: 0 | O22: 0 | P22: 0 | Q22: 0 | R22: 0 | S22: =1/2*H22*$U$1494*$U$1495*$U$1496+IF(F22=0,0,一覧表!$C$37*一覧表!$C$18*9.8) -> 0 | T22: =(F22-F21)*一覧表!$C$18 -> 0 | U22: 0 | V22: 0 | W22: 0 | X22: 0 | Y22: - | Z22: - | AA22: 13.33333333
A23: 8 | B23: 0 | C23: 0 | D23: 0 | E23: 0 | F23: 0 | G23: =F24-F23 -> 0 | H23: 0 | I23: 1 | L23: - | M23: - | N23: 0 | O23: 0 | P23: 0 | Q23: 0 | R23: 0 | S23: =1/2*H23*$U$1494*$U$1495*$U$1496+IF(F23=0,0,一覧表!$C$37*一覧表!$C$18*9.8) -> 0 | T23: =(F23-F22)*一覧表!$C$18 -> 0 | U23: 0 | V23: 0 | W23: 0 | X23: 0 | Y23: - | Z23: - | AA23: 13.33333333
A24: 9 | B24: 0 | C24: 0 | D24: 0 | E24: 0 | F24: 0 | G24: 0 | H24: 0 | I24: 1 | L24: - | M24: - | N24: 0 | O24: 0 | P24: 0 | Q24: 0 | R24: 0 | S24: =1/2*H24*$U$1494*$U$1495*$U$1496+IF(F24=0,0,一覧表!$C$37*一覧表!$C$18*9.8) -> 0 | T24: =(F24-F23)*一覧表!$C$18 -> 0 | U24: 0 | V24: 0 | W24: 0 | X24: 0 | Y24: - | Z24: - | AA24: 13.33333333
A25: 10 | B25: 0 | C25: 0 | D25: 0 | E25: 0 | F25: 0 | G25: 0 | H25: 0 | I25: 1 | L25: - | M25: - | N25: 0 | O25: 0 | P25: 0 | Q25: 0 | R25: 0 | S25: =1/2*H25*$U$1494*$U$1495*$U$1496+IF(F25=0,0,一覧表!$C$37*一覧表!$C$18*9.8) -> 0 | T25: =(F25-F24)*一覧表!$C$18 -> 0 | U25: 0 | V25: 0 | W25: 0 | X25: 0 | Y25: - | Z25: - | AA25: 13.33333333
A26: 11 | B26: 0 | C26: 1 | D26: 1 | E26: 1 | F26: =B26*1000/3600 -> 0 | G26: 0.05555555556 | H26: 0 | I26: 1 | L26: - | M26: - | N26: 0 | O26: 0 | P26: 0 | Q26: 0 | R26: 0 | S26: =1/2*H26*$U$1494*$U$1495*$U$1496+IF(F26=0,0,一覧表!$C$37*一覧表!$C$18*9.8) -> 0 | T26: =(F26-F25)*一覧表!$C$18 -> 0 | U26: 0 | V26: 0 | W26: 0 | X26: 0 | Y26: - | Z26: - | AA26: 13.33333333
A27: 12 | B27: 0.2 | C27: 1 | D27: 1 | E27: 1 | F27: =B27*1000/3600 -> 0.05555555556 | G27: 0.4166666667 | H27: 0.003086419753 | I27: 1 | L27: - | M27: - | N27: 0 | O27: 0 | P27: 0 | Q27: 0 | R27: 0.0001714677641 | S27: =1/2*H27*$U$1494*$U$1495*$U$1496+IF(F27=0,0,一覧表!$C$37*一覧表!$C$18*9.8) -> 144.6491111 | T27: =(F27-F26)*一覧表!$C$18 -> 82 | U27: 1 | V27: 0.0003429355281 | W27: 0.1851851852 | X27: 0.03429355281 | Y27: - | Z27: - | AA27: 13.33333333
A28: 13 | B28: 1.7 | C28: 1 | D28: 1 | E28: 1 | F28: 0.4722222222 | G28: 1.027777778 | H28: 0.2229938272 | I28: 1 | L28: - | M28: - | N28: 0 | O28: 0 | P28: 0 | Q28: 0 | R28: 0.1053026406 | S28: =1/2*H28*$U$1494*$U$1495*$U$1496+IF(F28=0,0,一覧表!$C$37*一覧表!$C$18*9.8) -> 144.7282778 | T28: =(F28-F27)*一覧表!$C$18 -> 615 | U28: 1 | V28: =IF(U28=1,R28*$U$1494,0) -> 0.2106052812 | W28: 1.574074074 | X28: 2.477709191 | Y28: - | Z28: - | AA28: 13.33333333
A29: 14 | B29: 5.4 | C29: 1 | D29: 1 | E29: 1 | F29: 1.5 | G29: 1.25 | H29: 2.25 | I29: 1 | L29: - | M29: - | N29: 0 | O29: 0 | P29: 0 | Q29: 0 | R29: 3.375 | S29: =1/2*H29*$U$1494*$U$1495*$U$1496+IF(F29=0,0,一覧表!$C$37*一覧表!$C$18*9.8) -> 145.458 | T29: =(F29-F28)*一覧表!$C$18 -> 1517 | U29: 1 | V29: 6.75 | W29: 5 | X29: 25 | Y29: - | Z29: - | AA29: 13.33333333
A30: 15 | B30: 9.9 | C30: 1 | D30: 1 | E30: 1 | F30: 2.75 | G30: 0.8888888889 | H30: 7.5625 | I30: 1 | L30: - | M30: - | N30: 0 | O30: 0 | P30: 0 | Q30: 0 | R30: 20.796875 | S30: =1/2*H30*$U$1494*$U$1495*$U$1496+IF(F30=0,0,一覧表!$C$37*一覧表!$C$18*9.8) -> 147.3705 | T30: =(F30-F29)*一覧表!$C$18 -> 1845 | U30: 1 | V30: 41.59375 | W30: 9.166666667 | X30: 84.02777778 | Y30: - | Z30: - | AA30: 21.5336638
A31: 16 | B31: 13.1 | C31: 1 | D31: 1 | E31: 2 | F31: 3.638888889 | G31: 1.055555556 | H31: 13.24151235 | I31: 1 | L31: - | M31: - | N31: 0 | O31: 0 | P31: 0 | Q31: 0 | R31: 48.18439215 | S31: =1/2*H31*$U$1494*$U$1495*$U$1496+IF(F31=0,0,一覧表!$C$37*一覧表!$C$18*9.8) -> 149.4149444 | T31: =(F31-F30)*一覧表!$C$18 -> 1312 | U31: 1 | V31: 96.36878429 | W31: 12.12962963 | X31: 147.127915 | Y31: - | Z31: - | AA31: 28.49403998
A32: 17 | B32: 16.9 | C32: 2 | D32: 1 | E32: 2 | F32: 4.694444444 | G32: 1.333333333 | H32: 22.03780864 | I32: 1 | L32: - | M32: - | N32: 0 | O32: 0 | P32: 0 | Q32: 0 | R32: 103.4552683 | S32: =1/2*H32*$U$1494*$U$1495*$U$1496+IF(F32=0,0,一覧表!$C$37*一覧表!$C$18*9.8) -> 152.5816111 | T32: =(F32-F31)*一覧表!$C$18 -> 1558 | U32: 1 | V32: 206.9105367 | W32: 15.64814815 | X32: 244.8645405 | Y32: - | Z32: - | AA32: 22.05569201
A33: 18 | B33: 21.7 | C33: 2 | D33: 1 | E33: 2 | F33: 6.027777778 | G33: 1.194444444 | H33: 36.33410494 | I33: 1 | L33: - | M33: - | N33: 0 | O33: 0 | P33: 0 | Q33: 0 | R33: 219.0139103 | S33: =1/2*H33*$U$1494*$U$1495*$U$1496+IF(F33=0,0,一覧表!$C$37*一覧表!$C$18*9.8) -> 157.7282778 | T33: =(F33-F32)*一覧表!$C$18 -> 1968 | U33: 1 | V33: 438.0278206 | W33: 20.09259259 | X33: 403.7122771 | Y33: - | Z33: - | AA33: 28.32003057
A34: 19 | B34: 26 | C34: 2 | D34: 2 | E34: 2 | F34: 7.222222222 | G34: 0.4166666667 | H34: 52.16049383 | I34: 1 | L34: - | M34: - | N34: 0 | O34: 0 | P34: 0 | Q34: 0 | R34: 376.7146776 | S34: =1/2*H34*$U$1494*$U$1495*$U$1496+IF(F34=0,0,一覧表!$C$37*一覧表!$C$18*9.8) -> 163.4257778 | T34: =(F34-F33)*一覧表!$C$18 -> 1763 | U34: 1 | V34: 753.4293553 | W34: 24.07407407 | X34: 579.5610425 | Y34: - | Z34: - | AA34: 33.93183387
A35: 20 | B35: 27.5 | C35: 3 | D35: 2 | E35: 3 | F35: 7.638888889 | G35: 0.1666666667 | H35: 58.35262346 | I35: 1 | L35: - | M35: - | N35: 0 | O35: 0 | P35: 0 | Q35: 0 | R35: 445.749207 | S35: =1/2*H35*$U$1494*$U$1495*$U$1496+IF(F35=0,0,一覧表!$C$37*一覧表!$C$18*9.8) -> 165.6549444 | T35: =(F35-F34)*一覧表!$C$18 -> 615 | U35: 1 | V35: 891.4984139 | W35: 25.46296296 | X35: 648.3624829 | Y35: - | Z35: - | AA35: 25.25553162
A36: 21 | B36: 28.1 | C36: 3 | D36: 2 | E36: 3 | F36: 7.805555556 | G36: 0.05555555556 | H36: 60.92669753 | I36: 1 | L36: - | M36: - | N36: 0 | O36: 0 | P36: 0 | Q36: 0 | R36: 475.5667224 | S36: =1/2*H36*$U$1494*$U$1495*$U$1496+IF(F36=0,0,一覧表!$C$37*一覧表!$C$18*9.8) -> 166.5816111 | T36: =(F36-F35)*一覧表!$C$18 -> 246 | U36: 1 | V36: 951.1334448 | W36: 26.01851852 | X36: 676.9633059 | Y36: - | Z36: - | AA36: 25.8065614
A37: 22 | B37: 28.3 | C37: 3 | D37: 2 | E37: 3 | F37: 7.861111111 | G37: 0.1388888889 | H37: 61.7970679 | I37: 1 | L37: - | M37: - | N37: 0 | O37: 0 | P37: 0 | Q37: 0 | R37: 485.7936171 | S37: =1/2*H37*$U$1494*$U$1495*$U$1496+IF(F37=0,0,一覧表!$C$37*一覧表!$C$18*9.8) -> 166.8949444 | T37: =(F37-F36)*一覧表!$C$18 -> 82 | U37: 1 | V37: 971.5872342 | W37: 26.2037037 | X37: 686.6340878 | Y37: - | Z37: - | AA37: 25.99023799
A38: 23 | B38: 28.8 | C38: 3 | D38: 2 | E38: 3 | F38: 8 | G38: 0.08333333333 | H38: 64 | I38: 1 | L38: - | M38: - | N38: 0 | O38: 0 | P38: 0 | Q38: 0 | R38: 512 | S38: =1/2*H38*$U$1494*$U$1495*$U$1496+IF(F38=0,0,一覧表!$C$37*一覧表!$C$18*9.8) -> 167.688 | T38: =(F38-F37)*一覧表!$C$18 -> 205 | U38: 1 | V38: 1024 | W38: 26.66666667 | X38: 711.1111111 | Y38: - | Z38: - | AA38: 26.44942948
A39: 24 | B39: 29.1 | C39: 3 | D39: 2 | E39: 3 | F39: 8.083333333 | G39: 0.4722222222 | H39: 65.34027778 | I39: 1 | L39: - | M39: - | N39: 0 | O39: 0 | P39: 0 | Q39: 0 | R39: 528.1672454 | S39: =1/2*H39*$U$1494*$U$1495*$U$1496+IF(F39=0,0,一覧表!$C$37*一覧表!$C$18*9.8) -> 168.1705 | T39: =(F39-F38)*一覧表!$C$18 -> 123 | U39: 1 | V39: 1056.334491 | W39: 26.94444444 | X39: 726.0030864 | Y39: - | Z39: - | AA39: 26.72494437
A40: 25 | B40: 30.8 | C40: 3 | D40: 2 | E40: 3 | F40: 8.555555556 | G40: 0.3055555556 | H40: 73.19753086 | I40: 1 | L40: - | M40: - | N40: 0 | O40: 0 | P40: 0 | Q40: 0 | R40: 626.2455418 | S40: =1/2*H40*$U$1494*$U$1495*$U$1496+IF(F40=0,0,一覧表!$C$37*一覧表!$C$18*9.8) -> 170.9991111 | T40: =(F40-F39)*一覧表!$C$18 -> 697 | U40: 1 | V40: 1252.491084 | W40: 28.51851852 | X40: 813.3058985 | Y40: - | Z40: - | AA40: 28.28619541
A41: 26 | B41: 31.9 | C41: 3 | D41: 2 | E41: 3 | F41: 8.861111111 | G41: 0.6111111111 | H41: 78.51929012 | I41: 1 | L41: - | M41: - | N41: 0 | O41: 0 | P41: 0 | Q41: 0 | R41: 695.7681541 | S41: =1/2*H41*$U$1494*$U$1495*$U$1496+IF(F41=0,0,一覧表!$C$37*一覧表!$C$18*9.8) -> 172.9149444 | T41: =(F41-F40)*一覧表!$C$18 -> 451 | U41: 1 | V41: 1391.536308 | W41: 29.53703704 | X41: 872.4365569 | Y41: - | Z41: - | AA41: 29.29641668
A42: 27 | B42: 34.1 | C42: 3 | D42: 2 | E42: 3 | F42: 9.472222222 | G42: 0.6944444444 | H42: 89.72299383 | I42: 1 | L42: - | M42: - | N42: 0 | O42: 0 | P42: 0 | Q42: 0 | R42: 849.876136 | S42: =1/2*H42*$U$1494*$U$1495*$U$1496+IF(F42=0,0,一覧表!$C$37*一覧表!$C$18*9.8) -> 176.9482778 | T42: =(F42-F41)*一覧表!$C$18 -> 902 | U42: 1 | V42: 1699.752272 | W42: 31.57407407 | X42: 996.9221536 | Y42: - | Z42: - | AA42: 31.31685921
A43: 28 | B43: 36.6 | C43: 4 | D43: 2 | E43: 4 | F43: 10.16666667 | G43: 0.6944444444 | H43: 103.3611111 | I43: 1 | L43: - | M43: - | N43: 0 | O43: 0 | P43: 0 | Q43: 0 | R43: 1050.837963 | S43: =1/2*H43*$U$1494*$U$1495*$U$1496+IF(F43=0,0,一覧表!$C$37*一覧表!$C$18*9.8) -> 181.858 | T43: =(F43-F42)*一覧表!$C$18 -> 1025 | U43: 1 | V43: 2101.675926 | W43: 33.88888889 | X43: 1148.45679 | Y43: - | Z43: - | AA43: 26.53643418
A44: 29 | B44: 39.1 | C44: 4 | D44: 2 | E44: 4 | F44: 10.86111111 | G44: 0.6111111111 | H44: 117.9637346 | I44: 1 | L44: - | M44: - | N44: 0 | O44: 0 | P44: 0 | Q44: 0 | R44: 1281.217228 | S44: =1/2*H44*$U$1494*$U$1495*$U$1496+IF(F44=0,0,一覧表!$C$37*一覧表!$C$18*9.8) -> 187.1149444 | T44: =(F44-F43)*一覧表!$C$18 -> 1025 | U44: 1 | V44: 2562.434456 | W44: 36.2037037 | X44: 1310.708162 | Y44: - | Z44: - | AA44: 28.34903214
A45: 30 | B45: 41.3 | C45: 4 | D45: 3 | E45: 4 | F45: 11.47222222 | G45: 0.3333333333 | H45: 131.6118827 | I45: 1 | L45: - | M45: - | N45: 0 | O45: 0 | P45: 0 | Q45: 0 | R45: 1509.880766 | S45: =1/2*H45*$U$1494*$U$1495*$U$1496+IF(F45=0,0,一覧表!$C$37*一覧表!$C$18*9.8) -> 192.0282778 | T45: =(F45-F44)*一覧表!$C$18 -> 902 | U45: 1 | V45: 3019.761531 | W45: 38.24074074 | X45: 1462.354252 | Y45: - | Z45: - | AA45: 29.94411835
A46: 31 | B46: 42.5 | C46: 4 | D46: 3 | E46: 4 | F46: 11.80555556 | G46: 0.2222222222 | H46: 139.371142 | I46: 1 | L46: - | M46: - | N46: 0 | O46: 0 | P46: 0 | Q46: 0 | R46: 1645.353759 | S46: =1/2*H46*$U$1494*$U$1495*$U$1496+IF(F46=0,0,一覧表!$C$37*一覧表!$C$18*9.8) -> 194.8216111 | T46: =(F46-F45)*一覧表!$C$18 -> 492 | U46: 1 | V46: 3290.707519 | W46: 39.35185185 | X46: 1548.568244 | Y46: - | Z46: - | AA46: 30.81416537
A47: 32 | B47: 43.3 | C47: 4 | D47: 3 | E47: 4 | F47: 12.02777778 | G47: 0.1666666667 | H47: 144.6674383 | I47: 1 | L47: - | M47: - | N47: 0 | O47: 0 | P47: 0 | Q47: 0 | R47: 1740.027799 | S47: =1/2*H47*$U$1494*$U$1495*$U$1496+IF(F47=0,0,一覧表!$C$37*一覧表!$C$18*9.8) -> 196.7282778 | T47: =(F47-F46)*一覧表!$C$18 -> 328 | U47: 1 | V47: 3480.055598 | W47: 40.09259259 | X47: 1607.415981 | Y47: - | Z47: - | AA47: 31.39419672
A48: 33 | B48: 43.9 | C48: 4 | D48: 3 | E48: 4 | F48: 12.19444444 | G48: 0.1388888889 | H48: 148.7044753 | I48: 1 | L48: - | M48: - | N48: 0 | O48: 0 | P48: 0 | Q48: 0 | R48: 1813.368463 | S48: =1/2*H48*$U$1494*$U$1495*$U$1496+IF(F48=0,0,一覧表!$C$37*一覧表!$C$18*9.8) -> 198.1816111 | T48: =(F48-F47)*一覧表!$C$18 -> 246 | U48: 1 | V48: 3626.736926 | W48: 40.64814815 | X48: 1652.271948 | Y48: - | Z48: - | AA48: 31.82922023
A49: 34 | B49: 44.4 | C49: 4 | D49: 3 | E49: 4 | F49: 12.33333333 | G49: 0.02777777778 | H49: 152.1111111 | I49: 1 | L49: - | M49: - | N49: 0 | O49: 0 | P49: 0 | Q49: 0 | R49: 1876.037037 | S49: =1/2*H49*$U$1494*$U$1495*$U$1496+IF(F49=0,0,一覧表!$C$37*一覧表!$C$18*9.8) -> 199.408 | T49: =(F49-F48)*一覧表!$C$18 -> 205 | U49: 1 | V49: 3752.074074 | W49: 41.11111111 | X49: 1690.123457 | Y49: - | Z49: - | AA49: 32.19173982
A50: 35 | B50: 44.5 | C50: 4 | D50: 3 | E50: 5 | F50: 12.36111111 | G50: -0.08333333333 | H50: 152.7970679 | I50: 0 | K50: 1 | L50: - | M50: 152.7970679 | N50: 1 | O50: 152.7970679 | P50: 152.7970679 | Q50: 0 | R50: 1888.741534 | S50: =1/2*H50*$U$1494*$U$1495*$U$1496+IF(F50=0,0,一覧表!$C$37*一覧表!$C$18*9.8) -> 199.6549444 | T50: =(F50-F49)*一覧表!$C$18 -> 41 | U50: 1 | V50: 3777.483068 | W50: 41.2037037 | X50: 1697.745199 | Y50: - | Z50: 1697.745199 | AA50: 32.26424374
A51: 36 | B51: 44.2 | C51: 4 | D51: 3 | E51: 5 | F51: 12.27777778 | G51: -0.4166666667 | H51: 150.7438272 | I51: 0 | L51: - | M51: - | N51: 1 | O51: 150.7438272 | P51: 152.7970679 | Q51: 0 | R51: 1850.799211 | S51: =1/2*H51*$U$1494*$U$1495*$U$1496+IF(F51=0,0,一覧表!$C$37*一覧表!$C$18*9.8) -> 198.9157778 | T51: =(F51-F50)*一覧表!$C$18 -> -123 | U51: 1 | V51: 3701.598422 | W51: 40.92592593 | X51: 1674.931413 | Y51: - | Z51: - | AA51: 32.04673199
A52: 37 | B52: 42.7 | C52: 4 | D52: 3 | E52: 5 | F52: 11.86111111 | G52: -0.7777777778 | H52: 140.6859568 | I52: 0 | L52: - | M52: - | N52: 1 | O52: 140.6859568 | P52: 152.7970679 | Q52: 0 | R52: 1668.691765 | S52: =1/2*H52*$U$1494*$U$1495*$U$1496+IF(F52=0,0,一覧表!$C$37*一覧表!$C$18*9.8) -> 195.2949444 | T52: =(F52-F51)*一覧表!$C$18 -> -615 | U52: 0 | V52: 0 | W52: 39.53703704 | X52: 1563.177298 | Y52: - | Z52: - | AA52: 30.95917321
A53: 38 | B53: 39.9 | C53: 4 | D53: 3 | E53: 4 | F53: 11.08333333 | G53: -0.8055555556 | H53: 122.8402778 | I53: 0 | L53: - | M53: - | N53: 1 | O53: 122.8402778 | P53: 152.7970679 | Q53: 0 | R53: 1361.479745 | S53: =1/2*H53*$U$1494*$U$1495*$U$1496+IF(F53=0,0,一覧表!$C$37*一覧表!$C$18*9.8) -> 188.8705 | T53: =(F53-F52)*一覧表!$C$18 -> -1148 | U53: 0 | V53: 0 | W53: 36.94444444 | X53: 1364.891975 | Y53: - | Z53: - | AA53: 28.92906349
A54: 39 | B54: 37 | C54: 4 | D54: 3 | E54: 4 | F54: 10.27777778 | G54: -0.6666666667 | H54: 105.632716 | I54: 0 | L54: - | M54: - | N54: 1 | O54: 105.632716 | P54: 152.7970679 | Q54: 0 | R54: 1085.669582 | S54: =1/2*H54*$U$1494*$U$1495*$U$1496+IF(F54=0,0,一覧表!$C$37*一覧表!$C$18*9.8) -> 182.6757778 | T54: =(F54-F53)*一覧表!$C$18 -> -1189 | U54: 0 | V54: 0 | W54: 34.25925926 | X54: 1173.696845 | Y54: - | Z54: - | AA54: 26.82644985
A55: 40 | B55: 34.6 | C55: 4 | D55: 2 | E55: 4 | F55: 9.611111111 | G55: -0.6388888889 | H55: 92.37345679 | I55: 0 | L55: - | M55: - | N55: 1 | O55: 92.37345679 | P55: 152.7970679 | Q55: 0 | R55: 887.8115569 | S55: =1/2*H55*$U$1494*$U$1495*$U$1496+IF(F55=0,0,一覧表!$C$37*一覧表!$C$18*9.8) -> 177.9024444 | T55: =(F55-F54)*一覧表!$C$18 -> -984 | U55: 0 | V55: 0 | W55: 32.03703704 | X55: 1026.371742 | Y55: - | Z55: - | AA55: 25.08635581
A56: 41 | B56: 32.3 | C56: 4 | D56: 2 | E56: 4 | F56: 8.972222222 | G56: -0.9166666667 | H56: 80.5007716 | I56: =IF(F56<=F57,1,0) -> 0 | L56: - | M56: - | N56: 1 | O56: 80.5007716 | P56: 152.7970679 | Q56: 0 | R56: 722.2708119 | S56: =1/2*H56*$U$1494*$U$1495*$U$1496+IF(F56=0,0,一覧表!$C$37*一覧表!$C$18*9.8) -> 173.6282778 | T56: =(F56-F55)*一覧表!$C$18 -> -943 | U56: 0 | V56: 0 | W56: 29.90740741 | X56: 894.4530178 | Y56: - | Z56: - | AA56: 23.41876568
A57: 42 | B57: 29 | C57: 3 | D57: 2 | E57: 3 | F57: 8.055555556 | G57: -1.083333333 | H57: 64.89197531 | I57: =IF(F57<=F58,1,0) -> 0 | K57: =IF(I56>I57,1,"") ->  | L57: - | M57: - | N57: 1 | O57: 64.89197531 | P57: 152.7970679 | Q57: 0 | R57: 522.7409122 | S57: =1/2*H57*$U$1494*$U$1495*$U$1496+IF(F57=0,0,一覧表!$C$37*一覧表!$C$18*9.8) -> 168.0091111 | T57: =(F57-F56)*一覧表!$C$18 -> -1353 | U57: 0 | V57: 0 | W57: 26.85185185 | X57: 721.0219479 | Y57: - | Z57: - | AA57: 26.63310607
A58: 43 | B58: 25.1 | C58: 3 | D58: 2 | E58: 3 | F58: 6.972222222 | G58: -0.8055555556 | H58: 48.61188272 | I58: 0 | L58: - | M58: - | N58: 1 | O58: 48.61188272 | P58: 152.7970679 | Q58: 0 | R58: 338.9328489 | S58: =1/2*H58*$U$1494*$U$1495*$U$1496+IF(F58=0,0,一覧表!$C$37*一覧表!$C$18*9.8) -> 162.1482778 | T58: =(F58-F57)*一覧表!$C$18 -> -1599 | U58: 0 | V58: 0 | W58: 23.24074074 | X58: 540.1320302 | Y58: - | Z58: - | AA58: 23.05141249
A59: 44 | B59: 22.2 | C59: 3 | D59: 2 | E59: 3 | F59: 6.166666667 | G59: -0.3611111111 | H59: 38.02777778 | I59: 0 | L59: - | M59: - | N59: 1 | O59: 38.02777778 | P59: 152.7970679 | Q59: 0 | R59: 234.5046296 | S59: =1/2*H59*$U$1494*$U$1495*$U$1496+IF(F59=0,0,一覧表!$C$37*一覧表!$C$18*9.8) -> 158.338 | T59: =(F59-F58)*一覧表!$C$18 -> -1189 | U59: 0 | V59: 0 | W59: 20.55555556 | X59: 422.5308642 | Y59: - | Z59: - | AA59: 20.38810189
A60: 45 | B60: 20.9 | C60: 2 | D60: 2 | E60: 2 | F60: 5.805555556 | G60: -0.1388888889 | H60: 33.70447531 | I60: 0 | L60: - | M60: - | N60: 1 | O60: 33.70447531 | P60: 152.7970679 | Q60: 0 | R60: 195.6732039 | S60: =1/2*H60*$U$1494*$U$1495*$U$1496+IF(F60=0,0,一覧表!$C$37*一覧表!$C$18*9.8) -> 156.7816111 | T60: =(F60-F59)*一覧表!$C$18 -> -533 | U60: 0 | V60: 0 | W60: 19.35185185 | X60: 374.4941701 | Y60: - | Z60: - | AA60: 27.27597415
A61: 46 | B61: 20.4 | C61: 2 | D61: 2 | E61: 2 | F61: 5.666666667 | G61: -0.25 | H61: 32.11111111 | I61: 0 | L61: - | M61: - | N61: 1 | O61: 32.11111111 | P61: 152.7970679 | Q61: 0 | R61: =H61*F61 -> 181.962963 | S61: =1/2*H61*$U$1494*$U$1495*$U$1496+IF(F61=0,0,一覧表!$C$37*一覧表!$C$18*9.8) -> 156.208 | T61: =(F61-F60)*一覧表!$C$18 -> -205 | U61: 0 | V61: 0 | W61: 18.88888889 | X61: 356.7901235 | Y61: - | Z61: - | AA61: 26.62343888
A62: 47 | B62: 19.5 | C62: 2 | D62: 1 | E62: 2 | F62: 5.416666667 | G62: -0.3055555556 | H62: 29.34027778 | I62: 0 | L62: - | M62: - | N62: 1 | O62: 29.34027778 | P62: 152.7970679 | Q62: 0 | R62: 158.9265046 | S62: =1/2*H62*$U$1494*$U$1495*$U$1496+IF(F62=0,0,一覧表!$C$37*一覧表!$C$18*9.8) -> 155.2105 | T62: =(F62-F61)*一覧表!$C$18 -> -369 | U62: 0 | V62: 0 | W62: 18.05555556 | X62: 326.0030864 | Y62: - | Z62: - | AA62: 25.4488754
A63: 48 | B63: 18.4 | C63: 2 | D63: 1 | E63: 2 | F63: 5.111111111 | G63: -0.1666666667 | H63: 26.12345679 | I63: 0 | L63: - | M63: - | N63: 1 | O63: 26.12345679 | P63: 152.7970679 | Q63: 0 | R63: 133.5198903 | S63: =1/2*H63*$U$1494*$U$1495*$U$1496+IF(F63=0,0,一覧表!$C$37*一覧表!$C$18*9.8) -> 154.0524444 | T63: =(F63-F62)*一覧表!$C$18 -> -451 | U63: 0 | V63: 0 | W63: 17.03703704 | X63: 290.260631 | Y63: - | Z63: - | AA63: 24.01329781
A64: 49 | B64: 17.8 | C64: 2 | D64: 1 | E64: 2 | F64: 4.944444444 | G64: 0 | H64: 24.44753086 | I64: 1 | J64: 1 | L64: 24.44753086 | M64: - | N64: 1 | O64: 24.44753086 | P64: 128.349537 | Q64: 128.349537 | R64: 120.8794582 | S64: =1/2*H64*$U$1494*$U$1495*$U$1496+IF(F64=0,0,一覧表!$C$37*一覧表!$C$18*9.8) -> 153.4491111 | T64: =(F64-F63)*一覧表!$C$18 -> -246 | U64: 0 | V64: 0 | W64: 16.48148148 | X64: 271.6392318 | Y64: 271.6392318 | Z64: - | AA64: 23.23025549
A65: 50 | B65: 17.8 | C65: 2 | D65: 1 | E65: 2 | F65: 4.944444444 | G65: -0.1111111111 | H65: 24.44753086 | I65: 0 | K65: 1 | L65: - | M65: 24.44753086 | N65: 1 | O65: 24.44753086 | P65: 24.44753086 | Q65: 0 | R65: 120.8794582 | S65: =1/2*H65*$U$1494*$U$1495*$U$1496+IF(F65=0,0,一覧表!$C$37*一覧表!$C$18*9.8) -> 153.4491111 | T65: =(F65-F64)*一覧表!$C$18 -> 0 | U65: 1 | V65: 241.7589163 | W65: 16.48148148 | X65: 271.6392318 | Y65: - | Z65: 271.6392318 | AA65: 23.23025549
A66: 51 | B66: 17.4 | C66: 2 | D66: 1 | E66: 2 | F66: 4.833333333 | G66: -0.4722222222 | H66: 23.36111111 | I66: 0 | L66: - | M66: - | N66: 1 | O66: 23.36111111 | P66: 24.44753086 | Q66: 0 | R66: 112.912037 | S66: =1/2*H66*$U$1494*$U$1495*$U$1496+IF(F66=0,0,一覧表!$C$37*一覧表!$C$18*9.8) -> 153.058 | T66: =(F66-F65)*一覧表!$C$18 -> -164 | U66: 0 | V66: 0 | W66: 16.11111111 | X66: 259.5679012 | Y66: - | Z66: - | AA66: 22.70822728
A67: 52 | B67: 15.7 | C67: 2 | D67: 1 | E67: 2 | F67: 4.361111111 | G67: -0.7222222222 | H67: 19.01929012 | I67: 0 | L67: - | M67: - | N67: 1 | O67: 19.01929012 | P67: 24.44753086 | Q67: 0 | R67: 82.94523748 | S67: =1/2*H67*$U$1494*$U$1495*$U$1496+IF(F67=0,0,一覧表!$C$37*一覧表!$C$18*9.8) -> 151.4949444 | T67: =(F67-F66)*一覧表!$C$18 -> -697 | U67: 0 | V67: 0 | W67: 14.53703704 | X67: 211.3254458 | Y67: - | Z67: - | AA67: 20.48960737
A68: 53 | B68: 13.1 | C68: 2 | D68: 1 | E68: 2 | F68: 3.638888889 | G68: -0.2777777778 | H68: 13.24151235 | I68: 0 | L68: - | M68: - | N68: 1 | O68: 13.24151235 | P68: 24.44753086 | Q68: 0 | R68: 48.18439215 | S68: =1/2*H68*$U$1494*$U$1495*$U$1496+IF(F68=0,0,一覧表!$C$37*一覧表!$C$18*9.8) -> 149.4149444 | T68: =(F68-F67)*一覧表!$C$18 -> -1066 | U68: 0 | V68: 0 | W68: 12.12962963 | X68: 147.127915 | Y68: - | Z68: - | AA68: 17.09642399
A69: 54 | B69: 12.1 | C69: 2 | D69: 1 | E69: 2 | F69: 3.361111111 | G69: -0.02777777778 | H69: 11.2970679 | I69: 0 | L69: - | M69: - | N69: 1 | O69: 11.2970679 | P69: 24.44753086 | Q69: 0 | R69: 37.97070045 | S69: =1/2*H69*$U$1494*$U$1495*$U$1496+IF(F69=0,0,一覧表!$C$37*一覧表!$C$18*9.8) -> 148.7149444 | T69: =(F69-F68)*一覧表!$C$18 -> -410 | U69: 0 | V69: 0 | W69: 11.2037037 | X69: 125.5229767 | Y69: - | Z69: - | AA69: 15.79135345
A70: 55 | B70: 12 | C70: 2 | D70: 1 | E70: 2 | F70: 3.333333333 | G70: 0 | H70: 11.11111111 | I70: 1 | J70: 1 | L70: 11.11111111 | M70: - | N70: 1 | O70: 11.11111111 | P70: 13.33641975 | Q70: 13.33641975 | R70: 37.03703704 | S70: =1/2*H70*$U$1494*$U$1495*$U$1496+IF(F70=0,0,一覧表!$C$37*一覧表!$C$18*9.8) -> 148.648 | T70: =(F70-F69)*一覧表!$C$18 -> -41 | U70: 1 | V70: 74.07407407 | W70: 11.11111111 | X70: 123.4567901 | Y70: 123.4567901 | Z70: - | AA70: 15.6608464
A71: 56 | B71: 12 | C71: 2 | D71: 1 | E71: 2 | F71: 3.333333333 | G71: 0 | H71: 11.11111111 | I71: 1 | L71: - | M71: - | N71: 0 | O71: 0 | P71: 0 | Q71: 0 | R71: 37.03703704 | S71: =1/2*H71*$U$1494*$U$1495*$U$1496+IF(F71=0,0,一覧表!$C$37*一覧表!$C$18*9.8) -> 148.648 | T71: =(F71-F70)*一覧表!$C$18 -> 0 | U71: 1 | V71: 74.07407407 | W71: 11.11111111 | X71: 123.4567901 | Y71: - | Z71: - | AA71: 15.6608464
A72: 57 | B72: 12 | C72: 2 | D72: 1 | E72: 2 | F72: 3.333333333 | G72: 0.08333333333 | H72: 11.11111111 | I72: 1 | L72: - | M72: - | N72: 0 | O72: 0 | P72: 0 | Q72: 0 | R72: 37.03703704 | S72: =1/2*H72*$U$1494*$U$1495*$U$1496+IF(F72=0,0,一覧表!$C$37*一覧表!$C$18*9.8) -> 148.648 | T72: =(F72-F71)*一覧表!$C$18 -> 0 | U72: 1 | V72: 74.07407407 | W72: 11.11111111 | X72: 123.4567901 | Y72: - | Z72: - | AA72: 15.6608464
A73: 58 | B73: 12.3 | C73: 2 | D73: 1 | E73: 2 | F73: 3.416666667 | G73: 0.08333333333 | H73: 11.67361111 | I73: 1 | L73: - | M73: - | N73: 0 | O73: 0 | P73: 0 | Q73: 0 | R73: 39.88483796 | S73: =1/2*H73*$U$1494*$U$1495*$U$1496+IF(F73=0,0,一覧表!$C$37*一覧表!$C$18*9.8) -> 148.8505 | T73: =(F73-F72)*一覧表!$C$18 -> 123 | U73: 1 | V73: 79.76967593 | W73: 11.38888889 | X73: 129.7067901 | Y73: - | Z73: - | AA73: 16.05236756
A74: 59 | B74: 12.6 | C74: 2 | D74: 1 | E74: 2 | F74: 3.5 | G74: 0.5833333333 | H74: 12.25 | I74: 1 | L74: - | M74: - | N74: 0 | O74: 0 | P74: 0 | Q74: 0 | R74: 42.875 | S74: =1/2*H74*$U$1494*$U$1495*$U$1496+IF(F74=0,0,一覧表!$C$37*一覧表!$C$18*9.8) -> 149.058 | T74: =(F74-F73)*一覧表!$C$18 -> 123 | U74: 1 | V74: 85.75 | W74: 11.66666667 | X74: 136.1111111 | Y74: - | Z74: - | AA74: 16.44388872
A75: 60 | B75: 14.7 | C75: 2 | D75: 1 | E75: 2 | F75: 4.083333333 | G75: 0.1666666667 | H75: 16.67361111 | I75: 1 | L75: - | M75: - | N75: 0 | O75: 0 | P75: 0 | Q75: 0 | R75: 68.08391204 | S75: =1/2*H75*$U$1494*$U$1495*$U$1496+IF(F75=0,0,一覧表!$C$37*一覧表!$C$18*9.8) -> 150.6505 | T75: =(F75-F74)*一覧表!$C$18 -> 861 | U75: 1 | V75: 136.1678241 | W75: 13.61111111 | X75: 185.2623457 | Y75: - | Z75: - | AA75: 19.18453684
A76: 61 | B76: 15.3 | C76: 2 | D76: 1 | E76: 2 | F76: 4.25 | G76: 0.1666666667 | H76: 18.0625 | I76: 1 | L76: - | M76: - | N76: 0 | O76: 0 | P76: 0 | Q76: 0 | R76: 76.765625 | S76: =1/2*H76*$U$1494*$U$1495*$U$1496+IF(F76=0,0,一覧表!$C$37*一覧表!$C$18*9.8) -> 151.1505 | T76: =(F76-F75)*一覧表!$C$18 -> 246 | U76: 1 | V76: 153.53125 | W76: 14.16666667 | X76: 200.6944444 | Y76: - | Z76: - | AA76: 19.96757916
A77: 62 | B77: 15.9 | C77: 2 | D77: 1 | E77: 2 | F77: 4.416666667 | G77: 0.08333333333 | H77: 19.50694444 | I77: 1 | L77: - | M77: - | N77: 0 | O77: 0 | P77: 0 | Q77: 0 | R77: 86.1556713 | S77: =1/2*H77*$U$1494*$U$1495*$U$1496+IF(F77=0,0,一覧表!$C$37*一覧表!$C$18*9.8) -> 151.6705 | T77: =(F77-F76)*一覧表!$C$18 -> 246 | U77: 1 | V77: 172.3113426 | W77: 14.72222222 | X77: 216.7438272 | Y77: - | Z77: - | AA77: 20.75062148
A78: 63 | B78: 16.2 | C78: 2 | D78: 1 | E78: 2 | F78: 4.5 | G78: 0.25 | H78: 20.25 | I78: 1 | L78: - | M78: - | N78: 0 | O78: 0 | P78: 0 | Q78: 0 | R78: 91.125 | S78: =1/2*H78*$U$1494*$U$1495*$U$1496+IF(F78=0,0,一覧表!$C$37*一覧表!$C$18*9.8) -> 151.938 | T78: =(F78-F77)*一覧表!$C$18 -> 123 | U78: 1 | V78: 182.25 | W78: 15 | X78: 225 | Y78: - | Z78: - | AA78: 21.14214264
A79: 64 | B79: 17.1 | C79: 2 | D79: 1 | E79: 2 | F79: 4.75 | G79: 0.1944444444 | H79: 22.5625 | I79: 1 | L79: - | M79: - | N79: 0 | O79: 0 | P79: 0 | Q79: 0 | R79: 107.171875 | S79: =1/2*H79*$U$1494*$U$1495*$U$1496+IF(F79=0,0,一覧表!$C$37*一覧表!$C$18*9.8) -> 152.7705 | T79: =(F79-F78)*一覧表!$C$18 -> 369 | U79: 1 | V79: 214.34375 | W79: 15.83333333 | X79: 250.6944444 | Y79: - | Z79: - | AA79: 22.31670612
A80: 65 | B80: 17.8 | C80: 2 | D80: 1 | E80: 2 | F80: 4.944444444 | G80: 0.08333333333 | H80: 24.44753086 | I80: 1 | L80: - | M80: =IF(K80="","-",K80*H80) -> - | N80: 0 | O80: 0 | P80: 0 | Q80: 0 | R80: 120.8794582 | S80: =1/2*H80*$U$1494*$U$1495*$U$1496+IF(F80=0,0,一覧表!$C$37*一覧表!$C$18*9.8) -> 153.4491111 | T80: =(F80-F79)*一覧表!$C$18 -> 287 | U80: =IF(S80<=-T80,0,1) -> 1 | V80: =IF(U80=1,R80*$U$1494,0) -> 241.7589163 | W80: =F80/($AD$10/2) -> 16.48148148 | X80: 271.6392318 | Y80: =IF(J80="","-",X80*J80) -> - | Z80: =IF(K80="","-",X80*K80) -> - | AA80: 23.23025549
A81: 66 | B81: 18.1 | C81: 2 | D81: 1 | E81: 2 | F81: =B81*1000/3600 -> 5.027777778 | G81: 0.08333333333 | H81: =F81*F81 -> 25.27854938 | I81: 1 | L81: =IF(J81="","-",J81*H81) -> - | M81: - | N81: =IF(J81=1,1,IF(F81>F82,1,0)) -> 0 | O81: 0 | P81: 0 | Q81: 0 | R81: =H81*F81 -> 127.0949288 | S81: =1/2*H81*$U$1494*$U$1495*$U$1496+IF(F81=0,0,一覧表!$C$37*一覧表!$C$18*9.8) -> 153.7482778 | T81: =(F81-F80)*一覧表!$C$18 -> 123 | U81: 1 | V81: 254.1898577 | W81: 16.75925926 | X81: =W81*W81 -> 280.8727709 | Y81: - | Z81: - | AA81: =IF(OR(F81<$AD$12,C81=0),$AD$7/60,IF(C81=1,$AC$3,IF(C81=2,$AD$3,IF(C81=3,$AE$3,IF(C81=4,$AF$3,IF(C81=5,$AG$3,$AH$3)))))*$AC$4*F81/(PI()*$AD$10)) -> 23.62177665
A82: 67 | B82: 18.4 | C82: 2 | D82: 1 | E82: 2 | F82: 5.111111111 | G82: 0.5277777778 | H82: 26.12345679 | I82: =IF(F82<=F83,1,0) -> 1 | J82: =IF(I81<I82,1,"") ->  | K82: =IF(I81>I82,1,"") ->  | L82: - | M82: - | N82: 0 | O82: =N82*H82 -> 0 | P82: =IF(O82>=O81,O82,N82*P81)-I82*O82 -> 0 | Q82: =IF(J82=1,P82,0) -> 0 | R82: 133.5198903 | S82: =1/2*H82*$U$1494*$U$1495*$U$1496+IF(F82=0,0,一覧表!$C$37*一覧表!$C$18*9.8) -> 154.0524444 | T82: =(F82-F81)*一覧表!$C$18 -> 123 | U82: 1 | V82: 267.0397805 | W82: 17.03703704 | X82: 290.260631 | Y82: - | Z82: - | AA82: 24.01329781
A83: 68 | B83: 20.3 | C83: 2 | D83: 1 | E83: 2 | F83: 5.638888889 | G83: 0.8055555556 | H83: 31.7970679 | I83: 1 | L83: - | M83: - | N83: 0 | O83: 0 | P83: 0 | Q83: 0 | R83: 179.3001329 | S83: =1/2*H83*$U$1494*$U$1495*$U$1496+IF(F83=0,0,一覧表!$C$37*一覧表!$C$18*9.8) -> 156.0949444 | T83: =(F83-F82)*一覧表!$C$18 -> 779 | U83: 1 | V83: 358.6002658 | W83: 18.7962963 | X83: 353.3007545 | Y83: - | Z83: - | AA83: 26.49293183
A84: 69 | B84: 23.2 | C84: 2 | D84: 1 | E84: 2 | F84: 6.444444444 | G84: 0.9166666667 | H84: 41.5308642 | I84: 1 | L84: - | M84: - | N84: 0 | O84: 0 | P84: 0 | Q84: 0 | R84: 267.6433471 | S84: =1/2*H84*$U$1494*$U$1495*$U$1496+IF(F84=0,0,一覧表!$C$37*一覧表!$C$18*9.8) -> 159.5991111 | T84: =(F84-F83)*一覧表!$C$18 -> 1189 | U84: 1 | V84: 535.2866941 | W84: 21.48148148 | X84: 461.4540466 | Y84: - | Z84: - | AA84: 30.27763637
A85: 70 | B85: 26.5 | C85: 2 | D85: 2 | E85: 2 | F85: 7.361111111 | G85: 0.9166666667 | H85: 54.18595679 | I85: 1 | L85: - | M85: - | N85: 0 | O85: 0 | P85: 0 | Q85: 0 | R85: 398.8688486 | S85: =1/2*H85*$U$1494*$U$1495*$U$1496+IF(F85=0,0,一覧表!$C$37*一覧表!$C$18*9.8) -> 164.1549444 | T85: =(F85-F84)*一覧表!$C$18 -> 1353 | U85: 1 | V85: 797.7376972 | W85: 24.53703704 | X85: 602.0661866 | Y85: - | Z85: - | AA85: 34.58436913
A86: 71 | B86: 29.8 | C86: 3 | D86: 2 | E86: 3 | F86: 8.277777778 | G86: 0.7777777778 | H86: 68.52160494 | I86: 1 | L86: - | M86: - | N86: 0 | O86: 0 | P86: 0 | Q86: 0 | R86: 567.2066187 | S86: =1/2*H86*$U$1494*$U$1495*$U$1496+IF(F86=0,0,一覧表!$C$37*一覧表!$C$18*9.8) -> 169.3157778 | T86: =(F86-F85)*一覧表!$C$18 -> 1353 | U86: 1 | V86: 1134.413237 | W86: 27.59259259 | X86: 761.351166 | Y86: - | Z86: - | AA86: 27.36781244
A87: 72 | B87: 32.6 | C87: 3 | D87: 2 | E87: 3 | F87: 9.055555556 | G87: =F88-F87 -> 0.5 | H87: 82.00308642 | I87: 1 | L87: - | M87: - | N87: 0 | O87: 0 | P87: 0 | Q87: 0 | R87: 742.5835048 | S87: =1/2*H87*$U$1494*$U$1495*$U$1496+IF(F87=0,0,一覧表!$C$37*一覧表!$C$18*9.8) -> 174.1691111 | T87: =(F87-F86)*一覧表!$C$18 -> 1148 | U87: 1 | V87: 1485.16701 | W87: 30.18518519 | X87: 911.1454047 | Y87: - | Z87: - | AA87: 29.93928475
A88: 73 | B88: 34.4 | C88: 3 | D88: 2 | E88: 3 | F88: 9.555555556 | G88: 0.3055555556 | H88: 91.30864198 | I88: 1 | L88: - | M88: - | N88: 0 | O88: 0 | P88: 0 | Q88: 0 | R88: 872.5048011 | S88: =1/2*H88*$U$1494*$U$1495*$U$1496+IF(F88=0,0,一覧表!$C$37*一覧表!$C$18*9.8) -> 177.5191111 | T88: =(F88-F87)*一覧表!$C$18 -> 738 | U88: 1 | V88: 1745.009602 | W88: 31.85185185 | X88: 1014.540466 | Y88: - | Z88: - | AA88: 31.5923741
A89: 74 | B89: 35.5 | C89: 4 | D89: 2 | E89: 4 | F89: 9.861111111 | G89: 0.25 | H89: 97.24151235 | I89: 1 | L89: - | M89: - | N89: 0 | O89: 0 | P89: 0 | Q89: 0 | R89: 958.9093579 | S89: =1/2*H89*$U$1494*$U$1495*$U$1496+IF(F89=0,0,一覧表!$C$37*一覧表!$C$18*9.8) -> 179.6549444 | T89: =(F89-F88)*一覧表!$C$18 -> 451 | U89: 1 | V89: 1917.818716 | W89: 32.87037037 | X89: 1080.461248 | Y89: - | Z89: - | AA89: 25.73889107
A90: 75 | B90: 36.4 | C90: 4 | D90: 2 | E90: 4 | F90: 10.11111111 | G90: 0.2777777778 | H90: 102.2345679 | I90: 1 | L90: - | M90: - | N90: 0 | O90: 0 | P90: 0 | Q90: 0 | R90: 1033.705075 | S90: =1/2*H90*$U$1494*$U$1495*$U$1496+IF(F90=0,0,一覧表!$C$37*一覧表!$C$18*9.8) -> 181.4524444 | T90: =(F90-F89)*一覧表!$C$18 -> 369 | U90: 1 | V90: 2067.410151 | W90: 33.7037037 | X90: 1135.939643 | Y90: - | Z90: - | AA90: 26.39142634
A91: 76 | B91: 37.4 | C91: 4 | D91: 2 | E91: 4 | F91: 10.38888889 | G91: 0.3055555556 | H91: 107.9290123 | I91: 1 | L91: - | M91: - | N91: 0 | O91: 0 | P91: 0 | Q91: 0 | R91: 1121.262517 | S91: =1/2*H91*$U$1494*$U$1495*$U$1496+IF(F91=0,0,一覧表!$C$37*一覧表!$C$18*9.8) -> 183.5024444 | T91: =(F91-F90)*一覧表!$C$18 -> 410 | U91: 1 | V91: 2242.525034 | W91: 34.62962963 | X91: 1199.211248 | Y91: - | Z91: - | AA91: 27.11646553
A92: 77 | B92: 38.5 | C92: 4 | D92: 2 | E92: 4 | F92: 10.69444444 | G92: 0.2222222222 | H92: 114.371142 | I92: 1 | L92: - | M92: - | N92: 0 | O92: 0 | P92: 0 | Q92: 0 | R92: 1223.135824 | S92: =1/2*H92*$U$1494*$U$1495*$U$1496+IF(F92=0,0,一覧表!$C$37*一覧表!$C$18*9.8) -> 185.8216111 | T92: =(F92-F91)*一覧表!$C$18 -> 451 | U92: 1 | V92: 2446.271648 | W92: 35.64814815 | X92: 1270.790466 | Y92: - | Z92: - | AA92: 27.91400863
A93: 78 | B93: 39.3 | C93: 4 | D93: 2 | E93: 4 | F93: 10.91666667 | G93: 0.05555555556 | H93: 119.1736111 | I93: 1 | L93: - | M93: - | N93: 0 | O93: 0 | P93: 0 | Q93: 0 | R93: 1300.978588 | S93: =1/2*H93*$U$1494*$U$1495*$U$1496+IF(F93=0,0,一覧表!$C$37*一覧表!$C$18*9.8) -> 187.5505 | T93: =(F93-F92)*一覧表!$C$18 -> 328 | U93: 1 | V93: 2601.957176 | W93: 36.38888889 | X93: 1324.151235 | Y93: - | Z93: - | AA93: 28.49403998
A94: 79 | B94: 39.5 | C94: 4 | D94: 3 | E94: 4 | F94: 10.97222222 | G94: -0.1388888889 | H94: 120.3896605 | I94: 0 | K94: 1 | L94: - | M94: 120.3896605 | N94: 1 | O94: 120.3896605 | P94: 120.3896605 | Q94: 0 | R94: 1320.942108 | S94: =1/2*H94*$U$1494*$U$1495*$U$1496+IF(F94=0,0,一覧表!$C$37*一覧表!$C$18*9.8) -> 187.9882778 | T94: =(F94-F93)*一覧表!$C$18 -> 82 | U94: 1 | V94: 2641.884216 | W94: 36.57407407 | X94: 1337.662894 | Y94: - | Z94: 1337.662894 | AA94: 28.63904782
A95: 80 | B95: 39 | C95: 4 | D95: 3 | E95: 4 | F95: 10.83333333 | G95: -0.1388888889 | H95: 117.3611111 | I95: 0 | L95: - | M95: - | N95: 1 | O95: 117.3611111 | P95: 120.3896605 | Q95: 0 | R95: 1271.412037 | S95: =1/2*H95*$U$1494*$U$1495*$U$1496+IF(F95=0,0,一覧表!$C$37*一覧表!$C$18*9.8) -> 186.898 | T95: =(F95-F94)*一覧表!$C$18 -> -205 | U95: 0 | V95: 0 | W95: 36.11111111 | X95: 1304.012346 | Y95: - | Z95: - | AA95: 28.27652822
A96: 81 | B96: 38.5 | C96: 4 | D96: 3 | E96: 4 | F96: 10.69444444 | G96: -0.3333333333 | H96: 114.371142 | I96: 0 | L96: - | M96: - | N96: 1 | O96: 114.371142 | P96: 120.3896605 | Q96: 0 | R96: 1223.135824 | S96: =1/2*H96*$U$1494*$U$1495*$U$1496+IF(F96=0,0,一覧表!$C$37*一覧表!$C$18*9.8) -> 185.8216111 | T96: =(F96-F95)*一覧表!$C$18 -> -205 | U96: 0 | V96: 0 | W96: 35.64814815 | X96: 1270.790466 | Y96: - | Z96: - | AA96: 27.91400863
A97: 82 | B97: 37.3 | C97: 4 | D97: 2 | E97: 4 | F97: 10.36111111 | G97: -0.08333333333 | H97: 107.3526235 | I97: 0 | L97: - | M97: - | N97: 1 | O97: 107.3526235 | P97: 120.3896605 | Q97: 0 | R97: 1112.29246 | S97: =1/2*H97*$U$1494*$U$1495*$U$1496+IF(F97=0,0,一覧表!$C$37*一覧表!$C$18*9.8) -> 183.2949444 | T97: =(F97-F96)*一覧表!$C$18 -> -492 | U97: 0 | V97: 0 | W97: 34.53703704 | X97: 1192.806927 | Y97: - | Z97: - | AA97: 27.04396161
A98: 83 | B98: 37 | C98: 4 | D98: 2 | E98: 4 | F98: 10.27777778 | G98: -0.08333333333 | H98: 105.632716 | I98: 0 | L98: - | M98: - | N98: 1 | O98: 105.632716 | P98: 120.3896605 | Q98: 0 | R98: 1085.669582 | S98: =1/2*H98*$U$1494*$U$1495*$U$1496+IF(F98=0,0,一覧表!$C$37*一覧表!$C$18*9.8) -> 182.6757778 | T98: =(F98-F97)*一覧表!$C$18 -> -123 | U98: 1 | V98: 2171.339163 | W98: 34.25925926 | X98: 1173.696845 | Y98: - | Z98: - | AA98: 26.82644985
A99: 84 | B99: 36.7 | C99: 4 | D99: 2 | E99: 4 | F99: 10.19444444 | G99: -0.2222222222 | H99: 103.9266975 | I99: 0 | L99: - | M99: - | N99: 1 | O99: 103.9266975 | P99: 120.3896605 | Q99: 0 | R99: 1059.474944 | S99: =1/2*H99*$U$1494*$U$1495*$U$1496+IF(F99=0,0,一覧表!$C$37*一覧表!$C$18*9.8) -> 182.0616111 | T99: =(F99-F98)*一覧表!$C$18 -> -123 | U99: 1 | V99: 2118.949889 | W99: 33.98148148 | X99: 1154.741084 | Y99: - | Z99: - | AA99: 26.6089381
A100: 85 | B100: 35.9 | C100: 4 | D100: 2 | E100: 4 | F100: 9.972222222 | G100: -0.1666666667 | H100: 99.44521605 | I100: 0 | L100: - | M100: - | N100: 1 | O100: 99.44521605 | P100: 120.3896605 | Q100: 0 | R100: 991.6897934 | S100: =1/2*H100*$U$1494*$U$1495*$U$1496+IF(F100=0,0,一覧表!$C$37*一覧表!$C$18*9.8) -> 180.4482778 | T100: =(F100-F99)*一覧表!$C$18 -> -328 | U100: 0 | V100: 0 | W100: 33.24074074 | X100: 1104.946845 | Y100: - | Z100: - | AA100: 26.02890675
A101: 86 | B101: 35.3 | C101: 4 | D101: 2 | E101: 4 | F101: 9.805555556 | G101: -0.1944444444 | H101: 96.14891975 | I101: 0 | L101: - | M101: - | N101: 1 | O101: 96.14891975 | P101: 120.3896605 | Q101: 0 | R101: 942.7935742 | S101: =1/2*H101*$U$1494*$U$1495*$U$1496+IF(F101=0,0,一覧表!$C$37*一覧表!$C$18*9.8) -> 179.2616111 | T101: =(F101-F100)*一覧表!$C$18 -> -246 | U101: 0 | V101: 0 | W101: 32.68518519 | X101: 1068.321331 | Y101: - | Z101: - | AA101: 25.59388324
A102: 87 | B102: 34.6 | C102: 4 | D102: 2 | E102: 4 | F102: 9.611111111 | G102: -0.1111111111 | H102: 92.37345679 | I102: 0 | L102: - | M102: - | N102: 1 | O102: 92.37345679 | P102: 120.3896605 | Q102: 0 | R102: 887.8115569 | S102: =1/2*H102*$U$1494*$U$1495*$U$1496+IF(F102=0,0,一覧表!$C$37*一覧表!$C$18*9.8) -> 177.9024444 | T102: =(F102-F101)*一覧表!$C$18 -> -287 | U102: 0 | V102: 0 | W102: 32.03703704 | X102: 1026.371742 | Y102: - | Z102: - | AA102: 25.08635581
A103: 88 | B103: 34.2 | C103: 4 | D103: 2 | E103: 4 | F103: 9.5 | G103: -0.6388888889 | H103: 90.25 | I103: 0 | L103: - | M103: - | N103: 1 | O103: 90.25 | P103: 120.3896605 | Q103: 0 | R103: 857.375 | S103: =1/2*H103*$U$1494*$U$1495*$U$1496+IF(F103=0,0,一覧表!$C$37*一覧表!$C$18*9.8) -> 177.138 | T103: =(F103-F102)*一覧表!$C$18 -> -164 | U103: 1 | V103: 1714.75 | W103: 31.66666667 | X103: 1002.777778 | Y103: - | Z103: - | AA103: 24.79634013
A104: 89 | B104: 31.9 | C104: 4 | D104: 2 | E104: 4 | F104: 8.861111111 | G104: -1.277777778 | H104: 78.51929012 | I104: 0 | L104: - | M104: - | N104: 1 | O104: 78.51929012 | P104: 120.3896605 | Q104: 0 | R104: 695.7681541 | S104: =1/2*H104*$U$1494*$U$1495*$U$1496+IF(F104=0,0,一覧表!$C$37*一覧表!$C$18*9.8) -> 172.9149444 | T104: =(F104-F103)*一覧表!$C$18 -> -943 | U104: 0 | V104: 0 | W104: 29.53703704 | X104: 872.4365569 | Y104: - | Z104: - | AA104: 23.12875001
A105: 90 | B105: 27.3 | C105: 0 | D105: 2 | E105: 3 | F105: 7.583333333 | G105: -1.472222222 | H105: 57.50694444 | I105: 0 | L105: - | M105: - | N105: 1 | O105: 57.50694444 | P105: 120.3896605 | Q105: 0 | R105: 436.0943287 | S105: =1/2*H105*$U$1494*$U$1495*$U$1496+IF(F105=0,0,一覧表!$C$37*一覧表!$C$18*9.8) -> 165.3505 | T105: =(F105-F104)*一覧表!$C$18 -> -1886 | U105: 0 | V105: 0 | W105: 25.27777778 | X105: 638.9660494 | Y105: - | Z105: - | AA105: 13.33333333
A106: 91 | B106: 22 | C106: 2 | D106: 2 | E106: 3 | F106: 6.111111111 | G106: -1.388888889 | H106: 37.34567901 | I106: 0 | L106: - | M106: - | N106: 1 | O106: 37.34567901 | P106: 120.3896605 | Q106: 0 | R106: 228.223594 | S106: =1/2*H106*$U$1494*$U$1495*$U$1496+IF(F106=0,0,一覧表!$C$37*一覧表!$C$18*9.8) -> 158.0924444 | T106: =(F106-F105)*一覧表!$C$18 -> -2173 | U106: 0 | V106: 0 | W106: 20.37037037 | X106: 414.951989 | Y106: - | Z106: - | AA106: 28.71155173
A107: 92 | B107: 17 | C107: 2 | D107: 2 | E107: 2 | F107: 4.722222222 | G107: -0.7777777778 | H107: 22.29938272 | I107: 0 | L107: - | M107: - | N107: 1 | O107: 22.29938272 | P107: 120.3896605 | Q107: 0 | R107: 105.3026406 | S107: =1/2*H107*$U$1494*$U$1495*$U$1496+IF(F107=0,0,一覧表!$C$37*一覧表!$C$18*9.8) -> 152.6757778 | T107: =(F107-F106)*一覧表!$C$18 -> -2050 | U107: 0 | V107: 0 | W107: 15.74074074 | X107: 247.7709191 | Y107: - | Z107: - | AA107: 22.18619907
A108: 93 | B108: 14.2 | C108: 2 | D108: 1 | E108: 2 | F108: 3.944444444 | G108: -0.6111111111 | H108: 15.55864198 | I108: 0 | L108: - | M108: - | N108: 1 | O108: 15.55864198 | P108: 120.3896605 | Q108: 0 | R108: 61.3701989 | S108: =1/2*H108*$U$1494*$U$1495*$U$1496+IF(F108=0,0,一覧表!$C$37*一覧表!$C$18*9.8) -> 150.2491111 | T108: =(F108-F107)*一覧表!$C$18 -> -1148 | U108: 0 | V108: 0 | W108: 13.14814815 | X108: 172.8737997 | Y108: - | Z108: - | AA108: 18.53200157
A109: 94 | B109: 12 | C109: 2 | D109: 1 | E109: 2 | F109: 3.333333333 | G109: -0.8055555556 | H109: 11.11111111 | I109: 0 | L109: - | M109: - | N109: 1 | O109: 11.11111111 | P109: 120.3896605 | Q109: 0 | R109: 37.03703704 | S109: =1/2*H109*$U$1494*$U$1495*$U$1496+IF(F109=0,0,一覧表!$C$37*一覧表!$C$18*9.8) -> 148.648 | T109: =(F109-F108)*一覧表!$C$18 -> -902 | U109: 0 | V109: 0 | W109: 11.11111111 | X109: 123.4567901 | Y109: - | Z109: - | AA109: 15.6608464
A110: 95 | B110: 9.1 | C110: 2 | D110: 1 | E110: 2 | F110: 2.527777778 | G110: -0.9166666667 | H110: 6.389660494 | I110: 0 | L110: - | M110: - | N110: 1 | O110: 6.389660494 | P110: 120.3896605 | Q110: 0 | R110: 16.1516418 | S110: =1/2*H110*$U$1494*$U$1495*$U$1496+IF(F110=0,0,一覧表!$C$37*一覧表!$C$18*9.8) -> 146.9482778 | T110: =(F110-F109)*一覧表!$C$18 -> -1189 | U110: 0 | V110: 0 | W110: 8.425925926 | X110: 70.99622771 | Y110: - | Z110: - | AA110: 11.87614185
A111: 96 | B111: 5.8 | C111: 0 | D111: 1 | E111: 2 | F111: 1.611111111 | G111: -0.6111111111 | H111: 2.595679012 | I111: 0 | L111: - | M111: - | N111: 1 | O111: 2.595679012 | P111: 120.3896605 | Q111: 0 | R111: 4.181927298 | S111: =1/2*H111*$U$1494*$U$1495*$U$1496+IF(F111=0,0,一覧表!$C$37*一覧表!$C$18*9.8) -> 145.5824444 | T111: =(F111-F110)*一覧表!$C$18 -> -1353 | U111: 0 | V111: 0 | W111: 5.37037037 | X111: 28.84087791 | Y111: - | Z111: - | AA111: 13.33333333
A112: 97 | B112: 3.6 | C112: 0 | D112: 1 | E112: 1 | F112: 1 | G112: -0.3888888889 | H112: 1 | I112: 0 | L112: - | M112: - | N112: 1 | O112: 1 | P112: 120.3896605 | Q112: 0 | R112: 1 | S112: =1/2*H112*$U$1494*$U$1495*$U$1496+IF(F112=0,0,一覧表!$C$37*一覧表!$C$18*9.8) -> 145.008 | T112: =(F112-F111)*一覧表!$C$18 -> -902 | U112: 0 | V112: 0 | W112: 3.333333333 | X112: 11.11111111 | Y112: - | Z112: - | AA112: 13.33333333
A113: 98 | B113: 2.2 | C113: 0 | D113: 1 | E113: 1 | F113: 0.6111111111 | G113: -0.6111111111 | H113: 0.3734567901 | I113: 0 | L113: - | M113: - | N113: 1 | O113: 0.3734567901 | P113: 120.3896605 | Q113: 0 | R113: 0.228223594 | S113: =1/2*H113*$U$1494*$U$1495*$U$1496+IF(F113=0,0,一覧表!$C$37*一覧表!$C$18*9.8) -> 144.7824444 | T113: =(F113-F112)*一覧表!$C$18 -> -574 | U113: 0 | V113: 0 | W113: 2.037037037 | X113: 4.14951989 | Y113: - | Z113: - | AA113: 13.33333333
A114: 99 | B114: 0 | C114: 0 | D114: 1 | E114: 1 | F114: 0 | G114: 0 | H114: 0 | I114: 1 | J114: 1 | L114: 0 | M114: - | N114: 1 | O114: 0 | P114: 120.3896605 | Q114: 120.3896605 | R114: 0 | S114: =1/2*H114*$U$1494*$U$1495*$U$1496+IF(F114=0,0,一覧表!$C$37*一覧表!$C$18*9.8) -> 0 | T114: =(F114-F113)*一覧表!$C$18 -> -902 | U114: 0 | V114: 0 | W114: 0 | X114: 0 | Y114: 0 | Z114: - | AA114: 13.33333333
A115: 100 | B115: 0 | C115: 0 | D115: 0 | E115: 0 | F115: 0 | G115: 0 | H115: 0 | I115: 1 | L115: - | M115: - | N115: 0 | O115: 0 | P115: 0 | Q115: 0 | R115: 0 | S115: =1/2*H115*$U$1494*$U$1495*$U$1496+IF(F115=0,0,一覧表!$C$37*一覧表!$C$18*9.8) -> 0 | T115: =(F115-F114)*一覧表!$C$18 -> 0 | U115: 0 | V115: 0 | W115: 0 | X115: 0 | Y115: - | Z115: - | AA115: 13.33333333
A116: 101 | B116: 0 | C116: 0 | D116: 0 | E116: 0 | F116: 0 | G116: 0 | H116: 0 | I116: 1 | L116: - | M116: - | N116: 0 | O116: 0 | P116: 0 | Q116: 0 | R116: 0 | S116: =1/2*H116*$U$1494*$U$1495*$U$1496+IF(F116=0,0,一覧表!$C$37*一覧表!$C$18*9.8) -> 0 | T116: =(F116-F115)*一覧表!$C$18 -> 0 | U116: 0 | V116: 0 | W116: 0 | X116: 0 | Y116: - | Z116: - | AA116: 13.33333333
A117: 102 | B117: 0 | C117: 0 | D117: 0 | E117: 0 | F117: 0 | G117: 0 | H117: 0 | I117: 1 | L117: - | M117: - | N117: 0 | O117: 0 | P117: 0 | Q117: 0 | R117: 0 | S117: =1/2*H117*$U$1494*$U$1495*$U$1496+IF(F117=0,0,一覧表!$C$37*一覧表!$C$18*9.8) -> 0 | T117: =(F117-F116)*一覧表!$C$18 -> 0 | U117: 0 | V117: 0 | W117: 0 | X117: 0 | Y117: - | Z117: - | AA117: 13.33333333
A118: 103 | B118: 0 | C118: 0 | D118: 0 | E118: 0 | F118: 0 | G118: 0 | H118: 0 | I118: 1 | L118: - | M118: - | N118: 0 | O118: 0 | P118: 0 | Q118: 0 | R118: 0 | S118: =1/2*H118*$U$1494*$U$1495*$U$1496+IF(F118=0,0,一覧表!$C$37*一覧表!$C$18*9.8) -> 0 | T118: =(F118-F117)*一覧表!$C$18 -> 0 | U118: 0 | V118: 0 | W118: 0 | X118: 0 | Y118: - | Z118: - | AA118: 13.33333333
A119: 104 | B119: 0 | C119: 0 | D119: 0 | E119: 0 | F119: 0 | G119: 0 | H119: 0 | I119: 1 | L119: - | M119: - | N119: 0 | O119: 0 | P119: 0 | Q119: 0 | R119: 0 | S119: =1/2*H119*$U$1494*$U$1495*$U$1496+IF(F119=0,0,一覧表!$C$37*一覧表!$C$18*9.8) -> 0 | T119: =(F119-F118)*一覧表!$C$18 -> 0 | U119: 0 | V119: 0 | W119: 0 | X119: 0 | Y119: - | Z119: - | AA119: 13.33333333
A120: 105 | B120: 0 | C120: 0 | D120: 0 | E120: 0 | F120: 0 | G120: 0 | H120: 0 | I120: 1 | L120: - | M120: - | N120: 0 | O120: 0 | P120: 0 | Q120: 0 | R120: 0 | S120: =1/2*H120*$U$1494*$U$1495*$U$1496+IF(F120=0,0,一覧表!$C$37*一覧表!$C$18*9.8) -> 0 | T120: =(F120-F119)*一覧表!$C$18 -> 0 | U120: 0 | V120: 0 | W120: 0 | X120: 0 | Y120: - | Z120: - | AA120: 13.33333333
A121: 106 | B121: 0 | C121: 0 | D121: 0 | E121: 0 | F121: 0 | G121: 0 | H121: 0 | I121: 1 | L121: - | M121: - | N121: 0 | O121: 0 | P121: 0 | Q121: 0 | R121: 0 | S121: =1/2*H121*$U$1494*$U$1495*$U$1496+IF(F121=0,0,一覧表!$C$37*一覧表!$C$18*9.8) -> 0 | T121: =(F121-F120)*一覧表!$C$18 -> 0 | U121: 0 | V121: 0 | W121: 0 | X121: 0 | Y121: - | Z121: - | AA121: 13.33333333
A122: 107 | B122: 0 | C122: 0 | D122: 0 | E122: 0 | F122: 0 | G122: 0 | H122: 0 | I122: 1 | L122: - | M122: - | N122: 0 | O122: 0 | P122: 0 | Q122: 0 | R122: 0 | S122: =1/2*H122*$U$1494*$U$1495*$U$1496+IF(F122=0,0,一覧表!$C$37*一覧表!$C$18*9.8) -> 0 | T122: =(F122-F121)*一覧表!$C$18 -> 0 | U122: 0 | V122: 0 | W122: 0 | X122: 0 | Y122: - | Z122: - | AA122: 13.33333333
A123: 108 | B123: 0 | C123: 0 | D123: 0 | E123: 0 | F123: 0 | G123: 0 | H123: 0 | I123: 1 | L123: - | M123: - | N123: 0 | O123: 0 | P123: 0 | Q123: 0 | R123: 0 | S123: =1/2*H123*$U$1494*$U$1495*$U$1496+IF(F123=0,0,一覧表!$C$37*一覧表!$C$18*9.8) -> 0 | T123: =(F123-F122)*一覧表!$C$18 -> 0 | U123: 0 | V123: 0 | W123: 0 | X123: 0 | Y123: - | Z123: - | AA123: 13.33333333
A124: 109 | B124: 0 | C124: 0 | D124: 0 | E124: 0 | F124: 0 | G124: 0 | H124: 0 | I124: 1 | L124: - | M124: - | N124: 0 | O124: 0 | P124: 0 | Q124: 0 | R124: 0 | S124: =1/2*H124*$U$1494*$U$1495*$U$1496+IF(F124=0,0,一覧表!$C$37*一覧表!$C$18*9.8) -> 0 | T124: =(F124-F123)*一覧表!$C$18 -> 0 | U124: 0 | V124: 0 | W124: 0 | X124: 0 | Y124: - | Z124: - | AA124: 13.33333333
A125: 110 | B125: 0 | C125: 0 | D125: 0 | E125: 0 | F125: 0 | G125: 0 | H125: 0 | I125: 1 | L125: - | M125: - | N125: 0 | O125: 0 | P125: 0 | Q125: 0 | R125: 0 | S125: =1/2*H125*$U$1494*$U$1495*$U$1496+IF(F125=0,0,一覧表!$C$37*一覧表!$C$18*9.8) -> 0 | T125: =(F125-F124)*一覧表!$C$18 -> 0 | U125: 0 | V125: 0 | W125: 0 | X125: 0 | Y125: - | Z125: - | AA125: 13.33333333
A126: 111 | B126: 0 | C126: 0 | D126: 0 | E126: 0 | F126: 0 | G126: 0 | H126: 0 | I126: 1 | L126: - | M126: - | N126: 0 | O126: 0 | P126: 0 | Q126: 0 | R126: 0 | S126: =1/2*H126*$U$1494*$U$1495*$U$1496+IF(F126=0,0,一覧表!$C$37*一覧表!$C$18*9.8) -> 0 | T126: =(F126-F125)*一覧表!$C$18 -> 0 | U126: 0 | V126: 0 | W126: 0 | X126: 0 | Y126: - | Z126: - | AA126: 13.33333333
A127: 112 | B127: 0 | C127: 0 | D127: 0 | E127: 0 | F127: 0 | G127: 0 | H127: 0 | I127: 1 | L127: - | M127: - | N127: 0 | O127: 0 | P127: 0 | Q127: 0 | R127: 0 | S127: =1/2*H127*$U$1494*$U$1495*$U$1496+IF(F127=0,0,一覧表!$C$37*一覧表!$C$18*9.8) -> 0 | T127: =(F127-F126)*一覧表!$C$18 -> 0 | U127: 0 | V127: 0 | W127: 0 | X127: 0 | Y127: - | Z127: - | AA127: 13.33333333
A128: 113 | B128: 0 | C128: 0 | D128: 0 | E128: 0 | F128: 0 | G128: 0 | H128: 0 | I128: 1 | L128: - | M128: - | N128: 0 | O128: 0 | P128: 0 | Q128: 0 | R128: 0 | S128: =1/2*H128*$U$1494*$U$1495*$U$1496+IF(F128=0,0,一覧表!$C$37*一覧表!$C$18*9.8) -> 0 | T128: =(F128-F127)*一覧表!$C$18 -> 0 | U128: 0 | V128: 0 | W128: 0 | X128: 0 | Y128: - | Z128: - | AA128: 13.33333333
A129: 114 | B129: 0 | C129: 0 | D129: 0 | E129: 0 | F129: 0 | G129: 0 | H129: 0 | I129: 1 | L129: - | M129: - | N129: 0 | O129: 0 | P129: 0 | Q129: 0 | R129: 0 | S129: =1/2*H129*$U$1494*$U$1495*$U$1496+IF(F129=0,0,一覧表!$C$37*一覧表!$C$18*9.8) -> 0 | T129: =(F129-F128)*一覧表!$C$18 -> 0 | U129: 0 | V129: 0 | W129: 0 | X129: 0 | Y129: - | Z129: - | AA129: 13.33333333
A130: 115 | B130: 0 | C130: 0 | D130: 0 | E130: 0 | F130: 0 | G130: 0 | H130: 0 | I130: 1 | L130: - | M130: - | N130: 0 | O130: 0 | P130: 0 | Q130: 0 | R130: 0 | S130: =1/2*H130*$U$1494*$U$1495*$U$1496+IF(F130=0,0,一覧表!$C$37*一覧表!$C$18*9.8) -> 0 | T130: =(F130-F129)*一覧表!$C$18 -> 0 | U130: 0 | V130: 0 | W130: 0 | X130: 0 | Y130: - | Z130: - | AA130: 13.33333333
A131: 116 | B131: 0 | C131: 0 | D131: 0 | E131: 0 | F131: 0 | G131: 0 | H131: 0 | I131: 1 | L131: - | M131: - | N131: 0 | O131: 0 | P131: 0 | Q131: 0 | R131: 0 | S131: =1/2*H131*$U$1494*$U$1495*$U$1496+IF(F131=0,0,一覧表!$C$37*一覧表!$C$18*9.8) -> 0 | T131: =(F131-F130)*一覧表!$C$18 -> 0 | U131: 0 | V131: 0 | W131: 0 | X131: 0 | Y131: - | Z131: - | AA131: 13.33333333
A132: 117 | B132: 0 | C132: 0 | D132: 0 | E132: 0 | F132: 0 | G132: 0 | H132: 0 | I132: 1 | L132: - | M132: - | N132: 0 | O132: 0 | P132: 0 | Q132: 0 | R132: 0 | S132: =1/2*H132*$U$1494*$U$1495*$U$1496+IF(F132=0,0,一覧表!$C$37*一覧表!$C$18*9.8) -> 0 | T132: =(F132-F131)*一覧表!$C$18 -> 0 | U132: 0 | V132: 0 | W132: 0 | X132: 0 | Y132: - | Z132: - | AA132: 13.33333333
A133: 118 | B133: 0 | C133: 0 | D133: 0 | E133: 0 | F133: 0 | G133: 0 | H133: 0 | I133: 1 | L133: - | M133: - | N133: 0 | O133: 0 | P133: 0 | Q133: 0 | R133: 0 | S133: =1/2*H133*$U$1494*$U$1495*$U$1496+IF(F133=0,0,一覧表!$C$37*一覧表!$C$18*9.8) -> 0 | T133: =(F133-F132)*一覧表!$C$18 -> 0 | U133: 0 | V133: 0 | W133: 0 | X133: 0 | Y133: - | Z133: - | AA133: 13.33333333
A134: 119 | B134: 0 | C134: 0 | D134: 0 | E134: 0 | F134: 0 | G134: 0 | H134: 0 | I134: 1 | L134: - | M134: - | N134: 0 | O134: 0 | P134: 0 | Q134: 0 | R134: 0 | S134: =1/2*H134*$U$1494*$U$1495*$U$1496+IF(F134=0,0,一覧表!$C$37*一覧表!$C$18*9.8) -> 0 | T134: =(F134-F133)*一覧表!$C$18 -> 0 | U134: 0 | V134: 0 | W134: 0 | X134: 0 | Y134: - | Z134: - | AA134: 13.33333333
A135: 120 | B135: 0 | C135: 0 | D135: 0 | E135: 0 | F135: 0 | G135: 0 | H135: 0 | I135: 1 | L135: - | M135: - | N135: 0 | O135: 0 | P135: 0 | Q135: 0 | R135: 0 | S135: =1/2*H135*$U$1494*$U$1495*$U$1496+IF(F135=0,0,一覧表!$C$37*一覧表!$C$18*9.8) -> 0 | T135: =(F135-F134)*一覧表!$C$18 -> 0 | U135: 0 | V135: 0 | W135: 0 | X135: 0 | Y135: - | Z135: - | AA135: 13.33333333
A136: 121 | B136: 0 | C136: 0 | D136: 0 | E136: 0 | F136: 0 | G136: 0 | H136: 0 | I136: 1 | L136: - | M136: - | N136: 0 | O136: 0 | P136: 0 | Q136: 0 | R136: 0 | S136: =1/2*H136*$U$1494*$U$1495*$U$1496+IF(F136=0,0,一覧表!$C$37*一覧表!$C$18*9.8) -> 0 | T136: =(F136-F135)*一覧表!$C$18 -> 0 | U136: 0 | V136: 0 | W136: 0 | X136: 0 | Y136: - | Z136: - | AA136: 13.33333333
A137: 122 | B137: 0 | C137: 0 | D137: 0 | E137: 0 | F137: 0 | G137: 0 | H137: 0 | I137: 1 | L137: - | M137: - | N137: 0 | O137: 0 | P137: 0 | Q137: 0 | R137: 0 | S137: =1/2*H137*$U$1494*$U$1495*$U$1496+IF(F137=0,0,一覧表!$C$37*一覧表!$C$18*9.8) -> 0 | T137: =(F137-F136)*一覧表!$C$18 -> 0 | U137: 0 | V137: 0 | W137: 0 | X137: 0 | Y137: - | Z137: - | AA137: 13.33333333
A138: 123 | B138: 0 | C138: 0 | D138: 0 | E138: 0 | F138: 0 | G138: 0 | H138: 0 | I138: 1 | L138: - | M138: - | N138: 0 | O138: 0 | P138: 0 | Q138: 0 | R138: 0 | S138: =1/2*H138*$U$1494*$U$1495*$U$1496+IF(F138=0,0,一覧表!$C$37*一覧表!$C$18*9.8) -> 0 | T138: =(F138-F137)*一覧表!$C$18 -> 0 | U138: 0 | V138: 0 | W138: 0 | X138: 0 | Y138: - | Z138: - | AA138: 13.33333333
A139: 124 | B139: 0 | C139: 0 | D139: 0 | E139: 0 | F139: 0 | G139: 0 | H139: 0 | I139: 1 | L139: - | M139: - | N139: 0 | O139: 0 | P139: 0 | Q139: 0 | R139: 0 | S139: =1/2*H139*$U$1494*$U$1495*$U$1496+IF(F139=0,0,一覧表!$C$37*一覧表!$C$18*9.8) -> 0 | T139: =(F139-F138)*一覧表!$C$18 -> 0 | U139: 0 | V139: 0 | W139: 0 | X139: 0 | Y139: - | Z139: - | AA139: 13.33333333
A140: 125 | B140: 0 | C140: 0 | D140: 0 | E140: 0 | F140: 0 | G140: 0 | H140: 0 | I140: 1 | L140: - | M140: - | N140: 0 | O140: 0 | P140: 0 | Q140: 0 | R140: 0 | S140: =1/2*H140*$U$1494*$U$1495*$U$1496+IF(F140=0,0,一覧表!$C$37*一覧表!$C$18*9.8) -> 0 | T140: =(F140-F139)*一覧表!$C$18 -> 0 | U140: 0 | V140: 0 | W140: 0 | X140: 0 | Y140: - | Z140: - | AA140: 13.33333333
A141: 126 | B141: 0 | C141: 0 | D141: 0 | E141: 0 | F141: 0 | G141: 0 | H141: 0 | I141: 1 | L141: - | M141: - | N141: 0 | O141: 0 | P141: 0 | Q141: 0 | R141: 0 | S141: =1/2*H141*$U$1494*$U$1495*$U$1496+IF(F141=0,0,一覧表!$C$37*一覧表!$C$18*9.8) -> 0 | T141: =(F141-F140)*一覧表!$C$18 -> 0 | U141: 0 | V141: 0 | W141: 0 | X141: 0 | Y141: - | Z141: - | AA141: 13.33333333
A142: 127 | B142: 0 | C142: 0 | D142: 0 | E142: 0 | F142: 0 | G142: 0 | H142: 0 | I142: 1 | L142: - | M142: - | N142: 0 | O142: 0 | P142: 0 | Q142: 0 | R142: 0 | S142: =1/2*H142*$U$1494*$U$1495*$U$1496+IF(F142=0,0,一覧表!$C$37*一覧表!$C$18*9.8) -> 0 | T142: =(F142-F141)*一覧表!$C$18 -> 0 | U142: 0 | V142: 0 | W142: 0 | X142: 0 | Y142: - | Z142: - | AA142: 13.33333333
A143: 128 | B143: 0 | C143: 0 | D143: 0 | E143: 0 | F143: 0 | G143: 0 | H143: 0 | I143: 1 | L143: - | M143: - | N143: 0 | O143: 0 | P143: 0 | Q143: 0 | R143: 0 | S143: =1/2*H143*$U$1494*$U$1495*$U$1496+IF(F143=0,0,一覧表!$C$37*一覧表!$C$18*9.8) -> 0 | T143: =(F143-F142)*一覧表!$C$18 -> 0 | U143: 0 | V143: 0 | W143: 0 | X143: 0 | Y143: - | Z143: - | AA143: 13.33333333
A144: 129 | B144: 0 | C144: 0 | D144: 0 | E144: 0 | F144: 0 | G144: 0 | H144: 0 | I144: 1 | L144: - | M144: =IF(K144="","-",K144*H144) -> - | N144: 0 | O144: 0 | P144: 0 | Q144: 0 | R144: 0 | S144: =1/2*H144*$U$1494*$U$1495*$U$1496+IF(F144=0,0,一覧表!$C$37*一覧表!$C$18*9.8) -> 0 | T144: =(F144-F143)*一覧表!$C$18 -> 0 | U144: =IF(S144<=-T144,0,1) -> 0 | V144: =IF(U144=1,R144*$U$1494,0) -> 0 | W144: =F144/($AD$10/2) -> 0 | X144: 0 | Y144: =IF(J144="","-",X144*J144) -> - | Z144: =IF(K144="","-",X144*K144) -> - | AA144: 13.33333333
A145: 130 | B145: 0 | C145: 0 | D145: 0 | E145: 0 | F145: =B145*1000/3600 -> 0 | G145: 0 | H145: =F145*F145 -> 0 | I145: 1 | L145: =IF(J145="","-",J145*H145) -> - | M145: - | N145: =IF(J145=1,1,IF(F145>F146,1,0)) -> 0 | O145: 0 | P145: 0 | Q145: 0 | R145: =H145*F145 -> 0 | S145: =1/2*H145*$U$1494*$U$1495*$U$1496+IF(F145=0,0,一覧表!$C$37*一覧表!$C$18*9.8) -> 0 | T145: =(F145-F144)*一覧表!$C$18 -> 0 | U145: 0 | V145: 0 | W145: 0 | X145: =W145*W145 -> 0 | Y145: - | Z145: - | AA145: =IF(OR(F145<$AD$12,C145=0),$AD$7/60,IF(C145=1,$AC$3,IF(C145=2,$AD$3,IF(C145=3,$AE$3,IF(C145=4,$AF$3,IF(C145=5,$AG$3,$AH$3)))))*$AC$4*F145/(PI()*$AD$10)) -> 13.33333333
A146: 131 | B146: 0 | C146: 0 | D146: 0 | E146: 0 | F146: 0 | G146: 0 | H146: 0 | I146: =IF(F146<=F147,1,0) -> 1 | J146: =IF(I145<I146,1,"") ->  | K146: =IF(I145>I146,1,"") ->  | L146: - | M146: - | N146: 0 | O146: =N146*H146 -> 0 | P146: =IF(O146>=O145,O146,N146*P145)-I146*O146 -> 0 | Q146: =IF(J146=1,P146,0) -> 0 | R146: 0 | S146: =1/2*H146*$U$1494*$U$1495*$U$1496+IF(F146=0,0,一覧表!$C$37*一覧表!$C$18*9.8) -> 0 | T146: =(F146-F145)*一覧表!$C$18 -> 0 | U146: 0 | V146: 0 | W146: 0 | X146: 0 | Y146: - | Z146: - | AA146: 13.33333333
A147: 132 | B147: 0 | C147: 0 | D147: 0 | E147: 0 | F147: 0 | G147: 0 | H147: 0 | I147: 1 | L147: - | M147: - | N147: 0 | O147: 0 | P147: 0 | Q147: 0 | R147: 0 | S147: =1/2*H147*$U$1494*$U$1495*$U$1496+IF(F147=0,0,一覧表!$C$37*一覧表!$C$18*9.8) -> 0 | T147: =(F147-F146)*一覧表!$C$18 -> 0 | U147: 0 | V147: 0 | W147: 0 | X147: 0 | Y147: - | Z147: - | AA147: 13.33333333
A148: 133 | B148: 0 | C148: 0 | D148: 0 | E148: 0 | F148: 0 | G148: 0 | H148: 0 | I148: 1 | L148: - | M148: - | N148: 0 | O148: 0 | P148: 0 | Q148: 0 | R148: 0 | S148: =1/2*H148*$U$1494*$U$1495*$U$1496+IF(F148=0,0,一覧表!$C$37*一覧表!$C$18*9.8) -> 0 | T148: =(F148-F147)*一覧表!$C$18 -> 0 | U148: 0 | V148: 0 | W148: 0 | X148: 0 | Y148: - | Z148: - | AA148: 13.33333333
A149: 134 | B149: 0 | C149: 0 | D149: 0 | E149: 0 | F149: 0 | G149: 0 | H149: 0 | I149: 1 | L149: - | M149: - | N149: 0 | O149: 0 | P149: 0 | Q149: 0 | R149: 0 | S149: =1/2*H149*$U$1494*$U$1495*$U$1496+IF(F149=0,0,一覧表!$C$37*一覧表!$C$18*9.8) -> 0 | T149: =(F149-F148)*一覧表!$C$18 -> 0 | U149: 0 | V149: 0 | W149: 0 | X149: 0 | Y149: - | Z149: - | AA149: 13.33333333
A150: 135 | B150: 0 | C150: 0 | D150: 0 | E150: 0 | F150: 0 | G150: 0 | H150: 0 | I150: 1 | L150: - | M150: - | N150: 0 | O150: 0 | P150: 0 | Q150: 0 | R150: 0 | S150: =1/2*H150*$U$1494*$U$1495*$U$1496+IF(F150=0,0,一覧表!$C$37*一覧表!$C$18*9.8) -> 0 | T150: =(F150-F149)*一覧表!$C$18 -> 0 | U150: 0 | V150: 0 | W150: 0 | X150: 0 | Y150: - | Z150: - | AA150: 13.33333333
A151: 136 | B151: 0 | C151: 0 | D151: 0 | E151: 0 | F151: 0 | G151: =F152-F151 -> 0 | H151: 0 | I151: 1 | L151: - | M151: - | N151: 0 | O151: 0 | P151: 0 | Q151: 0 | R151: 0 | S151: =1/2*H151*$U$1494*$U$1495*$U$1496+IF(F151=0,0,一覧表!$C$37*一覧表!$C$18*9.8) -> 0 | T151: =(F151-F150)*一覧表!$C$18 -> 0 | U151: 0 | V151: 0 | W151: 0 | X151: 0 | Y151: - | Z151: - | AA151: 13.33333333
A152: 137 | B152: 0 | C152: 1 | D152: 1 | E152: 1 | F152: 0 | G152: 0.05555555556 | H152: 0 | I152: 1 | L152: - | M152: - | N152: 0 | O152: 0 | P152: 0 | Q152: 0 | R152: 0 | S152: =1/2*H152*$U$1494*$U$1495*$U$1496+IF(F152=0,0,一覧表!$C$37*一覧表!$C$18*9.8) -> 0 | T152: =(F152-F151)*一覧表!$C$18 -> 0 | U152: 0 | V152: 0 | W152: 0 | X152: 0 | Y152: - | Z152: - | AA152: 13.33333333
A153: 138 | B153: 0.2 | C153: 1 | D153: 1 | E153: 1 | F153: 0.05555555556 | G153: 0.4722222222 | H153: 0.003086419753 | I153: 1 | L153: - | M153: - | N153: 0 | O153: 0 | P153: 0 | Q153: 0 | R153: 0.0001714677641 | S153: =1/2*H153*$U$1494*$U$1495*$U$1496+IF(F153=0,0,一覧表!$C$37*一覧表!$C$18*9.8) -> 144.6491111 | T153: =(F153-F152)*一覧表!$C$18 -> 82 | U153: 1 | V153: 0.0003429355281 | W153: 0.1851851852 | X153: 0.03429355281 | Y153: - | Z153: - | AA153: 13.33333333
A154: 139 | B154: 1.9 | C154: 1 | D154: 1 | E154: 1 | F154: 0.5277777778 | G154: 1.166666667 | H154: 0.2785493827 | I154: 1 | L154: - | M154: - | N154: 0 | O154: 0 | P154: 0 | Q154: 0 | R154: 0.1470121742 | S154: =1/2*H154*$U$1494*$U$1495*$U$1496+IF(F154=0,0,一覧表!$C$37*一覧表!$C$18*9.8) -> 144.7482778 | T154: =(F154-F153)*一覧表!$C$18 -> 697 | U154: 1 | V154: 0.2940243484 | W154: 1.759259259 | X154: 3.094993141 | Y154: - | Z154: - | AA154: 13.33333333
A155: 140 | B155: 6.1 | C155: 1 | D155: 1 | E155: 1 | F155: 1.694444444 | G155: 1.555555556 | H155: 2.871141975 | I155: 1 | L155: - | M155: - | N155: 0 | O155: 0 | P155: 0 | Q155: 0 | R155: 4.864990569 | S155: =1/2*H155*$U$1494*$U$1495*$U$1496+IF(F155=0,0,一覧表!$C$37*一覧表!$C$18*9.8) -> 145.6816111 | T155: =(F155-F154)*一覧表!$C$18 -> 1722 | U155: 1 | V155: 9.729981139 | W155: 5.648148148 | X155: 31.9015775 | Y155: - | Z155: - | AA155: 13.33333333
A156: 141 | B156: 11.7 | C156: 1 | D156: 1 | E156: 1 | F156: 3.25 | G156: 1.305555556 | H156: 10.5625 | I156: 1 | L156: - | M156: - | N156: 0 | O156: 0 | P156: 0 | Q156: 0 | R156: 34.328125 | S156: =1/2*H156*$U$1494*$U$1495*$U$1496+IF(F156=0,0,一覧表!$C$37*一覧表!$C$18*9.8) -> 148.4505 | T156: =(F156-F155)*一覧表!$C$18 -> 2296 | U156: 1 | V156: 68.65625 | W156: 10.83333333 | X156: 117.3611111 | Y156: - | Z156: - | AA156: 25.4488754
A157: 142 | B157: 16.4 | C157: 2 | D157: 1 | E157: 2 | F157: 4.555555556 | G157: 0.6944444444 | H157: 20.75308642 | I157: 1 | L157: - | M157: - | N157: 0 | O157: 0 | P157: 0 | Q157: 0 | R157: 94.54183813 | S157: =1/2*H157*$U$1494*$U$1495*$U$1496+IF(F157=0,0,一覧表!$C$37*一覧表!$C$18*9.8) -> 152.1191111 | T157: =(F157-F156)*一覧表!$C$18 -> 1927 | U157: 1 | V157: 189.0836763 | W157: 15.18518519 | X157: 230.5898491 | Y157: - | Z157: - | AA157: 21.40315675
A158: 143 | B158: 18.9 | C158: 2 | D158: 1 | E158: 2 | F158: 5.25 | G158: 0.2777777778 | H158: 27.5625 | I158: 1 | L158: - | M158: - | N158: 0 | O158: 0 | P158: 0 | Q158: 0 | R158: 144.703125 | S158: =1/2*H158*$U$1494*$U$1495*$U$1496+IF(F158=0,0,一覧表!$C$37*一覧表!$C$18*9.8) -> 154.5705 | T158: =(F158-F157)*一覧表!$C$18 -> 1025 | U158: 1 | V158: 289.40625 | W158: 17.5 | X158: 306.25 | Y158: - | Z158: - | AA158: 24.66583308
A159: 144 | B159: 19.9 | C159: 2 | D159: 1 | E159: 2 | F159: 5.527777778 | G159: 0.25 | H159: 30.55632716 | I159: 1 | L159: - | M159: - | N159: 0 | O159: 0 | P159: 0 | Q159: 0 | R159: 168.9085862 | S159: =1/2*H159*$U$1494*$U$1495*$U$1496+IF(F159=0,0,一覧表!$C$37*一覧表!$C$18*9.8) -> 155.6482778 | T159: =(F159-F158)*一覧表!$C$18 -> 410 | U159: 1 | V159: 337.8171725 | W159: 18.42592593 | X159: 339.5147462 | Y159: - | Z159: - | AA159: 25.97090361
A160: 145 | B160: 20.8 | C160: 2 | D160: 1 | E160: 2 | F160: 5.777777778 | G160: 0.5555555556 | H160: 33.38271605 | I160: 1 | L160: - | M160: - | N160: 0 | O160: 0 | P160: 0 | Q160: 0 | R160: 192.877915 | S160: =1/2*H160*$U$1494*$U$1495*$U$1496+IF(F160=0,0,一覧表!$C$37*一覧表!$C$18*9.8) -> 156.6657778 | T160: =(F160-F159)*一覧表!$C$18 -> 369 | U160: 1 | V160: 385.7558299 | W160: 19.25925926 | X160: 370.9190672 | Y160: - | Z160: - | AA160: 27.14546709
A161: 146 | B161: 22.8 | C161: 2 | D161: 2 | E161: 2 | F161: 6.333333333 | G161: 0.7222222222 | H161: 40.11111111 | I161: 1 | L161: - | M161: - | N161: 0 | O161: 0 | P161: 0 | Q161: 0 | R161: 254.037037 | S161: =1/2*H161*$U$1494*$U$1495*$U$1496+IF(F161=0,0,一覧表!$C$37*一覧表!$C$18*9.8) -> 159.088 | T161: =(F161-F160)*一覧表!$C$18 -> 820 | U161: 1 | V161: 508.0740741 | W161: 21.11111111 | X161: 445.6790123 | Y161: - | Z161: - | AA161: 29.75560816
A162: 147 | B162: 25.4 | C162: 2 | D162: 2 | E162: 2 | F162: 7.055555556 | G162: 0.6388888889 | H162: 49.7808642 | I162: 1 | L162: - | M162: - | N162: 0 | O162: 0 | P162: 0 | Q162: 0 | R162: 351.2316529 | S162: =1/2*H162*$U$1494*$U$1495*$U$1496+IF(F162=0,0,一覧表!$C$37*一覧表!$C$18*9.8) -> 162.5691111 | T162: =(F162-F161)*一覧表!$C$18 -> 1066 | U162: 1 | V162: 702.4633059 | W162: 23.51851852 | X162: 553.1207133 | Y162: - | Z162: - | AA162: 33.14879155
A163: 148 | B163: 27.7 | C163: 3 | D163: 2 | E163: 3 | F163: 7.694444444 | G163: 0.4166666667 | H163: 59.20447531 | I163: 1 | L163: - | M163: - | N163: 0 | O163: 0 | P163: 0 | Q163: 0 | R163: 455.5455461 | S163: =1/2*H163*$U$1494*$U$1495*$U$1496+IF(F163=0,0,一覧表!$C$37*一覧表!$C$18*9.8) -> 165.9616111 | T163: =(F163-F162)*一覧表!$C$18 -> 943 | U163: 1 | V163: 911.0910922 | W163: 25.64814815 | X163: 657.8275034 | Y163: - | Z163: - | AA163: 25.43920821
A164: 149 | B164: 29.2 | C164: 3 | D164: 2 | E164: 3 | F164: 8.111111111 | G164: 0.1666666667 | H164: 65.79012346 | I164: 1 | L164: - | M164: - | N164: 0 | O164: 0 | P164: 0 | Q164: 0 | R164: 533.6310014 | S164: =1/2*H164*$U$1494*$U$1495*$U$1496+IF(F164=0,0,一覧表!$C$37*一覧表!$C$18*9.8) -> 168.3324444 | T164: =(F164-F163)*一覧表!$C$18 -> 615 | U164: 1 | V164: 1067.262003 | W164: 27.03703704 | X164: 731.0013717 | Y164: - | Z164: - | AA164: 26.81678266
A165: 150 | B165: 29.8 | C165: 3 | D165: 2 | E165: 3 | F165: 8.277777778 | G165: -0.1111111111 | H165: 68.52160494 | I165: 0 | K165: 1 | L165: - | M165: 68.52160494 | N165: 1 | O165: 68.52160494 | P165: 68.52160494 | Q165: 0 | R165: 567.2066187 | S165: =1/2*H165*$U$1494*$U$1495*$U$1496+IF(F165=0,0,一覧表!$C$37*一覧表!$C$18*9.8) -> 169.3157778 | T165: =(F165-F164)*一覧表!$C$18 -> 246 | U165: 1 | V165: 1134.413237 | W165: 27.59259259 | X165: 761.351166 | Y165: - | Z165: 761.351166 | AA165: 27.36781244
A166: 151 | B166: 29.4 | C166: 3 | D166: 2 | E166: 3 | F166: 8.166666667 | G166: -0.6111111111 | H166: 66.69444444 | I166: 0 | L166: - | M166: - | N166: 1 | O166: 66.69444444 | P166: 68.52160494 | Q166: 0 | R166: 544.6712963 | S166: =1/2*H166*$U$1494*$U$1495*$U$1496+IF(F166=0,0,一覧表!$C$37*一覧表!$C$18*9.8) -> 168.658 | T166: =(F166-F165)*一覧表!$C$18 -> -164 | U166: 1 | V166: 1089.342593 | W166: 27.22222222 | X166: 741.0493827 | Y166: - | Z166: - | AA166: 27.00045926
A167: 152 | B167: 27.2 | C167: 3 | D167: 2 | E167: 3 | F167: 7.555555556 | G167: -1.277777778 | H167: 57.08641975 | I167: 0 | L167: - | M167: - | N167: 1 | O167: 57.08641975 | P167: 68.52160494 | Q167: 0 | R167: 431.3196159 | S167: =1/2*H167*$U$1494*$U$1495*$U$1496+IF(F167=0,0,一覧表!$C$37*一覧表!$C$18*9.8) -> 165.1991111 | T167: =(F167-F166)*一覧表!$C$18 -> -902 | U167: 0 | V167: 0 | W167: 25.18518519 | X167: 634.2935528 | Y167: - | Z167: - | AA167: 24.98001673
A168: 153 | B168: 22.6 | C168: 3 | D168: 2 | E168: 3 | F168: 6.277777778 | G168: -1.472222222 | H168: 39.41049383 | I168: 0 | L168: - | M168: - | N168: 1 | O168: 39.41049383 | P168: 68.52160494 | Q168: 0 | R168: 247.4103224 | S168: =1/2*H168*$U$1494*$U$1495*$U$1496+IF(F168=0,0,一覧表!$C$37*一覧表!$C$18*9.8) -> 158.8357778 | T168: =(F168-F167)*一覧表!$C$18 -> -1886 | U168: 0 | V168: 0 | W168: 20.92592593 | X168: 437.8943759 | Y168: - | Z168: - | AA168: 20.75545507
A169: 154 | B169: 17.3 | C169: 2 | D169: 2 | E169: 2 | F169: 4.805555556 | G169: -1.111111111 | H169: 23.0933642 | I169: 0 | L169: - | M169: - | N169: 1 | O169: 23.0933642 | P169: 68.52160494 | Q169: 0 | R169: 110.9764446 | S169: =1/2*H169*$U$1494*$U$1495*$U$1496+IF(F169=0,0,一覧表!$C$37*一覧表!$C$18*9.8) -> 152.9616111 | T169: =(F169-F168)*一覧表!$C$18 -> -2173 | U169: 0 | V169: 0 | W169: 16.01851852 | X169: 256.5929355 | Y169: - | Z169: - | AA169: 22.57772023
A170: 155 | B170: 13.3 | C170: 2 | D170: 1 | E170: 2 | F170: 3.694444444 | G170: -0.3611111111 | H170: 13.64891975 | I170: 0 | L170: - | M170: - | N170: 1 | O170: 13.64891975 | P170: 68.52160494 | Q170: 0 | R170: 50.42517575 | S170: =1/2*H170*$U$1494*$U$1495*$U$1496+IF(F170=0,0,一覧表!$C$37*一覧表!$C$18*9.8) -> 149.5616111 | T170: =(F170-F169)*一覧表!$C$18 -> -1640 | U170: 0 | V170: 0 | W170: 12.31481481 | X170: 151.6546639 | Y170: - | Z170: - | AA170: 17.35743809
A171: 156 | B171: 12 | C171: 2 | D171: 1 | E171: 2 | F171: 3.333333333 | G171: 0.1666666667 | H171: 11.11111111 | I171: 1 | J171: 1 | L171: 11.11111111 | M171: - | N171: 1 | O171: 11.11111111 | P171: 57.41049383 | Q171: 57.41049383 | R171: 37.03703704 | S171: =1/2*H171*$U$1494*$U$1495*$U$1496+IF(F171=0,0,一覧表!$C$37*一覧表!$C$18*9.8) -> 148.648 | T171: =(F171-F170)*一覧表!$C$18 -> -533 | U171: 0 | V171: 0 | W171: 11.11111111 | X171: 123.4567901 | Y171: 123.4567901 | Z171: - | AA171: 15.6608464
A172: 157 | B172: 12.6 | C172: 2 | D172: 1 | E172: 2 | F172: 3.5 | G172: 0.4166666667 | H172: 12.25 | I172: 1 | L172: - | M172: - | N172: 0 | O172: 0 | P172: 0 | Q172: 0 | R172: 42.875 | S172: =1/2*H172*$U$1494*$U$1495*$U$1496+IF(F172=0,0,一覧表!$C$37*一覧表!$C$18*9.8) -> 149.058 | T172: =(F172-F171)*一覧表!$C$18 -> 246 | U172: 1 | V172: 85.75 | W172: 11.66666667 | X172: 136.1111111 | Y172: - | Z172: - | AA172: 16.44388872
A173: 158 | B173: 14.1 | C173: 2 | D173: 1 | E173: 2 | F173: 3.916666667 | G173: 0.8611111111 | H173: 15.34027778 | I173: 1 | L173: - | M173: - | N173: 0 | O173: 0 | P173: 0 | Q173: 0 | R173: 60.08275463 | S173: =1/2*H173*$U$1494*$U$1495*$U$1496+IF(F173=0,0,一覧表!$C$37*一覧表!$C$18*9.8) -> 150.1705 | T173: =(F173-F172)*一覧表!$C$18 -> 615 | U173: 1 | V173: 120.1655093 | W173: 13.05555556 | X173: 170.4475309 | Y173: - | Z173: - | AA173: 18.40149452
A174: 159 | B174: 17.2 | C174: 2 | D174: 1 | E174: 2 | F174: 4.777777778 | G174: 0.8055555556 | H174: 22.82716049 | I174: 1 | L174: - | M174: - | N174: 0 | O174: 0 | P174: 0 | Q174: 0 | R174: 109.0631001 | S174: =1/2*H174*$U$1494*$U$1495*$U$1496+IF(F174=0,0,一覧表!$C$37*一覧表!$C$18*9.8) -> 152.8657778 | T174: =(F174-F173)*一覧表!$C$18 -> 1271 | U174: 1 | V174: 218.1262003 | W174: 15.92592593 | X174: 253.6351166 | Y174: - | Z174: - | AA174: 22.44721317
A175: 160 | B175: 20.1 | C175: 2 | D175: 1 | E175: 2 | F175: 5.583333333 | G175: 0.9166666667 | H175: 31.17361111 | I175: 1 | L175: - | M175: - | N175: 0 | O175: 0 | P175: 0 | Q175: 0 | R175: 174.052662 | S175: =1/2*H175*$U$1494*$U$1495*$U$1496+IF(F175=0,0,一覧表!$C$37*一覧表!$C$18*9.8) -> 155.8705 | T175: =(F175-F174)*一覧表!$C$18 -> 1189 | U175: 1 | V175: 348.1053241 | W175: 18.61111111 | X175: 346.3734568 | Y175: - | Z175: - | AA175: 26.23191772
A176: 161 | B176: 23.4 | C176: 2 | D176: 1 | E176: 2 | F176: 6.5 | G176: 0.5833333333 | H176: 42.25 | I176: 1 | L176: - | M176: - | N176: 0 | O176: 0 | P176: 0 | Q176: 0 | R176: 274.625 | S176: =1/2*H176*$U$1494*$U$1495*$U$1496+IF(F176=0,0,一覧表!$C$37*一覧表!$C$18*9.8) -> 159.858 | T176: =(F176-F175)*一覧表!$C$18 -> 1353 | U176: 1 | V176: 549.25 | W176: 21.66666667 | X176: 469.4444444 | Y176: - | Z176: - | AA176: 30.53865048
A177: 162 | B177: 25.5 | C177: 3 | D177: 2 | E177: 3 | F177: 7.083333333 | G177: 0.5833333333 | H177: 50.17361111 | I177: 1 | L177: - | M177: - | N177: 0 | O177: 0 | P177: 0 | Q177: 0 | R177: 355.396412 | S177: =1/2*H177*$U$1494*$U$1495*$U$1496+IF(F177=0,0,一覧表!$C$37*一覧表!$C$18*9.8) -> 162.7105 | T177: =(F177-F176)*一覧表!$C$18 -> 861 | U177: 1 | V177: 710.7928241 | W177: 23.61111111 | X177: 557.4845679 | Y177: - | Z177: - | AA177: 23.41876568
A178: 163 | B178: 27.6 | C178: 3 | D178: 2 | E178: 3 | F178: 7.666666667 | G178: 0.5277777778 | H178: 58.77777778 | I178: 1 | L178: - | M178: - | N178: 0 | O178: 0 | P178: 0 | Q178: 0 | R178: 450.6296296 | S178: =1/2*H178*$U$1494*$U$1495*$U$1496+IF(F178=0,0,一覧表!$C$37*一覧表!$C$18*9.8) -> 165.808 | T178: =(F178-F177)*一覧表!$C$18 -> 861 | U178: 1 | V178: 901.2592593 | W178: 25.55555556 | X178: 653.0864198 | Y178: - | Z178: - | AA178: 25.34736991
A179: 164 | B179: 29.5 | C179: 3 | D179: 2 | E179: 3 | F179: 8.194444444 | G179: 0.4444444444 | H179: 67.14891975 | I179: 1 | L179: - | M179: - | N179: 0 | O179: 0 | P179: 0 | Q179: 0 | R179: 550.2480924 | S179: =1/2*H179*$U$1494*$U$1495*$U$1496+IF(F179=0,0,一覧表!$C$37*一覧表!$C$18*9.8) -> 168.8216111 | T179: =(F179-F178)*一覧表!$C$18 -> 779 | U179: 1 | V179: 1100.496185 | W179: 27.31481481 | X179: 746.0991084 | Y179: - | Z179: - | AA179: 27.09229755
A180: 165 | B180: 31.1 | C180: 3 | D180: 2 | E180: 3 | F180: 8.638888889 | G180: 0.2777777778 | H180: 74.63040123 | I180: 1 | L180: - | M180: - | N180: 0 | O180: 0 | P180: 0 | Q180: 0 | R180: 644.723744 | S180: =1/2*H180*$U$1494*$U$1495*$U$1496+IF(F180=0,0,一覧表!$C$37*一覧表!$C$18*9.8) -> 171.5149444 | T180: =(F180-F179)*一覧表!$C$18 -> 656 | U180: 1 | V180: 1289.447488 | W180: 28.7962963 | X180: 829.2266804 | Y180: - | Z180: - | AA180: 28.5617103
A181: 166 | B181: 32.1 | C181: 3 | D181: 2 | E181: 3 | F181: 8.916666667 | G181: 0.3055555556 | H181: 79.50694444 | I181: 1 | L181: - | M181: - | N181: 0 | O181: 0 | P181: 0 | Q181: 0 | R181: 708.9369213 | S181: =1/2*H181*$U$1494*$U$1495*$U$1496+IF(F181=0,0,一覧表!$C$37*一覧表!$C$18*9.8) -> 173.2705 | T181: =(F181-F180)*一覧表!$C$18 -> 410 | U181: 1 | V181: 1417.873843 | W181: 29.72222222 | X181: 883.4104938 | Y181: - | Z181: - | AA181: 29.48009327
A182: 167 | B182: 33.2 | C182: 3 | D182: 2 | E182: 3 | F182: 9.222222222 | G182: 0.5555555556 | H182: 85.04938272 | I182: 1 | L182: - | M182: - | N182: 0 | O182: 0 | P182: 0 | Q182: 0 | R182: 784.3443073 | S182: =1/2*H182*$U$1494*$U$1495*$U$1496+IF(F182=0,0,一覧表!$C$37*一覧表!$C$18*9.8) -> 175.2657778 | T182: =(F182-F181)*一覧表!$C$18 -> 451 | U182: 1 | V182: 1568.688615 | W182: 30.74074074 | X182: 944.9931413 | Y182: - | Z182: - | AA182: 30.49031453
A183: 168 | B183: 35.2 | C183: 3 | D183: 2 | E183: 3 | F183: 9.777777778 | G183: 0.5555555556 | H183: 95.60493827 | I183: 1 | L183: - | M183: - | N183: 0 | O183: 0 | P183: 0 | Q183: 0 | R183: 934.8038409 | S183: =1/2*H183*$U$1494*$U$1495*$U$1496+IF(F183=0,0,一覧表!$C$37*一覧表!$C$18*9.8) -> 179.0657778 | T183: =(F183-F182)*一覧表!$C$18 -> 820 | U183: 1 | V183: 1869.607682 | W183: 32.59259259 | X183: 1062.277092 | Y183: - | Z183: - | AA183: 32.32708047
A184: 169 | B184: 37.2 | C184: 3 | D184: 2 | E184: 4 | F184: 10.33333333 | G184: 0.2222222222 | H184: 106.7777778 | I184: 1 | L184: - | M184: - | N184: 0 | O184: 0 | P184: 0 | Q184: 0 | R184: 1103.37037 | S184: =1/2*H184*$U$1494*$U$1495*$U$1496+IF(F184=0,0,一覧表!$C$37*一覧表!$C$18*9.8) -> 183.088 | T184: =(F184-F183)*一覧表!$C$18 -> 820 | U184: 1 | V184: 2206.740741 | W184: 34.44444444 | X184: 1186.419753 | Y184: - | Z184: - | AA184: 34.16384641
A185: 170 | B185: 38 | C185: 3 | D185: 2 | E185: 4 | F185: 10.55555556 | G185: -0.1666666667 | H185: 111.4197531 | I185: 0 | K185: 1 | L185: - | M185: 111.4197531 | N185: 1 | O185: 111.4197531 | P185: 111.4197531 | Q185: 0 | R185: 1176.097394 | S185: =1/2*H185*$U$1494*$U$1495*$U$1496+IF(F185=0,0,一覧表!$C$37*一覧表!$C$18*9.8) -> 184.7591111 | T185: =(F185-F184)*一覧表!$C$18 -> 328 | U185: 1 | V185: 2352.194787 | W185: 35.18518519 | X185: 1237.997257 | Y185: - | Z185: 1237.997257 | AA185: 34.89855278
A186: 171 | B186: 37.4 | C186: 3 | D186: 2 | E186: 4 | F186: 10.38888889 | G186: -0.6388888889 | H186: 107.9290123 | I186: 0 | L186: - | M186: - | N186: 1 | O186: 107.9290123 | P186: 111.4197531 | Q186: 0 | R186: 1121.262517 | S186: =1/2*H186*$U$1494*$U$1495*$U$1496+IF(F186=0,0,一覧表!$C$37*一覧表!$C$18*9.8) -> 183.5024444 | T186: =(F186-F185)*一覧表!$C$18 -> -246 | U186: 0 | V186: 0 | W186: 34.62962963 | X186: 1199.211248 | Y186: - | Z186: - | AA186: 34.347523
A187: 172 | B187: 35.1 | C187: 3 | D187: 2 | E187: 4 | F187: 9.75 | G187: -1.138888889 | H187: 95.0625 | I187: 0 | L187: - | M187: - | N187: 1 | O187: 95.0625 | P187: 111.4197531 | Q187: 0 | R187: 926.859375 | S187: =1/2*H187*$U$1494*$U$1495*$U$1496+IF(F187=0,0,一覧表!$C$37*一覧表!$C$18*9.8) -> 178.8705 | T187: =(F187-F186)*一覧表!$C$18 -> -943 | U187: 0 | V187: 0 | W187: 32.5 | X187: 1056.25 | Y187: - | Z187: - | AA187: 32.23524217
A188: 173 | B188: 31 | C188: 3 | D188: 2 | E188: 4 | F188: 8.611111111 | G188: -1.083333333 | H188: 74.15123457 | I188: 0 | L188: - | M188: - | N188: 1 | O188: 74.15123457 | P188: 111.4197531 | Q188: 0 | R188: 638.5245199 | S188: =1/2*H188*$U$1494*$U$1495*$U$1496+IF(F188=0,0,一覧表!$C$37*一覧表!$C$18*9.8) -> 171.3424444 | T188: =(F188-F187)*一覧表!$C$18 -> -1681 | U188: 0 | V188: 0 | W188: 28.7037037 | X188: 823.9026063 | Y188: - | Z188: - | AA188: 28.46987201
A189: 174 | B189: 27.1 | C189: 3 | D189: 2 | E189: 3 | F189: 7.527777778 | G189: -0.5 | H189: 56.66743827 | I189: 0 | L189: - | M189: - | N189: 1 | O189: 56.66743827 | P189: 111.4197531 | Q189: 0 | R189: 426.5798825 | S189: =1/2*H189*$U$1494*$U$1495*$U$1496+IF(F189=0,0,一覧表!$C$37*一覧表!$C$18*9.8) -> 165.0482778 | T189: =(F189-F188)*一覧表!$C$18 -> -1599 | U189: 0 | V189: 0 | W189: 25.09259259 | X189: 629.638203 | Y189: - | Z189: - | AA189: 24.88817843
A190: 175 | B190: 25.3 | C190: 3 | D190: 2 | E190: 3 | F190: 7.027777778 | G190: -0.05555555556 | H190: 49.38966049 | I190: 0 | L190: - | M190: - | N190: 1 | O190: 49.38966049 | P190: 111.4197531 | Q190: 0 | R190: 347.0995585 | S190: =1/2*H190*$U$1494*$U$1495*$U$1496+IF(F190=0,0,一覧表!$C$37*一覧表!$C$18*9.8) -> 162.4282778 | T190: =(F190-F189)*一覧表!$C$18 -> -738 | U190: 0 | V190: 0 | W190: 23.42592593 | X190: 548.7740055 | Y190: - | Z190: - | AA190: 23.23508909
A191: 176 | B191: 25.1 | C191: 3 | D191: 2 | E191: 3 | F191: 6.972222222 | G191: 0.2222222222 | H191: 48.61188272 | I191: 1 | J191: 1 | L191: 48.61188272 | M191: - | N191: 1 | O191: 48.61188272 | P191: 62.80787037 | Q191: 62.80787037 | R191: 338.9328489 | S191: =1/2*H191*$U$1494*$U$1495*$U$1496+IF(F191=0,0,一覧表!$C$37*一覧表!$C$18*9.8) -> 162.1482778 | T191: =(F191-F190)*一覧表!$C$18 -> -82 | U191: 1 | V191: 677.8656979 | W191: 23.24074074 | X191: 540.1320302 | Y191: 540.1320302 | Z191: - | AA191: 23.05141249
A192: 177 | B192: 25.9 | C192: 3 | D192: 2 | E192: 3 | F192: 7.194444444 | G192: 0.5277777778 | H192: 51.76003086 | I192: 1 | L192: - | M192: - | N192: 0 | O192: 0 | P192: 0 | Q192: 0 | R192: 372.3846665 | S192: =1/2*H192*$U$1494*$U$1495*$U$1496+IF(F192=0,0,一覧表!$C$37*一覧表!$C$18*9.8) -> 163.2816111 | T192: =(F192-F191)*一覧表!$C$18 -> 328 | U192: 1 | V192: 744.769333 | W192: 23.98148148 | X192: 575.111454 | Y192: - | Z192: - | AA192: 23.78611887
A193: 178 | B193: 27.8 | C193: 3 | D193: 2 | E193: 3 | F193: 7.722222222 | G193: 0.3888888889 | H193: 59.63271605 | I193: 1 | L193: - | M193: - | N193: 0 | O193: 0 | P193: 0 | Q193: 0 | R193: 460.497085 | S193: =1/2*H193*$U$1494*$U$1495*$U$1496+IF(F193=0,0,一覧表!$C$37*一覧表!$C$18*9.8) -> 166.1157778 | T193: =(F193-F192)*一覧表!$C$18 -> 779 | U193: 1 | V193: 920.9941701 | W193: 25.74074074 | X193: 662.5857339 | Y193: - | Z193: - | AA193: 25.53104651
A194: 179 | B194: 29.2 | C194: 3 | D194: 2 | E194: 3 | F194: 8.111111111 | G194: 0.1111111111 | H194: 65.79012346 | I194: 1 | L194: - | M194: - | N194: 0 | O194: 0 | P194: 0 | Q194: 0 | R194: 533.6310014 | S194: =1/2*H194*$U$1494*$U$1495*$U$1496+IF(F194=0,0,一覧表!$C$37*一覧表!$C$18*9.8) -> 168.3324444 | T194: =(F194-F193)*一覧表!$C$18 -> 574 | U194: 1 | V194: 1067.262003 | W194: 27.03703704 | X194: 731.0013717 | Y194: - | Z194: - | AA194: 26.81678266
A195: 180 | B195: 29.6 | C195: 3 | D195: 2 | E195: 3 | F195: 8.222222222 | G195: -0.02777777778 | H195: 67.60493827 | I195: 0 | K195: 1 | L195: - | M195: 67.60493827 | N195: 1 | O195: 67.60493827 | P195: 67.60493827 | Q195: 0 | R195: 555.8628258 | S195: =1/2*H195*$U$1494*$U$1495*$U$1496+IF(F195=0,0,一覧表!$C$37*一覧表!$C$18*9.8) -> 168.9857778 | T195: =(F195-F194)*一覧表!$C$18 -> 164 | U195: 1 | V195: 1111.725652 | W195: 27.40740741 | X195: 751.1659808 | Y195: - | Z195: 751.1659808 | AA195: 27.18413585
A196: 181 | B196: 29.5 | C196: 3 | D196: 2 | E196: 3 | F196: 8.194444444 | G196: -0.08333333333 | H196: 67.14891975 | I196: 0 | L196: - | M196: - | N196: 1 | O196: 67.14891975 | P196: 67.60493827 | Q196: 0 | R196: 550.2480924 | S196: =1/2*H196*$U$1494*$U$1495*$U$1496+IF(F196=0,0,一覧表!$C$37*一覧表!$C$18*9.8) -> 168.8216111 | T196: =(F196-F195)*一覧表!$C$18 -> -41 | U196: 1 | V196: 1100.496185 | W196: 27.31481481 | X196: 746.0991084 | Y196: - | Z196: - | AA196: 27.09229755
A197: 182 | B197: 29.2 | C197: 3 | D197: 2 | E197: 3 | F197: 8.111111111 | G197: -0.25 | H197: 65.79012346 | I197: 0 | L197: - | M197: - | N197: 1 | O197: 65.79012346 | P197: 67.60493827 | Q197: 0 | R197: 533.6310014 | S197: =1/2*H197*$U$1494*$U$1495*$U$1496+IF(F197=0,0,一覧表!$C$37*一覧表!$C$18*9.8) -> 168.3324444 | T197: =(F197-F196)*一覧表!$C$18 -> -123 | U197: 1 | V197: 1067.262003 | W197: 27.03703704 | X197: 731.0013717 | Y197: - | Z197: - | AA197: 26.81678266
A198: 183 | B198: 28.3 | C198: 3 | D198: 2 | E198: 3 | F198: 7.861111111 | G198: -0.6111111111 | H198: 61.7970679 | I198: 0 | L198: - | M198: - | N198: 1 | O198: 61.7970679 | P198: 67.60493827 | Q198: 0 | R198: 485.7936171 | S198: =1/2*H198*$U$1494*$U$1495*$U$1496+IF(F198=0,0,一覧表!$C$37*一覧表!$C$18*9.8) -> 166.8949444 | T198: =(F198-F197)*一覧表!$C$18 -> -369 | U198: 0 | V198: 0 | W198: 26.2037037 | X198: 686.6340878 | Y198: - | Z198: - | AA198: 25.99023799
A199: 184 | B199: 26.1 | C199: 3 | D199: 2 | E199: 3 | F199: 7.25 | G199: -0.6944444444 | H199: 52.5625 | I199: 0 | L199: - | M199: - | N199: 1 | O199: 52.5625 | P199: 67.60493827 | Q199: 0 | R199: 381.078125 | S199: =1/2*H199*$U$1494*$U$1495*$U$1496+IF(F199=0,0,一覧表!$C$37*一覧表!$C$18*9.8) -> 163.5705 | T199: =(F199-F198)*一覧表!$C$18 -> -902 | U199: 0 | V199: 0 | W199: 24.16666667 | X199: 584.0277778 | Y199: - | Z199: - | AA199: 23.96979546
A200: 185 | B200: 23.6 | C200: 3 | D200: 2 | E200: 3 | F200: 6.555555556 | G200: -0.7222222222 | H200: 42.97530864 | I200: 0 | L200: - | M200: - | N200: 1 | O200: 42.97530864 | P200: 67.60493827 | Q200: 0 | R200: 281.7270233 | S200: =1/2*H200*$U$1494*$U$1495*$U$1496+IF(F200=0,0,一覧表!$C$37*一覧表!$C$18*9.8) -> 160.1191111 | T200: =(F200-F199)*一覧表!$C$18 -> -1025 | U200: 0 | V200: 0 | W200: 21.85185185 | X200: 477.5034294 | Y200: - | Z200: - | AA200: 21.67383804
A201: 186 | B201: 21 | C201: 3 | D201: 2 | E201: 3 | F201: 5.833333333 | G201: -0.5833333333 | H201: 34.02777778 | I201: 0 | L201: - | M201: - | N201: 1 | O201: 34.02777778 | P201: 67.60493827 | Q201: 0 | R201: 198.4953704 | S201: =1/2*H201*$U$1494*$U$1495*$U$1496+IF(F201=0,0,一覧表!$C$37*一覧表!$C$18*9.8) -> 156.898 | T201: =(F201-F200)*一覧表!$C$18 -> -1066 | U201: 0 | V201: 0 | W201: 19.44444444 | X201: 378.0864198 | Y201: - | Z201: - | AA201: 19.28604233
A202: 187 | B202: 18.9 | C202: 2 | D202: 2 | E202: 2 | F202: 5.25 | G202: -0.5 | H202: 27.5625 | I202: 0 | L202: - | M202: - | N202: 1 | O202: 27.5625 | P202: 67.60493827 | Q202: 0 | R202: 144.703125 | S202: =1/2*H202*$U$1494*$U$1495*$U$1496+IF(F202=0,0,一覧表!$C$37*一覧表!$C$18*9.8) -> 154.5705 | T202: =(F202-F201)*一覧表!$C$18 -> -861 | U202: 0 | V202: 0 | W202: 17.5 | X202: 306.25 | Y202: - | Z202: - | AA202: 24.66583308
... 1295 more rows

Sheet JC08
AB1: トランスミッション前提条件
AB2: 変速位置 | AC2: 1 | AD2: 2 | AE2: 3 | AF2: 4 | AG2: 5 | AH2: 6
AB3: 変速比 | AC3: 3.6 | AD3: 2.16 | AE3: 1.52 | AF3: 1.2 | AG3: 1 | AH3: 0.76
AB4: 最終減速比 | AC4: 4.1
AB6: エンジンのアイドリング前提条件
AB7: 停止時0km/h(rpm) | AD7: 800
AB9: タイヤ前提条件
AB10: 外径(m) | AD10: 0.6
A11: 道路運送車両の保安基準の細目を定める告示によるJC08モード表 | F11: モード表から算出される各種ﾊﾟﾗﾒｰﾀ
AB12: アイドリング回転数の1速時の車両速度(m/s) ※計算でこれより小さい速度になった時はアイドリング回転数とする | AD12: =AD7/(AC3*AC4)*PI()*AD10/60 -> 1.702760246
A13: 経過 時間 | C13: 標準変速位置
B14: 速度 | C14: A | D14: B | E14: C | F14: 速度 | G14: 速度変化 | H14: (速度)2 | I14: 加速:1 | J14: 加速開始 | K14: 加速終了 | L14: (加速開始時の | M14: (加速終了時の | N14: 減速区間 | O14: 減速区間 | P14: 減速終点時 | Q14: 減速終点時 | R14: 空気抵抗仕事係数 | S14: 空気抵抗力+転がり抵抗 | T14: 車両に加わっている力 | U14: 空気抵抗+転がり抵抗で | V14: 車両が加減速時に必要な | W14: 角速度 | X14: (角速度)2 | Y14: (加速開始時の | Z14: (加速終了時の | AA14: エンジン回転数
A15: [秒] | B15: [km/h] | F15: [m/s] | G15: (m/s) | H15: [m/s]2 | I15: 減速:0 | J15: 時点 | K15: 時点 | L15: 速度v)2 | M15: 速度v')2 | O15: v2 | P15: v'2-v2 | Q15: v'2-v2 | R15: (速度Ｖ)2×距離L | S15: Ffriction+Fair［N］ | T15: mα[N] | U15: 減速が相殺できない場合:1 | V15: 空気抵抗分の仕事量 | W15: ω(rad/s) | X15: [rad/s]2 | Y15: 角速度ω)2 | Z15: 角速度ω')2 | AA15: [round/s]
A16: 1 | B16: 0 | C16: N | D16: N | E16: N | F16: =B16*1000/3600 -> 0 | G16: =F17-F16 -> 0 | H16: =F16*F16 -> 0 | I16: =IF(F16<=F17,1,0) -> 1 | J16: 1 | L16: =IF(J16="","-",J16*H16) -> 0 | M16: =IF(K16="","-",K16*H16) -> - | N16: 0 | O16: =N16*H16 -> 0 | P16: 0 | Q16: =IF(J16=1,P16,0) -> 0 | R16: =H16*F16 -> 0 | S16: =1/2*H16*$U$1221*$U$1222*$U$1223+IF(F16=0,0,一覧表!$C$37*一覧表!$C$18*9.8) -> 0 | T16: 0 | U16: =IF(S16<=-T16,0,1) -> 0 | V16: =IF(U16=1,R16*$U$1221,0) -> 0 | W16: =F16/($AD$10/2) -> 0 | X16: =W16*W16 -> 0 | Y16: =IF(J16="","-",X16*J16) -> 0 | Z16: =IF(K16="","-",X16*K16) -> - | AA16: =IF(OR(F16<$AD$12,C16="N"),$AD$7/60,IF(C16=1,$AC$3,IF(C16=2,$AD$3,IF(C16=3,$AE$3,IF(C16=4,$AF$3,IF(C16=5,$AG$3,$AH$3)))))*$AC$4*F16/(PI()*$AD$10)) -> 13.33333333
A17: 2 | B17: 0 | C17: N | D17: N | E17: N | F17: =B17*1000/3600 -> 0 | G17: =F18-F17 -> 0 | H17: =F17*F17 -> 0 | I17: =IF(F17<=F18,1,0) -> 1 | J17: =IF(I16<I17,1,"") ->  | K17: =IF(I16>I17,1,"") ->  | L17: =IF(J17="","-",J17*H17) -> - | M17: - | N17: =IF(J17=1,1,IF(F17>F18,1,0)) -> 0 | O17: =N17*H17 -> 0 | P17: =IF(O17>=O16,O17,N17*P16)-I17*O17 -> 0 | Q17: 0 | R17: 0 | S17: =1/2*H17*$U$1221*$U$1222*$U$1223+IF(F17=0,0,一覧表!$C$37*一覧表!$C$18*9.8) -> 0 | T17: =(F17-F16)*一覧表!$C$18 -> 0 | U17: =IF(S17<=-T17,0,1) -> 0 | V17: =IF(U17=1,R17*$U$1221,0) -> 0 | W17: =IF(V17=1,S17*$U$1494,0) -> 0 | X17: 0 | Y17: - | Z17: - | AA17: 13.33333333
A18: 3 | B18: 0 | C18: N | D18: N | E18: N | F18: 0 | G18: =F19-F18 -> 0 | H18: 0 | I18: =IF(F18<=F19,1,0) -> 1 | K18: =IF(I17>I18,1,"") ->  | L18: - | M18: - | N18: 0 | O18: 0 | P18: =IF(O18>=O17,O18,N18*P17)-I18*O18 -> 0 | Q18: 0 | R18: 0 | S18: =1/2*H18*$U$1221*$U$1222*$U$1223+IF(F18=0,0,一覧表!$C$37*一覧表!$C$18*9.8) -> 0 | T18: =(F18-F17)*一覧表!$C$18 -> 0 | U18: =IF(S18<=-T18,0,1) -> 0 | V18: =IF(U18=1,R18*$U$1221,0) -> 0 | W18: 0 | X18: 0 | Y18: - | Z18: - | AA18: 13.33333333
A19: 4 | B19: 0 | C19: N | D19: N | E19: N | F19: 0 | G19: 0 | H19: 0 | I19: 1 | L19: - | M19: - | N19: 0 | O19: 0 | P19: 0 | Q19: 0 | R19: 0 | S19: =1/2*H19*$U$1221*$U$1222*$U$1223+IF(F19=0,0,一覧表!$C$37*一覧表!$C$18*9.8) -> 0 | T19: =(F19-F18)*一覧表!$C$18 -> 0 | U19: 0 | V19: 0 | W19: =F19/($AD$10/2) -> 0 | X19: 0 | Y19: - | Z19: - | AA19: 13.33333333
A20: 5 | B20: 0 | C20: N | D20: N | E20: N | F20: 0 | G20: 0 | H20: 0 | I20: 1 | L20: - | M20: - | N20: 0 | O20: 0 | P20: 0 | Q20: 0 | R20: 0 | S20: =1/2*H20*$U$1221*$U$1222*$U$1223+IF(F20=0,0,一覧表!$C$37*一覧表!$C$18*9.8) -> 0 | T20: =(F20-F19)*一覧表!$C$18 -> 0 | U20: 0 | V20: 0 | W20: 0 | X20: 0 | Y20: - | Z20: - | AA20: 13.33333333
A21: 6 | B21: 0 | C21: N | D21: N | E21: N | F21: 0 | G21: 0 | H21: 0 | I21: 1 | L21: - | M21: - | N21: 0 | O21: 0 | P21: 0 | Q21: 0 | R21: 0 | S21: =1/2*H21*$U$1221*$U$1222*$U$1223+IF(F21=0,0,一覧表!$C$37*一覧表!$C$18*9.8) -> 0 | T21: =(F21-F20)*一覧表!$C$18 -> 0 | U21: 0 | V21: 0 | W21: 0 | X21: 0 | Y21: - | Z21: - | AA21: 13.33333333
A22: 7 | B22: 0 | C22: N | D22: N | E22: N | F22: 0 | G22: =F23-F22 -> 0 | H22: 0 | I22: 1 | L22: - | M22: - | N22: 0 | O22: 0 | P22: 0 | Q22: 0 | R22: 0 | S22: =1/2*H22*$U$1221*$U$1222*$U$1223+IF(F22=0,0,一覧表!$C$37*一覧表!$C$18*9.8) -> 0 | T22: =(F22-F21)*一覧表!$C$18 -> 0 | U22: 0 | V22: 0 | W22: 0 | X22: 0 | Y22: - | Z22: - | AA22: 13.33333333
A23: 8 | B23: 0 | C23: N | D23: N | E23: N | F23: 0 | G23: =F24-F23 -> 0 | H23: 0 | I23: 1 | L23: - | M23: - | N23: 0 | O23: 0 | P23: 0 | Q23: 0 | R23: 0 | S23: =1/2*H23*$U$1221*$U$1222*$U$1223+IF(F23=0,0,一覧表!$C$37*一覧表!$C$18*9.8) -> 0 | T23: =(F23-F22)*一覧表!$C$18 -> 0 | U23: 0 | V23: 0 | W23: 0 | X23: 0 | Y23: - | Z23: - | AA23: 13.33333333
A24: 9 | B24: 0 | C24: N | D24: N | E24: N | F24: 0 | G24: 0 | H24: 0 | I24: 1 | L24: - | M24: - | N24: 0 | O24: 0 | P24: 0 | Q24: 0 | R24: 0 | S24: =1/2*H24*$U$1221*$U$1222*$U$1223+IF(F24=0,0,一覧表!$C$37*一覧表!$C$18*9.8) -> 0 | T24: =(F24-F23)*一覧表!$C$18 -> 0 | U24: 0 | V24: 0 | W24: 0 | X24: 0 | Y24: - | Z24: - | AA24: 13.33333333
A25: 10 | B25: 0 | C25: N | D25: N | E25: N | F25: 0 | G25: 0 | H25: 0 | I25: 1 | L25: - | M25: - | N25: 0 | O25: 0 | P25: 0 | Q25: 0 | R25: 0 | S25: =1/2*H25*$U$1221*$U$1222*$U$1223+IF(F25=0,0,一覧表!$C$37*一覧表!$C$18*9.8) -> 0 | T25: =(F25-F24)*一覧表!$C$18 -> 0 | U25: 0 | V25: 0 | W25: 0 | X25: 0 | Y25: - | Z25: - | AA25: 13.33333333
A26: 11 | B26: 0 | C26: N | D26: N | E26: N | F26: 0 | G26: 0 | H26: 0 | I26: 1 | L26: - | M26: - | N26: 0 | O26: 0 | P26: 0 | Q26: 0 | R26: 0 | S26: =1/2*H26*$U$1221*$U$1222*$U$1223+IF(F26=0,0,一覧表!$C$37*一覧表!$C$18*9.8) -> 0 | T26: =(F26-F25)*一覧表!$C$18 -> 0 | U26: 0 | V26: 0 | W26: 0 | X26: 0 | Y26: - | Z26: - | AA26: 13.33333333
A27: 12 | B27: 0 | C27: N | D27: N | E27: N | F27: 0 | G27: 0 | H27: 0 | I27: 1 | L27: - | M27: - | N27: 0 | O27: 0 | P27: 0 | Q27: 0 | R27: 0 | S27: =1/2*H27*$U$1221*$U$1222*$U$1223+IF(F27=0,0,一覧表!$C$37*一覧表!$C$18*9.8) -> 0 | T27: =(F27-F26)*一覧表!$C$18 -> 0 | U27: 0 | V27: 0 | W27: 0 | X27: 0 | Y27: - | Z27: - | AA27: 13.33333333
A28: 13 | B28: 0 | C28: N | D28: N | E28: N | F28: 0 | G28: 0 | H28: 0 | I28: 1 | L28: - | M28: - | N28: 0 | O28: 0 | P28: 0 | Q28: 0 | R28: 0 | S28: =1/2*H28*$U$1221*$U$1222*$U$1223+IF(F28=0,0,一覧表!$C$37*一覧表!$C$18*9.8) -> 0 | T28: =(F28-F27)*一覧表!$C$18 -> 0 | U28: 0 | V28: 0 | W28: 0 | X28: 0 | Y28: - | Z28: - | AA28: 13.33333333
A29: 14 | B29: 0 | C29: N | D29: N | E29: N | F29: 0 | G29: 0 | H29: 0 | I29: 1 | L29: - | M29: - | N29: 0 | O29: 0 | P29: 0 | Q29: 0 | R29: 0 | S29: =1/2*H29*$U$1221*$U$1222*$U$1223+IF(F29=0,0,一覧表!$C$37*一覧表!$C$18*9.8) -> 0 | T29: =(F29-F28)*一覧表!$C$18 -> 0 | U29: 0 | V29: 0 | W29: 0 | X29: 0 | Y29: - | Z29: - | AA29: 13.33333333
A30: 15 | B30: 0 | C30: N | D30: N | E30: N | F30: 0 | G30: 0 | H30: 0 | I30: 1 | L30: - | M30: - | N30: 0 | O30: 0 | P30: 0 | Q30: 0 | R30: 0 | S30: =1/2*H30*$U$1221*$U$1222*$U$1223+IF(F30=0,0,一覧表!$C$37*一覧表!$C$18*9.8) -> 0 | T30: =(F30-F29)*一覧表!$C$18 -> 0 | U30: 0 | V30: 0 | W30: 0 | X30: 0 | Y30: - | Z30: - | AA30: 13.33333333
A31: 16 | B31: 0 | C31: N | D31: N | E31: N | F31: 0 | G31: 0 | H31: 0 | I31: 1 | L31: - | M31: - | N31: 0 | O31: 0 | P31: 0 | Q31: 0 | R31: 0 | S31: =1/2*H31*$U$1221*$U$1222*$U$1223+IF(F31=0,0,一覧表!$C$37*一覧表!$C$18*9.8) -> 0 | T31: =(F31-F30)*一覧表!$C$18 -> 0 | U31: 0 | V31: 0 | W31: 0 | X31: 0 | Y31: - | Z31: - | AA31: 13.33333333
A32: 17 | B32: 0 | C32: N | D32: N | E32: N | F32: 0 | G32: 0 | H32: 0 | I32: 1 | L32: - | M32: - | N32: 0 | O32: 0 | P32: 0 | Q32: 0 | R32: 0 | S32: =1/2*H32*$U$1221*$U$1222*$U$1223+IF(F32=0,0,一覧表!$C$37*一覧表!$C$18*9.8) -> 0 | T32: =(F32-F31)*一覧表!$C$18 -> 0 | U32: 0 | V32: 0 | W32: 0 | X32: 0 | Y32: - | Z32: - | AA32: 13.33333333
A33: 18 | B33: 0 | C33: N | D33: N | E33: N | F33: 0 | G33: 0 | H33: 0 | I33: 1 | L33: - | M33: - | N33: 0 | O33: 0 | P33: 0 | Q33: 0 | R33: 0 | S33: =1/2*H33*$U$1221*$U$1222*$U$1223+IF(F33=0,0,一覧表!$C$37*一覧表!$C$18*9.8) -> 0 | T33: =(F33-F32)*一覧表!$C$18 -> 0 | U33: 0 | V33: 0 | W33: 0 | X33: 0 | Y33: - | Z33: - | AA33: 13.33333333
A34: 19 | B34: 0 | C34: N | D34: N | E34: N | F34: 0 | G34: 0 | H34: 0 | I34: 1 | L34: - | M34: - | N34: 0 | O34: 0 | P34: 0 | Q34: 0 | R34: 0 | S34: =1/2*H34*$U$1221*$U$1222*$U$1223+IF(F34=0,0,一覧表!$C$37*一覧表!$C$18*9.8) -> 0 | T34: =(F34-F33)*一覧表!$C$18 -> 0 | U34: 0 | V34: 0 | W34: 0 | X34: 0 | Y34: - | Z34: - | AA34: 13.33333333
A35: 20 | B35: 0 | C35: N | D35: N | E35: N | F35: 0 | G35: 0 | H35: 0 | I35: 1 | L35: - | M35: - | N35: 0 | O35: 0 | P35: 0 | Q35: 0 | R35: 0 | S35: =1/2*H35*$U$1221*$U$1222*$U$1223+IF(F35=0,0,一覧表!$C$37*一覧表!$C$18*9.8) -> 0 | T35: =(F35-F34)*一覧表!$C$18 -> 0 | U35: 0 | V35: 0 | W35: 0 | X35: 0 | Y35: - | Z35: - | AA35: 13.33333333
A36: 21 | B36: 0 | C36: 1 | D36: 1 | E36: 1 | F36: 0 | G36: 0 | H36: 0 | I36: 1 | L36: - | M36: - | N36: 0 | O36: 0 | P36: 0 | Q36: 0 | R36: 0 | S36: =1/2*H36*$U$1221*$U$1222*$U$1223+IF(F36=0,0,一覧表!$C$37*一覧表!$C$18*9.8) -> 0 | T36: =(F36-F35)*一覧表!$C$18 -> 0 | U36: 0 | V36: 0 | W36: 0 | X36: 0 | Y36: - | Z36: - | AA36: 13.33333333
A37: 22 | B37: 0 | C37: 1 | D37: 1 | E37: 1 | F37: 0 | G37: 0 | H37: 0 | I37: 1 | L37: - | M37: - | N37: 0 | O37: 0 | P37: 0 | Q37: 0 | R37: 0 | S37: =1/2*H37*$U$1221*$U$1222*$U$1223+IF(F37=0,0,一覧表!$C$37*一覧表!$C$18*9.8) -> 0 | T37: =(F37-F36)*一覧表!$C$18 -> 0 | U37: 0 | V37: 0 | W37: 0 | X37: 0 | Y37: - | Z37: - | AA37: 13.33333333
A38: 23 | B38: 0 | C38: 1 | D38: 1 | E38: 1 | F38: 0 | G38: 0 | H38: 0 | I38: 1 | L38: - | M38: - | N38: 0 | O38: 0 | P38: 0 | Q38: 0 | R38: 0 | S38: =1/2*H38*$U$1221*$U$1222*$U$1223+IF(F38=0,0,一覧表!$C$37*一覧表!$C$18*9.8) -> 0 | T38: =(F38-F37)*一覧表!$C$18 -> 0 | U38: 0 | V38: 0 | W38: 0 | X38: 0 | Y38: - | Z38: - | AA38: 13.33333333
A39: 24 | B39: 0 | C39: 1 | D39: 1 | E39: 1 | F39: 0 | G39: 0 | H39: 0 | I39: 1 | L39: - | M39: - | N39: 0 | O39: 0 | P39: 0 | Q39: 0 | R39: 0 | S39: =1/2*H39*$U$1221*$U$1222*$U$1223+IF(F39=0,0,一覧表!$C$37*一覧表!$C$18*9.8) -> 0 | T39: =(F39-F38)*一覧表!$C$18 -> 0 | U39: 0 | V39: 0 | W39: 0 | X39: 0 | Y39: - | Z39: - | AA39: 13.33333333
A40: 25 | B40: 0 | C40: 1 | D40: 1 | E40: 1 | F40: 0 | G40: 0 | H40: 0 | I40: 1 | L40: - | M40: - | N40: 0 | O40: 0 | P40: 0 | Q40: 0 | R40: 0 | S40: =1/2*H40*$U$1221*$U$1222*$U$1223+IF(F40=0,0,一覧表!$C$37*一覧表!$C$18*9.8) -> 0 | T40: =(F40-F39)*一覧表!$C$18 -> 0 | U40: 0 | V40: 0 | W40: 0 | X40: 0 | Y40: - | Z40: - | AA40: 13.33333333
A41: 26 | B41: 0 | C41: 1 | D41: 1 | E41: 1 | F41: 0 | G41: 1.361111111 | H41: 0 | I41: 1 | L41: - | M41: - | N41: 0 | O41: 0 | P41: 0 | Q41: 0 | R41: 0 | S41: =1/2*H41*$U$1221*$U$1222*$U$1223+IF(F41=0,0,一覧表!$C$37*一覧表!$C$18*9.8) -> 0 | T41: =(F41-F40)*一覧表!$C$18 -> 0 | U41: 0 | V41: 0 | W41: 0 | X41: 0 | Y41: - | Z41: - | AA41: 13.33333333
A42: 27 | B42: 4.9 | C42: 1 | D42: 1 | E42: 1 | F42: 1.361111111 | G42: 1.361111111 | H42: 1.852623457 | I42: 1 | L42: - | M42: - | N42: 0 | O42: 0 | P42: 0 | Q42: 0 | R42: 2.521626372 | S42: =1/2*H42*$U$1221*$U$1222*$U$1223+IF(F42=0,0,一覧表!$C$37*一覧表!$C$18*9.8) -> 145.3149444 | T42: =(F42-F41)*一覧表!$C$18 -> 2009 | U42: 1 | V42: 5.043252743 | W42: 4.537037037 | X42: 20.58470508 | Y42: - | Z42: - | AA42: 13.33333333
A43: 28 | B43: 9.8 | C43: 1 | D43: 1 | E43: 1 | F43: 2.722222222 | G43: 1.111111111 | H43: 7.410493827 | I43: 1 | L43: - | M43: - | N43: 0 | O43: 0 | P43: 0 | Q43: 0 | R43: 20.17301097 | S43: =1/2*H43*$U$1221*$U$1222*$U$1223+IF(F43=0,0,一覧表!$C$37*一覧表!$C$18*9.8) -> 147.3157778 | T43: =(F43-F42)*一覧表!$C$18 -> 2009 | U43: 1 | V43: 40.34602195 | W43: 9.074074074 | X43: 82.3388203 | Y43: - | Z43: - | AA43: 21.31615204
A44: 29 | B44: 13.8 | C44: 1 | D44: 1 | E44: 1 | F44: 3.833333333 | G44: 0.7777777778 | H44: 14.69444444 | I44: 1 | L44: - | M44: - | N44: 0 | O44: 0 | P44: 0 | Q44: 0 | R44: 56.3287037 | S44: =1/2*H44*$U$1221*$U$1222*$U$1223+IF(F44=0,0,一覧表!$C$37*一覧表!$C$18*9.8) -> 149.938 | T44: =(F44-F43)*一覧表!$C$18 -> 1640 | U44: 1 | V44: 112.6574074 | W44: 12.77777778 | X44: 163.2716049 | Y44: - | Z44: - | AA44: 30.01662227
A45: 30 | B45: 16.6 | C45: 1 | D45: 2 | E45: 1 | F45: 4.611111111 | G45: 0.5 | H45: 21.26234568 | I45: 1 | L45: - | M45: - | N45: 0 | O45: 0 | P45: 0 | Q45: 0 | R45: 98.04303841 | S45: =1/2*H45*$U$1221*$U$1222*$U$1223+IF(F45=0,0,一覧表!$C$37*一覧表!$C$18*9.8) -> 152.3024444 | T45: =(F45-F44)*一覧表!$C$18 -> 1148 | U45: 1 | V45: 196.0860768 | W45: 15.37037037 | X45: 236.2482853 | Y45: - | Z45: - | AA45: 36.10695142
A46: 31 | B46: 18.4 | C46: 1 | D46: 2 | E46: 1 | F46: 5.111111111 | G46: 0.4722222222 | H46: 26.12345679 | I46: 1 | L46: - | M46: - | N46: 0 | O46: 0 | P46: 0 | Q46: 0 | R46: 133.5198903 | S46: =1/2*H46*$U$1221*$U$1222*$U$1223+IF(F46=0,0,一覧表!$C$37*一覧表!$C$18*9.8) -> 154.0524444 | T46: =(F46-F45)*一覧表!$C$18 -> 738 | U46: 1 | V46: 267.0397805 | W46: 17.03703704 | X46: 290.260631 | Y46: - | Z46: - | AA46: 40.02216302
A47: 32 | B47: 20.1 | C47: 2 | D47: 2 | E47: 1 | F47: 5.583333333 | G47: 0.4444444444 | H47: 31.17361111 | I47: 1 | L47: - | M47: - | N47: 0 | O47: 0 | P47: 0 | Q47: 0 | R47: 174.052662 | S47: =1/2*H47*$U$1221*$U$1222*$U$1223+IF(F47=0,0,一覧表!$C$37*一覧表!$C$18*9.8) -> 155.8705 | T47: =(F47-F46)*一覧表!$C$18 -> 697 | U47: 1 | V47: 348.1053241 | W47: 18.61111111 | X47: 346.3734568 | Y47: - | Z47: - | AA47: 26.23191772
A48: 33 | B48: 21.7 | C48: 2 | D48: 2 | E48: 1 | F48: 6.027777778 | G48: 0.2777777778 | H48: 36.33410494 | I48: 1 | L48: - | M48: - | N48: 0 | O48: 0 | P48: 0 | Q48: 0 | R48: 219.0139103 | S48: =1/2*H48*$U$1221*$U$1222*$U$1223+IF(F48=0,0,一覧表!$C$37*一覧表!$C$18*9.8) -> 157.7282778 | T48: =(F48-F47)*一覧表!$C$18 -> 656 | U48: 1 | V48: 438.0278206 | W48: 20.09259259 | X48: 403.7122771 | Y48: - | Z48: - | AA48: 28.32003057
A49: 34 | B49: 22.7 | C49: 2 | D49: 2 | E49: 2 | F49: 6.305555556 | G49: 0.2222222222 | H49: 39.76003086 | I49: 1 | L49: - | M49: - | N49: 0 | O49: 0 | P49: 0 | Q49: 0 | R49: 250.7090835 | S49: =1/2*H49*$U$1221*$U$1222*$U$1223+IF(F49=0,0,一覧表!$C$37*一覧表!$C$18*9.8) -> 158.9616111 | T49: =(F49-F48)*一覧表!$C$18 -> 410 | U49: 1 | V49: 501.418167 | W49: 21.01851852 | X49: 441.7781207 | Y49: - | Z49: - | AA49: 29.62510111
A50: 35 | B50: 23.5 | C50: 2 | D50: 2 | E50: 2 | F50: 6.527777778 | G50: 0.3333333333 | H50: 42.61188272 | I50: 1 | L50: - | M50: - | N50: 0 | O50: 0 | P50: 0 | Q50: 0 | R50: 278.1609011 | S50: =1/2*H50*$U$1221*$U$1222*$U$1223+IF(F50=0,0,一覧表!$C$37*一覧表!$C$18*9.8) -> 159.9882778 | T50: =(F50-F49)*一覧表!$C$18 -> 328 | U50: 1 | V50: 556.3218021 | W50: 21.75925926 | X50: 473.4653635 | Y50: - | Z50: - | AA50: 30.66915753
A51: 36 | B51: 24.7 | C51: 2 | D51: 2 | E51: 2 | F51: 6.861111111 | G51: 0.3888888889 | H51: 47.07484568 | I51: 1 | L51: - | M51: - | N51: 0 | O51: 0 | P51: 0 | Q51: 0 | R51: 322.9857467 | S51: =1/2*H51*$U$1221*$U$1222*$U$1223+IF(F51=0,0,一覧表!$C$37*一覧表!$C$18*9.8) -> 161.5949444 | T51: =(F51-F50)*一覧表!$C$18 -> 492 | U51: 1 | V51: 645.9714935 | W51: 22.87037037 | X51: 523.0538409 | Y51: - | Z51: - | AA51: 32.23524217
A52: 37 | B52: 26.1 | C52: 2 | D52: 2 | E52: 2 | F52: 7.25 | G52: 0.4166666667 | H52: 52.5625 | I52: 1 | L52: - | M52: - | N52: 0 | O52: 0 | P52: 0 | Q52: 0 | R52: 381.078125 | S52: =1/2*H52*$U$1221*$U$1222*$U$1223+IF(F52=0,0,一覧表!$C$37*一覧表!$C$18*9.8) -> 163.5705 | T52: =(F52-F51)*一覧表!$C$18 -> 574 | U52: 1 | V52: 762.15625 | W52: 24.16666667 | X52: 584.0277778 | Y52: - | Z52: - | AA52: 34.06234092
A53: 38 | B53: 27.6 | C53: 2 | D53: 2 | E53: 2 | F53: 7.666666667 | G53: 0.6388888889 | H53: 58.77777778 | I53: 1 | L53: - | M53: - | N53: 0 | O53: 0 | P53: 0 | Q53: 0 | R53: 450.6296296 | S53: =1/2*H53*$U$1221*$U$1222*$U$1223+IF(F53=0,0,一覧表!$C$37*一覧表!$C$18*9.8) -> 165.808 | T53: =(F53-F52)*一覧表!$C$18 -> 615 | U53: 1 | V53: 901.2592593 | W53: 25.55555556 | X53: 653.0864198 | Y53: - | Z53: - | AA53: 36.01994672
A54: 39 | B54: 29.9 | C54: 2 | D54: 3 | E54: 2 | F54: 8.305555556 | G54: 0.8055555556 | H54: 68.98225309 | I54: 1 | L54: - | M54: - | N54: 0 | O54: 0 | P54: 0 | Q54: 0 | R54: 572.9359354 | S54: =1/2*H54*$U$1221*$U$1222*$U$1223+IF(F54=0,0,一覧表!$C$37*一覧表!$C$18*9.8) -> 169.4816111 | T54: =(F54-F53)*一覧表!$C$18 -> 943 | U54: 1 | V54: 1145.871871 | W54: 27.68518519 | X54: 766.4694787 | Y54: - | Z54: - | AA54: 39.02160895
A55: 40 | B55: 32.8 | C55: 2 | D55: 3 | E55: 2 | F55: 9.111111111 | G55: 1.194444444 | H55: 83.01234568 | I55: 1 | L55: - | M55: - | N55: 0 | O55: 0 | P55: 0 | Q55: 0 | R55: 756.3347051 | S55: =1/2*H55*$U$1221*$U$1222*$U$1223+IF(F55=0,0,一覧表!$C$37*一覧表!$C$18*9.8) -> 174.5324444 | T55: =(F55-F54)*一覧表!$C$18 -> 1189 | U55: 1 | V55: 1512.66941 | W55: 30.37037037 | X55: 922.3593964 | Y55: - | Z55: - | AA55: 42.80631349
A56: 41 | B56: 37.1 | C56: 3 | D56: 3 | E56: 2 | F56: 10.30555556 | G56: 0.1944444444 | H56: 106.2044753 | I56: =IF(F56<=F57,1,0) -> 1 | L56: - | M56: - | N56: 0 | O56: 0 | P56: 0 | Q56: 0 | R56: 1094.496121 | S56: =1/2*H56*$U$1221*$U$1222*$U$1223+IF(F56=0,0,一覧表!$C$37*一覧表!$C$18*9.8) -> 182.8816111 | T56: =(F56-F55)*一覧表!$C$18 -> 1763 | U56: 1 | V56: 2188.992241 | W56: 34.35185185 | X56: 1180.049726 | Y56: - | Z56: - | AA56: 34.07200811
A57: 42 | B57: 37.8 | C57: 3 | D57: 3 | E57: 3 | F57: 10.5 | G57: -0.3333333333 | H57: 110.25 | I57: =IF(F57<=F58,1,0) -> 0 | K57: =IF(I56>I57,1,"") -> 1 | L57: - | M57: 110.25 | N57: 1 | O57: 110.25 | P57: 110.25 | Q57: 0 | R57: 1157.625 | S57: =1/2*H57*$U$1221*$U$1222*$U$1223+IF(F57=0,0,一覧表!$C$37*一覧表!$C$18*9.8) -> 184.338 | T57: =(F57-F56)*一覧表!$C$18 -> 287 | U57: 1 | V57: 2315.25 | W57: 35 | X57: 1225 | Y57: - | Z57: 1225 | AA57: 34.71487619
A58: 43 | B58: 36.6 | C58: 3 | D58: 3 | E58: 3 | F58: 10.16666667 | G58: -0.02777777778 | H58: 103.3611111 | I58: 0 | L58: - | M58: - | N58: 1 | O58: =N58*H58 -> 103.3611111 | P58: 110.25 | Q58: 0 | R58: 1050.837963 | S58: =1/2*H58*$U$1221*$U$1222*$U$1223+IF(F58=0,0,一覧表!$C$37*一覧表!$C$18*9.8) -> 181.858 | T58: =(F58-F57)*一覧表!$C$18 -> -492 | U58: 0 | V58: 0 | W58: 33.88888889 | X58: 1148.45679 | Y58: - | Z58: - | AA58: 33.61281663
A59: 44 | B59: 36.5 | C59: 3 | D59: 3 | E59: 3 | F59: 10.13888889 | G59: 0.3333333333 | H59: 102.7970679 | I59: 1 | J59: =IF(I58<I59,1,"") -> 1 | L59: 102.7970679 | M59: - | N59: 1 | O59: 102.7970679 | P59: 7.452932099 | Q59: 7.452932099 | R59: 1042.24805 | S59: =1/2*H59*$U$1221*$U$1222*$U$1223+IF(F59=0,0,一覧表!$C$37*一覧表!$C$18*9.8) -> 181.6549444 | T59: =(F59-F58)*一覧表!$C$18 -> -41 | U59: 1 | V59: 2084.496099 | W59: 33.7962963 | X59: 1142.189643 | Y59: 1142.189643 | Z59: - | AA59: 33.52097833
A60: 45 | B60: 37.7 | C60: 3 | D60: 3 | E60: 3 | F60: 10.47222222 | G60: 0.3333333333 | H60: 109.6674383 | I60: 1 | J60: =IF(I59<I60,1,"") ->  | L60: - | M60: - | N60: 0 | O60: 0 | P60: 0 | Q60: 0 | R60: 1148.461784 | S60: =1/2*H60*$U$1221*$U$1222*$U$1223+IF(F60=0,0,一覧表!$C$37*一覧表!$C$18*9.8) -> 184.1282778 | T60: =(F60-F59)*一覧表!$C$18 -> 492 | U60: 1 | V60: 2296.923568 | W60: 34.90740741 | X60: 1218.527092 | Y60: - | Z60: - | AA60: 34.62303789
A61: 46 | B61: 38.9 | C61: 3 | D61: 3 | E61: 3 | F61: 10.80555556 | G61: 0.08333333333 | H61: 116.7600309 | I61: 1 | L61: - | M61: - | N61: 0 | O61: 0 | P61: 0 | Q61: 0 | R61: 1261.657 | S61: =1/2*H61*$U$1221*$U$1222*$U$1223+IF(F61=0,0,一覧表!$C$37*一覧表!$C$18*9.8) -> 186.6816111 | T61: =(F61-F60)*一覧表!$C$18 -> 492 | U61: 1 | V61: 2523.314 | W61: 36.01851852 | X61: 1297.333676 | Y61: - | Z61: - | AA61: 35.72509745
A62: 47 | B62: 39.2 | C62: 3 | D62: 3 | E62: 3 | F62: 10.88888889 | G62: -0.5277777778 | H62: 118.5679012 | I62: 0 | K62: 1 | L62: - | M62: 118.5679012 | N62: 1 | O62: 118.5679012 | P62: 118.5679012 | Q62: 0 | R62: 1291.072702 | S62: =1/2*H62*$U$1221*$U$1222*$U$1223+IF(F62=0,0,一覧表!$C$37*一覧表!$C$18*9.8) -> 187.3324444 | T62: =(F62-F61)*一覧表!$C$18 -> 123 | U62: 1 | V62: 2582.145405 | W62: 36.2962963 | X62: 1317.421125 | Y62: - | Z62: 1317.421125 | AA62: 36.00061234
A63: 48 | B63: 37.3 | C63: 3 | D63: 3 | E63: 3 | F63: 10.36111111 | G63: -0.8888888889 | H63: 107.3526235 | I63: 0 | L63: - | M63: - | N63: 1 | O63: 107.3526235 | P63: 118.5679012 | Q63: 0 | R63: 1112.29246 | S63: =1/2*H63*$U$1221*$U$1222*$U$1223+IF(F63=0,0,一覧表!$C$37*一覧表!$C$18*9.8) -> 183.2949444 | T63: =(F63-F62)*一覧表!$C$18 -> -779 | U63: 0 | V63: 0 | W63: 34.53703704 | X63: 1192.806927 | Y63: - | Z63: - | AA63: 34.2556847
A64: 49 | B64: 34.1 | C64: 3 | D64: 3 | E64: 3 | F64: 9.472222222 | G64: -0.3611111111 | H64: 89.72299383 | I64: 0 | L64: - | M64: - | N64: 1 | O64: 89.72299383 | P64: 118.5679012 | Q64: 0 | R64: 849.876136 | S64: =1/2*H64*$U$1221*$U$1222*$U$1223+IF(F64=0,0,一覧表!$C$37*一覧表!$C$18*9.8) -> 176.9482778 | T64: =(F64-F63)*一覧表!$C$18 -> -1312 | U64: 0 | V64: 0 | W64: 31.57407407 | X64: 996.9221536 | Y64: - | Z64: - | AA64: 31.31685921
A65: 50 | B65: 32.8 | C65: 3 | D65: 3 | E65: 3 | F65: 9.111111111 | G65: -0.1111111111 | H65: 83.01234568 | I65: 0 | L65: - | M65: - | N65: 1 | O65: 83.01234568 | P65: 118.5679012 | Q65: 0 | R65: 756.3347051 | S65: =1/2*H65*$U$1221*$U$1222*$U$1223+IF(F65=0,0,一覧表!$C$37*一覧表!$C$18*9.8) -> 174.5324444 | T65: =(F65-F64)*一覧表!$C$18 -> -533 | U65: 0 | V65: 0 | W65: 30.37037037 | X65: 922.3593964 | Y65: - | Z65: - | AA65: 30.12296135
A66: 51 | B66: 32.4 | C66: 3 | D66: 3 | E66: 3 | F66: 9 | G66: -0.1944444444 | H66: 81 | I66: 0 | L66: - | M66: - | N66: 1 | O66: 81 | P66: 118.5679012 | Q66: 0 | R66: 729 | S66: =1/2*H66*$U$1221*$U$1222*$U$1223+IF(F66=0,0,一覧表!$C$37*一覧表!$C$18*9.8) -> 173.808 | T66: =(F66-F65)*一覧表!$C$18 -> -164 | U66: 1 | V66: 1458 | W66: 30 | X66: 900 | Y66: - | Z66: - | AA66: 29.75560816
A67: 52 | B67: 31.7 | C67: 3 | D67: 3 | E67: 3 | F67: 8.805555556 | G67: -0.3611111111 | H67: 77.53780864 | I67: 0 | L67: - | M67: - | N67: 1 | O67: 77.53780864 | P67: 118.5679012 | Q67: 0 | R67: 682.7634817 | S67: =1/2*H67*$U$1221*$U$1222*$U$1223+IF(F67=0,0,一覧表!$C$37*一覧表!$C$18*9.8) -> 172.5616111 | T67: =(F67-F66)*一覧表!$C$18 -> -287 | U67: 0 | V67: 0 | W67: 29.35185185 | X67: 861.5312071 | Y67: - | Z67: - | AA67: 29.11274008
A68: 53 | B68: 30.4 | C68: 3 | D68: 3 | E68: 3 | F68: 8.444444444 | G68: -0.3611111111 | H68: 71.30864198 | I68: 0 | L68: - | M68: - | N68: 1 | O68: 71.30864198 | P68: 118.5679012 | Q68: 0 | R68: 602.1618656 | S68: =1/2*H68*$U$1221*$U$1222*$U$1223+IF(F68=0,0,一覧表!$C$37*一覧表!$C$18*9.8) -> 170.3191111 | T68: =(F68-F67)*一覧表!$C$18 -> -533 | U68: 0 | V68: 0 | W68: 28.14814815 | X68: 792.3182442 | Y68: - | Z68: - | AA68: 27.91884222
A69: 54 | B69: 29.1 | C69: 3 | D69: 3 | E69: 3 | F69: 8.083333333 | G69: -0.1388888889 | H69: 65.34027778 | I69: 0 | L69: - | M69: - | N69: 1 | O69: 65.34027778 | P69: 118.5679012 | Q69: 0 | R69: 528.1672454 | S69: =1/2*H69*$U$1221*$U$1222*$U$1223+IF(F69=0,0,一覧表!$C$37*一覧表!$C$18*9.8) -> 168.1705 | T69: =(F69-F68)*一覧表!$C$18 -> -533 | U69: 0 | V69: 0 | W69: 26.94444444 | X69: 726.0030864 | Y69: - | Z69: - | AA69: 26.72494437
A70: 55 | B70: 28.6 | C70: 3 | D70: 3 | E70: 3 | F70: 7.944444444 | G70: 0 | H70: 63.11419753 | I70: 1 | J70: 1 | L70: 63.11419753 | M70: - | N70: 1 | O70: 63.11419753 | P70: =IF(O70>=O69,O70,N70*P69)-I70*O70 -> 55.4537037 | Q70: 55.4537037 | R70: 501.4072359 | S70: =1/2*H70*$U$1221*$U$1222*$U$1223+IF(F70=0,0,一覧表!$C$37*一覧表!$C$18*9.8) -> 167.3691111 | T70: =(F70-F69)*一覧表!$C$18 -> -205 | U70: 0 | V70: 0 | W70: 26.48148148 | X70: 701.2688615 | Y70: 701.2688615 | Z70: - | AA70: 26.26575288
A71: 56 | B71: 28.6 | C71: 3 | D71: 3 | E71: 3 | F71: 7.944444444 | G71: 0 | H71: 63.11419753 | I71: 1 | L71: - | M71: - | N71: 0 | O71: 0 | P71: 0 | Q71: 0 | R71: 501.4072359 | S71: =1/2*H71*$U$1221*$U$1222*$U$1223+IF(F71=0,0,一覧表!$C$37*一覧表!$C$18*9.8) -> 167.3691111 | T71: =(F71-F70)*一覧表!$C$18 -> 0 | U71: 1 | V71: 1002.814472 | W71: 26.48148148 | X71: 701.2688615 | Y71: - | Z71: - | AA71: 26.26575288
A72: 57 | B72: 28.6 | C72: 3 | D72: 3 | E72: 3 | F72: 7.944444444 | G72: 0.02777777778 | H72: 63.11419753 | I72: 1 | L72: - | M72: - | N72: 0 | O72: 0 | P72: 0 | Q72: 0 | R72: 501.4072359 | S72: =1/2*H72*$U$1221*$U$1222*$U$1223+IF(F72=0,0,一覧表!$C$37*一覧表!$C$18*9.8) -> 167.3691111 | T72: =(F72-F71)*一覧表!$C$18 -> 0 | U72: 1 | V72: 1002.814472 | W72: 26.48148148 | X72: 701.2688615 | Y72: - | Z72: - | AA72: 26.26575288
A73: 58 | B73: 28.7 | C73: 3 | D73: 3 | E73: 3 | F73: 7.972222222 | G73: 0.1111111111 | H73: 63.55632716 | I73: 1 | L73: - | M73: - | N73: 0 | O73: 0 | P73: 0 | Q73: 0 | R73: 506.6851638 | S73: =1/2*H73*$U$1221*$U$1222*$U$1223+IF(F73=0,0,一覧表!$C$37*一覧表!$C$18*9.8) -> 167.5282778 | T73: =(F73-F72)*一覧表!$C$18 -> 41 | U73: 1 | V73: 1013.370328 | W73: 26.57407407 | X73: 706.1814129 | Y73: - | Z73: - | AA73: 26.35759118
A74: 59 | B74: 29.1 | C74: 3 | D74: 3 | E74: 3 | F74: 8.083333333 | G74: 0.1944444444 | H74: 65.34027778 | I74: 1 | L74: - | M74: - | N74: 0 | O74: 0 | P74: 0 | Q74: 0 | R74: 528.1672454 | S74: =1/2*H74*$U$1221*$U$1222*$U$1223+IF(F74=0,0,一覧表!$C$37*一覧表!$C$18*9.8) -> 168.1705 | T74: =(F74-F73)*一覧表!$C$18 -> 164 | U74: 1 | V74: 1056.334491 | W74: 26.94444444 | X74: 726.0030864 | Y74: - | Z74: - | AA74: 26.72494437
A75: 60 | B75: 29.8 | C75: 3 | D75: 3 | E75: 3 | F75: 8.277777778 | G75: 0.3055555556 | H75: 68.52160494 | I75: 1 | L75: - | M75: - | N75: 0 | O75: 0 | P75: 0 | Q75: 0 | R75: 567.2066187 | S75: =1/2*H75*$U$1221*$U$1222*$U$1223+IF(F75=0,0,一覧表!$C$37*一覧表!$C$18*9.8) -> 169.3157778 | T75: =(F75-F74)*一覧表!$C$18 -> 287 | U75: 1 | V75: 1134.413237 | W75: 27.59259259 | X75: 761.351166 | Y75: - | Z75: - | AA75: 27.36781244
A76: 61 | B76: 30.9 | C76: 3 | D76: 3 | E76: 3 | F76: 8.583333333 | G76: 0.4444444444 | H76: 73.67361111 | I76: 1 | L76: - | M76: - | N76: 0 | O76: 0 | P76: 0 | Q76: 0 | R76: 632.365162 | S76: =1/2*H76*$U$1221*$U$1222*$U$1223+IF(F76=0,0,一覧表!$C$37*一覧表!$C$18*9.8) -> 171.1705 | T76: =(F76-F75)*一覧表!$C$18 -> 451 | U76: 1 | V76: 1264.730324 | W76: 28.61111111 | X76: 818.595679 | Y76: - | Z76: - | AA76: 28.37803371
A77: 62 | B77: 32.5 | C77: 3 | D77: 3 | E77: 3 | F77: 9.027777778 | G77: 0.7222222222 | H77: 81.5007716 | I77: 1 | L77: - | M77: - | N77: 0 | O77: 0 | P77: 0 | Q77: 0 | R77: 735.7708548 | S77: =1/2*H77*$U$1221*$U$1222*$U$1223+IF(F77=0,0,一覧表!$C$37*一覧表!$C$18*9.8) -> 173.9882778 | T77: =(F77-F76)*一覧表!$C$18 -> 656 | U77: 1 | V77: 1471.54171 | W77: 30.09259259 | X77: 905.5641289 | Y77: - | Z77: - | AA77: 29.84744646
A78: 63 | B78: 35.1 | C78: 3 | D78: 3 | E78: 3 | F78: 9.75 | G78: 0.6666666667 | H78: 95.0625 | I78: 1 | L78: - | M78: - | N78: 0 | O78: 0 | P78: 0 | Q78: 0 | R78: 926.859375 | S78: =1/2*H78*$U$1221*$U$1222*$U$1223+IF(F78=0,0,一覧表!$C$37*一覧表!$C$18*9.8) -> 178.8705 | T78: =(F78-F77)*一覧表!$C$18 -> 1066 | U78: 1 | V78: 1853.71875 | W78: 32.5 | X78: 1056.25 | Y78: - | Z78: - | AA78: 32.23524217
A79: 64 | B79: 37.5 | C79: 3 | D79: 3 | E79: 3 | F79: 10.41666667 | G79: 0.3888888889 | H79: 108.5069444 | I79: 1 | L79: - | M79: - | N79: 0 | O79: 0 | P79: 0 | Q79: 0 | R79: 1130.280671 | S79: =1/2*H79*$U$1221*$U$1222*$U$1223+IF(F79=0,0,一覧表!$C$37*一覧表!$C$18*9.8) -> 183.7105 | T79: =(F79-F78)*一覧表!$C$18 -> 984 | U79: 1 | V79: 2260.561343 | W79: 34.72222222 | X79: 1205.632716 | Y79: - | Z79: - | AA79: 34.4393613
A80: 65 | B80: 38.9 | C80: 3 | D80: 3 | E80: 3 | F80: 10.80555556 | G80: 0.02777777778 | H80: 116.7600309 | I80: 1 | L80: - | M80: =IF(K80="","-",K80*H80) -> - | N80: =IF(J80=1,1,IF(F80>F81,1,0)) -> 0 | O80: 0 | P80: 0 | Q80: =IF(J80=1,P80,0) -> 0 | R80: =H80*F80 -> 1261.657 | S80: =1/2*H80*$U$1221*$U$1222*$U$1223+IF(F80=0,0,一覧表!$C$37*一覧表!$C$18*9.8) -> 186.6816111 | T80: =(F80-F79)*一覧表!$C$18 -> 574 | U80: 1 | V80: 2523.314 | W80: 36.01851852 | X80: =W80*W80 -> 1297.333676 | Y80: =IF(J80="","-",X80*J80) -> - | Z80: =IF(K80="","-",X80*K80) -> - | AA80: =IF(OR(F80<$AD$12,C80="N"),$AD$7/60,IF(C80=1,$AC$3,IF(C80=2,$AD$3,IF(C80=3,$AE$3,IF(C80=4,$AF$3,IF(C80=5,$AG$3,$AH$3)))))*$AC$4*F80/(PI()*$AD$10)) -> 35.72509745
A81: 66 | B81: 39 | C81: 3 | D81: 3 | E81: 3 | F81: =B81*1000/3600 -> 10.83333333 | G81: -0.3611111111 | H81: =F81*F81 -> 117.3611111 | I81: 0 | K81: 1 | L81: =IF(J81="","-",J81*H81) -> - | M81: 117.3611111 | N81: 1 | O81: =N81*H81 -> 117.3611111 | P81: =IF(O81>=O80,O81,N81*P80)-I81*O81 -> 117.3611111 | Q81: 0 | R81: 1271.412037 | S81: =1/2*H81*$U$1221*$U$1222*$U$1223+IF(F81=0,0,一覧表!$C$37*一覧表!$C$18*9.8) -> 186.898 | T81: =(F81-F80)*一覧表!$C$18 -> 41 | U81: 1 | V81: 2542.824074 | W81: 36.11111111 | X81: 1304.012346 | Y81: - | Z81: 1304.012346 | AA81: 35.81693575
A82: 67 | B82: 37.7 | C82: 3 | D82: 3 | E82: 3 | F82: 10.47222222 | G82: -0.7222222222 | H82: 109.6674383 | I82: =IF(F82<=F83,1,0) -> 0 | K82: =IF(I81>I82,1,"") ->  | L82: - | M82: - | N82: 1 | O82: 109.6674383 | P82: 117.3611111 | Q82: 0 | R82: 1148.461784 | S82: =1/2*H82*$U$1221*$U$1222*$U$1223+IF(F82=0,0,一覧表!$C$37*一覧表!$C$18*9.8) -> 184.1282778 | T82: =(F82-F81)*一覧表!$C$18 -> -533 | U82: =IF(S82<=-T82,0,1) -> 0 | V82: =IF(U82=1,R82*$U$1221,0) -> 0 | W82: 34.90740741 | X82: 1218.527092 | Y82: - | Z82: - | AA82: 34.62303789
A83: 68 | B83: 35.1 | C83: 3 | D83: 3 | E83: 3 | F83: 9.75 | G83: -0.6111111111 | H83: 95.0625 | I83: 0 | L83: - | M83: - | N83: 1 | O83: 95.0625 | P83: 117.3611111 | Q83: 0 | R83: 926.859375 | S83: =1/2*H83*$U$1221*$U$1222*$U$1223+IF(F83=0,0,一覧表!$C$37*一覧表!$C$18*9.8) -> 178.8705 | T83: =(F83-F82)*一覧表!$C$18 -> -1066 | U83: 0 | V83: 0 | W83: =F83/($AD$10/2) -> 32.5 | X83: 1056.25 | Y83: - | Z83: - | AA83: 32.23524217
A84: 69 | B84: 32.9 | C84: 3 | D84: 3 | E84: 3 | F84: 9.138888889 | G84: -0.2222222222 | H84: 83.51929012 | I84: 0 | L84: - | M84: - | N84: 1 | O84: 83.51929012 | P84: 117.3611111 | Q84: 0 | R84: 763.2735125 | S84: =1/2*H84*$U$1221*$U$1222*$U$1223+IF(F84=0,0,一覧表!$C$37*一覧表!$C$18*9.8) -> 174.7149444 | T84: =(F84-F83)*一覧表!$C$18 -> -902 | U84: 0 | V84: 0 | W84: 30.46296296 | X84: 927.9921125 | Y84: - | Z84: - | AA84: 30.21479964
A85: 70 | B85: 32.1 | C85: 3 | D85: 3 | E85: 3 | F85: 8.916666667 | G85: -0.3055555556 | H85: 79.50694444 | I85: 0 | L85: - | M85: - | N85: 1 | O85: 79.50694444 | P85: 117.3611111 | Q85: 0 | R85: 708.9369213 | S85: =1/2*H85*$U$1221*$U$1222*$U$1223+IF(F85=0,0,一覧表!$C$37*一覧表!$C$18*9.8) -> 173.2705 | T85: =(F85-F84)*一覧表!$C$18 -> -328 | U85: 0 | V85: 0 | W85: 29.72222222 | X85: 883.4104938 | Y85: - | Z85: - | AA85: 29.48009327
A86: 71 | B86: 31 | C86: 3 | D86: 3 | E86: 3 | F86: 8.611111111 | G86: -1 | H86: 74.15123457 | I86: 0 | L86: - | M86: - | N86: 1 | O86: 74.15123457 | P86: 117.3611111 | Q86: 0 | R86: 638.5245199 | S86: =1/2*H86*$U$1221*$U$1222*$U$1223+IF(F86=0,0,一覧表!$C$37*一覧表!$C$18*9.8) -> 171.3424444 | T86: =(F86-F85)*一覧表!$C$18 -> -451 | U86: 0 | V86: 0 | W86: 28.7037037 | X86: 823.9026063 | Y86: - | Z86: - | AA86: 28.46987201
A87: 72 | B87: 27.4 | C87: 3 | D87: 3 | E87: 3 | F87: 7.611111111 | G87: =F88-F87 -> -1.027777778 | H87: 57.92901235 | I87: 0 | L87: - | M87: - | N87: 1 | O87: 57.92901235 | P87: 117.3611111 | Q87: 0 | R87: 440.9041495 | S87: =1/2*H87*$U$1221*$U$1222*$U$1223+IF(F87=0,0,一覧表!$C$37*一覧表!$C$18*9.8) -> 165.5024444 | T87: =(F87-F86)*一覧表!$C$18 -> -1476 | U87: 0 | V87: 0 | W87: 25.37037037 | X87: 643.6556927 | Y87: - | Z87: - | AA87: 25.16369332
A88: 73 | B88: 23.7 | C88: 3 | D88: 3 | E88: N | F88: 6.583333333 | G88: -0.9722222222 | H88: 43.34027778 | I88: 0 | L88: - | M88: - | N88: 1 | O88: 43.34027778 | P88: 117.3611111 | Q88: 0 | R88: 285.3234954 | S88: =1/2*H88*$U$1221*$U$1222*$U$1223+IF(F88=0,0,一覧表!$C$37*一覧表!$C$18*9.8) -> 160.2505 | T88: =(F88-F87)*一覧表!$C$18 -> -1517 | U88: 0 | V88: 0 | W88: 21.94444444 | X88: 481.558642 | Y88: - | Z88: - | AA88: 21.76567634
A89: 74 | B89: 20.2 | C89: 3 | D89: 3 | E89: N | F89: 5.611111111 | G89: -0.75 | H89: 31.4845679 | I89: 0 | L89: - | M89: - | N89: 1 | O89: 31.4845679 | P89: 117.3611111 | Q89: 0 | R89: 176.6634088 | S89: =1/2*H89*$U$1221*$U$1222*$U$1223+IF(F89=0,0,一覧表!$C$37*一覧表!$C$18*9.8) -> 155.9824444 | T89: =(F89-F88)*一覧表!$C$18 -> -1435 | U89: 0 | V89: 0 | W89: 18.7037037 | X89: 349.8285322 | Y89: - | Z89: - | AA89: 18.55133595
A90: 75 | B90: 17.5 | C90: N | D90: 3 | E90: N | F90: 4.861111111 | G90: -0.4444444444 | H90: 23.63040123 | I90: 0 | L90: - | M90: - | N90: 1 | O90: 23.63040123 | P90: 117.3611111 | Q90: 0 | R90: 114.870006 | S90: =1/2*H90*$U$1221*$U$1222*$U$1223+IF(F90=0,0,一覧表!$C$37*一覧表!$C$18*9.8) -> 153.1549444 | T90: =(F90-F89)*一覧表!$C$18 -> -1107 | U90: 0 | V90: 0 | W90: 16.2037037 | X90: 262.5600137 | Y90: - | Z90: - | AA90: 13.33333333
A91: 76 | B91: 15.9 | C91: N | D91: N | E91: N | F91: 4.416666667 | G91: -0.3888888889 | H91: 19.50694444 | I91: 0 | L91: - | M91: - | N91: 1 | O91: 19.50694444 | P91: 117.3611111 | Q91: 0 | R91: 86.1556713 | S91: =1/2*H91*$U$1221*$U$1222*$U$1223+IF(F91=0,0,一覧表!$C$37*一覧表!$C$18*9.8) -> 151.6705 | T91: =(F91-F90)*一覧表!$C$18 -> -656 | U91: 0 | V91: 0 | W91: 14.72222222 | X91: 216.7438272 | Y91: - | Z91: - | AA91: 13.33333333
A92: 77 | B92: 14.5 | C92: N | D92: N | E92: N | F92: 4.027777778 | G92: -0.5 | H92: 16.22299383 | I92: 0 | L92: - | M92: - | N92: 1 | O92: 16.22299383 | P92: 117.3611111 | Q92: 0 | R92: 65.34261403 | S92: =1/2*H92*$U$1221*$U$1222*$U$1223+IF(F92=0,0,一覧表!$C$37*一覧表!$C$18*9.8) -> 150.4882778 | T92: =(F92-F91)*一覧表!$C$18 -> -574 | U92: 0 | V92: 0 | W92: 13.42592593 | X92: 180.255487 | Y92: - | Z92: - | AA92: 13.33333333
A93: 78 | B93: 12.7 | C93: N | D93: N | E93: N | F93: 3.527777778 | G93: -0.5 | H93: 12.44521605 | I93: 0 | L93: - | M93: - | N93: 1 | O93: 12.44521605 | P93: 117.3611111 | Q93: 0 | R93: 43.90395662 | S93: =1/2*H93*$U$1221*$U$1222*$U$1223+IF(F93=0,0,一覧表!$C$37*一覧表!$C$18*9.8) -> 149.1282778 | T93: =(F93-F92)*一覧表!$C$18 -> -738 | U93: 0 | V93: 0 | W93: 11.75925926 | X93: 138.2801783 | Y93: - | Z93: - | AA93: 13.33333333
A94: 79 | B94: 10.9 | C94: N | D94: N | E94: N | F94: 3.027777778 | G94: -0.3888888889 | H94: 9.167438272 | I94: 0 | L94: - | M94: - | N94: 1 | O94: 9.167438272 | P94: 117.3611111 | Q94: 0 | R94: 27.75696588 | S94: =1/2*H94*$U$1221*$U$1222*$U$1223+IF(F94=0,0,一覧表!$C$37*一覧表!$C$18*9.8) -> 147.9482778 | T94: =(F94-F93)*一覧表!$C$18 -> -738 | U94: 0 | V94: 0 | W94: 10.09259259 | X94: 101.8604252 | Y94: - | Z94: - | AA94: 13.33333333
A95: 80 | B95: 9.5 | C95: N | D95: N | E95: N | F95: 2.638888889 | G95: -0.3888888889 | H95: 6.963734568 | I95: 0 | L95: - | M95: - | N95: 1 | O95: 6.963734568 | P95: 117.3611111 | Q95: 0 | R95: 18.37652178 | S95: =1/2*H95*$U$1221*$U$1222*$U$1223+IF(F95=0,0,一覧表!$C$37*一覧表!$C$18*9.8) -> 147.1549444 | T95: =(F95-F94)*一覧表!$C$18 -> -574 | U95: 0 | V95: 0 | W95: 8.796296296 | X95: 77.37482853 | Y95: - | Z95: - | AA95: 13.33333333
